Workbook

Sheet PORTADA
B9: MODELO DE TELEFÓNICA MÓVILES PARA LA ESTIMACIÓN DEL CARGO DE INTERCONEXIÓN POR TERMINACIÓN DE LLAMADAS EN REDES MÓVILES
B15: Mar 2017 | E15: Editado por el OSIPTEL respecto a información confidencial - Octubre de 2017
E17: Nota: Las celdas resaltadas en amarillo corresponde a celdas que contenían información confidencial, por lo cual fueron modificadas.

Sheet MODELOEDICION
C8: INPUTS | I8: RADIO ACCESS
C10: AGGREGATION | I10: CORE
C12: OTROS | I12: COSTO

Sheet RESULTADO
A1: RESULTADO
B8: COSTOS RED | C8: =SUMIF('SERVICE COSTING (CAPEX)'!N33:N44,1,'SERVICE COSTING (CAPEX)'!M33:M44)+SUMPRODUCT('NETWORK COSTING'!E8:E19,'NETWORK COSTING'!F8:F19)*SUMPRODUCT('SERVICE COSTING (OPEX)'!F22:F33,'SERVICE COSTING (OPEX)'!M5:M16) -> 177359894.8
B9: COSTOS OPERATIVOS | C9: =SUMIF('SERVICE COSTING (OPEX)'!M5:M16,1,'SERVICE COSTING (OPEX)'!K5:K16) -> 32112171.18
B10: ESPECTRO | C10: =SUMIF('SERVICE COSTING (OPEX)'!M5:M16,1,'SERVICE COSTING (OPEX)'!L5:L16) -> 25453902.29
B11: OSS | C11: ='NETWORK COSTING'!E44+'NETWORK COSTING'!E45 -> 247591.7143
B12: COSTOS COMUNES | C12: =(C8+C9+C11)*overhead -> 20971965.77
B13: COSTO TOTAL | C13: =SUM(C8:C12) -> 256145525.7
B14: UNIDADES | C14: =SUMIF('TRÁFICO CALCULADO'!Q8:Q28,1,'TRÁFICO CALCULADO'!C8:C28)*12 -> 15432000000
B15: ="COSTO "&moneda&"cent / minuto" -> COSTO US$cent / minuto | C15: =C13/C14*100 -> 1.65983363

Sheet INPUTS
C8: INPUTS GENERALES | I8: PARAMETROS
C10: LISTA CELDA | I10: LISTA BSC
C12: LISTA RNC | I12: LISTA MSC
C14: TRAFICO | I14: TRAFICO CALCULADO

Sheet INPUTS GENERALES
A1: <-- EDICIÓN | B1: AUXILIAR
B6: DEPATAMENTOS
B7: ID_DPTO | C7: DPTO
B8: 1 | C8: AYACUCHO
B9: 2 | C9: HUANCAVELICA
B10: 3 | C10: HUANUCO
B11: 4 | C11: ICA
B12: 5 | C12: JUNIN
B13: 6 | C13: LIMA
B14: 7 | C14: LORETO
B15: 8 | C15: PASCO
B16: 9 | C16: SAN MARTIN
B17: 10 | C17: UCAYALI
B18: 11 | C18: AMAZONAS
B19: 12 | C19: ANCASH
B20: 13 | C20: CAJAMARCA
B21: 14 | C21: LA LIBERTAD
B22: 15 | C22: LAMBAYEQUE
B23: 16 | C23: PIURA
B24: 17 | C24: TUMBES
B25: 18 | C25: APURIMAC
B26: 19 | C26: AREQUIPA
B27: 20 | C27: CUSCO
B28: 21 | C28: MADRE DE DIOS
B29: 22 | C29: MOQUEGUA
B30: 23 | C30: PUNO
B31: 24 | C31: TACNA
B32: 25 | C32: CALLAO
B33: idDepartamentos | C33: departamentos
B36: REGIONES
B37: ID_REGION | C37: REGION
B38: 1 | C38: LIMA
B39: 2 | C39: NORTE
B40: 3 | C40: SUR
B41: 4 | C41: CENTRO ORIENTE
B42: 5 | C42: NOR ORIENTE
B43: 6 | C43: SUR ESTE
C45: regiones
B49: TIPOS CELDAS
B50: ID_TIPO | C50: TIPO
B51: 1 | C51: MACRO
B52: 2 | C52: PICO
B53: 3 | C53: FEMTO
B54: 4 | C54: VACIO 1
B55: 5 | C55: VACIO 2
B56: idTipoCelda | C56: tipoCelda
B59: TIPO ESTRATEGIAS
B60: ID_TIPO | C60: TIPO
B61: 1 | C61: NG
B62: 2 | C62: SELVA
B63: 3 | C63: NEGOCIO RURAL
B64: 4 | C64: CONCESION
B65: 5 | C65: SOLUCION CORPORATIVA
B68: idTipoCelda | C68: tipoCelda
B71: TIPO ZONAS
B72: TIPO | C72: DESCRIPCIÓN
B73: LIMA URBANA | C73: Lima entorno urbano
B74: LIMA RURAL | C74: Lima entorno rural
B75: PROVINCIA URBANA | C75: Provincias entorno urbano
B76: PROVINCIA RURAL | C76: Provincias entorno rural
B77: VACIO 1
B78: VACIO 2
B79: TiposEntorno
B82: SERVICIO PORTADORES 3G
B83: ID_SERVICIO | C83: SERVICIO
B84: CS12 | C84: Servicio de voz
B85: R99_UL | C85: Combinación de servicios de datos R99( Enlace ascendente)
B86: R99_DL | C86: Combinación de servicios de datos R99 (Enlace descendente)
B87: HSUPA | C87: Datos HSPA (enlace ascendente)
B88: HSDPA | C88: Datos HSPA (enlace descendente)
B89: idSevicios.3G
B90: idServiciosDatos.3G
B93: FABRICANTES 2G | E93: FABRICANTES 3G | I93: FABRICANTES 4G
B94: ID_FABRICANTE | C94: FABRICANTE | E94: ID_FABRICANTE | F94: FABRICANTE | I94: ID_FABRICANTE | J94: FABRICANTE
B95: 1 | C95: VACIO 1 | E95: 1 | F95: VACIO 1 | I95: 1 | J95: VACIO 1
B96: 2 | C96: VACIO 2 | E96: 2 | F96: VACIO 2 | I96: 2 | J96: VACIO 2
B97: 3 | C97: VACIO 3 | E97: 3 | F97: VACIO 3 | I97: 3 | J97: VACIO 3
B98: 4 | C98: VACIO 4 | E98: 4 | F98: VACIO 4 | I98: 4 | J98: VACIO 4
B99: 5 | C99: VACIO 5 | E99: 5 | F99: VACIO 5 | I99: 5 | J99: VACIO 5
B100: 6 | C100: PROMEDIO | E100: 6 | F100: PROMEDIO | I100: 6 | J100: PROMEDIO
C101: fabricantes.2G | F101: fabricantes.3G | J101: fabricantes.4G
B103: TITULARIDAD
B104: ID_TITULARIDAD | C104: TITULARIDAD
B105: TM | C105: Propiedad TM
B106: TERCERO | C106: Propiedad Tercero
B107: D | C107: Default
B108: titularidad
B110: CRITERIOS ASIGNACIÓN COSTOS
B111: ID_CRITERIO | C111: CRITERIO
B112: DIRECTO | C112: Directo a Servicio
B113: INGRESOS | C113: Ingresos por servicio
B114: USO_RADIO | C114: Red de acceso radio
B115: USO_LLAMADAS | C115: Llamadas por servicio
B116: USO_TRAFICO | C116: Tráfico por servicio
B117: USO_SEÑA | C117: Señalización por servicio
B118: USO_PLA | C118: Plataforma
B119: USO_ESPACIO | C119: Espacio Emplazamientos y salas de conmutación
B120: USO_ENERGIA | C120: Energía Emplazamientos y salas de conmutación
B121: idCriterios
B124: Servicios VOZ | C124: Entrada
B125: Entrante LDI | C125: 1
B126: Entrante LDN Fijo | C126: 1
B127: Entrante LDN Móvil | C127: 1
B128: Entrante Local Fijo | C128: 1
B129: Entrante Local Móvil | C129: 1
B130: On-net LDN | C130: 0
B131: On-net Local | C131: 0
B132: Saliente LDI | C132: 1
B133: Saliente LDN Fijo | C133: 1
B134: Saliente LDN Móvil | C134: 1
B135: Saliente Local Fijo | C135: 1
B136: Saliente Local Móvil | C136: 1

Sheet PARAMETROS
A1: <-- EDICIÓN | B1: PARÁMETROS
A3: Parámetros de costos
B5: Moneda | C5: US$ | D5: moneda
B7: Tipo de Cambio | C7: 3.276 | D7: tipoC
A10: Parámetros de Tráfico
B12: Perfil de tráfico
B14: Relación HC/Mensual Voz | C14: 0.004
B15: Relación HC/Mensual Datos | C15: 0.003
B16: Relación HC/Mensual Mensajes | C16: 0.004
B19: Distribución de tráfico
B21: Utilizar Distribución nacional | C21: SI | D21: usaDistribucin2G3G
C24: 2G | D24: 3G | E24: 4G
B25: % Trafico Voz | C25: 0.4 | D25: =1-C25-E25 -> 0.6 | E25: 0
B26: % Tráfico Datos | C26: 0.02 | D26: =1-C26-E26 -> 0.33 | E26: 0.65
B27: % Tráfico Mensajes | C27: 0.4 | D27: 0.6 | E27: 0
B30: Distribución de tráfico por region
B32: Utilizar Distribución | C32: NO | D32: usaDistribucionRegion
B34: REGIÓN | C34: VOZ | D34: DATOS | E34: MENSAJES
B35: =regiones -> LIMA | C35: 0.4 | D35: 0.5 | E35: =C35 -> 0.4
B36: NORTE | C36: 0.3 | D36: 0.2994272105 | E36: =C36 -> 0.3
B37: SUR | C37: 0.1 | D37: 0.1 | E37: 0.1
B38: CENTRO ORIENTE | C38: 0.2 | D38: 0.1 | E38: 0.2
B39: NOR ORIENTE
B40: SUR ESTE
B43: Otros Parámetros
B45: Capacidad promedio usada por SMS (Kbytes) | F45: 0.15
B47: Capacidad promedio usada por MMS (Kbytes) | F47: 42.34
F49: Tipo de llamadas
F50: Salientes | G50: Entrantes | H50: On-net
B51: Duración media de la llamada (minutos) | F51: 1.5 | G51: 1.5 | H51: 1.5
B53: MSU/llamada | F53: 6

Sheet LISTA CELDA
A1: <-- EDICIÓN | B1: LISTADO DE EMPLAZAMIENTOS
I6: GRADOS | K6: MUNUTOS | M6: SEGUNDOS | AB6: 2G | AJ6: 3G | AQ6: 4G | BH6: Distribución de tráfico por tecnología
B7: ID_CELL_SITE | C7: TIPO_ZONA | D7: LIMA / PROVINCIA | E7: REGIÓN | F7: DPTO | G7: PROVINCIA | H7: DISTRITO | I7: LON. | J7: LAT. | K7: LON. | L7: LAT. | M7: LON. | N7: LAT. | O7: ID_CELL | P7: ID_LOCAL | Q7: INFRA | R7: TITULARIDAD | S7: TIPO | T7: TIPO TRANSMISION | U7: TRÁFICO VOZ | V7: TRÁFICO DATOS | W7: TRÁFICO VOZ 2G | X7: TRÁFICO DATOS 2G | Y7: TRÁFICO VOZ 3G | Z7: TRÁFICO DATOS 3G | AA7: TRÁFICO DATOS 4G | AB7: CONTROLADOR 2G | AC7: FABRICANTE | AD7: SECTORES 850 | AE7: TRAFICO VOZ HC 850 (Erlang) | AF7: TRAFICO DATOS HC 850 (Mbits) | AG7: SECTORES 1900 | AH7: TRAFICO VOZ HC 1900 (Erlang) | AI7: TRAFICO DATOS HC 1900 (Mbits) | AJ7: CONTROLADOR 3G | AK7: FABRICANTE | AL7: SECTORES 3G | AM7: TRAFICO HSDPA | AN7: TRAFICO HSUPA | AO7: TRAFICO R99 DL | AP7: TRAFICO R99 UL | AQ7: CONTROLADOR 4G | AR7: FABRICANTE | AS7: SECTORES 700 | AT7: TRAFICO 700 | AU7: Sectores 1700/2100 | AV7: TRAFICO 1700/2100 | AY7: Radio celda | AZ7: ProvDist | BB7: Id 1 - DEPARTMENTO & GEOTIPO | BC7: Id 2 - DEPARTMENTO & TIPO | BD7: Id 3 - L/P GEOTIPO | BH7: 2G voz | BI7: 2G data | BJ7: 3G voz | BK7: 3G data | BL7: 4G voz | BM7: 4G data
B8: 1 | C8: URBANA | D8: PROVINCIA | E8: NORTE | F8: AMAZONAS | G8: PROVINCIA31 | H8: DISTRITO641 | I8: 77 | J8: 4 | K8: 12 | L8: 22 | M8: 12 | N8: 3 | O8: IDCELL1 | P8: ID_LOCAL1 | Q8: 0 | R8: D | S8: MACRO | T8: FO | U8: 0.000198019802 | V8: 0.000198019802 | W8: 0.71 | X8: 0.1 | Y8: 0.39 | Z8: 0.7 | AA8: 0.2 | AB8: BSC23 | AC8: PROMEDIO | AD8: 1 | AE8: 0.5359425115 | AF8: 0.5359425115 | AG8: 1 | AH8: 0.4640574885 | AI8: 0.4640574885 | AJ8: RNC26 | AK8: PROMEDIO | AL8: 1 | AM8: 0.8815384414 | AN8: 0.1045627723 | AO8: 0.005403422994 | AP8: 0.009134443846 | AQ8: RNC26 | AR8: PROMEDIO | AS8: 1 | AT8: 0.5 | AU8: 1 | AV8: 0.5 | AX8: D | AY8: 1.5 | AZ8: =G8&H8 -> PROVINCIA31DISTRITO641 | BB8: =F8&C8 -> AMAZONASURBANA | BC8: =F8&S8 -> AMAZONASMACRO | BD8: =D8&" "&C8 -> PROVINCIA URBANA | BH8: =IF(usaDistribucin2G3G="SI",PARAMETROS!$C$25,'LISTA CELDA'!W8)*'CELDA RESUMEN'!AG8 -> 0.4 | BI8: =IF(usaDistribucin2G3G="SI",PARAMETROS!$C$26,'LISTA CELDA'!X8)*'CELDA RESUMEN'!AG8 -> 0.02 | BJ8: =IF(usaDistribucin2G3G="SI",PARAMETROS!$D$25,'LISTA CELDA'!Y8)*'CELDA RESUMEN'!AH8 -> 0.6 | BK8: =IF(usaDistribucin2G3G="SI",PARAMETROS!$D$26,'LISTA CELDA'!Z8)*'CELDA RESUMEN'!AH8 -> 0.33 | BL8: =IF(usaDistribucin2G3G="SI",PARAMETROS!$E$25,0) -> 0 | BM8: =IF(usaDistribucin2G3G="SI",PARAMETROS!$E$26,'LISTA CELDA'!AA8)*'CELDA RESUMEN'!AI8 -> 0.65
B9: 2 | C9: URBANA | D9: PROVINCIA | E9: NORTE | F9: AMAZONAS | G9: PROVINCIA232 | H9: DISTRITO111 | I9: 77 | J9: 4 | K9: 12 | L9: 22 | M9: 12 | N9: 3 | O9: IDCELL2 | P9: ID_LOCAL2 | Q9: 0 | R9: D | S9: MACRO | T9: FO | U9: 0.000198019802 | V9: 0.000198019802 | W9: 0.71 | X9: 0.1 | Y9: 0.39 | Z9: 0.7 | AA9: 0.2 | AB9: BSC23 | AC9: PROMEDIO | AD9: 1 | AE9: 0.6818129573 | AF9: 0.6818129573 | AG9: 1 | AH9: 0.3181870427 | AI9: 0.3181870427 | AJ9: RNC18 | AK9: PROMEDIO | AL9: 1 | AM9: 0.8815384414 | AN9: 0.1045627723 | AO9: 0.005403422994 | AP9: 0.009134443846 | AQ9: RNC18 | AR9: PROMEDIO | AS9: 1 | AT9: 0.5 | AU9: 1 | AV9: 0.5 | AX9: D | AY9: 1.5 | AZ9: PROVINCIA232DISTRITO111 | BB9: AMAZONASURBANA | BC9: AMAZONASMACRO | BD9: PROVINCIA URBANA | BH9: =IF(usaDistribucin2G3G="SI",PARAMETROS!$C$25,'LISTA CELDA'!W9)*'CELDA RESUMEN'!AG9 -> 0.4 | BI9: =IF(usaDistribucin2G3G="SI",PARAMETROS!$C$26,'LISTA CELDA'!X9)*'CELDA RESUMEN'!AG9 -> 0.02 | BJ9: =IF(usaDistribucin2G3G="SI",PARAMETROS!$D$25,'LISTA CELDA'!Y9)*'CELDA RESUMEN'!AH9 -> 0.6 | BK9: =IF(usaDistribucin2G3G="SI",PARAMETROS!$D$26,'LISTA CELDA'!Z9)*'CELDA RESUMEN'!AH9 -> 0.33 | BL9: =IF(usaDistribucin2G3G="SI",PARAMETROS!$E$25,0) -> 0 | BM9: =IF(usaDistribucin2G3G="SI",PARAMETROS!$E$26,'LISTA CELDA'!AA9)*'CELDA RESUMEN'!AI9 -> 0.65
B10: 3 | C10: RURAL | D10: PROVINCIA | E10: NORTE | F10: AMAZONAS | G10: PROVINCIA31 | H10: DISTRITO641 | I10: 77 | J10: 4 | K10: 12 | L10: 22 | M10: 12 | N10: 3 | O10: IDCELL3 | P10: ID_LOCAL3 | Q10: 0 | R10: D | S10: MACRO | T10: FO | U10: 0.000198019802 | V10: 0.000198019802 | W10: 0.71 | X10: 0.1 | Y10: 0.39 | Z10: 0.7 | AA10: 0.2 | AB10: BSC23 | AC10: PROMEDIO | AD10: 1 | AE10: 1 | AF10: 1 | AG10: 0 | AH10: 0 | AI10: 0 | AJ10: RNC18 | AK10: PROMEDIO | AL10: 1 | AM10: 0.8815384414 | AN10: 0.1045627723 | AO10: 0.005403422994 | AP10: 0.009134443846 | AQ10: RNC18 | AR10: PROMEDIO | AS10: 1 | AT10: 0.5 | AU10: 1 | AV10: 0.5 | AX10: D | AY10: 1.5 | AZ10: PROVINCIA31DISTRITO641 | BB10: AMAZONASRURAL | BC10: AMAZONASMACRO | BD10: PROVINCIA RURAL | BH10: =IF(usaDistribucin2G3G="SI",PARAMETROS!$C$25,'LISTA CELDA'!W10)*'CELDA RESUMEN'!AG10 -> 0.4 | BI10: =IF(usaDistribucin2G3G="SI",PARAMETROS!$C$26,'LISTA CELDA'!X10)*'CELDA RESUMEN'!AG10 -> 0.02 | BJ10: =IF(usaDistribucin2G3G="SI",PARAMETROS!$D$25,'LISTA CELDA'!Y10)*'CELDA RESUMEN'!AH10 -> 0.6 | BK10: =IF(usaDistribucin2G3G="SI",PARAMETROS!$D$26,'LISTA CELDA'!Z10)*'CELDA RESUMEN'!AH10 -> 0.33 | BL10: =IF(usaDistribucin2G3G="SI",PARAMETROS!$E$25,0) -> 0 | BM10: =IF(usaDistribucin2G3G="SI",PARAMETROS!$E$26,'LISTA CELDA'!AA10)*'CELDA RESUMEN'!AI10 -> 0.65
B11: 4 | C11: RURAL | D11: PROVINCIA | E11: NORTE | F11: AMAZONAS | G11: PROVINCIA38 | H11: DISTRITO592 | I11: 77 | J11: 4 | K11: 12 | L11: 22 | M11: 12 | N11: 3 | O11: IDCELL4 | P11: ID_LOCAL4 | Q11: 0 | R11: D | S11: MACRO | T11: FO | U11: 0.000198019802 | V11: 0.000198019802 | W11: 1 | X11: 1 | Y11: 0 | Z11: 0 | AA11: 0 | AB11: BSC23 | AC11: PROMEDIO | AD11: 1 | AE11: 1 | AF11: 1 | AG11: 0 | AH11: 0 | AI11: 0 | AJ11: 0 | AK11: PROMEDIO | AL11: 0 | AM11: 0 | AN11: 0 | AO11: 0 | AP11: 0 | AR11: PROMEDIO | AS11: 0 | AT11: 0 | AU11: 0 | AV11: 0 | AX11: D | AY11: 1.5 | AZ11: PROVINCIA38DISTRITO592 | BB11: AMAZONASRURAL | BC11: AMAZONASMACRO | BD11: PROVINCIA RURAL | BH11: =IF(usaDistribucin2G3G="SI",PARAMETROS!$C$25,'LISTA CELDA'!W11)*'CELDA RESUMEN'!AG11 -> 0.4 | BI11: =IF(usaDistribucin2G3G="SI",PARAMETROS!$C$26,'LISTA CELDA'!X11)*'CELDA RESUMEN'!AG11 -> 0.02 | BJ11: =IF(usaDistribucin2G3G="SI",PARAMETROS!$D$25,'LISTA CELDA'!Y11)*'CELDA RESUMEN'!AH11 -> 0 | BK11: =IF(usaDistribucin2G3G="SI",PARAMETROS!$D$26,'LISTA CELDA'!Z11)*'CELDA RESUMEN'!AH11 -> 0 | BL11: =IF(usaDistribucin2G3G="SI",PARAMETROS!$E$25,0) -> 0 | BM11: =IF(usaDistribucin2G3G="SI",PARAMETROS!$E$26,'LISTA CELDA'!AA11)*'CELDA RESUMEN'!AI11 -> 0
B12: 5 | C12: URBANA | D12: PROVINCIA | E12: NORTE | F12: AMAZONAS | G12: PROVINCIA232 | H12: DISTRITO111 | I12: 77 | J12: 4 | K12: 12 | L12: 22 | M12: 12 | N12: 3 | O12: IDCELL5 | P12: ID_LOCAL5 | Q12: 0 | R12: D | S12: MACRO | T12: FO | U12: 0.000198019802 | V12: 0.000198019802 | W12: 1 | X12: 1 | Y12: 0 | Z12: 0 | AA12: 0 | AB12: BSC23 | AC12: PROMEDIO | AD12: 1 | AE12: 0.3207611702 | AF12: 0.3207611702 | AG12: 1 | AH12: 0.6792388298 | AI12: 0.6792388298 | AJ12: RNC26 | AK12: PROMEDIO | AL12: 0 | AM12: 0 | AN12: 0 | AO12: 0 | AP12: 0 | AR12: PROMEDIO | AS12: 0 | AT12: 0 | AU12: 0 | AV12: 0 | AX12: D | AY12: 1.5 | AZ12: PROVINCIA232DISTRITO111 | BB12: AMAZONASURBANA | BC12: AMAZONASMACRO | BD12: PROVINCIA URBANA | BH12: =IF(usaDistribucin2G3G="SI",PARAMETROS!$C$25,'LISTA CELDA'!W12)*'CELDA RESUMEN'!AG12 -> 0.4 | BI12: =IF(usaDistribucin2G3G="SI",PARAMETROS!$C$26,'LISTA CELDA'!X12)*'CELDA RESUMEN'!AG12 -> 0.02 | BJ12: =IF(usaDistribucin2G3G="SI",PARAMETROS!$D$25,'LISTA CELDA'!Y12)*'CELDA RESUMEN'!AH12 -> 0 | BK12: =IF(usaDistribucin2G3G="SI",PARAMETROS!$D$26,'LISTA CELDA'!Z12)*'CELDA RESUMEN'!AH12 -> 0 | BL12: =IF(usaDistribucin2G3G="SI",PARAMETROS!$E$25,0) -> 0 | BM12: =IF(usaDistribucin2G3G="SI",PARAMETROS!$E$26,'LISTA CELDA'!AA12)*'CELDA RESUMEN'!AI12 -> 0
B13: 6 | C13: RURAL | D13: PROVINCIA | E13: NORTE | F13: AMAZONAS | G13: PROVINCIA38 | H13: DISTRITO381 | I13: 77 | J13: 4 | K13: 12 | L13: 22 | M13: 12 | N13: 3 | O13: IDCELL6 | P13: ID_LOCAL6 | Q13: 0 | R13: D | S13: MACRO | T13: FO | U13: 0.000198019802 | V13: 0.000198019802 | W13: 1 | X13: 1 | Y13: 0 | Z13: 0 | AA13: 0 | AB13: BSC23 | AC13: PROMEDIO | AD13: 1 | AE13: 1 | AF13: 1 | AG13: 0 | AH13: 0 | AI13: 0 | AJ13: 0 | AK13: PROMEDIO | AL13: 0 | AM13: 0 | AN13: 0 | AO13: 0 | AP13: 0 | AR13: PROMEDIO | AS13: 0 | AT13: 0 | AU13: 0 | AV13: 0 | AX13: D | AY13: 1.5 | AZ13: PROVINCIA38DISTRITO381 | BB13: AMAZONASRURAL | BC13: AMAZONASMACRO | BD13: PROVINCIA RURAL | BH13: =IF(usaDistribucin2G3G="SI",PARAMETROS!$C$25,'LISTA CELDA'!W13)*'CELDA RESUMEN'!AG13 -> 0.4 | BI13: =IF(usaDistribucin2G3G="SI",PARAMETROS!$C$26,'LISTA CELDA'!X13)*'CELDA RESUMEN'!AG13 -> 0.02 | BJ13: =IF(usaDistribucin2G3G="SI",PARAMETROS!$D$25,'LISTA CELDA'!Y13)*'CELDA RESUMEN'!AH13 -> 0 | BK13: =IF(usaDistribucin2G3G="SI",PARAMETROS!$D$26,'LISTA CELDA'!Z13)*'CELDA RESUMEN'!AH13 -> 0 | BL13: =IF(usaDistribucin2G3G="SI",PARAMETROS!$E$25,0) -> 0 | BM13: =IF(usaDistribucin2G3G="SI",PARAMETROS!$E$26,'LISTA CELDA'!AA13)*'CELDA RESUMEN'!AI13 -> 0
B14: 7 | C14: URBANA | D14: PROVINCIA | E14: NORTE | F14: AMAZONAS | G14: PROVINCIA38 | H14: DISTRITO592 | I14: 77 | J14: 4 | K14: 12 | L14: 22 | M14: 12 | N14: 3 | O14: IDCELL7 | P14: ID_LOCAL7 | Q14: 0 | R14: D | S14: MACRO | T14: FO | U14: 0.000198019802 | V14: 0.000198019802 | W14: 1 | X14: 1 | Y14: 0 | Z14: 0 | AA14: 0 | AB14: BSC23 | AC14: PROMEDIO | AD14: 1 | AE14: 1 | AF14: 1 | AG14: 0 | AH14: 0 | AI14: 0 | AJ14: 0 | AK14: PROMEDIO | AL14: 0 | AM14: 0 | AN14: 0 | AO14: 0 | AP14: 0 | AR14: PROMEDIO | AS14: 0 | AT14: 0 | AU14: 0 | AV14: 0 | AX14: D | AY14: 1.5 | AZ14: PROVINCIA38DISTRITO592 | BB14: AMAZONASURBANA | BC14: AMAZONASMACRO | BD14: PROVINCIA URBANA | BH14: =IF(usaDistribucin2G3G="SI",PARAMETROS!$C$25,'LISTA CELDA'!W14)*'CELDA RESUMEN'!AG14 -> 0.4 | BI14: =IF(usaDistribucin2G3G="SI",PARAMETROS!$C$26,'LISTA CELDA'!X14)*'CELDA RESUMEN'!AG14 -> 0.02 | BJ14: =IF(usaDistribucin2G3G="SI",PARAMETROS!$D$25,'LISTA CELDA'!Y14)*'CELDA RESUMEN'!AH14 -> 0 | BK14: =IF(usaDistribucin2G3G="SI",PARAMETROS!$D$26,'LISTA CELDA'!Z14)*'CELDA RESUMEN'!AH14 -> 0 | BL14: =IF(usaDistribucin2G3G="SI",PARAMETROS!$E$25,0) -> 0 | BM14: =IF(usaDistribucin2G3G="SI",PARAMETROS!$E$26,'LISTA CELDA'!AA14)*'CELDA RESUMEN'!AI14 -> 0
B15: 8 | C15: RURAL | D15: PROVINCIA | E15: NORTE | F15: AMAZONAS | G15: PROVINCIA149 | H15: DISTRITO1142 | I15: 77 | J15: 4 | K15: 12 | L15: 22 | M15: 12 | N15: 3 | O15: IDCELL8 | P15: ID_LOCAL8 | Q15: 0 | R15: D | S15: MACRO | T15: FO | U15: 0.000198019802 | V15: 0.000198019802 | W15: 1 | X15: 1 | Y15: 0 | Z15: 0 | AA15: 0 | AB15: BSC23 | AC15: PROMEDIO | AD15: 1 | AE15: 1 | AF15: 1 | AG15: 0 | AH15: 0 | AI15: 0 | AJ15: 0 | AK15: PROMEDIO | AL15: 0 | AM15: 0 | AN15: 0 | AO15: 0 | AP15: 0 | AR15: PROMEDIO | AS15: 0 | AT15: 0 | AU15: 0 | AV15: 0 | AX15: D | AY15: 1.5 | AZ15: PROVINCIA149DISTRITO1142 | BB15: AMAZONASRURAL | BC15: AMAZONASMACRO | BD15: PROVINCIA RURAL | BH15: =IF(usaDistribucin2G3G="SI",PARAMETROS!$C$25,'LISTA CELDA'!W15)*'CELDA RESUMEN'!AG15 -> 0.4 | BI15: =IF(usaDistribucin2G3G="SI",PARAMETROS!$C$26,'LISTA CELDA'!X15)*'CELDA RESUMEN'!AG15 -> 0.02 | BJ15: =IF(usaDistribucin2G3G="SI",PARAMETROS!$D$25,'LISTA CELDA'!Y15)*'CELDA RESUMEN'!AH15 -> 0 | BK15: =IF(usaDistribucin2G3G="SI",PARAMETROS!$D$26,'LISTA CELDA'!Z15)*'CELDA RESUMEN'!AH15 -> 0 | BL15: =IF(usaDistribucin2G3G="SI",PARAMETROS!$E$25,0) -> 0 | BM15: =IF(usaDistribucin2G3G="SI",PARAMETROS!$E$26,'LISTA CELDA'!AA15)*'CELDA RESUMEN'!AI15 -> 0
B16: 9 | C16: URBANA | D16: PROVINCIA | E16: NORTE | F16: AMAZONAS | G16: PROVINCIA31 | H16: DISTRITO641 | I16: 77 | J16: 4 | K16: 12 | L16: 22 | M16: 12 | N16: 3 | O16: IDCELL9 | P16: ID_LOCAL9 | Q16: 0 | R16: D | S16: MACRO | T16: FO | U16: 0.000198019802 | V16: 0.000198019802 | W16: 0.71 | X16: 0.1 | Y16: 0.39 | Z16: 0.7 | AA16: 0.2 | AB16: BSC23 | AC16: PROMEDIO | AD16: 1 | AE16: 0.5259522435 | AF16: 0.5259522435 | AG16: 1 | AH16: 0.4740477565 | AI16: 0.4740477565 | AJ16: RNC26 | AK16: PROMEDIO | AL16: 1 | AM16: 0.8815384414 | AN16: 0.1045627723 | AO16: 0.005403422994 | AP16: 0.009134443846 | AQ16: RNC26 | AR16: PROMEDIO | AS16: 1 | AT16: 0.5 | AU16: 1 | AV16: 0.5 | AX16: D | AY16: 1.5 | AZ16: PROVINCIA31DISTRITO641 | BB16: AMAZONASURBANA | BC16: AMAZONASMACRO | BD16: PROVINCIA URBANA | BH16: =IF(usaDistribucin2G3G="SI",PARAMETROS!$C$25,'LISTA CELDA'!W16)*'CELDA RESUMEN'!AG16 -> 0.4 | BI16: =IF(usaDistribucin2G3G="SI",PARAMETROS!$C$26,'LISTA CELDA'!X16)*'CELDA RESUMEN'!AG16 -> 0.02 | BJ16: =IF(usaDistribucin2G3G="SI",PARAMETROS!$D$25,'LISTA CELDA'!Y16)*'CELDA RESUMEN'!AH16 -> 0.6 | BK16: =IF(usaDistribucin2G3G="SI",PARAMETROS!$D$26,'LISTA CELDA'!Z16)*'CELDA RESUMEN'!AH16 -> 0.33 | BL16: =IF(usaDistribucin2G3G="SI",PARAMETROS!$E$25,0) -> 0 | BM16: =IF(usaDistribucin2G3G="SI",PARAMETROS!$E$26,'LISTA CELDA'!AA16)*'CELDA RESUMEN'!AI16 -> 0.65
B17: 10 | C17: URBANA | D17: PROVINCIA | E17: NORTE | F17: AMAZONAS | G17: PROVINCIA232 | H17: DISTRITO150 | I17: 77 | J17: 4 | K17: 12 | L17: 22 | M17: 12 | N17: 3 | O17: IDCELL10 | P17: ID_LOCAL10 | Q17: 0 | R17: D | S17: MACRO | T17: FO | U17: 0.000198019802 | V17: 0.000198019802 | W17: 1 | X17: 1 | Y17: 0 | Z17: 0 | AA17: 0 | AB17: BSC23 | AC17: PROMEDIO | AD17: 1 | AE17: 1 | AF17: 1 | AG17: 0 | AH17: 0 | AI17: 0 | AJ17: 0 | AK17: PROMEDIO | AL17: 0 | AM17: 0 | AN17: 0 | AO17: 0 | AP17: 0 | AR17: PROMEDIO | AS17: 0 | AT17: 0 | AU17: 0 | AV17: 0 | AX17: D | AY17: 1.5 | AZ17: PROVINCIA232DISTRITO150 | BB17: AMAZONASURBANA | BC17: AMAZONASMACRO | BD17: PROVINCIA URBANA | BH17: =IF(usaDistribucin2G3G="SI",PARAMETROS!$C$25,'LISTA CELDA'!W17)*'CELDA RESUMEN'!AG17 -> 0.4 | BI17: =IF(usaDistribucin2G3G="SI",PARAMETROS!$C$26,'LISTA CELDA'!X17)*'CELDA RESUMEN'!AG17 -> 0.02 | BJ17: =IF(usaDistribucin2G3G="SI",PARAMETROS!$D$25,'LISTA CELDA'!Y17)*'CELDA RESUMEN'!AH17 -> 0 | BK17: =IF(usaDistribucin2G3G="SI",PARAMETROS!$D$26,'LISTA CELDA'!Z17)*'CELDA RESUMEN'!AH17 -> 0 | BL17: =IF(usaDistribucin2G3G="SI",PARAMETROS!$E$25,0) -> 0 | BM17: =IF(usaDistribucin2G3G="SI",PARAMETROS!$E$26,'LISTA CELDA'!AA17)*'CELDA RESUMEN'!AI17 -> 0
B18: 11 | C18: RURAL | D18: PROVINCIA | E18: NORTE | F18: AMAZONAS | G18: PROVINCIA66 | H18: DISTRITO678 | I18: 77 | J18: 4 | K18: 12 | L18: 22 | M18: 12 | N18: 3 | O18: IDCELL11 | P18: ID_LOCAL11 | Q18: 0 | R18: D | S18: MACRO | T18: FO | U18: 0.000198019802 | V18: 0.000198019802 | W18: 1 | X18: 1 | Y18: 0 | Z18: 0 | AA18: 0 | AB18: BSC23 | AC18: PROMEDIO | AD18: 1 | AE18: 1 | AF18: 1 | AG18: 0 | AH18: 0 | AI18: 0 | AJ18: 0 | AK18: PROMEDIO | AL18: 0 | AM18: 0 | AN18: 0 | AO18: 0 | AP18: 0 | AR18: PROMEDIO | AS18: 0 | AT18: 0 | AU18: 0 | AV18: 0 | AX18: D | AY18: 1.5 | AZ18: PROVINCIA66DISTRITO678 | BB18: AMAZONASRURAL | BC18: AMAZONASMACRO | BD18: PROVINCIA RURAL | BH18: =IF(usaDistribucin2G3G="SI",PARAMETROS!$C$25,'LISTA CELDA'!W18)*'CELDA RESUMEN'!AG18 -> 0.4 | BI18: =IF(usaDistribucin2G3G="SI",PARAMETROS!$C$26,'LISTA CELDA'!X18)*'CELDA RESUMEN'!AG18 -> 0.02 | BJ18: =IF(usaDistribucin2G3G="SI",PARAMETROS!$D$25,'LISTA CELDA'!Y18)*'CELDA RESUMEN'!AH18 -> 0 | BK18: =IF(usaDistribucin2G3G="SI",PARAMETROS!$D$26,'LISTA CELDA'!Z18)*'CELDA RESUMEN'!AH18 -> 0 | BL18: =IF(usaDistribucin2G3G="SI",PARAMETROS!$E$25,0) -> 0 | BM18: =IF(usaDistribucin2G3G="SI",PARAMETROS!$E$26,'LISTA CELDA'!AA18)*'CELDA RESUMEN'!AI18 -> 0
B19: 12 | C19: URBANA | D19: PROVINCIA | E19: NORTE | F19: AMAZONAS | G19: PROVINCIA232 | H19: DISTRITO713 | I19: 77 | J19: 4 | K19: 12 | L19: 22 | M19: 12 | N19: 3 | O19: IDCELL12 | P19: ID_LOCAL12 | Q19: 0 | R19: D | S19: MACRO | T19: FO | U19: 0.000198019802 | V19: 0.000198019802 | W19: 1 | X19: 1 | Y19: 0 | Z19: 0 | AA19: 0 | AB19: BSC23 | AC19: PROMEDIO | AD19: 1 | AE19: 1 | AF19: 1 | AG19: 0 | AH19: 0 | AI19: 0 | AJ19: 0 | AK19: PROMEDIO | AL19: 0 | AM19: 0 | AN19: 0 | AO19: 0 | AP19: 0 | AR19: PROMEDIO | AS19: 0 | AT19: 0 | AU19: 0 | AV19: 0 | AX19: D | AY19: 1.5 | AZ19: PROVINCIA232DISTRITO713 | BB19: AMAZONASURBANA | BC19: AMAZONASMACRO | BD19: PROVINCIA URBANA | BH19: =IF(usaDistribucin2G3G="SI",PARAMETROS!$C$25,'LISTA CELDA'!W19)*'CELDA RESUMEN'!AG19 -> 0.4 | BI19: =IF(usaDistribucin2G3G="SI",PARAMETROS!$C$26,'LISTA CELDA'!X19)*'CELDA RESUMEN'!AG19 -> 0.02 | BJ19: =IF(usaDistribucin2G3G="SI",PARAMETROS!$D$25,'LISTA CELDA'!Y19)*'CELDA RESUMEN'!AH19 -> 0 | BK19: =IF(usaDistribucin2G3G="SI",PARAMETROS!$D$26,'LISTA CELDA'!Z19)*'CELDA RESUMEN'!AH19 -> 0 | BL19: =IF(usaDistribucin2G3G="SI",PARAMETROS!$E$25,0) -> 0 | BM19: =IF(usaDistribucin2G3G="SI",PARAMETROS!$E$26,'LISTA CELDA'!AA19)*'CELDA RESUMEN'!AI19 -> 0
B20: 13 | C20: RURAL | D20: PROVINCIA | E20: NORTE | F20: AMAZONAS | G20: PROVINCIA38 | H20: DISTRITO1460 | I20: 77 | J20: 4 | K20: 12 | L20: 22 | M20: 12 | N20: 3 | O20: IDCELL13 | P20: ID_LOCAL13 | Q20: 0 | R20: D | S20: MACRO | T20: FO | U20: 0.000198019802 | V20: 0.000198019802 | W20: 1 | X20: 1 | Y20: 0 | Z20: 0 | AA20: 0 | AB20: BSC23 | AC20: PROMEDIO | AD20: 1 | AE20: 1 | AF20: 1 | AG20: 0 | AH20: 0 | AI20: 0 | AJ20: 0 | AK20: PROMEDIO | AL20: 0 | AM20: 0 | AN20: 0 | AO20: 0 | AP20: 0 | AR20: PROMEDIO | AS20: 0 | AT20: 0 | AU20: 0 | AV20: 0 | AX20: D | AY20: 1.5 | AZ20: PROVINCIA38DISTRITO1460 | BB20: AMAZONASRURAL | BC20: AMAZONASMACRO | BD20: PROVINCIA RURAL | BH20: =IF(usaDistribucin2G3G="SI",PARAMETROS!$C$25,'LISTA CELDA'!W20)*'CELDA RESUMEN'!AG20 -> 0.4 | BI20: =IF(usaDistribucin2G3G="SI",PARAMETROS!$C$26,'LISTA CELDA'!X20)*'CELDA RESUMEN'!AG20 -> 0.02 | BJ20: =IF(usaDistribucin2G3G="SI",PARAMETROS!$D$25,'LISTA CELDA'!Y20)*'CELDA RESUMEN'!AH20 -> 0 | BK20: =IF(usaDistribucin2G3G="SI",PARAMETROS!$D$26,'LISTA CELDA'!Z20)*'CELDA RESUMEN'!AH20 -> 0 | BL20: =IF(usaDistribucin2G3G="SI",PARAMETROS!$E$25,0) -> 0 | BM20: =IF(usaDistribucin2G3G="SI",PARAMETROS!$E$26,'LISTA CELDA'!AA20)*'CELDA RESUMEN'!AI20 -> 0
B21: 14 | C21: RURAL | D21: PROVINCIA | E21: NORTE | F21: AMAZONAS | G21: PROVINCIA66 | H21: DISTRITO633 | I21: 77 | J21: 4 | K21: 12 | L21: 22 | M21: 12 | N21: 3 | O21: IDCELL14 | P21: ID_LOCAL14 | Q21: 0 | R21: D | S21: MACRO | T21: FO | U21: 0.000198019802 | V21: 0.000198019802 | W21: 1 | X21: 1 | Y21: 0 | Z21: 0 | AA21: 0 | AB21: BSC23 | AC21: PROMEDIO | AD21: 1 | AE21: 1 | AF21: 1 | AG21: 0 | AH21: 0 | AI21: 0 | AJ21: 0 | AK21: PROMEDIO | AL21: 0 | AM21: 0 | AN21: 0 | AO21: 0 | AP21: 0 | AR21: PROMEDIO | AS21: 0 | AT21: 0 | AU21: 0 | AV21: 0 | AX21: D | AY21: 1.5 | AZ21: PROVINCIA66DISTRITO633 | BB21: AMAZONASRURAL | BC21: AMAZONASMACRO | BD21: PROVINCIA RURAL | BH21: =IF(usaDistribucin2G3G="SI",PARAMETROS!$C$25,'LISTA CELDA'!W21)*'CELDA RESUMEN'!AG21 -> 0.4 | BI21: =IF(usaDistribucin2G3G="SI",PARAMETROS!$C$26,'LISTA CELDA'!X21)*'CELDA RESUMEN'!AG21 -> 0.02 | BJ21: =IF(usaDistribucin2G3G="SI",PARAMETROS!$D$25,'LISTA CELDA'!Y21)*'CELDA RESUMEN'!AH21 -> 0 | BK21: =IF(usaDistribucin2G3G="SI",PARAMETROS!$D$26,'LISTA CELDA'!Z21)*'CELDA RESUMEN'!AH21 -> 0 | BL21: =IF(usaDistribucin2G3G="SI",PARAMETROS!$E$25,0) -> 0 | BM21: =IF(usaDistribucin2G3G="SI",PARAMETROS!$E$26,'LISTA CELDA'!AA21)*'CELDA RESUMEN'!AI21 -> 0
B22: 15 | C22: RURAL | D22: PROVINCIA | E22: NORTE | F22: AMAZONAS | G22: PROVINCIA66 | H22: DISTRITO231 | I22: 77 | J22: 4 | K22: 12 | L22: 22 | M22: 12 | N22: 3 | O22: IDCELL15 | P22: ID_LOCAL15 | Q22: 0 | R22: D | S22: MACRO | T22: FO | U22: 0.000198019802 | V22: 0.000198019802 | W22: 0.71 | X22: 0.1 | Y22: 0.39 | Z22: 0.7 | AA22: 0.2 | AB22: BSC23 | AC22: PROMEDIO | AD22: 1 | AE22: 0.4979495693 | AF22: 0.4979495693 | AG22: 1 | AH22: 0.5020504307 | AI22: 0.5020504307 | AJ22: RNC18 | AK22: PROMEDIO | AL22: 1 | AM22: 0.8815384414 | AN22: 0.1045627723 | AO22: 0.005403422994 | AP22: 0.009134443846 | AQ22: RNC18 | AR22: PROMEDIO | AS22: 1 | AT22: 0.5 | AU22: 1 | AV22: 0.5 | AX22: D | AY22: 1.5 | AZ22: PROVINCIA66DISTRITO231 | BB22: AMAZONASRURAL | BC22: AMAZONASMACRO | BD22: PROVINCIA RURAL | BH22: =IF(usaDistribucin2G3G="SI",PARAMETROS!$C$25,'LISTA CELDA'!W22)*'CELDA RESUMEN'!AG22 -> 0.4 | BI22: =IF(usaDistribucin2G3G="SI",PARAMETROS!$C$26,'LISTA CELDA'!X22)*'CELDA RESUMEN'!AG22 -> 0.02 | BJ22: =IF(usaDistribucin2G3G="SI",PARAMETROS!$D$25,'LISTA CELDA'!Y22)*'CELDA RESUMEN'!AH22 -> 0.6 | BK22: =IF(usaDistribucin2G3G="SI",PARAMETROS!$D$26,'LISTA CELDA'!Z22)*'CELDA RESUMEN'!AH22 -> 0.33 | BL22: =IF(usaDistribucin2G3G="SI",PARAMETROS!$E$25,0) -> 0 | BM22: =IF(usaDistribucin2G3G="SI",PARAMETROS!$E$26,'LISTA CELDA'!AA22)*'CELDA RESUMEN'!AI22 -> 0.65
B23: 16 | C23: URBANA | D23: PROVINCIA | E23: NORTE | F23: AMAZONAS | G23: PROVINCIA66 | H23: DISTRITO231 | I23: 77 | J23: 4 | K23: 12 | L23: 22 | M23: 12 | N23: 3 | O23: IDCELL16 | P23: ID_LOCAL16 | Q23: 0 | R23: D | S23: MACRO | T23: FO | U23: 0.000198019802 | V23: 0.000198019802 | W23: 0.71 | X23: 0.1 | Y23: 0.39 | Z23: 0.7 | AA23: 0.2 | AB23: BSC23 | AC23: PROMEDIO | AD23: 1 | AE23: 0.3391024723 | AF23: 0.3391024723 | AG23: 1 | AH23: 0.6608975277 | AI23: 0.6608975277 | AJ23: RNC26 | AK23: PROMEDIO | AL23: 1 | AM23: 0.8815384414 | AN23: 0.1045627723 | AO23: 0.005403422994 | AP23: 0.009134443846 | AQ23: RNC26 | AR23: PROMEDIO | AS23: 1 | AT23: 0.5 | AU23: 1 | AV23: 0.5 | AX23: D | AY23: 1.5 | AZ23: PROVINCIA66DISTRITO231 | BB23: AMAZONASURBANA | BC23: AMAZONASMACRO | BD23: PROVINCIA URBANA | BH23: =IF(usaDistribucin2G3G="SI",PARAMETROS!$C$25,'LISTA CELDA'!W23)*'CELDA RESUMEN'!AG23 -> 0.4 | BI23: =IF(usaDistribucin2G3G="SI",PARAMETROS!$C$26,'LISTA CELDA'!X23)*'CELDA RESUMEN'!AG23 -> 0.02 | BJ23: =IF(usaDistribucin2G3G="SI",PARAMETROS!$D$25,'LISTA CELDA'!Y23)*'CELDA RESUMEN'!AH23 -> 0.6 | BK23: =IF(usaDistribucin2G3G="SI",PARAMETROS!$D$26,'LISTA CELDA'!Z23)*'CELDA RESUMEN'!AH23 -> 0.33 | BL23: =IF(usaDistribucin2G3G="SI",PARAMETROS!$E$25,0) -> 0 | BM23: =IF(usaDistribucin2G3G="SI",PARAMETROS!$E$26,'LISTA CELDA'!AA23)*'CELDA RESUMEN'!AI23 -> 0.65
B24: 17 | C24: URBANA | D24: PROVINCIA | E24: NORTE | F24: AMAZONAS | G24: PROVINCIA149 | H24: DISTRITO662 | I24: 77 | J24: 4 | K24: 12 | L24: 22 | M24: 12 | N24: 3 | O24: IDCELL17 | P24: ID_LOCAL17 | Q24: 0 | R24: D | S24: MACRO | T24: FO | U24: 0.000198019802 | V24: 0.000198019802 | W24: 1 | X24: 1 | Y24: 0 | Z24: 0 | AA24: 0 | AB24: BSC23 | AC24: PROMEDIO | AD24: 1 | AE24: 1 | AF24: 1 | AG24: 0 | AH24: 0 | AI24: 0 | AJ24: 0 | AK24: PROMEDIO | AL24: 0 | AM24: 0 | AN24: 0 | AO24: 0 | AP24: 0 | AR24: PROMEDIO | AS24: 0 | AT24: 0 | AU24: 0 | AV24: 0 | AX24: D | AY24: 1.5 | AZ24: PROVINCIA149DISTRITO662 | BB24: AMAZONASURBANA | BC24: AMAZONASMACRO | BD24: PROVINCIA URBANA | BH24: =IF(usaDistribucin2G3G="SI",PARAMETROS!$C$25,'LISTA CELDA'!W24)*'CELDA RESUMEN'!AG24 -> 0.4 | BI24: =IF(usaDistribucin2G3G="SI",PARAMETROS!$C$26,'LISTA CELDA'!X24)*'CELDA RESUMEN'!AG24 -> 0.02 | BJ24: =IF(usaDistribucin2G3G="SI",PARAMETROS!$D$25,'LISTA CELDA'!Y24)*'CELDA RESUMEN'!AH24 -> 0 | BK24: =IF(usaDistribucin2G3G="SI",PARAMETROS!$D$26,'LISTA CELDA'!Z24)*'CELDA RESUMEN'!AH24 -> 0 | BL24: =IF(usaDistribucin2G3G="SI",PARAMETROS!$E$25,0) -> 0 | BM24: =IF(usaDistribucin2G3G="SI",PARAMETROS!$E$26,'LISTA CELDA'!AA24)*'CELDA RESUMEN'!AI24 -> 0
B25: 18 | C25: URBANA | D25: PROVINCIA | E25: NORTE | F25: AMAZONAS | G25: PROVINCIA66 | H25: DISTRITO266 | I25: 77 | J25: 4 | K25: 12 | L25: 22 | M25: 12 | N25: 3 | O25: IDCELL18 | P25: ID_LOCAL18 | Q25: 0 | R25: D | S25: MACRO | T25: FO | U25: 0.000198019802 | V25: 0.000198019802 | W25: 1 | X25: 1 | Y25: 0 | Z25: 0 | AA25: 0 | AB25: BSC23 | AC25: PROMEDIO | AD25: 1 | AE25: 1 | AF25: 1 | AG25: 0 | AH25: 0 | AI25: 0 | AJ25: 0 | AK25: PROMEDIO | AL25: 0 | AM25: 0 | AN25: 0 | AO25: 0 | AP25: 0 | AR25: PROMEDIO | AS25: 0 | AT25: 0 | AU25: 0 | AV25: 0 | AX25: D | AY25: 1.5 | AZ25: PROVINCIA66DISTRITO266 | BB25: AMAZONASURBANA | BC25: AMAZONASMACRO | BD25: PROVINCIA URBANA | BH25: =IF(usaDistribucin2G3G="SI",PARAMETROS!$C$25,'LISTA CELDA'!W25)*'CELDA RESUMEN'!AG25 -> 0.4 | BI25: =IF(usaDistribucin2G3G="SI",PARAMETROS!$C$26,'LISTA CELDA'!X25)*'CELDA RESUMEN'!AG25 -> 0.02 | BJ25: =IF(usaDistribucin2G3G="SI",PARAMETROS!$D$25,'LISTA CELDA'!Y25)*'CELDA RESUMEN'!AH25 -> 0 | BK25: =IF(usaDistribucin2G3G="SI",PARAMETROS!$D$26,'LISTA CELDA'!Z25)*'CELDA RESUMEN'!AH25 -> 0 | BL25: =IF(usaDistribucin2G3G="SI",PARAMETROS!$E$25,0) -> 0 | BM25: =IF(usaDistribucin2G3G="SI",PARAMETROS!$E$26,'LISTA CELDA'!AA25)*'CELDA RESUMEN'!AI25 -> 0
B26: 19 | C26: RURAL | D26: PROVINCIA | E26: NORTE | F26: AMAZONAS | G26: PROVINCIA149 | H26: DISTRITO331 | I26: 77 | J26: 4 | K26: 12 | L26: 22 | M26: 12 | N26: 3 | O26: IDCELL19 | P26: ID_LOCAL19 | Q26: 0 | R26: D | S26: MACRO | T26: FO | U26: 0.000198019802 | V26: 0.000198019802 | W26: 1 | X26: 1 | Y26: 0 | Z26: 0 | AA26: 0 | AB26: BSC23 | AC26: PROMEDIO | AD26: 1 | AE26: 1 | AF26: 1 | AG26: 0 | AH26: 0 | AI26: 0 | AJ26: 0 | AK26: PROMEDIO | AL26: 0 | AM26: 0 | AN26: 0 | AO26: 0 | AP26: 0 | AR26: PROMEDIO | AS26: 0 | AT26: 0 | AU26: 0 | AV26: 0 | AX26: D | AY26: 1.5 | AZ26: PROVINCIA149DISTRITO331 | BB26: AMAZONASRURAL | BC26: AMAZONASMACRO | BD26: PROVINCIA RURAL | BH26: =IF(usaDistribucin2G3G="SI",PARAMETROS!$C$25,'LISTA CELDA'!W26)*'CELDA RESUMEN'!AG26 -> 0.4 | BI26: =IF(usaDistribucin2G3G="SI",PARAMETROS!$C$26,'LISTA CELDA'!X26)*'CELDA RESUMEN'!AG26 -> 0.02 | BJ26: =IF(usaDistribucin2G3G="SI",PARAMETROS!$D$25,'LISTA CELDA'!Y26)*'CELDA RESUMEN'!AH26 -> 0 | BK26: =IF(usaDistribucin2G3G="SI",PARAMETROS!$D$26,'LISTA CELDA'!Z26)*'CELDA RESUMEN'!AH26 -> 0 | BL26: =IF(usaDistribucin2G3G="SI",PARAMETROS!$E$25,0) -> 0 | BM26: =IF(usaDistribucin2G3G="SI",PARAMETROS!$E$26,'LISTA CELDA'!AA26)*'CELDA RESUMEN'!AI26 -> 0
B27: 20 | C27: RURAL | D27: PROVINCIA | E27: NORTE | F27: AMAZONAS | G27: PROVINCIA149 | H27: DISTRITO1133 | I27: 77 | J27: 4 | K27: 12 | L27: 22 | M27: 12 | N27: 3 | O27: IDCELL20 | P27: ID_LOCAL20 | Q27: 0 | R27: D | S27: MACRO | T27: FO | U27: 0.000198019802 | V27: 0.000198019802 | W27: 1 | X27: 1 | Y27: 0 | Z27: 0 | AA27: 0 | AB27: BSC23 | AC27: PROMEDIO | AD27: 1 | AE27: 1 | AF27: 1 | AG27: 0 | AH27: 0 | AI27: 0 | AJ27: 0 | AK27: PROMEDIO | AL27: 0 | AM27: 0 | AN27: 0 | AO27: 0 | AP27: 0 | AR27: PROMEDIO | AS27: 0 | AT27: 0 | AU27: 0 | AV27: 0 | AX27: D | AY27: 1.5 | AZ27: PROVINCIA149DISTRITO1133 | BB27: AMAZONASRURAL | BC27: AMAZONASMACRO | BD27: PROVINCIA RURAL | BH27: =IF(usaDistribucin2G3G="SI",PARAMETROS!$C$25,'LISTA CELDA'!W27)*'CELDA RESUMEN'!AG27 -> 0.4 | BI27: =IF(usaDistribucin2G3G="SI",PARAMETROS!$C$26,'LISTA CELDA'!X27)*'CELDA RESUMEN'!AG27 -> 0.02 | BJ27: =IF(usaDistribucin2G3G="SI",PARAMETROS!$D$25,'LISTA CELDA'!Y27)*'CELDA RESUMEN'!AH27 -> 0 | BK27: =IF(usaDistribucin2G3G="SI",PARAMETROS!$D$26,'LISTA CELDA'!Z27)*'CELDA RESUMEN'!AH27 -> 0 | BL27: =IF(usaDistribucin2G3G="SI",PARAMETROS!$E$25,0) -> 0 | BM27: =IF(usaDistribucin2G3G="SI",PARAMETROS!$E$26,'LISTA CELDA'!AA27)*'CELDA RESUMEN'!AI27 -> 0
B28: 21 | C28: URBANA | D28: PROVINCIA | E28: NORTE | F28: AMAZONAS | G28: PROVINCIA66 | H28: DISTRITO809 | I28: 77 | J28: 4 | K28: 12 | L28: 22 | M28: 12 | N28: 3 | O28: IDCELL21 | P28: ID_LOCAL21 | Q28: 0 | R28: D | S28: MACRO | T28: FO | U28: 0.000198019802 | V28: 0.000198019802 | W28: 1 | X28: 1 | Y28: 0 | Z28: 0 | AA28: 0 | AB28: BSC23 | AC28: PROMEDIO | AD28: 1 | AE28: 1 | AF28: 1 | AG28: 0 | AH28: 0 | AI28: 0 | AJ28: 0 | AK28: PROMEDIO | AL28: 0 | AM28: 0 | AN28: 0 | AO28: 0 | AP28: 0 | AR28: PROMEDIO | AS28: 0 | AT28: 0 | AU28: 0 | AV28: 0 | AX28: D | AY28: 1.5 | AZ28: PROVINCIA66DISTRITO809 | BB28: AMAZONASURBANA | BC28: AMAZONASMACRO | BD28: PROVINCIA URBANA | BH28: =IF(usaDistribucin2G3G="SI",PARAMETROS!$C$25,'LISTA CELDA'!W28)*'CELDA RESUMEN'!AG28 -> 0.4 | BI28: =IF(usaDistribucin2G3G="SI",PARAMETROS!$C$26,'LISTA CELDA'!X28)*'CELDA RESUMEN'!AG28 -> 0.02 | BJ28: =IF(usaDistribucin2G3G="SI",PARAMETROS!$D$25,'LISTA CELDA'!Y28)*'CELDA RESUMEN'!AH28 -> 0 | BK28: =IF(usaDistribucin2G3G="SI",PARAMETROS!$D$26,'LISTA CELDA'!Z28)*'CELDA RESUMEN'!AH28 -> 0 | BL28: =IF(usaDistribucin2G3G="SI",PARAMETROS!$E$25,0) -> 0 | BM28: =IF(usaDistribucin2G3G="SI",PARAMETROS!$E$26,'LISTA CELDA'!AA28)*'CELDA RESUMEN'!AI28 -> 0
B29: 22 | C29: RURAL | D29: PROVINCIA | E29: NORTE | F29: AMAZONAS | G29: PROVINCIA197 | H29: DISTRITO776 | I29: 77 | J29: 4 | K29: 12 | L29: 22 | M29: 12 | N29: 3 | O29: IDCELL22 | P29: ID_LOCAL22 | Q29: 0 | R29: D | S29: MACRO | T29: FO | U29: 0.000198019802 | V29: 0.000198019802 | W29: 1 | X29: 1 | Y29: 0 | Z29: 0 | AA29: 0 | AB29: BSC23 | AC29: PROMEDIO | AD29: 1 | AE29: 1 | AF29: 1 | AG29: 0 | AH29: 0 | AI29: 0 | AJ29: 0 | AK29: PROMEDIO | AL29: 0 | AM29: 0 | AN29: 0 | AO29: 0 | AP29: 0 | AR29: PROMEDIO | AS29: 0 | AT29: 0 | AU29: 0 | AV29: 0 | AX29: D | AY29: 1.5 | AZ29: PROVINCIA197DISTRITO776 | BB29: AMAZONASRURAL | BC29: AMAZONASMACRO | BD29: PROVINCIA RURAL | BH29: =IF(usaDistribucin2G3G="SI",PARAMETROS!$C$25,'LISTA CELDA'!W29)*'CELDA RESUMEN'!AG29 -> 0.4 | BI29: =IF(usaDistribucin2G3G="SI",PARAMETROS!$C$26,'LISTA CELDA'!X29)*'CELDA RESUMEN'!AG29 -> 0.02 | BJ29: =IF(usaDistribucin2G3G="SI",PARAMETROS!$D$25,'LISTA CELDA'!Y29)*'CELDA RESUMEN'!AH29 -> 0 | BK29: =IF(usaDistribucin2G3G="SI",PARAMETROS!$D$26,'LISTA CELDA'!Z29)*'CELDA RESUMEN'!AH29 -> 0 | BL29: =IF(usaDistribucin2G3G="SI",PARAMETROS!$E$25,0) -> 0 | BM29: =IF(usaDistribucin2G3G="SI",PARAMETROS!$E$26,'LISTA CELDA'!AA29)*'CELDA RESUMEN'!AI29 -> 0
B30: 23 | C30: URBANA | D30: PROVINCIA | E30: NORTE | F30: AMAZONAS | G30: PROVINCIA197 | H30: DISTRITO1185 | I30: 77 | J30: 4 | K30: 12 | L30: 22 | M30: 12 | N30: 3 | O30: IDCELL23 | P30: ID_LOCAL23 | Q30: 0 | R30: D | S30: MACRO | T30: FO | U30: 0.000198019802 | V30: 0.000198019802 | W30: 1 | X30: 1 | Y30: 0 | Z30: 0 | AA30: 0 | AB30: BSC23 | AC30: PROMEDIO | AD30: 1 | AE30: 1 | AF30: 1 | AG30: 0 | AH30: 0 | AI30: 0 | AJ30: 0 | AK30: PROMEDIO | AL30: 0 | AM30: 0 | AN30: 0 | AO30: 0 | AP30: 0 | AR30: PROMEDIO | AS30: 0 | AT30: 0 | AU30: 0 | AV30: 0 | AX30: D | AY30: 1.5 | AZ30: PROVINCIA197DISTRITO1185 | BB30: AMAZONASURBANA | BC30: AMAZONASMACRO | BD30: PROVINCIA URBANA | BH30: =IF(usaDistribucin2G3G="SI",PARAMETROS!$C$25,'LISTA CELDA'!W30)*'CELDA RESUMEN'!AG30 -> 0.4 | BI30: =IF(usaDistribucin2G3G="SI",PARAMETROS!$C$26,'LISTA CELDA'!X30)*'CELDA RESUMEN'!AG30 -> 0.02 | BJ30: =IF(usaDistribucin2G3G="SI",PARAMETROS!$D$25,'LISTA CELDA'!Y30)*'CELDA RESUMEN'!AH30 -> 0 | BK30: =IF(usaDistribucin2G3G="SI",PARAMETROS!$D$26,'LISTA CELDA'!Z30)*'CELDA RESUMEN'!AH30 -> 0 | BL30: =IF(usaDistribucin2G3G="SI",PARAMETROS!$E$25,0) -> 0 | BM30: =IF(usaDistribucin2G3G="SI",PARAMETROS!$E$26,'LISTA CELDA'!AA30)*'CELDA RESUMEN'!AI30 -> 0
B31: 24 | C31: URBANA | D31: PROVINCIA | E31: NORTE | F31: AMAZONAS | G31: PROVINCIA66 | H31: DISTRITO1306 | I31: 77 | J31: 4 | K31: 12 | L31: 22 | M31: 12 | N31: 3 | O31: IDCELL24 | P31: ID_LOCAL24 | Q31: 0 | R31: D | S31: MACRO | T31: FO | U31: 0.000198019802 | V31: 0.000198019802 | W31: 1 | X31: 1 | Y31: 0 | Z31: 0 | AA31: 0 | AB31: BSC23 | AC31: PROMEDIO | AD31: 1 | AE31: 1 | AF31: 1 | AG31: 0 | AH31: 0 | AI31: 0 | AJ31: 0 | AK31: PROMEDIO | AL31: 0 | AM31: 0 | AN31: 0 | AO31: 0 | AP31: 0 | AR31: PROMEDIO | AS31: 0 | AT31: 0 | AU31: 0 | AV31: 0 | AX31: D | AY31: 1.5 | AZ31: PROVINCIA66DISTRITO1306 | BB31: AMAZONASURBANA | BC31: AMAZONASMACRO | BD31: PROVINCIA URBANA | BH31: =IF(usaDistribucin2G3G="SI",PARAMETROS!$C$25,'LISTA CELDA'!W31)*'CELDA RESUMEN'!AG31 -> 0.4 | BI31: =IF(usaDistribucin2G3G="SI",PARAMETROS!$C$26,'LISTA CELDA'!X31)*'CELDA RESUMEN'!AG31 -> 0.02 | BJ31: =IF(usaDistribucin2G3G="SI",PARAMETROS!$D$25,'LISTA CELDA'!Y31)*'CELDA RESUMEN'!AH31 -> 0 | BK31: =IF(usaDistribucin2G3G="SI",PARAMETROS!$D$26,'LISTA CELDA'!Z31)*'CELDA RESUMEN'!AH31 -> 0 | BL31: =IF(usaDistribucin2G3G="SI",PARAMETROS!$E$25,0) -> 0 | BM31: =IF(usaDistribucin2G3G="SI",PARAMETROS!$E$26,'LISTA CELDA'!AA31)*'CELDA RESUMEN'!AI31 -> 0
B32: 25 | C32: URBANA | D32: PROVINCIA | E32: NORTE | F32: AMAZONAS | G32: PROVINCIA82 | H32: DISTRITO833 | I32: 77 | J32: 4 | K32: 12 | L32: 22 | M32: 12 | N32: 3 | O32: IDCELL25 | P32: ID_LOCAL25 | Q32: 0 | R32: D | S32: MACRO | T32: FO | U32: 0.000198019802 | V32: 0.000198019802 | W32: 1 | X32: 1 | Y32: 0 | Z32: 0 | AA32: 0 | AB32: BSC23 | AC32: PROMEDIO | AD32: 1 | AE32: 1 | AF32: 1 | AG32: 0 | AH32: 0 | AI32: 0 | AJ32: 0 | AK32: PROMEDIO | AL32: 0 | AM32: 0 | AN32: 0 | AO32: 0 | AP32: 0 | AR32: PROMEDIO | AS32: 0 | AT32: 0 | AU32: 0 | AV32: 0 | AX32: D | AY32: 1.5 | AZ32: PROVINCIA82DISTRITO833 | BB32: AMAZONASURBANA | BC32: AMAZONASMACRO | BD32: PROVINCIA URBANA | BH32: =IF(usaDistribucin2G3G="SI",PARAMETROS!$C$25,'LISTA CELDA'!W32)*'CELDA RESUMEN'!AG32 -> 0.4 | BI32: =IF(usaDistribucin2G3G="SI",PARAMETROS!$C$26,'LISTA CELDA'!X32)*'CELDA RESUMEN'!AG32 -> 0.02 | BJ32: =IF(usaDistribucin2G3G="SI",PARAMETROS!$D$25,'LISTA CELDA'!Y32)*'CELDA RESUMEN'!AH32 -> 0 | BK32: =IF(usaDistribucin2G3G="SI",PARAMETROS!$D$26,'LISTA CELDA'!Z32)*'CELDA RESUMEN'!AH32 -> 0 | BL32: =IF(usaDistribucin2G3G="SI",PARAMETROS!$E$25,0) -> 0 | BM32: =IF(usaDistribucin2G3G="SI",PARAMETROS!$E$26,'LISTA CELDA'!AA32)*'CELDA RESUMEN'!AI32 -> 0
B33: 26 | C33: URBANA | D33: PROVINCIA | E33: NOR ORIENTE | F33: ANCASH | G33: PROVINCIA120 | H33: DISTRITO258 | I33: 77 | J33: 4 | K33: 12 | L33: 22 | M33: 12 | N33: 3 | O33: IDCELL26 | P33: ID_LOCAL26 | Q33: 0 | R33: D | S33: MACRO | T33: FO | U33: 0.000198019802 | V33: 0.000198019802 | W33: 1 | X33: 1 | Y33: 0 | Z33: 0 | AA33: 0 | AB33: BSC27 | AC33: PROMEDIO | AD33: 1 | AE33: 1 | AF33: 1 | AG33: 0 | AH33: 0 | AI33: 0 | AJ33: 0 | AK33: PROMEDIO | AL33: 0 | AM33: 0 | AN33: 0 | AO33: 0 | AP33: 0 | AR33: PROMEDIO | AS33: 0 | AT33: 0 | AU33: 0 | AV33: 0 | AX33: D | AY33: 1.5 | AZ33: =G33&H33 -> PROVINCIA120DISTRITO258 | BB33: =F33&C33 -> ANCASHURBANA | BC33: =F33&S33 -> ANCASHMACRO | BD33: =D33&" "&C33 -> PROVINCIA URBANA | BH33: =IF(usaDistribucin2G3G="SI",PARAMETROS!$C$25,'LISTA CELDA'!W33)*'CELDA RESUMEN'!AG33 -> 0.4 | BI33: =IF(usaDistribucin2G3G="SI",PARAMETROS!$C$26,'LISTA CELDA'!X33)*'CELDA RESUMEN'!AG33 -> 0.02 | BJ33: =IF(usaDistribucin2G3G="SI",PARAMETROS!$D$25,'LISTA CELDA'!Y33)*'CELDA RESUMEN'!AH33 -> 0 | BK33: =IF(usaDistribucin2G3G="SI",PARAMETROS!$D$26,'LISTA CELDA'!Z33)*'CELDA RESUMEN'!AH33 -> 0 | BL33: =IF(usaDistribucin2G3G="SI",PARAMETROS!$E$25,0) -> 0 | BM33: =IF(usaDistribucin2G3G="SI",PARAMETROS!$E$26,'LISTA CELDA'!AA33)*'CELDA RESUMEN'!AI33 -> 0
B34: 27 | C34: URBANA | D34: PROVINCIA | E34: NOR ORIENTE | F34: ANCASH | G34: PROVINCIA214 | H34: DISTRITO291 | I34: 77 | J34: 4 | K34: 12 | L34: 22 | M34: 12 | N34: 3 | O34: IDCELL27 | P34: ID_LOCAL27 | Q34: 0 | R34: D | S34: MACRO | T34: FO | U34: 0.000198019802 | V34: 0.000198019802 | W34: 1 | X34: 1 | Y34: 0 | Z34: 0 | AA34: 0 | AB34: BSC27 | AC34: PROMEDIO | AD34: 1 | AE34: 1 | AF34: 1 | AG34: 0 | AH34: 0 | AI34: 0 | AJ34: 0 | AK34: PROMEDIO | AL34: 0 | AM34: 0 | AN34: 0 | AO34: 0 | AP34: 0 | AR34: PROMEDIO | AS34: 0 | AT34: 0 | AU34: 0 | AV34: 0 | AX34: D | AY34: 1.5 | AZ34: PROVINCIA214DISTRITO291 | BB34: ANCASHURBANA | BC34: ANCASHMACRO | BD34: PROVINCIA URBANA | BH34: =IF(usaDistribucin2G3G="SI",PARAMETROS!$C$25,'LISTA CELDA'!W34)*'CELDA RESUMEN'!AG34 -> 0.4 | BI34: =IF(usaDistribucin2G3G="SI",PARAMETROS!$C$26,'LISTA CELDA'!X34)*'CELDA RESUMEN'!AG34 -> 0.02 | BJ34: =IF(usaDistribucin2G3G="SI",PARAMETROS!$D$25,'LISTA CELDA'!Y34)*'CELDA RESUMEN'!AH34 -> 0 | BK34: =IF(usaDistribucin2G3G="SI",PARAMETROS!$D$26,'LISTA CELDA'!Z34)*'CELDA RESUMEN'!AH34 -> 0 | BL34: =IF(usaDistribucin2G3G="SI",PARAMETROS!$E$25,0) -> 0 | BM34: =IF(usaDistribucin2G3G="SI",PARAMETROS!$E$26,'LISTA CELDA'!AA34)*'CELDA RESUMEN'!AI34 -> 0
B35: 28 | C35: URBANA | D35: PROVINCIA | E35: NOR ORIENTE | F35: ANCASH | G35: PROVINCIA164 | H35: DISTRITO1243 | I35: 77 | J35: 4 | K35: 12 | L35: 22 | M35: 12 | N35: 3 | O35: IDCELL28 | P35: ID_LOCAL28 | Q35: 0 | R35: D | S35: MACRO | T35: FO | U35: 0.000198019802 | V35: 0.000198019802 | W35: 1 | X35: 1 | Y35: 0 | Z35: 0 | AA35: 0 | AB35: BSC27 | AC35: PROMEDIO | AD35: 1 | AE35: 1 | AF35: 1 | AG35: 0 | AH35: 0 | AI35: 0 | AJ35: 0 | AK35: PROMEDIO | AL35: 0 | AM35: 0 | AN35: 0 | AO35: 0 | AP35: 0 | AR35: PROMEDIO | AS35: 0 | AT35: 0 | AU35: 0 | AV35: 0 | AX35: D | AY35: 1.5 | AZ35: PROVINCIA164DISTRITO1243 | BB35: ANCASHURBANA | BC35: ANCASHMACRO | BD35: PROVINCIA URBANA | BH35: =IF(usaDistribucin2G3G="SI",PARAMETROS!$C$25,'LISTA CELDA'!W35)*'CELDA RESUMEN'!AG35 -> 0.4 | BI35: =IF(usaDistribucin2G3G="SI",PARAMETROS!$C$26,'LISTA CELDA'!X35)*'CELDA RESUMEN'!AG35 -> 0.02 | BJ35: =IF(usaDistribucin2G3G="SI",PARAMETROS!$D$25,'LISTA CELDA'!Y35)*'CELDA RESUMEN'!AH35 -> 0 | BK35: =IF(usaDistribucin2G3G="SI",PARAMETROS!$D$26,'LISTA CELDA'!Z35)*'CELDA RESUMEN'!AH35 -> 0 | BL35: =IF(usaDistribucin2G3G="SI",PARAMETROS!$E$25,0) -> 0 | BM35: =IF(usaDistribucin2G3G="SI",PARAMETROS!$E$26,'LISTA CELDA'!AA35)*'CELDA RESUMEN'!AI35 -> 0
B36: 29 | C36: RURAL | D36: PROVINCIA | E36: NOR ORIENTE | F36: ANCASH | G36: PROVINCIA119 | H36: DISTRITO934 | I36: 77 | J36: 4 | K36: 12 | L36: 22 | M36: 12 | N36: 3 | O36: IDCELL29 | P36: ID_LOCAL29 | Q36: 0 | R36: D | S36: MACRO | T36: FO | U36: 0.000198019802 | V36: 0.000198019802 | W36: 1 | X36: 0.1 | Y36: 0 | Z36: 0.7 | AA36: 0.2 | AB36: BSC27 | AC36: PROMEDIO | AD36: 1 | AE36: 1 | AF36: 1 | AG36: 0 | AH36: 0 | AI36: 0 | AJ36: RNC16 | AK36: PROMEDIO | AL36: 1 | AM36: 0.8815384414 | AN36: 0.1045627723 | AO36: 0.005403422994 | AP36: 0.009134443846 | AQ36: RNC16 | AR36: PROMEDIO | AS36: 1 | AT36: 0.5 | AU36: 1 | AV36: 0.5 | AX36: D | AY36: 1.5 | AZ36: PROVINCIA119DISTRITO934 | BB36: ANCASHRURAL | BC36: ANCASHMACRO | BD36: PROVINCIA RURAL | BH36: =IF(usaDistribucin2G3G="SI",PARAMETROS!$C$25,'LISTA CELDA'!W36)*'CELDA RESUMEN'!AG36 -> 0.4 | BI36: =IF(usaDistribucin2G3G="SI",PARAMETROS!$C$26,'LISTA CELDA'!X36)*'CELDA RESUMEN'!AG36 -> 0.02 | BJ36: =IF(usaDistribucin2G3G="SI",PARAMETROS!$D$25,'LISTA CELDA'!Y36)*'CELDA RESUMEN'!AH36 -> 0.6 | BK36: =IF(usaDistribucin2G3G="SI",PARAMETROS!$D$26,'LISTA CELDA'!Z36)*'CELDA RESUMEN'!AH36 -> 0.33 | BL36: =IF(usaDistribucin2G3G="SI",PARAMETROS!$E$25,0) -> 0 | BM36: =IF(usaDistribucin2G3G="SI",PARAMETROS!$E$26,'LISTA CELDA'!AA36)*'CELDA RESUMEN'!AI36 -> 0.65
B37: 30 | C37: RURAL | D37: PROVINCIA | E37: NOR ORIENTE | F37: ANCASH | G37: PROVINCIA119 | H37: DISTRITO573 | I37: 77 | J37: 4 | K37: 12 | L37: 22 | M37: 12 | N37: 3 | O37: IDCELL30 | P37: ID_LOCAL30 | Q37: 0 | R37: D | S37: MACRO | T37: FO | U37: 0.000198019802 | V37: 0.000198019802 | W37: 0.71 | X37: 0.1 | Y37: 0.39 | Z37: 0.7 | AA37: 0.2 | AB37: BSC12 | AC37: PROMEDIO | AD37: 1 | AE37: 1 | AF37: 1 | AG37: 0 | AH37: 0 | AI37: 0 | AJ37: RNC16 | AK37: PROMEDIO | AL37: 1 | AM37: 0.8815384414 | AN37: 0.1045627723 | AO37: 0.005403422994 | AP37: 0.009134443846 | AQ37: RNC16 | AR37: PROMEDIO | AS37: 1 | AT37: 0.5 | AU37: 1 | AV37: 0.5 | AX37: D | AY37: 1.5 | AZ37: PROVINCIA119DISTRITO573 | BB37: ANCASHRURAL | BC37: ANCASHMACRO | BD37: PROVINCIA RURAL | BH37: =IF(usaDistribucin2G3G="SI",PARAMETROS!$C$25,'LISTA CELDA'!W37)*'CELDA RESUMEN'!AG37 -> 0.4 | BI37: =IF(usaDistribucin2G3G="SI",PARAMETROS!$C$26,'LISTA CELDA'!X37)*'CELDA RESUMEN'!AG37 -> 0.02 | BJ37: =IF(usaDistribucin2G3G="SI",PARAMETROS!$D$25,'LISTA CELDA'!Y37)*'CELDA RESUMEN'!AH37 -> 0.6 | BK37: =IF(usaDistribucin2G3G="SI",PARAMETROS!$D$26,'LISTA CELDA'!Z37)*'CELDA RESUMEN'!AH37 -> 0.33 | BL37: =IF(usaDistribucin2G3G="SI",PARAMETROS!$E$25,0) -> 0 | BM37: =IF(usaDistribucin2G3G="SI",PARAMETROS!$E$26,'LISTA CELDA'!AA37)*'CELDA RESUMEN'!AI37 -> 0.65
B38: 31 | C38: RURAL | D38: PROVINCIA | E38: NOR ORIENTE | F38: ANCASH | G38: PROVINCIA119 | H38: DISTRITO635 | I38: 77 | J38: 4 | K38: 12 | L38: 22 | M38: 12 | N38: 3 | O38: IDCELL31 | P38: ID_LOCAL31 | Q38: 0 | R38: D | S38: MACRO | T38: FO | U38: 0.000198019802 | V38: 0.000198019802 | W38: 1 | X38: 1 | Y38: 0 | Z38: 0 | AA38: 0 | AB38: BSC27 | AC38: PROMEDIO | AD38: 1 | AE38: 1 | AF38: 1 | AG38: 0 | AH38: 0 | AI38: 0 | AJ38: 0 | AK38: PROMEDIO | AL38: 0 | AM38: 0 | AN38: 0 | AO38: 0 | AP38: 0 | AR38: PROMEDIO | AS38: 0 | AT38: 0 | AU38: 0 | AV38: 0 | AX38: D | AY38: 1.5 | AZ38: PROVINCIA119DISTRITO635 | BB38: ANCASHRURAL | BC38: ANCASHMACRO | BD38: PROVINCIA RURAL | BH38: =IF(usaDistribucin2G3G="SI",PARAMETROS!$C$25,'LISTA CELDA'!W38)*'CELDA RESUMEN'!AG38 -> 0.4 | BI38: =IF(usaDistribucin2G3G="SI",PARAMETROS!$C$26,'LISTA CELDA'!X38)*'CELDA RESUMEN'!AG38 -> 0.02 | BJ38: =IF(usaDistribucin2G3G="SI",PARAMETROS!$D$25,'LISTA CELDA'!Y38)*'CELDA RESUMEN'!AH38 -> 0 | BK38: =IF(usaDistribucin2G3G="SI",PARAMETROS!$D$26,'LISTA CELDA'!Z38)*'CELDA RESUMEN'!AH38 -> 0 | BL38: =IF(usaDistribucin2G3G="SI",PARAMETROS!$E$25,0) -> 0 | BM38: =IF(usaDistribucin2G3G="SI",PARAMETROS!$E$26,'LISTA CELDA'!AA38)*'CELDA RESUMEN'!AI38 -> 0
B39: 32 | C39: RURAL | D39: PROVINCIA | E39: NOR ORIENTE | F39: ANCASH | G39: PROVINCIA119 | H39: DISTRITO573 | I39: 77 | J39: 4 | K39: 12 | L39: 22 | M39: 12 | N39: 3 | O39: IDCELL32 | P39: ID_LOCAL32 | Q39: 0 | R39: D | S39: MACRO | T39: FO | U39: 0.000198019802 | V39: 0.000198019802 | W39: 1 | X39: 1 | Y39: 0 | Z39: 0 | AA39: 0 | AB39: BSC12 | AC39: PROMEDIO | AD39: 1 | AE39: 0.6705436282 | AF39: 0.6705436282 | AG39: 1 | AH39: 0.3294563718 | AI39: 0.3294563718 | AJ39: 0 | AK39: PROMEDIO | AL39: 0 | AM39: 0 | AN39: 0 | AO39: 0 | AP39: 0 | AR39: PROMEDIO | AS39: 0 | AT39: 0 | AU39: 0 | AV39: 0 | AX39: D | AY39: 1.5 | AZ39: PROVINCIA119DISTRITO573 | BB39: ANCASHRURAL | BC39: ANCASHMACRO | BD39: PROVINCIA RURAL | BH39: =IF(usaDistribucin2G3G="SI",PARAMETROS!$C$25,'LISTA CELDA'!W39)*'CELDA RESUMEN'!AG39 -> 0.4 | BI39: =IF(usaDistribucin2G3G="SI",PARAMETROS!$C$26,'LISTA CELDA'!X39)*'CELDA RESUMEN'!AG39 -> 0.02 | BJ39: =IF(usaDistribucin2G3G="SI",PARAMETROS!$D$25,'LISTA CELDA'!Y39)*'CELDA RESUMEN'!AH39 -> 0 | BK39: =IF(usaDistribucin2G3G="SI",PARAMETROS!$D$26,'LISTA CELDA'!Z39)*'CELDA RESUMEN'!AH39 -> 0 | BL39: =IF(usaDistribucin2G3G="SI",PARAMETROS!$E$25,0) -> 0 | BM39: =IF(usaDistribucin2G3G="SI",PARAMETROS!$E$26,'LISTA CELDA'!AA39)*'CELDA RESUMEN'!AI39 -> 0
B40: 33 | C40: URBANA | D40: PROVINCIA | E40: NOR ORIENTE | F40: ANCASH | G40: PROVINCIA194 | H40: DISTRITO1368 | I40: 77 | J40: 4 | K40: 12 | L40: 22 | M40: 12 | N40: 3 | O40: IDCELL33 | P40: ID_LOCAL33 | Q40: 0 | R40: D | S40: MACRO | T40: FO | U40: 0.000198019802 | V40: 0.000198019802 | W40: 0.71 | X40: 0.1 | Y40: 0.39 | Z40: 0.7 | AA40: 0.2 | AB40: BSC27 | AC40: PROMEDIO | AD40: 1 | AE40: 1 | AF40: 1 | AG40: 0 | AH40: 0 | AI40: 0 | AJ40: RNC16 | AK40: PROMEDIO | AL40: 1 | AM40: 0.8815384414 | AN40: 0.1045627723 | AO40: 0.005403422994 | AP40: 0.009134443846 | AQ40: RNC16 | AR40: PROMEDIO | AS40: 1 | AT40: 0.5 | AU40: 1 | AV40: 0.5 | AX40: D | AY40: 1.5 | AZ40: PROVINCIA194DISTRITO1368 | BB40: ANCASHURBANA | BC40: ANCASHMACRO | BD40: PROVINCIA URBANA | BH40: =IF(usaDistribucin2G3G="SI",PARAMETROS!$C$25,'LISTA CELDA'!W40)*'CELDA RESUMEN'!AG40 -> 0.4 | BI40: =IF(usaDistribucin2G3G="SI",PARAMETROS!$C$26,'LISTA CELDA'!X40)*'CELDA RESUMEN'!AG40 -> 0.02 | BJ40: =IF(usaDistribucin2G3G="SI",PARAMETROS!$D$25,'LISTA CELDA'!Y40)*'CELDA RESUMEN'!AH40 -> 0.6 | BK40: =IF(usaDistribucin2G3G="SI",PARAMETROS!$D$26,'LISTA CELDA'!Z40)*'CELDA RESUMEN'!AH40 -> 0.33 | BL40: =IF(usaDistribucin2G3G="SI",PARAMETROS!$E$25,0) -> 0 | BM40: =IF(usaDistribucin2G3G="SI",PARAMETROS!$E$26,'LISTA CELDA'!AA40)*'CELDA RESUMEN'!AI40 -> 0.65
B41: 34 | C41: RURAL | D41: PROVINCIA | E41: NOR ORIENTE | F41: ANCASH | G41: PROVINCIA120 | H41: DISTRITO1174 | I41: 77 | J41: 4 | K41: 12 | L41: 22 | M41: 12 | N41: 3 | O41: IDCELL34 | P41: ID_LOCAL34 | Q41: 0 | R41: D | S41: MACRO | T41: FO | U41: 0.000198019802 | V41: 0.000198019802 | W41: 1 | X41: 1 | Y41: 0 | Z41: 0 | AA41: 0 | AB41: BSC27 | AC41: PROMEDIO | AD41: 1 | AE41: 1 | AF41: 1 | AG41: 0 | AH41: 0 | AI41: 0 | AJ41: 0 | AK41: PROMEDIO | AL41: 0 | AM41: 0 | AN41: 0 | AO41: 0 | AP41: 0 | AR41: PROMEDIO | AS41: 0 | AT41: 0 | AU41: 0 | AV41: 0 | AX41: D | AY41: 1.5 | AZ41: PROVINCIA120DISTRITO1174 | BB41: ANCASHRURAL | BC41: ANCASHMACRO | BD41: PROVINCIA RURAL | BH41: =IF(usaDistribucin2G3G="SI",PARAMETROS!$C$25,'LISTA CELDA'!W41)*'CELDA RESUMEN'!AG41 -> 0.4 | BI41: =IF(usaDistribucin2G3G="SI",PARAMETROS!$C$26,'LISTA CELDA'!X41)*'CELDA RESUMEN'!AG41 -> 0.02 | BJ41: =IF(usaDistribucin2G3G="SI",PARAMETROS!$D$25,'LISTA CELDA'!Y41)*'CELDA RESUMEN'!AH41 -> 0 | BK41: =IF(usaDistribucin2G3G="SI",PARAMETROS!$D$26,'LISTA CELDA'!Z41)*'CELDA RESUMEN'!AH41 -> 0 | BL41: =IF(usaDistribucin2G3G="SI",PARAMETROS!$E$25,0) -> 0 | BM41: =IF(usaDistribucin2G3G="SI",PARAMETROS!$E$26,'LISTA CELDA'!AA41)*'CELDA RESUMEN'!AI41 -> 0
B42: 35 | C42: URBANA | D42: PROVINCIA | E42: NOR ORIENTE | F42: ANCASH | G42: PROVINCIA13 | H42: DISTRITO31 | I42: 77 | J42: 4 | K42: 12 | L42: 22 | M42: 12 | N42: 3 | O42: IDCELL35 | P42: ID_LOCAL35 | Q42: 0 | R42: D | S42: MACRO | T42: FO | U42: 0.000198019802 | V42: 0.000198019802 | W42: 1 | X42: 0.1 | Y42: 0 | Z42: 0.7 | AA42: 0.2 | AB42: BSC27 | AC42: PROMEDIO | AD42: 1 | AE42: 1 | AF42: 1 | AG42: 0 | AH42: 0 | AI42: 0 | AJ42: RNC16 | AK42: PROMEDIO | AL42: 1 | AM42: 0.8815384414 | AN42: 0.1045627723 | AO42: 0.005403422994 | AP42: 0.009134443846 | AQ42: RNC16 | AR42: PROMEDIO | AS42: 1 | AT42: 0.5 | AU42: 1 | AV42: 0.5 | AX42: D | AY42: 1.5 | AZ42: PROVINCIA13DISTRITO31 | BB42: ANCASHURBANA | BC42: ANCASHMACRO | BD42: PROVINCIA URBANA | BH42: =IF(usaDistribucin2G3G="SI",PARAMETROS!$C$25,'LISTA CELDA'!W42)*'CELDA RESUMEN'!AG42 -> 0.4 | BI42: =IF(usaDistribucin2G3G="SI",PARAMETROS!$C$26,'LISTA CELDA'!X42)*'CELDA RESUMEN'!AG42 -> 0.02 | BJ42: =IF(usaDistribucin2G3G="SI",PARAMETROS!$D$25,'LISTA CELDA'!Y42)*'CELDA RESUMEN'!AH42 -> 0.6 | BK42: =IF(usaDistribucin2G3G="SI",PARAMETROS!$D$26,'LISTA CELDA'!Z42)*'CELDA RESUMEN'!AH42 -> 0.33 | BL42: =IF(usaDistribucin2G3G="SI",PARAMETROS!$E$25,0) -> 0 | BM42: =IF(usaDistribucin2G3G="SI",PARAMETROS!$E$26,'LISTA CELDA'!AA42)*'CELDA RESUMEN'!AI42 -> 0.65
B43: 36 | C43: URBANA | D43: PROVINCIA | E43: NOR ORIENTE | F43: ANCASH | G43: PROVINCIA194 | H43: DISTRITO1067 | I43: 77 | J43: 4 | K43: 12 | L43: 22 | M43: 12 | N43: 3 | O43: IDCELL36 | P43: ID_LOCAL36 | Q43: 0 | R43: D | S43: MACRO | T43: FO | U43: 0.000198019802 | V43: 0.000198019802 | W43: 0.71 | X43: 0.1 | Y43: 0.39 | Z43: 0.7 | AA43: 0.2 | AB43: BSC27 | AC43: PROMEDIO | AD43: 1 | AE43: 1 | AF43: 1 | AG43: 0 | AH43: 0 | AI43: 0 | AJ43: RNC16 | AK43: PROMEDIO | AL43: 1 | AM43: 0.8815384414 | AN43: 0.1045627723 | AO43: 0.005403422994 | AP43: 0.009134443846 | AQ43: RNC16 | AR43: PROMEDIO | AS43: 1 | AT43: 0.5 | AU43: 1 | AV43: 0.5 | AX43: D | AY43: 1.5 | AZ43: PROVINCIA194DISTRITO1067 | BB43: ANCASHURBANA | BC43: ANCASHMACRO | BD43: PROVINCIA URBANA | BH43: =IF(usaDistribucin2G3G="SI",PARAMETROS!$C$25,'LISTA CELDA'!W43)*'CELDA RESUMEN'!AG43 -> 0.4 | BI43: =IF(usaDistribucin2G3G="SI",PARAMETROS!$C$26,'LISTA CELDA'!X43)*'CELDA RESUMEN'!AG43 -> 0.02 | BJ43: =IF(usaDistribucin2G3G="SI",PARAMETROS!$D$25,'LISTA CELDA'!Y43)*'CELDA RESUMEN'!AH43 -> 0.6 | BK43: =IF(usaDistribucin2G3G="SI",PARAMETROS!$D$26,'LISTA CELDA'!Z43)*'CELDA RESUMEN'!AH43 -> 0.33 | BL43: =IF(usaDistribucin2G3G="SI",PARAMETROS!$E$25,0) -> 0 | BM43: =IF(usaDistribucin2G3G="SI",PARAMETROS!$E$26,'LISTA CELDA'!AA43)*'CELDA RESUMEN'!AI43 -> 0.65
B44: 37 | C44: RURAL | D44: PROVINCIA | E44: NOR ORIENTE | F44: ANCASH | G44: PROVINCIA188 | H44: DISTRITO939 | I44: 77 | J44: 4 | K44: 12 | L44: 22 | M44: 12 | N44: 3 | O44: IDCELL37 | P44: ID_LOCAL37 | Q44: 0 | R44: D | S44: MACRO | T44: FO | U44: 0.000198019802 | V44: 0.000198019802 | W44: 1 | X44: 1 | Y44: 0 | Z44: 0 | AA44: 0 | AB44: BSC27 | AC44: PROMEDIO | AD44: 1 | AE44: 1 | AF44: 1 | AG44: 0 | AH44: 0 | AI44: 0 | AJ44: 0 | AK44: PROMEDIO | AL44: 0 | AM44: 0 | AN44: 0 | AO44: 0 | AP44: 0 | AR44: PROMEDIO | AS44: 0 | AT44: 0 | AU44: 0 | AV44: 0 | AX44: D | AY44: 1.5 | AZ44: PROVINCIA188DISTRITO939 | BB44: ANCASHRURAL | BC44: ANCASHMACRO | BD44: PROVINCIA RURAL | BH44: =IF(usaDistribucin2G3G="SI",PARAMETROS!$C$25,'LISTA CELDA'!W44)*'CELDA RESUMEN'!AG44 -> 0.4 | BI44: =IF(usaDistribucin2G3G="SI",PARAMETROS!$C$26,'LISTA CELDA'!X44)*'CELDA RESUMEN'!AG44 -> 0.02 | BJ44: =IF(usaDistribucin2G3G="SI",PARAMETROS!$D$25,'LISTA CELDA'!Y44)*'CELDA RESUMEN'!AH44 -> 0 | BK44: =IF(usaDistribucin2G3G="SI",PARAMETROS!$D$26,'LISTA CELDA'!Z44)*'CELDA RESUMEN'!AH44 -> 0 | BL44: =IF(usaDistribucin2G3G="SI",PARAMETROS!$E$25,0) -> 0 | BM44: =IF(usaDistribucin2G3G="SI",PARAMETROS!$E$26,'LISTA CELDA'!AA44)*'CELDA RESUMEN'!AI44 -> 0
B45: 38 | C45: URBANA | D45: PROVINCIA | E45: NOR ORIENTE | F45: ANCASH | G45: PROVINCIA188 | H45: DISTRITO994 | I45: 77 | J45: 4 | K45: 12 | L45: 22 | M45: 12 | N45: 3 | O45: IDCELL38 | P45: ID_LOCAL38 | Q45: 0 | R45: D | S45: MACRO | T45: FO | U45: 0.000198019802 | V45: 0.000198019802 | W45: 0.71 | X45: 0.1 | Y45: 0.39 | Z45: 0.7 | AA45: 0.2 | AB45: BSC27 | AC45: PROMEDIO | AD45: 1 | AE45: 0.6481247332 | AF45: 0.6481247332 | AG45: 1 | AH45: 0.3518752668 | AI45: 0.3518752668 | AJ45: RNC16 | AK45: PROMEDIO | AL45: 1 | AM45: 0.8815384414 | AN45: 0.1045627723 | AO45: 0.005403422994 | AP45: 0.009134443846 | AQ45: RNC16 | AR45: PROMEDIO | AS45: 1 | AT45: 0.5 | AU45: 1 | AV45: 0.5 | AX45: D | AY45: 1.5 | AZ45: PROVINCIA188DISTRITO994 | BB45: ANCASHURBANA | BC45: ANCASHMACRO | BD45: PROVINCIA URBANA | BH45: =IF(usaDistribucin2G3G="SI",PARAMETROS!$C$25,'LISTA CELDA'!W45)*'CELDA RESUMEN'!AG45 -> 0.4 | BI45: =IF(usaDistribucin2G3G="SI",PARAMETROS!$C$26,'LISTA CELDA'!X45)*'CELDA RESUMEN'!AG45 -> 0.02 | BJ45: =IF(usaDistribucin2G3G="SI",PARAMETROS!$D$25,'LISTA CELDA'!Y45)*'CELDA RESUMEN'!AH45 -> 0.6 | BK45: =IF(usaDistribucin2G3G="SI",PARAMETROS!$D$26,'LISTA CELDA'!Z45)*'CELDA RESUMEN'!AH45 -> 0.33 | BL45: =IF(usaDistribucin2G3G="SI",PARAMETROS!$E$25,0) -> 0 | BM45: =IF(usaDistribucin2G3G="SI",PARAMETROS!$E$26,'LISTA CELDA'!AA45)*'CELDA RESUMEN'!AI45 -> 0.65
B46: 39 | C46: RURAL | D46: PROVINCIA | E46: NOR ORIENTE | F46: ANCASH | G46: PROVINCIA120 | H46: DISTRITO1174 | I46: 77 | J46: 4 | K46: 12 | L46: 22 | M46: 12 | N46: 3 | O46: IDCELL39 | P46: ID_LOCAL39 | Q46: 0 | R46: D | S46: MACRO | T46: FO | U46: 0.000198019802 | V46: 0.000198019802 | W46: 0.71 | X46: 0.1 | Y46: 0.39 | Z46: 0.7 | AA46: 0.2 | AB46: BSC27 | AC46: PROMEDIO | AD46: 1 | AE46: 0.3520655223 | AF46: 0.3520655223 | AG46: 1 | AH46: 0.6479344777 | AI46: 0.6479344777 | AJ46: RNC16 | AK46: PROMEDIO | AL46: 1 | AM46: 0.8815384414 | AN46: 0.1045627723 | AO46: 0.005403422994 | AP46: 0.009134443846 | AQ46: RNC16 | AR46: PROMEDIO | AS46: 1 | AT46: 0.5 | AU46: 1 | AV46: 0.5 | AX46: D | AY46: 1.5 | AZ46: PROVINCIA120DISTRITO1174 | BB46: ANCASHRURAL | BC46: ANCASHMACRO | BD46: PROVINCIA RURAL | BH46: =IF(usaDistribucin2G3G="SI",PARAMETROS!$C$25,'LISTA CELDA'!W46)*'CELDA RESUMEN'!AG46 -> 0.4 | BI46: =IF(usaDistribucin2G3G="SI",PARAMETROS!$C$26,'LISTA CELDA'!X46)*'CELDA RESUMEN'!AG46 -> 0.02 | BJ46: =IF(usaDistribucin2G3G="SI",PARAMETROS!$D$25,'LISTA CELDA'!Y46)*'CELDA RESUMEN'!AH46 -> 0.6 | BK46: =IF(usaDistribucin2G3G="SI",PARAMETROS!$D$26,'LISTA CELDA'!Z46)*'CELDA RESUMEN'!AH46 -> 0.33 | BL46: =IF(usaDistribucin2G3G="SI",PARAMETROS!$E$25,0) -> 0 | BM46: =IF(usaDistribucin2G3G="SI",PARAMETROS!$E$26,'LISTA CELDA'!AA46)*'CELDA RESUMEN'!AI46 -> 0.65
B47: 40 | C47: URBANA | D47: PROVINCIA | E47: NOR ORIENTE | F47: ANCASH | G47: PROVINCIA121 | H47: DISTRITO744 | I47: 77 | J47: 4 | K47: 12 | L47: 22 | M47: 12 | N47: 3 | O47: IDCELL40 | P47: ID_LOCAL40 | Q47: 0 | R47: D | S47: MACRO | T47: FO | U47: 0.000198019802 | V47: 0.000198019802 | W47: 1 | X47: 1 | Y47: 0 | Z47: 0 | AA47: 0 | AB47: BSC27 | AC47: PROMEDIO | AD47: 1 | AE47: 1 | AF47: 1 | AG47: 0 | AH47: 0 | AI47: 0 | AJ47: 0 | AK47: PROMEDIO | AL47: 0 | AM47: 0 | AN47: 0 | AO47: 0 | AP47: 0 | AR47: PROMEDIO | AS47: 0 | AT47: 0 | AU47: 0 | AV47: 0 | AX47: D | AY47: 1.5 | AZ47: PROVINCIA121DISTRITO744 | BB47: ANCASHURBANA | BC47: ANCASHMACRO | BD47: PROVINCIA URBANA | BH47: =IF(usaDistribucin2G3G="SI",PARAMETROS!$C$25,'LISTA CELDA'!W47)*'CELDA RESUMEN'!AG47 -> 0.4 | BI47: =IF(usaDistribucin2G3G="SI",PARAMETROS!$C$26,'LISTA CELDA'!X47)*'CELDA RESUMEN'!AG47 -> 0.02 | BJ47: =IF(usaDistribucin2G3G="SI",PARAMETROS!$D$25,'LISTA CELDA'!Y47)*'CELDA RESUMEN'!AH47 -> 0 | BK47: =IF(usaDistribucin2G3G="SI",PARAMETROS!$D$26,'LISTA CELDA'!Z47)*'CELDA RESUMEN'!AH47 -> 0 | BL47: =IF(usaDistribucin2G3G="SI",PARAMETROS!$E$25,0) -> 0 | BM47: =IF(usaDistribucin2G3G="SI",PARAMETROS!$E$26,'LISTA CELDA'!AA47)*'CELDA RESUMEN'!AI47 -> 0
B48: 41 | C48: URBANA | D48: PROVINCIA | E48: NOR ORIENTE | F48: ANCASH | G48: PROVINCIA194 | H48: DISTRITO1348 | I48: 77 | J48: 4 | K48: 12 | L48: 22 | M48: 12 | N48: 3 | O48: IDCELL41 | P48: ID_LOCAL41 | Q48: 0 | R48: D | S48: MACRO | T48: FO | U48: 0.000198019802 | V48: 0.000198019802 | W48: 1 | X48: 1 | Y48: 0 | Z48: 0 | AA48: 0 | AB48: BSC27 | AC48: PROMEDIO | AD48: 1 | AE48: 1 | AF48: 1 | AG48: 0 | AH48: 0 | AI48: 0 | AJ48: 0 | AK48: PROMEDIO | AL48: 0 | AM48: 0 | AN48: 0 | AO48: 0 | AP48: 0 | AR48: PROMEDIO | AS48: 0 | AT48: 0 | AU48: 0 | AV48: 0 | AX48: D | AY48: 1.5 | AZ48: PROVINCIA194DISTRITO1348 | BB48: ANCASHURBANA | BC48: ANCASHMACRO | BD48: PROVINCIA URBANA | BH48: =IF(usaDistribucin2G3G="SI",PARAMETROS!$C$25,'LISTA CELDA'!W48)*'CELDA RESUMEN'!AG48 -> 0.4 | BI48: =IF(usaDistribucin2G3G="SI",PARAMETROS!$C$26,'LISTA CELDA'!X48)*'CELDA RESUMEN'!AG48 -> 0.02 | BJ48: =IF(usaDistribucin2G3G="SI",PARAMETROS!$D$25,'LISTA CELDA'!Y48)*'CELDA RESUMEN'!AH48 -> 0 | BK48: =IF(usaDistribucin2G3G="SI",PARAMETROS!$D$26,'LISTA CELDA'!Z48)*'CELDA RESUMEN'!AH48 -> 0 | BL48: =IF(usaDistribucin2G3G="SI",PARAMETROS!$E$25,0) -> 0 | BM48: =IF(usaDistribucin2G3G="SI",PARAMETROS!$E$26,'LISTA CELDA'!AA48)*'CELDA RESUMEN'!AI48 -> 0
B49: 42 | C49: URBANA | D49: PROVINCIA | E49: NOR ORIENTE | F49: ANCASH | G49: PROVINCIA119 | H49: DISTRITO520 | I49: 77 | J49: 4 | K49: 12 | L49: 22 | M49: 12 | N49: 3 | O49: IDCELL42 | P49: ID_LOCAL42 | Q49: 0 | R49: D | S49: MACRO | T49: FO | U49: 0.000198019802 | V49: 0.000198019802 | W49: 0.71 | X49: 0.1 | Y49: 0.39 | Z49: 0.7 | AA49: 0.2 | AB49: BSC27 | AC49: PROMEDIO | AD49: 1 | AE49: 0.240252646 | AF49: 0.240252646 | AG49: 1 | AH49: 0.759747354 | AI49: 0.759747354 | AJ49: RNC16 | AK49: PROMEDIO | AL49: 1 | AM49: 0.8815384414 | AN49: 0.1045627723 | AO49: 0.005403422994 | AP49: 0.009134443846 | AQ49: RNC16 | AR49: PROMEDIO | AS49: 1 | AT49: 0.5 | AU49: 1 | AV49: 0.5 | AX49: D | AY49: 1.5 | AZ49: PROVINCIA119DISTRITO520 | BB49: ANCASHURBANA | BC49: ANCASHMACRO | BD49: PROVINCIA URBANA | BH49: =IF(usaDistribucin2G3G="SI",PARAMETROS!$C$25,'LISTA CELDA'!W49)*'CELDA RESUMEN'!AG49 -> 0.4 | BI49: =IF(usaDistribucin2G3G="SI",PARAMETROS!$C$26,'LISTA CELDA'!X49)*'CELDA RESUMEN'!AG49 -> 0.02 | BJ49: =IF(usaDistribucin2G3G="SI",PARAMETROS!$D$25,'LISTA CELDA'!Y49)*'CELDA RESUMEN'!AH49 -> 0.6 | BK49: =IF(usaDistribucin2G3G="SI",PARAMETROS!$D$26,'LISTA CELDA'!Z49)*'CELDA RESUMEN'!AH49 -> 0.33 | BL49: =IF(usaDistribucin2G3G="SI",PARAMETROS!$E$25,0) -> 0 | BM49: =IF(usaDistribucin2G3G="SI",PARAMETROS!$E$26,'LISTA CELDA'!AA49)*'CELDA RESUMEN'!AI49 -> 0.65
B50: 43 | C50: RURAL | D50: PROVINCIA | E50: NOR ORIENTE | F50: ANCASH | G50: PROVINCIA120 | H50: DISTRITO1174 | I50: 77 | J50: 4 | K50: 12 | L50: 22 | M50: 12 | N50: 3 | O50: IDCELL43 | P50: ID_LOCAL43 | Q50: 0 | R50: D | S50: MACRO | T50: FO | U50: 0.000198019802 | V50: 0.000198019802 | W50: 1 | X50: 0.1 | Y50: 0 | Z50: 0.7 | AA50: 0.2 | AB50: BSC27 | AC50: PROMEDIO | AD50: 1 | AE50: 1 | AF50: 1 | AG50: 0 | AH50: 0 | AI50: 0 | AJ50: RNC16 | AK50: PROMEDIO | AL50: 1 | AM50: 0.8815384414 | AN50: 0.1045627723 | AO50: 0.005403422994 | AP50: 0.009134443846 | AQ50: RNC16 | AR50: PROMEDIO | AS50: 1 | AT50: 0.5 | AU50: 1 | AV50: 0.5 | AX50: D | AY50: 1.5 | AZ50: PROVINCIA120DISTRITO1174 | BB50: ANCASHRURAL | BC50: ANCASHMACRO | BD50: PROVINCIA RURAL | BH50: =IF(usaDistribucin2G3G="SI",PARAMETROS!$C$25,'LISTA CELDA'!W50)*'CELDA RESUMEN'!AG50 -> 0.4 | BI50: =IF(usaDistribucin2G3G="SI",PARAMETROS!$C$26,'LISTA CELDA'!X50)*'CELDA RESUMEN'!AG50 -> 0.02 | BJ50: =IF(usaDistribucin2G3G="SI",PARAMETROS!$D$25,'LISTA CELDA'!Y50)*'CELDA RESUMEN'!AH50 -> 0.6 | BK50: =IF(usaDistribucin2G3G="SI",PARAMETROS!$D$26,'LISTA CELDA'!Z50)*'CELDA RESUMEN'!AH50 -> 0.33 | BL50: =IF(usaDistribucin2G3G="SI",PARAMETROS!$E$25,0) -> 0 | BM50: =IF(usaDistribucin2G3G="SI",PARAMETROS!$E$26,'LISTA CELDA'!AA50)*'CELDA RESUMEN'!AI50 -> 0.65
B51: 44 | C51: URBANA | D51: PROVINCIA | E51: NOR ORIENTE | F51: ANCASH | G51: PROVINCIA194 | H51: DISTRITO386 | I51: 77 | J51: 4 | K51: 12 | L51: 22 | M51: 12 | N51: 3 | O51: IDCELL44 | P51: ID_LOCAL44 | Q51: 0 | R51: D | S51: MACRO | T51: FO | U51: 0.000198019802 | V51: 0.000198019802 | W51: 1 | X51: 1 | Y51: 0 | Z51: 0 | AA51: 0 | AB51: BSC27 | AC51: PROMEDIO | AD51: 0 | AE51: 0 | AF51: 0 | AG51: 1 | AH51: 1 | AI51: 1 | AJ51: 0 | AK51: PROMEDIO | AL51: 0 | AM51: 0 | AN51: 0 | AO51: 0 | AP51: 0 | AR51: PROMEDIO | AS51: 0 | AT51: 0 | AU51: 0 | AV51: 0 | AX51: D | AY51: 1.5 | AZ51: PROVINCIA194DISTRITO386 | BB51: ANCASHURBANA | BC51: ANCASHMACRO | BD51: PROVINCIA URBANA | BH51: =IF(usaDistribucin2G3G="SI",PARAMETROS!$C$25,'LISTA CELDA'!W51)*'CELDA RESUMEN'!AG51 -> 0.4 | BI51: =IF(usaDistribucin2G3G="SI",PARAMETROS!$C$26,'LISTA CELDA'!X51)*'CELDA RESUMEN'!AG51 -> 0.02 | BJ51: =IF(usaDistribucin2G3G="SI",PARAMETROS!$D$25,'LISTA CELDA'!Y51)*'CELDA RESUMEN'!AH51 -> 0 | BK51: =IF(usaDistribucin2G3G="SI",PARAMETROS!$D$26,'LISTA CELDA'!Z51)*'CELDA RESUMEN'!AH51 -> 0 | BL51: =IF(usaDistribucin2G3G="SI",PARAMETROS!$E$25,0) -> 0 | BM51: =IF(usaDistribucin2G3G="SI",PARAMETROS!$E$26,'LISTA CELDA'!AA51)*'CELDA RESUMEN'!AI51 -> 0
B52: 45 | C52: URBANA | D52: PROVINCIA | E52: NOR ORIENTE | F52: ANCASH | G52: PROVINCIA164 | H52: DISTRITO196 | I52: 77 | J52: 4 | K52: 12 | L52: 22 | M52: 12 | N52: 3 | O52: IDCELL45 | P52: ID_LOCAL45 | Q52: 0 | R52: D | S52: MACRO | T52: FO | U52: 0.000198019802 | V52: 0.000198019802 | W52: 1 | X52: 1 | Y52: 0 | Z52: 0 | AA52: 0 | AB52: BSC27 | AC52: PROMEDIO | AD52: 1 | AE52: 1 | AF52: 1 | AG52: 0 | AH52: 0 | AI52: 0 | AJ52: 0 | AK52: PROMEDIO | AL52: 0 | AM52: 0 | AN52: 0 | AO52: 0 | AP52: 0 | AR52: PROMEDIO | AS52: 0 | AT52: 0 | AU52: 0 | AV52: 0 | AX52: D | AY52: 1.5 | AZ52: PROVINCIA164DISTRITO196 | BB52: ANCASHURBANA | BC52: ANCASHMACRO | BD52: PROVINCIA URBANA | BH52: =IF(usaDistribucin2G3G="SI",PARAMETROS!$C$25,'LISTA CELDA'!W52)*'CELDA RESUMEN'!AG52 -> 0.4 | BI52: =IF(usaDistribucin2G3G="SI",PARAMETROS!$C$26,'LISTA CELDA'!X52)*'CELDA RESUMEN'!AG52 -> 0.02 | BJ52: =IF(usaDistribucin2G3G="SI",PARAMETROS!$D$25,'LISTA CELDA'!Y52)*'CELDA RESUMEN'!AH52 -> 0 | BK52: =IF(usaDistribucin2G3G="SI",PARAMETROS!$D$26,'LISTA CELDA'!Z52)*'CELDA RESUMEN'!AH52 -> 0 | BL52: =IF(usaDistribucin2G3G="SI",PARAMETROS!$E$25,0) -> 0 | BM52: =IF(usaDistribucin2G3G="SI",PARAMETROS!$E$26,'LISTA CELDA'!AA52)*'CELDA RESUMEN'!AI52 -> 0
B53: 46 | C53: RURAL | D53: PROVINCIA | E53: NOR ORIENTE | F53: ANCASH | G53: PROVINCIA214 | H53: DISTRITO1291 | I53: 77 | J53: 4 | K53: 12 | L53: 22 | M53: 12 | N53: 3 | O53: IDCELL46 | P53: ID_LOCAL46 | Q53: 0 | R53: D | S53: MACRO | T53: FO | U53: 0.000198019802 | V53: 0.000198019802 | W53: 1 | X53: 0.1 | Y53: 0 | Z53: 0.7 | AA53: 0.2 | AB53: BSC27 | AC53: PROMEDIO | AD53: 1 | AE53: 1 | AF53: 1 | AG53: 0 | AH53: 0 | AI53: 0 | AJ53: RNC16 | AK53: PROMEDIO | AL53: 1 | AM53: 0.8815384414 | AN53: 0.1045627723 | AO53: 0.005403422994 | AP53: 0.009134443846 | AQ53: RNC16 | AR53: PROMEDIO | AS53: 1 | AT53: 0.5 | AU53: 1 | AV53: 0.5 | AX53: D | AY53: 1.5 | AZ53: PROVINCIA214DISTRITO1291 | BB53: ANCASHRURAL | BC53: ANCASHMACRO | BD53: PROVINCIA RURAL | BH53: =IF(usaDistribucin2G3G="SI",PARAMETROS!$C$25,'LISTA CELDA'!W53)*'CELDA RESUMEN'!AG53 -> 0.4 | BI53: =IF(usaDistribucin2G3G="SI",PARAMETROS!$C$26,'LISTA CELDA'!X53)*'CELDA RESUMEN'!AG53 -> 0.02 | BJ53: =IF(usaDistribucin2G3G="SI",PARAMETROS!$D$25,'LISTA CELDA'!Y53)*'CELDA RESUMEN'!AH53 -> 0.6 | BK53: =IF(usaDistribucin2G3G="SI",PARAMETROS!$D$26,'LISTA CELDA'!Z53)*'CELDA RESUMEN'!AH53 -> 0.33 | BL53: =IF(usaDistribucin2G3G="SI",PARAMETROS!$E$25,0) -> 0 | BM53: =IF(usaDistribucin2G3G="SI",PARAMETROS!$E$26,'LISTA CELDA'!AA53)*'CELDA RESUMEN'!AI53 -> 0.65
B54: 47 | C54: URBANA | D54: PROVINCIA | E54: NOR ORIENTE | F54: AYACUCHO | G54: PROVINCIA110 | H54: DISTRITO1155 | I54: 77 | J54: 4 | K54: 12 | L54: 22 | M54: 12 | N54: 3 | O54: IDCELL47 | P54: ID_LOCAL47 | Q54: 0 | R54: D | S54: MACRO | T54: FO | U54: 0.000198019802 | V54: 0.000198019802 | W54: 1 | X54: 1 | Y54: 0 | Z54: 0 | AA54: 0 | AB54: BSC27 | AC54: PROMEDIO | AD54: 1 | AE54: 1 | AF54: 1 | AG54: 0 | AH54: 0 | AI54: 0 | AJ54: 0 | AK54: PROMEDIO | AL54: 0 | AM54: 0 | AN54: 0 | AO54: 0 | AP54: 0 | AR54: PROMEDIO | AS54: 0 | AT54: 0 | AU54: 0 | AV54: 0 | AX54: D | AY54: 1.5 | AZ54: PROVINCIA110DISTRITO1155 | BB54: AYACUCHOURBANA | BC54: AYACUCHOMACRO | BD54: PROVINCIA URBANA | BH54: =IF(usaDistribucin2G3G="SI",PARAMETROS!$C$25,'LISTA CELDA'!W54)*'CELDA RESUMEN'!AG54 -> 0.4 | BI54: =IF(usaDistribucin2G3G="SI",PARAMETROS!$C$26,'LISTA CELDA'!X54)*'CELDA RESUMEN'!AG54 -> 0.02 | BJ54: =IF(usaDistribucin2G3G="SI",PARAMETROS!$D$25,'LISTA CELDA'!Y54)*'CELDA RESUMEN'!AH54 -> 0 | BK54: =IF(usaDistribucin2G3G="SI",PARAMETROS!$D$26,'LISTA CELDA'!Z54)*'CELDA RESUMEN'!AH54 -> 0 | BL54: =IF(usaDistribucin2G3G="SI",PARAMETROS!$E$25,0) -> 0 | BM54: =IF(usaDistribucin2G3G="SI",PARAMETROS!$E$26,'LISTA CELDA'!AA54)*'CELDA RESUMEN'!AI54 -> 0
B55: 48 | C55: RURAL | D55: PROVINCIA | E55: NOR ORIENTE | F55: ANCASH | G55: PROVINCIA120 | H55: DISTRITO1174 | I55: 77 | J55: 4 | K55: 12 | L55: 22 | M55: 12 | N55: 3 | O55: IDCELL48 | P55: ID_LOCAL48 | Q55: 0 | R55: D | S55: MACRO | T55: FO | U55: 0.000198019802 | V55: 0.000198019802 | W55: 0.71 | X55: 0.1 | Y55: 0.39 | Z55: 0.7 | AA55: 0.2 | AB55: BSC27 | AC55: PROMEDIO | AD55: 1 | AE55: 0.5202082194 | AF55: 0.5202082194 | AG55: 1 | AH55: 0.4797917806 | AI55: 0.4797917806 | AJ55: RNC16 | AK55: PROMEDIO | AL55: 1 | AM55: 0.8815384414 | AN55: 0.1045627723 | AO55: 0.005403422994 | AP55: 0.009134443846 | AQ55: RNC16 | AR55: PROMEDIO | AS55: 1 | AT55: 0.5 | AU55: 1 | AV55: 0.5 | AX55: D | AY55: 1.5 | AZ55: PROVINCIA120DISTRITO1174 | BB55: ANCASHRURAL | BC55: ANCASHMACRO | BD55: PROVINCIA RURAL | BH55: =IF(usaDistribucin2G3G="SI",PARAMETROS!$C$25,'LISTA CELDA'!W55)*'CELDA RESUMEN'!AG55 -> 0.4 | BI55: =IF(usaDistribucin2G3G="SI",PARAMETROS!$C$26,'LISTA CELDA'!X55)*'CELDA RESUMEN'!AG55 -> 0.02 | BJ55: =IF(usaDistribucin2G3G="SI",PARAMETROS!$D$25,'LISTA CELDA'!Y55)*'CELDA RESUMEN'!AH55 -> 0.6 | BK55: =IF(usaDistribucin2G3G="SI",PARAMETROS!$D$26,'LISTA CELDA'!Z55)*'CELDA RESUMEN'!AH55 -> 0.33 | BL55: =IF(usaDistribucin2G3G="SI",PARAMETROS!$E$25,0) -> 0 | BM55: =IF(usaDistribucin2G3G="SI",PARAMETROS!$E$26,'LISTA CELDA'!AA55)*'CELDA RESUMEN'!AI55 -> 0.65
B56: 49 | C56: URBANA | D56: PROVINCIA | E56: NOR ORIENTE | F56: ANCASH | G56: PROVINCIA164 | H56: DISTRITO1122 | I56: 77 | J56: 4 | K56: 12 | L56: 22 | M56: 12 | N56: 3 | O56: IDCELL49 | P56: ID_LOCAL49 | Q56: 0 | R56: D | S56: MACRO | T56: FO | U56: 0.000198019802 | V56: 0.000198019802 | W56: 1 | X56: 1 | Y56: 0 | Z56: 0 | AA56: 0 | AB56: BSC27 | AC56: PROMEDIO | AD56: 1 | AE56: 1 | AF56: 1 | AG56: 0 | AH56: 0 | AI56: 0 | AJ56: 0 | AK56: PROMEDIO | AL56: 0 | AM56: 0 | AN56: 0 | AO56: 0 | AP56: 0 | AR56: PROMEDIO | AS56: 0 | AT56: 0 | AU56: 0 | AV56: 0 | AX56: D | AY56: 1.5 | AZ56: PROVINCIA164DISTRITO1122 | BB56: ANCASHURBANA | BC56: ANCASHMACRO | BD56: PROVINCIA URBANA | BH56: =IF(usaDistribucin2G3G="SI",PARAMETROS!$C$25,'LISTA CELDA'!W56)*'CELDA RESUMEN'!AG56 -> 0.4 | BI56: =IF(usaDistribucin2G3G="SI",PARAMETROS!$C$26,'LISTA CELDA'!X56)*'CELDA RESUMEN'!AG56 -> 0.02 | BJ56: =IF(usaDistribucin2G3G="SI",PARAMETROS!$D$25,'LISTA CELDA'!Y56)*'CELDA RESUMEN'!AH56 -> 0 | BK56: =IF(usaDistribucin2G3G="SI",PARAMETROS!$D$26,'LISTA CELDA'!Z56)*'CELDA RESUMEN'!AH56 -> 0 | BL56: =IF(usaDistribucin2G3G="SI",PARAMETROS!$E$25,0) -> 0 | BM56: =IF(usaDistribucin2G3G="SI",PARAMETROS!$E$26,'LISTA CELDA'!AA56)*'CELDA RESUMEN'!AI56 -> 0
B57: 50 | C57: RURAL | D57: PROVINCIA | E57: NOR ORIENTE | F57: ANCASH | G57: PROVINCIA37 | H57: DISTRITO1183 | I57: 77 | J57: 4 | K57: 12 | L57: 22 | M57: 12 | N57: 3 | O57: IDCELL50 | P57: ID_LOCAL50 | Q57: 0 | R57: D | S57: MACRO | T57: FO | U57: 0.000198019802 | V57: 0.000198019802 | W57: 1 | X57: 1 | Y57: 0 | Z57: 0 | AA57: 0 | AB57: BSC27 | AC57: PROMEDIO | AD57: 1 | AE57: 1 | AF57: 1 | AG57: 0 | AH57: 0 | AI57: 0 | AJ57: 0 | AK57: PROMEDIO | AL57: 0 | AM57: 0 | AN57: 0 | AO57: 0 | AP57: 0 | AR57: PROMEDIO | AS57: 0 | AT57: 0 | AU57: 0 | AV57: 0 | AX57: D | AY57: 1.5 | AZ57: PROVINCIA37DISTRITO1183 | BB57: ANCASHRURAL | BC57: ANCASHMACRO | BD57: PROVINCIA RURAL | BH57: =IF(usaDistribucin2G3G="SI",PARAMETROS!$C$25,'LISTA CELDA'!W57)*'CELDA RESUMEN'!AG57 -> 0.4 | BI57: =IF(usaDistribucin2G3G="SI",PARAMETROS!$C$26,'LISTA CELDA'!X57)*'CELDA RESUMEN'!AG57 -> 0.02 | BJ57: =IF(usaDistribucin2G3G="SI",PARAMETROS!$D$25,'LISTA CELDA'!Y57)*'CELDA RESUMEN'!AH57 -> 0 | BK57: =IF(usaDistribucin2G3G="SI",PARAMETROS!$D$26,'LISTA CELDA'!Z57)*'CELDA RESUMEN'!AH57 -> 0 | BL57: =IF(usaDistribucin2G3G="SI",PARAMETROS!$E$25,0) -> 0 | BM57: =IF(usaDistribucin2G3G="SI",PARAMETROS!$E$26,'LISTA CELDA'!AA57)*'CELDA RESUMEN'!AI57 -> 0
B58: 51 | C58: URBANA | D58: PROVINCIA | E58: NOR ORIENTE | F58: ANCASH | G58: PROVINCIA207 | H58: DISTRITO283 | I58: 77 | J58: 4 | K58: 12 | L58: 22 | M58: 12 | N58: 3 | O58: IDCELL51 | P58: ID_LOCAL51 | Q58: 0 | R58: D | S58: MACRO | T58: FO | U58: 0.000198019802 | V58: 0.000198019802 | W58: 0.71 | X58: 0.1 | Y58: 0.39 | Z58: 0.7 | AA58: 0.2 | AB58: BSC27 | AC58: PROMEDIO | AD58: 1 | AE58: 0.4020618557 | AF58: 0.4020618557 | AG58: 1 | AH58: 0.5979381443 | AI58: 0.5979381443 | AJ58: RNC16 | AK58: PROMEDIO | AL58: 1 | AM58: 0.8815384414 | AN58: 0.1045627723 | AO58: 0.005403422994 | AP58: 0.009134443846 | AQ58: RNC16 | AR58: PROMEDIO | AS58: 1 | AT58: 0.5 | AU58: 1 | AV58: 0.5 | AX58: D | AY58: 1.5 | AZ58: PROVINCIA207DISTRITO283 | BB58: ANCASHURBANA | BC58: ANCASHMACRO | BD58: PROVINCIA URBANA | BH58: =IF(usaDistribucin2G3G="SI",PARAMETROS!$C$25,'LISTA CELDA'!W58)*'CELDA RESUMEN'!AG58 -> 0.4 | BI58: =IF(usaDistribucin2G3G="SI",PARAMETROS!$C$26,'LISTA CELDA'!X58)*'CELDA RESUMEN'!AG58 -> 0.02 | BJ58: =IF(usaDistribucin2G3G="SI",PARAMETROS!$D$25,'LISTA CELDA'!Y58)*'CELDA RESUMEN'!AH58 -> 0.6 | BK58: =IF(usaDistribucin2G3G="SI",PARAMETROS!$D$26,'LISTA CELDA'!Z58)*'CELDA RESUMEN'!AH58 -> 0.33 | BL58: =IF(usaDistribucin2G3G="SI",PARAMETROS!$E$25,0) -> 0 | BM58: =IF(usaDistribucin2G3G="SI",PARAMETROS!$E$26,'LISTA CELDA'!AA58)*'CELDA RESUMEN'!AI58 -> 0.65
B59: 52 | C59: RURAL | D59: PROVINCIA | E59: NOR ORIENTE | F59: ANCASH | G59: PROVINCIA153 | H59: DISTRITO720 | I59: 77 | J59: 4 | K59: 12 | L59: 22 | M59: 12 | N59: 3 | O59: IDCELL52 | P59: ID_LOCAL52 | Q59: 0 | R59: D | S59: MACRO | T59: FO | U59: 0.000198019802 | V59: 0.000198019802 | W59: 1 | X59: 1 | Y59: 0 | Z59: 0 | AA59: 0 | AB59: BSC27 | AC59: PROMEDIO | AD59: 1 | AE59: 1 | AF59: 1 | AG59: 0 | AH59: 0 | AI59: 0 | AJ59: 0 | AK59: PROMEDIO | AL59: 0 | AM59: 0 | AN59: 0 | AO59: 0 | AP59: 0 | AR59: PROMEDIO | AS59: 0 | AT59: 0 | AU59: 0 | AV59: 0 | AX59: D | AY59: 1.5 | AZ59: PROVINCIA153DISTRITO720 | BB59: ANCASHRURAL | BC59: ANCASHMACRO | BD59: PROVINCIA RURAL | BH59: =IF(usaDistribucin2G3G="SI",PARAMETROS!$C$25,'LISTA CELDA'!W59)*'CELDA RESUMEN'!AG59 -> 0.4 | BI59: =IF(usaDistribucin2G3G="SI",PARAMETROS!$C$26,'LISTA CELDA'!X59)*'CELDA RESUMEN'!AG59 -> 0.02 | BJ59: =IF(usaDistribucin2G3G="SI",PARAMETROS!$D$25,'LISTA CELDA'!Y59)*'CELDA RESUMEN'!AH59 -> 0 | BK59: =IF(usaDistribucin2G3G="SI",PARAMETROS!$D$26,'LISTA CELDA'!Z59)*'CELDA RESUMEN'!AH59 -> 0 | BL59: =IF(usaDistribucin2G3G="SI",PARAMETROS!$E$25,0) -> 0 | BM59: =IF(usaDistribucin2G3G="SI",PARAMETROS!$E$26,'LISTA CELDA'!AA59)*'CELDA RESUMEN'!AI59 -> 0
B60: 53 | C60: URBANA | D60: PROVINCIA | E60: NOR ORIENTE | F60: ANCASH | G60: PROVINCIA194 | H60: DISTRITO927 | I60: 77 | J60: 4 | K60: 12 | L60: 22 | M60: 12 | N60: 3 | O60: IDCELL53 | P60: ID_LOCAL53 | Q60: 0 | R60: D | S60: MACRO | T60: FO | U60: 0.000198019802 | V60: 0.000198019802 | W60: 1 | X60: 1 | Y60: 0 | Z60: 0 | AA60: 0 | AB60: BSC27 | AC60: PROMEDIO | AD60: 1 | AE60: 1 | AF60: 1 | AG60: 0 | AH60: 0 | AI60: 0 | AJ60: 0 | AK60: PROMEDIO | AL60: 0 | AM60: 0 | AN60: 0 | AO60: 0 | AP60: 0 | AR60: PROMEDIO | AS60: 0 | AT60: 0 | AU60: 0 | AV60: 0 | AX60: D | AY60: 1.5 | AZ60: PROVINCIA194DISTRITO927 | BB60: ANCASHURBANA | BC60: ANCASHMACRO | BD60: PROVINCIA URBANA | BH60: =IF(usaDistribucin2G3G="SI",PARAMETROS!$C$25,'LISTA CELDA'!W60)*'CELDA RESUMEN'!AG60 -> 0.4 | BI60: =IF(usaDistribucin2G3G="SI",PARAMETROS!$C$26,'LISTA CELDA'!X60)*'CELDA RESUMEN'!AG60 -> 0.02 | BJ60: =IF(usaDistribucin2G3G="SI",PARAMETROS!$D$25,'LISTA CELDA'!Y60)*'CELDA RESUMEN'!AH60 -> 0 | BK60: =IF(usaDistribucin2G3G="SI",PARAMETROS!$D$26,'LISTA CELDA'!Z60)*'CELDA RESUMEN'!AH60 -> 0 | BL60: =IF(usaDistribucin2G3G="SI",PARAMETROS!$E$25,0) -> 0 | BM60: =IF(usaDistribucin2G3G="SI",PARAMETROS!$E$26,'LISTA CELDA'!AA60)*'CELDA RESUMEN'!AI60 -> 0
B61: 54 | C61: URBANA | D61: PROVINCIA | E61: NOR ORIENTE | F61: ANCASH | G61: PROVINCIA207 | H61: DISTRITO837 | I61: 77 | J61: 4 | K61: 12 | L61: 22 | M61: 12 | N61: 3 | O61: IDCELL54 | P61: ID_LOCAL54 | Q61: 0 | R61: D | S61: MACRO | T61: FO | U61: 0.000198019802 | V61: 0.000198019802 | W61: 0 | X61: 0.1 | Y61: 1 | Z61: 0.7 | AA61: 0.2 | AB61: BSC20 | AC61: PROMEDIO | AD61: 0 | AE61: 0 | AF61: 0 | AG61: 0 | AH61: 0 | AI61: 0 | AJ61: RNC16 | AK61: PROMEDIO | AL61: 1 | AM61: 0.8815384414 | AN61: 0.1045627723 | AO61: 0.005403422994 | AP61: 0.009134443846 | AQ61: RNC16 | AR61: PROMEDIO | AS61: 1 | AT61: 0.5 | AU61: 1 | AV61: 0.5 | AX61: D | AY61: 1.5 | AZ61: PROVINCIA207DISTRITO837 | BB61: ANCASHURBANA | BC61: ANCASHMACRO | BD61: PROVINCIA URBANA | BH61: =IF(usaDistribucin2G3G="SI",PARAMETROS!$C$25,'LISTA CELDA'!W61)*'CELDA RESUMEN'!AG61 -> 0 | BI61: =IF(usaDistribucin2G3G="SI",PARAMETROS!$C$26,'LISTA CELDA'!X61)*'CELDA RESUMEN'!AG61 -> 0 | BJ61: =IF(usaDistribucin2G3G="SI",PARAMETROS!$D$25,'LISTA CELDA'!Y61)*'CELDA RESUMEN'!AH61 -> 0.6 | BK61: =IF(usaDistribucin2G3G="SI",PARAMETROS!$D$26,'LISTA CELDA'!Z61)*'CELDA RESUMEN'!AH61 -> 0.33 | BL61: =IF(usaDistribucin2G3G="SI",PARAMETROS!$E$25,0) -> 0 | BM61: =IF(usaDistribucin2G3G="SI",PARAMETROS!$E$26,'LISTA CELDA'!AA61)*'CELDA RESUMEN'!AI61 -> 0.65
B62: 55 | C62: RURAL | D62: PROVINCIA | E62: NOR ORIENTE | F62: ANCASH | G62: PROVINCIA214 | H62: DISTRITO206 | I62: 77 | J62: 4 | K62: 12 | L62: 22 | M62: 12 | N62: 3 | O62: IDCELL55 | P62: ID_LOCAL55 | Q62: 0 | R62: D | S62: MACRO | T62: FO | U62: 0.000198019802 | V62: 0.000198019802 | W62: 1 | X62: 1 | Y62: 0 | Z62: 0 | AA62: 0 | AB62: BSC27 | AC62: PROMEDIO | AD62: 1 | AE62: 1 | AF62: 1 | AG62: 0 | AH62: 0 | AI62: 0 | AJ62: 0 | AK62: PROMEDIO | AL62: 0 | AM62: 0 | AN62: 0 | AO62: 0 | AP62: 0 | AR62: PROMEDIO | AS62: 0 | AT62: 0 | AU62: 0 | AV62: 0 | AX62: D | AY62: 1.5 | AZ62: PROVINCIA214DISTRITO206 | BB62: ANCASHRURAL | BC62: ANCASHMACRO | BD62: PROVINCIA RURAL | BH62: =IF(usaDistribucin2G3G="SI",PARAMETROS!$C$25,'LISTA CELDA'!W62)*'CELDA RESUMEN'!AG62 -> 0.4 | BI62: =IF(usaDistribucin2G3G="SI",PARAMETROS!$C$26,'LISTA CELDA'!X62)*'CELDA RESUMEN'!AG62 -> 0.02 | BJ62: =IF(usaDistribucin2G3G="SI",PARAMETROS!$D$25,'LISTA CELDA'!Y62)*'CELDA RESUMEN'!AH62 -> 0 | BK62: =IF(usaDistribucin2G3G="SI",PARAMETROS!$D$26,'LISTA CELDA'!Z62)*'CELDA RESUMEN'!AH62 -> 0 | BL62: =IF(usaDistribucin2G3G="SI",PARAMETROS!$E$25,0) -> 0 | BM62: =IF(usaDistribucin2G3G="SI",PARAMETROS!$E$26,'LISTA CELDA'!AA62)*'CELDA RESUMEN'!AI62 -> 0
B63: 56 | C63: RURAL | D63: PROVINCIA | E63: NOR ORIENTE | F63: ANCASH | G63: PROVINCIA188 | H63: DISTRITO939 | I63: 77 | J63: 4 | K63: 12 | L63: 22 | M63: 12 | N63: 3 | O63: IDCELL56 | P63: ID_LOCAL56 | Q63: 0 | R63: D | S63: MACRO | T63: FO | U63: 0.000198019802 | V63: 0.000198019802 | W63: 1 | X63: 1 | Y63: 0 | Z63: 0 | AA63: 0 | AB63: BSC27 | AC63: PROMEDIO | AD63: 1 | AE63: 1 | AF63: 1 | AG63: 0 | AH63: 0 | AI63: 0 | AJ63: 0 | AK63: PROMEDIO | AL63: 0 | AM63: 0 | AN63: 0 | AO63: 0 | AP63: 0 | AR63: PROMEDIO | AS63: 0 | AT63: 0 | AU63: 0 | AV63: 0 | AX63: D | AY63: 1.5 | AZ63: PROVINCIA188DISTRITO939 | BB63: ANCASHRURAL | BC63: ANCASHMACRO | BD63: PROVINCIA RURAL | BH63: =IF(usaDistribucin2G3G="SI",PARAMETROS!$C$25,'LISTA CELDA'!W63)*'CELDA RESUMEN'!AG63 -> 0.4 | BI63: =IF(usaDistribucin2G3G="SI",PARAMETROS!$C$26,'LISTA CELDA'!X63)*'CELDA RESUMEN'!AG63 -> 0.02 | BJ63: =IF(usaDistribucin2G3G="SI",PARAMETROS!$D$25,'LISTA CELDA'!Y63)*'CELDA RESUMEN'!AH63 -> 0 | BK63: =IF(usaDistribucin2G3G="SI",PARAMETROS!$D$26,'LISTA CELDA'!Z63)*'CELDA RESUMEN'!AH63 -> 0 | BL63: =IF(usaDistribucin2G3G="SI",PARAMETROS!$E$25,0) -> 0 | BM63: =IF(usaDistribucin2G3G="SI",PARAMETROS!$E$26,'LISTA CELDA'!AA63)*'CELDA RESUMEN'!AI63 -> 0
B64: 57 | C64: RURAL | D64: PROVINCIA | E64: NOR ORIENTE | F64: ANCASH | G64: PROVINCIA153 | H64: DISTRITO720 | I64: 77 | J64: 4 | K64: 12 | L64: 22 | M64: 12 | N64: 3 | O64: IDCELL57 | P64: ID_LOCAL57 | Q64: 0 | R64: D | S64: MACRO | T64: FO | U64: 0.000198019802 | V64: 0.000198019802 | W64: 1 | X64: 1 | Y64: 0 | Z64: 0 | AA64: 0 | AB64: BSC27 | AC64: PROMEDIO | AD64: 1 | AE64: 1 | AF64: 1 | AG64: 0 | AH64: 0 | AI64: 0 | AJ64: 0 | AK64: PROMEDIO | AL64: 0 | AM64: 0 | AN64: 0 | AO64: 0 | AP64: 0 | AR64: PROMEDIO | AS64: 0 | AT64: 0 | AU64: 0 | AV64: 0 | AX64: D | AY64: 1.5 | AZ64: PROVINCIA153DISTRITO720 | BB64: ANCASHRURAL | BC64: ANCASHMACRO | BD64: PROVINCIA RURAL | BH64: =IF(usaDistribucin2G3G="SI",PARAMETROS!$C$25,'LISTA CELDA'!W64)*'CELDA RESUMEN'!AG64 -> 0.4 | BI64: =IF(usaDistribucin2G3G="SI",PARAMETROS!$C$26,'LISTA CELDA'!X64)*'CELDA RESUMEN'!AG64 -> 0.02 | BJ64: =IF(usaDistribucin2G3G="SI",PARAMETROS!$D$25,'LISTA CELDA'!Y64)*'CELDA RESUMEN'!AH64 -> 0 | BK64: =IF(usaDistribucin2G3G="SI",PARAMETROS!$D$26,'LISTA CELDA'!Z64)*'CELDA RESUMEN'!AH64 -> 0 | BL64: =IF(usaDistribucin2G3G="SI",PARAMETROS!$E$25,0) -> 0 | BM64: =IF(usaDistribucin2G3G="SI",PARAMETROS!$E$26,'LISTA CELDA'!AA64)*'CELDA RESUMEN'!AI64 -> 0
B65: 58 | C65: RURAL | D65: PROVINCIA | E65: NOR ORIENTE | F65: ANCASH | G65: PROVINCIA59 | H65: DISTRITO1171 | I65: 77 | J65: 4 | K65: 12 | L65: 22 | M65: 12 | N65: 3 | O65: IDCELL58 | P65: ID_LOCAL58 | Q65: 0 | R65: D | S65: MACRO | T65: FO | U65: 0.000198019802 | V65: 0.000198019802 | W65: 1 | X65: 1 | Y65: 0 | Z65: 0 | AA65: 0 | AB65: BSC27 | AC65: PROMEDIO | AD65: 1 | AE65: 1 | AF65: 1 | AG65: 0 | AH65: 0 | AI65: 0 | AJ65: 0 | AK65: PROMEDIO | AL65: 0 | AM65: 0 | AN65: 0 | AO65: 0 | AP65: 0 | AR65: PROMEDIO | AS65: 0 | AT65: 0 | AU65: 0 | AV65: 0 | AX65: D | AY65: 1.5 | AZ65: PROVINCIA59DISTRITO1171 | BB65: ANCASHRURAL | BC65: ANCASHMACRO | BD65: PROVINCIA RURAL | BH65: =IF(usaDistribucin2G3G="SI",PARAMETROS!$C$25,'LISTA CELDA'!W65)*'CELDA RESUMEN'!AG65 -> 0.4 | BI65: =IF(usaDistribucin2G3G="SI",PARAMETROS!$C$26,'LISTA CELDA'!X65)*'CELDA RESUMEN'!AG65 -> 0.02 | BJ65: =IF(usaDistribucin2G3G="SI",PARAMETROS!$D$25,'LISTA CELDA'!Y65)*'CELDA RESUMEN'!AH65 -> 0 | BK65: =IF(usaDistribucin2G3G="SI",PARAMETROS!$D$26,'LISTA CELDA'!Z65)*'CELDA RESUMEN'!AH65 -> 0 | BL65: =IF(usaDistribucin2G3G="SI",PARAMETROS!$E$25,0) -> 0 | BM65: =IF(usaDistribucin2G3G="SI",PARAMETROS!$E$26,'LISTA CELDA'!AA65)*'CELDA RESUMEN'!AI65 -> 0
B66: 59 | C66: RURAL | D66: PROVINCIA | E66: NOR ORIENTE | F66: ANCASH | G66: PROVINCIA120 | H66: DISTRITO152 | I66: 77 | J66: 4 | K66: 12 | L66: 22 | M66: 12 | N66: 3 | O66: IDCELL59 | P66: ID_LOCAL59 | Q66: 0 | R66: D | S66: MACRO | T66: FO | U66: 0.000198019802 | V66: 0.000198019802 | W66: 1 | X66: 1 | Y66: 0 | Z66: 0 | AA66: 0 | AB66: BSC27 | AC66: PROMEDIO | AD66: 1 | AE66: 1 | AF66: 1 | AG66: 0 | AH66: 0 | AI66: 0 | AJ66: 0 | AK66: PROMEDIO | AL66: 0 | AM66: 0 | AN66: 0 | AO66: 0 | AP66: 0 | AR66: PROMEDIO | AS66: 0 | AT66: 0 | AU66: 0 | AV66: 0 | AX66: D | AY66: 1.5 | AZ66: PROVINCIA120DISTRITO152 | BB66: ANCASHRURAL | BC66: ANCASHMACRO | BD66: PROVINCIA RURAL | BH66: =IF(usaDistribucin2G3G="SI",PARAMETROS!$C$25,'LISTA CELDA'!W66)*'CELDA RESUMEN'!AG66 -> 0.4 | BI66: =IF(usaDistribucin2G3G="SI",PARAMETROS!$C$26,'LISTA CELDA'!X66)*'CELDA RESUMEN'!AG66 -> 0.02 | BJ66: =IF(usaDistribucin2G3G="SI",PARAMETROS!$D$25,'LISTA CELDA'!Y66)*'CELDA RESUMEN'!AH66 -> 0 | BK66: =IF(usaDistribucin2G3G="SI",PARAMETROS!$D$26,'LISTA CELDA'!Z66)*'CELDA RESUMEN'!AH66 -> 0 | BL66: =IF(usaDistribucin2G3G="SI",PARAMETROS!$E$25,0) -> 0 | BM66: =IF(usaDistribucin2G3G="SI",PARAMETROS!$E$26,'LISTA CELDA'!AA66)*'CELDA RESUMEN'!AI66 -> 0
B67: 60 | C67: RURAL | D67: PROVINCIA | E67: NOR ORIENTE | F67: ANCASH | G67: PROVINCIA21 | H67: DISTRITO796 | I67: 77 | J67: 4 | K67: 12 | L67: 22 | M67: 12 | N67: 3 | O67: IDCELL60 | P67: ID_LOCAL60 | Q67: 0 | R67: D | S67: MACRO | T67: FO | U67: 0.000198019802 | V67: 0.000198019802 | W67: 1 | X67: 1 | Y67: 0 | Z67: 0 | AA67: 0 | AB67: BSC27 | AC67: PROMEDIO | AD67: 1 | AE67: 1 | AF67: 1 | AG67: 0 | AH67: 0 | AI67: 0 | AJ67: 0 | AK67: PROMEDIO | AL67: 0 | AM67: 0 | AN67: 0 | AO67: 0 | AP67: 0 | AR67: PROMEDIO | AS67: 0 | AT67: 0 | AU67: 0 | AV67: 0 | AX67: D | AY67: 1.5 | AZ67: PROVINCIA21DISTRITO796 | BB67: ANCASHRURAL | BC67: ANCASHMACRO | BD67: PROVINCIA RURAL | BH67: =IF(usaDistribucin2G3G="SI",PARAMETROS!$C$25,'LISTA CELDA'!W67)*'CELDA RESUMEN'!AG67 -> 0.4 | BI67: =IF(usaDistribucin2G3G="SI",PARAMETROS!$C$26,'LISTA CELDA'!X67)*'CELDA RESUMEN'!AG67 -> 0.02 | BJ67: =IF(usaDistribucin2G3G="SI",PARAMETROS!$D$25,'LISTA CELDA'!Y67)*'CELDA RESUMEN'!AH67 -> 0 | BK67: =IF(usaDistribucin2G3G="SI",PARAMETROS!$D$26,'LISTA CELDA'!Z67)*'CELDA RESUMEN'!AH67 -> 0 | BL67: =IF(usaDistribucin2G3G="SI",PARAMETROS!$E$25,0) -> 0 | BM67: =IF(usaDistribucin2G3G="SI",PARAMETROS!$E$26,'LISTA CELDA'!AA67)*'CELDA RESUMEN'!AI67 -> 0
B68: 61 | C68: URBANA | D68: PROVINCIA | E68: NOR ORIENTE | F68: ANCASH | G68: PROVINCIA164 | H68: DISTRITO363 | I68: 77 | J68: 4 | K68: 12 | L68: 22 | M68: 12 | N68: 3 | O68: IDCELL61 | P68: ID_LOCAL61 | Q68: 0 | R68: D | S68: MACRO | T68: FO | U68: 0.000198019802 | V68: 0.000198019802 | W68: 1 | X68: 1 | Y68: 0 | Z68: 0 | AA68: 0 | AB68: BSC27 | AC68: PROMEDIO | AD68: 1 | AE68: 1 | AF68: 1 | AG68: 0 | AH68: 0 | AI68: 0 | AJ68: 0 | AK68: PROMEDIO | AL68: 0 | AM68: 0 | AN68: 0 | AO68: 0 | AP68: 0 | AR68: PROMEDIO | AS68: 0 | AT68: 0 | AU68: 0 | AV68: 0 | AX68: D | AY68: 1.5 | AZ68: PROVINCIA164DISTRITO363 | BB68: ANCASHURBANA | BC68: ANCASHMACRO | BD68: PROVINCIA URBANA | BH68: =IF(usaDistribucin2G3G="SI",PARAMETROS!$C$25,'LISTA CELDA'!W68)*'CELDA RESUMEN'!AG68 -> 0.4 | BI68: =IF(usaDistribucin2G3G="SI",PARAMETROS!$C$26,'LISTA CELDA'!X68)*'CELDA RESUMEN'!AG68 -> 0.02 | BJ68: =IF(usaDistribucin2G3G="SI",PARAMETROS!$D$25,'LISTA CELDA'!Y68)*'CELDA RESUMEN'!AH68 -> 0 | BK68: =IF(usaDistribucin2G3G="SI",PARAMETROS!$D$26,'LISTA CELDA'!Z68)*'CELDA RESUMEN'!AH68 -> 0 | BL68: =IF(usaDistribucin2G3G="SI",PARAMETROS!$E$25,0) -> 0 | BM68: =IF(usaDistribucin2G3G="SI",PARAMETROS!$E$26,'LISTA CELDA'!AA68)*'CELDA RESUMEN'!AI68 -> 0
B69: 62 | C69: RURAL | D69: PROVINCIA | E69: NOR ORIENTE | F69: ANCASH | G69: PROVINCIA239 | H69: DISTRITO1050 | I69: 77 | J69: 4 | K69: 12 | L69: 22 | M69: 12 | N69: 3 | O69: IDCELL62 | P69: ID_LOCAL62 | Q69: 0 | R69: D | S69: MACRO | T69: FO | U69: 0.000198019802 | V69: 0.000198019802 | W69: 0.71 | X69: 0.1 | Y69: 0.39 | Z69: 0.7 | AA69: 0.2 | AB69: BSC12 | AC69: PROMEDIO | AD69: 1 | AE69: 1 | AF69: 1 | AG69: 0 | AH69: 0 | AI69: 0 | AJ69: RNC16 | AK69: PROMEDIO | AL69: 1 | AM69: 0.8815384414 | AN69: 0.1045627723 | AO69: 0.005403422994 | AP69: 0.009134443846 | AQ69: RNC16 | AR69: PROMEDIO | AS69: 1 | AT69: 0.5 | AU69: 1 | AV69: 0.5 | AX69: D | AY69: 1.5 | AZ69: PROVINCIA239DISTRITO1050 | BB69: ANCASHRURAL | BC69: ANCASHMACRO | BD69: PROVINCIA RURAL | BH69: =IF(usaDistribucin2G3G="SI",PARAMETROS!$C$25,'LISTA CELDA'!W69)*'CELDA RESUMEN'!AG69 -> 0.4 | BI69: =IF(usaDistribucin2G3G="SI",PARAMETROS!$C$26,'LISTA CELDA'!X69)*'CELDA RESUMEN'!AG69 -> 0.02 | BJ69: =IF(usaDistribucin2G3G="SI",PARAMETROS!$D$25,'LISTA CELDA'!Y69)*'CELDA RESUMEN'!AH69 -> 0.6 | BK69: =IF(usaDistribucin2G3G="SI",PARAMETROS!$D$26,'LISTA CELDA'!Z69)*'CELDA RESUMEN'!AH69 -> 0.33 | BL69: =IF(usaDistribucin2G3G="SI",PARAMETROS!$E$25,0) -> 0 | BM69: =IF(usaDistribucin2G3G="SI",PARAMETROS!$E$26,'LISTA CELDA'!AA69)*'CELDA RESUMEN'!AI69 -> 0.65
B70: 63 | C70: RURAL | D70: PROVINCIA | E70: NOR ORIENTE | F70: ANCASH | G70: PROVINCIA21 | H70: DISTRITO693 | I70: 77 | J70: 4 | K70: 12 | L70: 22 | M70: 12 | N70: 3 | O70: IDCELL63 | P70: ID_LOCAL63 | Q70: 0 | R70: D | S70: MACRO | T70: FO | U70: 0.000198019802 | V70: 0.000198019802 | W70: 1 | X70: 1 | Y70: 0 | Z70: 0 | AA70: 0 | AB70: BSC27 | AC70: PROMEDIO | AD70: 1 | AE70: 1 | AF70: 1 | AG70: 0 | AH70: 0 | AI70: 0 | AJ70: 0 | AK70: PROMEDIO | AL70: 0 | AM70: 0 | AN70: 0 | AO70: 0 | AP70: 0 | AR70: PROMEDIO | AS70: 0 | AT70: 0 | AU70: 0 | AV70: 0 | AX70: D | AY70: 1.5 | AZ70: PROVINCIA21DISTRITO693 | BB70: ANCASHRURAL | BC70: ANCASHMACRO | BD70: PROVINCIA RURAL | BH70: =IF(usaDistribucin2G3G="SI",PARAMETROS!$C$25,'LISTA CELDA'!W70)*'CELDA RESUMEN'!AG70 -> 0.4 | BI70: =IF(usaDistribucin2G3G="SI",PARAMETROS!$C$26,'LISTA CELDA'!X70)*'CELDA RESUMEN'!AG70 -> 0.02 | BJ70: =IF(usaDistribucin2G3G="SI",PARAMETROS!$D$25,'LISTA CELDA'!Y70)*'CELDA RESUMEN'!AH70 -> 0 | BK70: =IF(usaDistribucin2G3G="SI",PARAMETROS!$D$26,'LISTA CELDA'!Z70)*'CELDA RESUMEN'!AH70 -> 0 | BL70: =IF(usaDistribucin2G3G="SI",PARAMETROS!$E$25,0) -> 0 | BM70: =IF(usaDistribucin2G3G="SI",PARAMETROS!$E$26,'LISTA CELDA'!AA70)*'CELDA RESUMEN'!AI70 -> 0
B71: 64 | C71: RURAL | D71: PROVINCIA | E71: NOR ORIENTE | F71: ANCASH | G71: PROVINCIA194 | H71: DISTRITO546 | I71: 77 | J71: 4 | K71: 12 | L71: 22 | M71: 12 | N71: 3 | O71: IDCELL64 | P71: ID_LOCAL64 | Q71: 0 | R71: D | S71: MACRO | T71: FO | U71: 0.000198019802 | V71: 0.000198019802 | W71: 1 | X71: 1 | Y71: 0 | Z71: 0 | AA71: 0 | AB71: BSC27 | AC71: PROMEDIO | AD71: 1 | AE71: 1 | AF71: 1 | AG71: 0 | AH71: 0 | AI71: 0 | AJ71: 0 | AK71: PROMEDIO | AL71: 0 | AM71: 0 | AN71: 0 | AO71: 0 | AP71: 0 | AR71: PROMEDIO | AS71: 0 | AT71: 0 | AU71: 0 | AV71: 0 | AX71: D | AY71: 1.5 | AZ71: PROVINCIA194DISTRITO546 | BB71: ANCASHRURAL | BC71: ANCASHMACRO | BD71: PROVINCIA RURAL | BH71: =IF(usaDistribucin2G3G="SI",PARAMETROS!$C$25,'LISTA CELDA'!W71)*'CELDA RESUMEN'!AG71 -> 0.4 | BI71: =IF(usaDistribucin2G3G="SI",PARAMETROS!$C$26,'LISTA CELDA'!X71)*'CELDA RESUMEN'!AG71 -> 0.02 | BJ71: =IF(usaDistribucin2G3G="SI",PARAMETROS!$D$25,'LISTA CELDA'!Y71)*'CELDA RESUMEN'!AH71 -> 0 | BK71: =IF(usaDistribucin2G3G="SI",PARAMETROS!$D$26,'LISTA CELDA'!Z71)*'CELDA RESUMEN'!AH71 -> 0 | BL71: =IF(usaDistribucin2G3G="SI",PARAMETROS!$E$25,0) -> 0 | BM71: =IF(usaDistribucin2G3G="SI",PARAMETROS!$E$26,'LISTA CELDA'!AA71)*'CELDA RESUMEN'!AI71 -> 0
B72: 65 | C72: RURAL | D72: PROVINCIA | E72: NOR ORIENTE | F72: ANCASH | G72: PROVINCIA120 | H72: DISTRITO458 | I72: 77 | J72: 4 | K72: 12 | L72: 22 | M72: 12 | N72: 3 | O72: IDCELL65 | P72: ID_LOCAL65 | Q72: 0 | R72: D | S72: MACRO | T72: FO | U72: 0.000198019802 | V72: 0.000198019802 | W72: 1 | X72: 1 | Y72: 0 | Z72: 0 | AA72: 0 | AB72: BSC12 | AC72: PROMEDIO | AD72: 1 | AE72: 1 | AF72: 1 | AG72: 0 | AH72: 0 | AI72: 0 | AJ72: 0 | AK72: PROMEDIO | AL72: 0 | AM72: 0 | AN72: 0 | AO72: 0 | AP72: 0 | AR72: PROMEDIO | AS72: 0 | AT72: 0 | AU72: 0 | AV72: 0 | AX72: D | AY72: 1.5 | AZ72: PROVINCIA120DISTRITO458 | BB72: ANCASHRURAL | BC72: ANCASHMACRO | BD72: PROVINCIA RURAL | BH72: =IF(usaDistribucin2G3G="SI",PARAMETROS!$C$25,'LISTA CELDA'!W72)*'CELDA RESUMEN'!AG72 -> 0.4 | BI72: =IF(usaDistribucin2G3G="SI",PARAMETROS!$C$26,'LISTA CELDA'!X72)*'CELDA RESUMEN'!AG72 -> 0.02 | BJ72: =IF(usaDistribucin2G3G="SI",PARAMETROS!$D$25,'LISTA CELDA'!Y72)*'CELDA RESUMEN'!AH72 -> 0 | BK72: =IF(usaDistribucin2G3G="SI",PARAMETROS!$D$26,'LISTA CELDA'!Z72)*'CELDA RESUMEN'!AH72 -> 0 | BL72: =IF(usaDistribucin2G3G="SI",PARAMETROS!$E$25,0) -> 0 | BM72: =IF(usaDistribucin2G3G="SI",PARAMETROS!$E$26,'LISTA CELDA'!AA72)*'CELDA RESUMEN'!AI72 -> 0
B73: 66 | C73: URBANA | D73: PROVINCIA | E73: NOR ORIENTE | F73: ANCASH | G73: PROVINCIA214 | H73: DISTRITO1047 | I73: 77 | J73: 4 | K73: 12 | L73: 22 | M73: 12 | N73: 3 | O73: IDCELL66 | P73: ID_LOCAL66 | Q73: 0 | R73: D | S73: MACRO | T73: FO | U73: 0.000198019802 | V73: 0.000198019802 | W73: 1 | X73: 1 | Y73: 0 | Z73: 0 | AA73: 0 | AB73: BSC12 | AC73: PROMEDIO | AD73: 1 | AE73: 1 | AF73: 1 | AG73: 0 | AH73: 0 | AI73: 0 | AJ73: 0 | AK73: PROMEDIO | AL73: 0 | AM73: 0 | AN73: 0 | AO73: 0 | AP73: 0 | AR73: PROMEDIO | AS73: 0 | AT73: 0 | AU73: 0 | AV73: 0 | AX73: D | AY73: 1.5 | AZ73: PROVINCIA214DISTRITO1047 | BB73: ANCASHURBANA | BC73: ANCASHMACRO | BD73: PROVINCIA URBANA | BH73: =IF(usaDistribucin2G3G="SI",PARAMETROS!$C$25,'LISTA CELDA'!W73)*'CELDA RESUMEN'!AG73 -> 0.4 | BI73: =IF(usaDistribucin2G3G="SI",PARAMETROS!$C$26,'LISTA CELDA'!X73)*'CELDA RESUMEN'!AG73 -> 0.02 | BJ73: =IF(usaDistribucin2G3G="SI",PARAMETROS!$D$25,'LISTA CELDA'!Y73)*'CELDA RESUMEN'!AH73 -> 0 | BK73: =IF(usaDistribucin2G3G="SI",PARAMETROS!$D$26,'LISTA CELDA'!Z73)*'CELDA RESUMEN'!AH73 -> 0 | BL73: =IF(usaDistribucin2G3G="SI",PARAMETROS!$E$25,0) -> 0 | BM73: =IF(usaDistribucin2G3G="SI",PARAMETROS!$E$26,'LISTA CELDA'!AA73)*'CELDA RESUMEN'!AI73 -> 0
B74: 67 | C74: RURAL | D74: PROVINCIA | E74: NOR ORIENTE | F74: ANCASH | G74: PROVINCIA194 | H74: DISTRITO690 | I74: 77 | J74: 4 | K74: 12 | L74: 22 | M74: 12 | N74: 3 | O74: IDCELL67 | P74: ID_LOCAL67 | Q74: 0 | R74: D | S74: MACRO | T74: FO | U74: 0.000198019802 | V74: 0.000198019802 | W74: 1 | X74: 1 | Y74: 0 | Z74: 0 | AA74: 0 | AB74: BSC27 | AC74: PROMEDIO | AD74: 1 | AE74: 1 | AF74: 1 | AG74: 0 | AH74: 0 | AI74: 0 | AJ74: 0 | AK74: PROMEDIO | AL74: 0 | AM74: 0 | AN74: 0 | AO74: 0 | AP74: 0 | AR74: PROMEDIO | AS74: 0 | AT74: 0 | AU74: 0 | AV74: 0 | AX74: D | AY74: 1.5 | AZ74: PROVINCIA194DISTRITO690 | BB74: ANCASHRURAL | BC74: ANCASHMACRO | BD74: PROVINCIA RURAL | BH74: =IF(usaDistribucin2G3G="SI",PARAMETROS!$C$25,'LISTA CELDA'!W74)*'CELDA RESUMEN'!AG74 -> 0.4 | BI74: =IF(usaDistribucin2G3G="SI",PARAMETROS!$C$26,'LISTA CELDA'!X74)*'CELDA RESUMEN'!AG74 -> 0.02 | BJ74: =IF(usaDistribucin2G3G="SI",PARAMETROS!$D$25,'LISTA CELDA'!Y74)*'CELDA RESUMEN'!AH74 -> 0 | BK74: =IF(usaDistribucin2G3G="SI",PARAMETROS!$D$26,'LISTA CELDA'!Z74)*'CELDA RESUMEN'!AH74 -> 0 | BL74: =IF(usaDistribucin2G3G="SI",PARAMETROS!$E$25,0) -> 0 | BM74: =IF(usaDistribucin2G3G="SI",PARAMETROS!$E$26,'LISTA CELDA'!AA74)*'CELDA RESUMEN'!AI74 -> 0
B75: 68 | C75: URBANA | D75: PROVINCIA | E75: NOR ORIENTE | F75: ANCASH | G75: PROVINCIA194 | H75: DISTRITO759 | I75: 77 | J75: 4 | K75: 12 | L75: 22 | M75: 12 | N75: 3 | O75: IDCELL68 | P75: ID_LOCAL68 | Q75: 0 | R75: D | S75: MACRO | T75: FO | U75: 0.000198019802 | V75: 0.000198019802 | W75: 1 | X75: 1 | Y75: 0 | Z75: 0 | AA75: 0 | AB75: BSC27 | AC75: PROMEDIO | AD75: 1 | AE75: 1 | AF75: 1 | AG75: 0 | AH75: 0 | AI75: 0 | AJ75: 0 | AK75: PROMEDIO | AL75: 0 | AM75: 0 | AN75: 0 | AO75: 0 | AP75: 0 | AR75: PROMEDIO | AS75: 0 | AT75: 0 | AU75: 0 | AV75: 0 | AX75: D | AY75: 1.5 | AZ75: PROVINCIA194DISTRITO759 | BB75: ANCASHURBANA | BC75: ANCASHMACRO | BD75: PROVINCIA URBANA | BH75: =IF(usaDistribucin2G3G="SI",PARAMETROS!$C$25,'LISTA CELDA'!W75)*'CELDA RESUMEN'!AG75 -> 0.4 | BI75: =IF(usaDistribucin2G3G="SI",PARAMETROS!$C$26,'LISTA CELDA'!X75)*'CELDA RESUMEN'!AG75 -> 0.02 | BJ75: =IF(usaDistribucin2G3G="SI",PARAMETROS!$D$25,'LISTA CELDA'!Y75)*'CELDA RESUMEN'!AH75 -> 0 | BK75: =IF(usaDistribucin2G3G="SI",PARAMETROS!$D$26,'LISTA CELDA'!Z75)*'CELDA RESUMEN'!AH75 -> 0 | BL75: =IF(usaDistribucin2G3G="SI",PARAMETROS!$E$25,0) -> 0 | BM75: =IF(usaDistribucin2G3G="SI",PARAMETROS!$E$26,'LISTA CELDA'!AA75)*'CELDA RESUMEN'!AI75 -> 0
B76: 69 | C76: URBANA | D76: PROVINCIA | E76: NOR ORIENTE | F76: ANCASH | G76: PROVINCIA119 | H76: DISTRITO503 | I76: 77 | J76: 4 | K76: 12 | L76: 22 | M76: 12 | N76: 3 | O76: IDCELL69 | P76: ID_LOCAL69 | Q76: 0 | R76: D | S76: MACRO | T76: FO | U76: 0.000198019802 | V76: 0.000198019802 | W76: 1 | X76: 1 | Y76: 0 | Z76: 0 | AA76: 0 | AB76: BSC12 | AC76: PROMEDIO | AD76: 1 | AE76: 1 | AF76: 1 | AG76: 0 | AH76: 0 | AI76: 0 | AJ76: 0 | AK76: PROMEDIO | AL76: 0 | AM76: 0 | AN76: 0 | AO76: 0 | AP76: 0 | AR76: PROMEDIO | AS76: 0 | AT76: 0 | AU76: 0 | AV76: 0 | AX76: D | AY76: 1.5 | AZ76: PROVINCIA119DISTRITO503 | BB76: ANCASHURBANA | BC76: ANCASHMACRO | BD76: PROVINCIA URBANA | BH76: =IF(usaDistribucin2G3G="SI",PARAMETROS!$C$25,'LISTA CELDA'!W76)*'CELDA RESUMEN'!AG76 -> 0.4 | BI76: =IF(usaDistribucin2G3G="SI",PARAMETROS!$C$26,'LISTA CELDA'!X76)*'CELDA RESUMEN'!AG76 -> 0.02 | BJ76: =IF(usaDistribucin2G3G="SI",PARAMETROS!$D$25,'LISTA CELDA'!Y76)*'CELDA RESUMEN'!AH76 -> 0 | BK76: =IF(usaDistribucin2G3G="SI",PARAMETROS!$D$26,'LISTA CELDA'!Z76)*'CELDA RESUMEN'!AH76 -> 0 | BL76: =IF(usaDistribucin2G3G="SI",PARAMETROS!$E$25,0) -> 0 | BM76: =IF(usaDistribucin2G3G="SI",PARAMETROS!$E$26,'LISTA CELDA'!AA76)*'CELDA RESUMEN'!AI76 -> 0
B77: 70 | C77: URBANA | D77: PROVINCIA | E77: NOR ORIENTE | F77: ANCASH | G77: PROVINCIA120 | H77: DISTRITO1174 | I77: 77 | J77: 4 | K77: 12 | L77: 22 | M77: 12 | N77: 3 | O77: IDCELL70 | P77: ID_LOCAL70 | Q77: 0 | R77: D | S77: MACRO | T77: FO | U77: 0.000198019802 | V77: 0.000198019802 | W77: 1 | X77: 1 | Y77: 0 | Z77: 0 | AA77: 0 | AB77: BSC27 | AC77: PROMEDIO | AD77: 1 | AE77: 1 | AF77: 1 | AG77: 0 | AH77: 0 | AI77: 0 | AJ77: 0 | AK77: PROMEDIO | AL77: 0 | AM77: 0 | AN77: 0 | AO77: 0 | AP77: 0 | AR77: PROMEDIO | AS77: 0 | AT77: 0 | AU77: 0 | AV77: 0 | AX77: D | AY77: 1.5 | AZ77: PROVINCIA120DISTRITO1174 | BB77: ANCASHURBANA | BC77: ANCASHMACRO | BD77: PROVINCIA URBANA | BH77: =IF(usaDistribucin2G3G="SI",PARAMETROS!$C$25,'LISTA CELDA'!W77)*'CELDA RESUMEN'!AG77 -> 0.4 | BI77: =IF(usaDistribucin2G3G="SI",PARAMETROS!$C$26,'LISTA CELDA'!X77)*'CELDA RESUMEN'!AG77 -> 0.02 | BJ77: =IF(usaDistribucin2G3G="SI",PARAMETROS!$D$25,'LISTA CELDA'!Y77)*'CELDA RESUMEN'!AH77 -> 0 | BK77: =IF(usaDistribucin2G3G="SI",PARAMETROS!$D$26,'LISTA CELDA'!Z77)*'CELDA RESUMEN'!AH77 -> 0 | BL77: =IF(usaDistribucin2G3G="SI",PARAMETROS!$E$25,0) -> 0 | BM77: =IF(usaDistribucin2G3G="SI",PARAMETROS!$E$26,'LISTA CELDA'!AA77)*'CELDA RESUMEN'!AI77 -> 0
B78: 71 | C78: RURAL | D78: PROVINCIA | E78: NOR ORIENTE | F78: ANCASH | G78: PROVINCIA120 | H78: DISTRITO1191 | I78: 77 | J78: 4 | K78: 12 | L78: 22 | M78: 12 | N78: 3 | O78: IDCELL71 | P78: ID_LOCAL71 | Q78: 0 | R78: D | S78: MACRO | T78: FO | U78: 0.000198019802 | V78: 0.000198019802 | W78: 0.71 | X78: 0.1 | Y78: 0.39 | Z78: 0.7 | AA78: 0.2 | AB78: BSC27 | AC78: PROMEDIO | AD78: 0 | AE78: 0 | AF78: 0 | AG78: 1 | AH78: 1 | AI78: 1 | AJ78: RNC16 | AK78: PROMEDIO | AL78: 1 | AM78: 0.8815384414 | AN78: 0.1045627723 | AO78: 0.005403422994 | AP78: 0.009134443846 | AQ78: RNC16 | AR78: PROMEDIO | AS78: 1 | AT78: 0.5 | AU78: 1 | AV78: 0.5 | AX78: D | AY78: 1.5 | AZ78: PROVINCIA120DISTRITO1191 | BB78: ANCASHRURAL | BC78: ANCASHMACRO | BD78: PROVINCIA RURAL | BH78: =IF(usaDistribucin2G3G="SI",PARAMETROS!$C$25,'LISTA CELDA'!W78)*'CELDA RESUMEN'!AG78 -> 0.4 | BI78: =IF(usaDistribucin2G3G="SI",PARAMETROS!$C$26,'LISTA CELDA'!X78)*'CELDA RESUMEN'!AG78 -> 0.02 | BJ78: =IF(usaDistribucin2G3G="SI",PARAMETROS!$D$25,'LISTA CELDA'!Y78)*'CELDA RESUMEN'!AH78 -> 0.6 | BK78: =IF(usaDistribucin2G3G="SI",PARAMETROS!$D$26,'LISTA CELDA'!Z78)*'CELDA RESUMEN'!AH78 -> 0.33 | BL78: =IF(usaDistribucin2G3G="SI",PARAMETROS!$E$25,0) -> 0 | BM78: =IF(usaDistribucin2G3G="SI",PARAMETROS!$E$26,'LISTA CELDA'!AA78)*'CELDA RESUMEN'!AI78 -> 0.65
B79: 72 | C79: URBANA | D79: PROVINCIA | E79: NOR ORIENTE | F79: ANCASH | G79: PROVINCIA120 | H79: DISTRITO1174 | I79: 77 | J79: 4 | K79: 12 | L79: 22 | M79: 12 | N79: 3 | O79: IDCELL72 | P79: ID_LOCAL72 | Q79: 0 | R79: D | S79: MACRO | T79: FO | U79: 0.000198019802 | V79: 0.000198019802 | W79: 0.71 | X79: 0.1 | Y79: 0.39 | Z79: 0.7 | AA79: 0.2 | AB79: BSC27 | AC79: PROMEDIO | AD79: 1 | AE79: 0.2466904903 | AF79: 0.2466904903 | AG79: 1 | AH79: 0.7533095097 | AI79: 0.7533095097 | AJ79: RNC16 | AK79: PROMEDIO | AL79: 1 | AM79: 0.8815384414 | AN79: 0.1045627723 | AO79: 0.005403422994 | AP79: 0.009134443846 | AQ79: RNC16 | AR79: PROMEDIO | AS79: 1 | AT79: 0.5 | AU79: 1 | AV79: 0.5 | AX79: D | AY79: 1.5 | AZ79: PROVINCIA120DISTRITO1174 | BB79: ANCASHURBANA | BC79: ANCASHMACRO | BD79: PROVINCIA URBANA | BH79: =IF(usaDistribucin2G3G="SI",PARAMETROS!$C$25,'LISTA CELDA'!W79)*'CELDA RESUMEN'!AG79 -> 0.4 | BI79: =IF(usaDistribucin2G3G="SI",PARAMETROS!$C$26,'LISTA CELDA'!X79)*'CELDA RESUMEN'!AG79 -> 0.02 | BJ79: =IF(usaDistribucin2G3G="SI",PARAMETROS!$D$25,'LISTA CELDA'!Y79)*'CELDA RESUMEN'!AH79 -> 0.6 | BK79: =IF(usaDistribucin2G3G="SI",PARAMETROS!$D$26,'LISTA CELDA'!Z79)*'CELDA RESUMEN'!AH79 -> 0.33 | BL79: =IF(usaDistribucin2G3G="SI",PARAMETROS!$E$25,0) -> 0 | BM79: =IF(usaDistribucin2G3G="SI",PARAMETROS!$E$26,'LISTA CELDA'!AA79)*'CELDA RESUMEN'!AI79 -> 0.65
B80: 73 | C80: RURAL | D80: PROVINCIA | E80: NOR ORIENTE | F80: ANCASH | G80: PROVINCIA119 | H80: DISTRITO573 | I80: 77 | J80: 4 | K80: 12 | L80: 22 | M80: 12 | N80: 3 | O80: IDCELL73 | P80: ID_LOCAL73 | Q80: 0 | R80: D | S80: MACRO | T80: FO | U80: 0.000198019802 | V80: 0.000198019802 | W80: 0.71 | X80: 0.1 | Y80: 0.39 | Z80: 0.7 | AA80: 0.2 | AB80: BSC27 | AC80: PROMEDIO | AD80: 0 | AE80: 0 | AF80: 0 | AG80: 1 | AH80: 1 | AI80: 1 | AJ80: RNC16 | AK80: PROMEDIO | AL80: 1 | AM80: 0.8815384414 | AN80: 0.1045627723 | AO80: 0.005403422994 | AP80: 0.009134443846 | AQ80: RNC16 | AR80: PROMEDIO | AS80: 1 | AT80: 0.5 | AU80: 1 | AV80: 0.5 | AX80: D | AY80: 1.5 | AZ80: PROVINCIA119DISTRITO573 | BB80: ANCASHRURAL | BC80: ANCASHMACRO | BD80: PROVINCIA RURAL | BH80: =IF(usaDistribucin2G3G="SI",PARAMETROS!$C$25,'LISTA CELDA'!W80)*'CELDA RESUMEN'!AG80 -> 0.4 | BI80: =IF(usaDistribucin2G3G="SI",PARAMETROS!$C$26,'LISTA CELDA'!X80)*'CELDA RESUMEN'!AG80 -> 0.02 | BJ80: =IF(usaDistribucin2G3G="SI",PARAMETROS!$D$25,'LISTA CELDA'!Y80)*'CELDA RESUMEN'!AH80 -> 0.6 | BK80: =IF(usaDistribucin2G3G="SI",PARAMETROS!$D$26,'LISTA CELDA'!Z80)*'CELDA RESUMEN'!AH80 -> 0.33 | BL80: =IF(usaDistribucin2G3G="SI",PARAMETROS!$E$25,0) -> 0 | BM80: =IF(usaDistribucin2G3G="SI",PARAMETROS!$E$26,'LISTA CELDA'!AA80)*'CELDA RESUMEN'!AI80 -> 0.65
B81: 74 | C81: RURAL | D81: PROVINCIA | E81: NOR ORIENTE | F81: ANCASH | G81: PROVINCIA120 | H81: DISTRITO1174 | I81: 77 | J81: 4 | K81: 12 | L81: 22 | M81: 12 | N81: 3 | O81: IDCELL74 | P81: ID_LOCAL74 | Q81: 0 | R81: D | S81: MACRO | T81: FO | U81: 0.000198019802 | V81: 0.000198019802 | W81: 0.71 | X81: 0.1 | Y81: 0.39 | Z81: 0.7 | AA81: 0.2 | AB81: BSC27 | AC81: PROMEDIO | AD81: 1 | AE81: 0.909082086 | AF81: 0.909082086 | AG81: 1 | AH81: 0.09091791399 | AI81: 0.09091791399 | AJ81: RNC16 | AK81: PROMEDIO | AL81: 1 | AM81: 0.8815384414 | AN81: 0.1045627723 | AO81: 0.005403422994 | AP81: 0.009134443846 | AQ81: RNC16 | AR81: PROMEDIO | AS81: 1 | AT81: 0.5 | AU81: 1 | AV81: 0.5 | AX81: D | AY81: 1.5 | AZ81: PROVINCIA120DISTRITO1174 | BB81: ANCASHRURAL | BC81: ANCASHMACRO | BD81: PROVINCIA RURAL | BH81: =IF(usaDistribucin2G3G="SI",PARAMETROS!$C$25,'LISTA CELDA'!W81)*'CELDA RESUMEN'!AG81 -> 0.4 | BI81: =IF(usaDistribucin2G3G="SI",PARAMETROS!$C$26,'LISTA CELDA'!X81)*'CELDA RESUMEN'!AG81 -> 0.02 | BJ81: =IF(usaDistribucin2G3G="SI",PARAMETROS!$D$25,'LISTA CELDA'!Y81)*'CELDA RESUMEN'!AH81 -> 0.6 | BK81: =IF(usaDistribucin2G3G="SI",PARAMETROS!$D$26,'LISTA CELDA'!Z81)*'CELDA RESUMEN'!AH81 -> 0.33 | BL81: =IF(usaDistribucin2G3G="SI",PARAMETROS!$E$25,0) -> 0 | BM81: =IF(usaDistribucin2G3G="SI",PARAMETROS!$E$26,'LISTA CELDA'!AA81)*'CELDA RESUMEN'!AI81 -> 0.65
B82: 75 | C82: RURAL | D82: PROVINCIA | E82: NOR ORIENTE | F82: ANCASH | G82: PROVINCIA89 | H82: DISTRITO15 | I82: 77 | J82: 4 | K82: 12 | L82: 22 | M82: 12 | N82: 3 | O82: IDCELL75 | P82: ID_LOCAL75 | Q82: 0 | R82: D | S82: MACRO | T82: FO | U82: 0.000198019802 | V82: 0.000198019802 | W82: 1 | X82: 1 | Y82: 0 | Z82: 0 | AA82: 0 | AB82: BSC27 | AC82: PROMEDIO | AD82: 1 | AE82: 1 | AF82: 1 | AG82: 0 | AH82: 0 | AI82: 0 | AJ82: 0 | AK82: PROMEDIO | AL82: 0 | AM82: 0 | AN82: 0 | AO82: 0 | AP82: 0 | AR82: PROMEDIO | AS82: 0 | AT82: 0 | AU82: 0 | AV82: 0 | AX82: D | AY82: 1.5 | AZ82: PROVINCIA89DISTRITO15 | BB82: ANCASHRURAL | BC82: ANCASHMACRO | BD82: PROVINCIA RURAL | BH82: =IF(usaDistribucin2G3G="SI",PARAMETROS!$C$25,'LISTA CELDA'!W82)*'CELDA RESUMEN'!AG82 -> 0.4 | BI82: =IF(usaDistribucin2G3G="SI",PARAMETROS!$C$26,'LISTA CELDA'!X82)*'CELDA RESUMEN'!AG82 -> 0.02 | BJ82: =IF(usaDistribucin2G3G="SI",PARAMETROS!$D$25,'LISTA CELDA'!Y82)*'CELDA RESUMEN'!AH82 -> 0 | BK82: =IF(usaDistribucin2G3G="SI",PARAMETROS!$D$26,'LISTA CELDA'!Z82)*'CELDA RESUMEN'!AH82 -> 0 | BL82: =IF(usaDistribucin2G3G="SI",PARAMETROS!$E$25,0) -> 0 | BM82: =IF(usaDistribucin2G3G="SI",PARAMETROS!$E$26,'LISTA CELDA'!AA82)*'CELDA RESUMEN'!AI82 -> 0
B83: 76 | C83: RURAL | D83: PROVINCIA | E83: NOR ORIENTE | F83: ANCASH | G83: PROVINCIA89 | H83: DISTRITO380 | I83: 77 | J83: 4 | K83: 12 | L83: 22 | M83: 12 | N83: 3 | O83: IDCELL76 | P83: ID_LOCAL76 | Q83: 0 | R83: D | S83: MACRO | T83: FO | U83: 0.000198019802 | V83: 0.000198019802 | W83: 1 | X83: 1 | Y83: 0 | Z83: 0 | AA83: 0 | AB83: BSC27 | AC83: PROMEDIO | AD83: 1 | AE83: 1 | AF83: 1 | AG83: 0 | AH83: 0 | AI83: 0 | AJ83: 0 | AK83: PROMEDIO | AL83: 0 | AM83: 0 | AN83: 0 | AO83: 0 | AP83: 0 | AR83: PROMEDIO | AS83: 0 | AT83: 0 | AU83: 0 | AV83: 0 | AX83: D | AY83: 1.5 | AZ83: PROVINCIA89DISTRITO380 | BB83: ANCASHRURAL | BC83: ANCASHMACRO | BD83: PROVINCIA RURAL | BH83: =IF(usaDistribucin2G3G="SI",PARAMETROS!$C$25,'LISTA CELDA'!W83)*'CELDA RESUMEN'!AG83 -> 0.4 | BI83: =IF(usaDistribucin2G3G="SI",PARAMETROS!$C$26,'LISTA CELDA'!X83)*'CELDA RESUMEN'!AG83 -> 0.02 | BJ83: =IF(usaDistribucin2G3G="SI",PARAMETROS!$D$25,'LISTA CELDA'!Y83)*'CELDA RESUMEN'!AH83 -> 0 | BK83: =IF(usaDistribucin2G3G="SI",PARAMETROS!$D$26,'LISTA CELDA'!Z83)*'CELDA RESUMEN'!AH83 -> 0 | BL83: =IF(usaDistribucin2G3G="SI",PARAMETROS!$E$25,0) -> 0 | BM83: =IF(usaDistribucin2G3G="SI",PARAMETROS!$E$26,'LISTA CELDA'!AA83)*'CELDA RESUMEN'!AI83 -> 0
B84: 77 | C84: RURAL | D84: PROVINCIA | E84: NOR ORIENTE | F84: ANCASH | G84: PROVINCIA174 | H84: DISTRITO130 | I84: 77 | J84: 4 | K84: 12 | L84: 22 | M84: 12 | N84: 3 | O84: IDCELL77 | P84: ID_LOCAL77 | Q84: 0 | R84: D | S84: MACRO | T84: FO | U84: 0.000198019802 | V84: 0.000198019802 | W84: 1 | X84: 1 | Y84: 0 | Z84: 0 | AA84: 0 | AB84: BSC27 | AC84: PROMEDIO | AD84: 1 | AE84: 1 | AF84: 1 | AG84: 0 | AH84: 0 | AI84: 0 | AJ84: 0 | AK84: PROMEDIO | AL84: 0 | AM84: 0 | AN84: 0 | AO84: 0 | AP84: 0 | AR84: PROMEDIO | AS84: 0 | AT84: 0 | AU84: 0 | AV84: 0 | AX84: D | AY84: 1.5 | AZ84: PROVINCIA174DISTRITO130 | BB84: ANCASHRURAL | BC84: ANCASHMACRO | BD84: PROVINCIA RURAL | BH84: =IF(usaDistribucin2G3G="SI",PARAMETROS!$C$25,'LISTA CELDA'!W84)*'CELDA RESUMEN'!AG84 -> 0.4 | BI84: =IF(usaDistribucin2G3G="SI",PARAMETROS!$C$26,'LISTA CELDA'!X84)*'CELDA RESUMEN'!AG84 -> 0.02 | BJ84: =IF(usaDistribucin2G3G="SI",PARAMETROS!$D$25,'LISTA CELDA'!Y84)*'CELDA RESUMEN'!AH84 -> 0 | BK84: =IF(usaDistribucin2G3G="SI",PARAMETROS!$D$26,'LISTA CELDA'!Z84)*'CELDA RESUMEN'!AH84 -> 0 | BL84: =IF(usaDistribucin2G3G="SI",PARAMETROS!$E$25,0) -> 0 | BM84: =IF(usaDistribucin2G3G="SI",PARAMETROS!$E$26,'LISTA CELDA'!AA84)*'CELDA RESUMEN'!AI84 -> 0
B85: 78 | C85: RURAL | D85: PROVINCIA | E85: NOR ORIENTE | F85: ANCASH | G85: PROVINCIA207 | H85: DISTRITO731 | I85: 77 | J85: 4 | K85: 12 | L85: 22 | M85: 12 | N85: 3 | O85: IDCELL78 | P85: ID_LOCAL78 | Q85: 0 | R85: D | S85: MACRO | T85: FO | U85: 0.000198019802 | V85: 0.000198019802 | W85: 1 | X85: 1 | Y85: 0 | Z85: 0 | AA85: 0 | AB85: BSC27 | AC85: PROMEDIO | AD85: 1 | AE85: 1 | AF85: 1 | AG85: 0 | AH85: 0 | AI85: 0 | AJ85: 0 | AK85: PROMEDIO | AL85: 0 | AM85: 0 | AN85: 0 | AO85: 0 | AP85: 0 | AR85: PROMEDIO | AS85: 0 | AT85: 0 | AU85: 0 | AV85: 0 | AX85: D | AY85: 1.5 | AZ85: PROVINCIA207DISTRITO731 | BB85: ANCASHRURAL | BC85: ANCASHMACRO | BD85: PROVINCIA RURAL | BH85: =IF(usaDistribucin2G3G="SI",PARAMETROS!$C$25,'LISTA CELDA'!W85)*'CELDA RESUMEN'!AG85 -> 0.4 | BI85: =IF(usaDistribucin2G3G="SI",PARAMETROS!$C$26,'LISTA CELDA'!X85)*'CELDA RESUMEN'!AG85 -> 0.02 | BJ85: =IF(usaDistribucin2G3G="SI",PARAMETROS!$D$25,'LISTA CELDA'!Y85)*'CELDA RESUMEN'!AH85 -> 0 | BK85: =IF(usaDistribucin2G3G="SI",PARAMETROS!$D$26,'LISTA CELDA'!Z85)*'CELDA RESUMEN'!AH85 -> 0 | BL85: =IF(usaDistribucin2G3G="SI",PARAMETROS!$E$25,0) -> 0 | BM85: =IF(usaDistribucin2G3G="SI",PARAMETROS!$E$26,'LISTA CELDA'!AA85)*'CELDA RESUMEN'!AI85 -> 0
B86: 79 | C86: RURAL | D86: PROVINCIA | E86: NOR ORIENTE | F86: ANCASH | G86: PROVINCIA60 | H86: DISTRITO207 | I86: 77 | J86: 4 | K86: 12 | L86: 22 | M86: 12 | N86: 3 | O86: IDCELL79 | P86: ID_LOCAL79 | Q86: 0 | R86: D | S86: MACRO | T86: FO | U86: 0.000198019802 | V86: 0.000198019802 | W86: 1 | X86: 1 | Y86: 0 | Z86: 0 | AA86: 0 | AB86: BSC27 | AC86: PROMEDIO | AD86: 1 | AE86: 1 | AF86: 1 | AG86: 0 | AH86: 0 | AI86: 0 | AJ86: 0 | AK86: PROMEDIO | AL86: 0 | AM86: 0 | AN86: 0 | AO86: 0 | AP86: 0 | AR86: PROMEDIO | AS86: 0 | AT86: 0 | AU86: 0 | AV86: 0 | AX86: D | AY86: 1.5 | AZ86: PROVINCIA60DISTRITO207 | BB86: ANCASHRURAL | BC86: ANCASHMACRO | BD86: PROVINCIA RURAL | BH86: =IF(usaDistribucin2G3G="SI",PARAMETROS!$C$25,'LISTA CELDA'!W86)*'CELDA RESUMEN'!AG86 -> 0.4 | BI86: =IF(usaDistribucin2G3G="SI",PARAMETROS!$C$26,'LISTA CELDA'!X86)*'CELDA RESUMEN'!AG86 -> 0.02 | BJ86: =IF(usaDistribucin2G3G="SI",PARAMETROS!$D$25,'LISTA CELDA'!Y86)*'CELDA RESUMEN'!AH86 -> 0 | BK86: =IF(usaDistribucin2G3G="SI",PARAMETROS!$D$26,'LISTA CELDA'!Z86)*'CELDA RESUMEN'!AH86 -> 0 | BL86: =IF(usaDistribucin2G3G="SI",PARAMETROS!$E$25,0) -> 0 | BM86: =IF(usaDistribucin2G3G="SI",PARAMETROS!$E$26,'LISTA CELDA'!AA86)*'CELDA RESUMEN'!AI86 -> 0
B87: 80 | C87: URBANA | D87: PROVINCIA | E87: NOR ORIENTE | F87: ANCASH | G87: PROVINCIA60 | H87: DISTRITO350 | I87: 77 | J87: 4 | K87: 12 | L87: 22 | M87: 12 | N87: 3 | O87: IDCELL80 | P87: ID_LOCAL80 | Q87: 0 | R87: D | S87: MACRO | T87: FO | U87: 0.000198019802 | V87: 0.000198019802 | W87: 0.71 | X87: 0.1 | Y87: 0.39 | Z87: 0.7 | AA87: 0.2 | AB87: BSC27 | AC87: PROMEDIO | AD87: 1 | AE87: 1 | AF87: 1 | AG87: 0 | AH87: 0 | AI87: 0 | AJ87: RNC16 | AK87: PROMEDIO | AL87: 1 | AM87: 0.8815384414 | AN87: 0.1045627723 | AO87: 0.005403422994 | AP87: 0.009134443846 | AQ87: RNC16 | AR87: PROMEDIO | AS87: 1 | AT87: 0.5 | AU87: 1 | AV87: 0.5 | AX87: D | AY87: 1.5 | AZ87: PROVINCIA60DISTRITO350 | BB87: ANCASHURBANA | BC87: ANCASHMACRO | BD87: PROVINCIA URBANA | BH87: =IF(usaDistribucin2G3G="SI",PARAMETROS!$C$25,'LISTA CELDA'!W87)*'CELDA RESUMEN'!AG87 -> 0.4 | BI87: =IF(usaDistribucin2G3G="SI",PARAMETROS!$C$26,'LISTA CELDA'!X87)*'CELDA RESUMEN'!AG87 -> 0.02 | BJ87: =IF(usaDistribucin2G3G="SI",PARAMETROS!$D$25,'LISTA CELDA'!Y87)*'CELDA RESUMEN'!AH87 -> 0.6 | BK87: =IF(usaDistribucin2G3G="SI",PARAMETROS!$D$26,'LISTA CELDA'!Z87)*'CELDA RESUMEN'!AH87 -> 0.33 | BL87: =IF(usaDistribucin2G3G="SI",PARAMETROS!$E$25,0) -> 0 | BM87: =IF(usaDistribucin2G3G="SI",PARAMETROS!$E$26,'LISTA CELDA'!AA87)*'CELDA RESUMEN'!AI87 -> 0.65
B88: 81 | C88: URBANA | D88: PROVINCIA | E88: NOR ORIENTE | F88: ANCASH | G88: PROVINCIA121 | H88: DISTRITO525 | I88: 77 | J88: 4 | K88: 12 | L88: 22 | M88: 12 | N88: 3 | O88: IDCELL81 | P88: ID_LOCAL81 | Q88: 0 | R88: D | S88: MACRO | T88: FO | U88: 0.000198019802 | V88: 0.000198019802 | W88: 0.71 | X88: 0.1 | Y88: 0.39 | Z88: 0.7 | AA88: 0.2 | AB88: BSC27 | AC88: PROMEDIO | AD88: 1 | AE88: 0.4632265535 | AF88: 0.4632265535 | AG88: 1 | AH88: 0.5367734465 | AI88: 0.5367734465 | AJ88: RNC16 | AK88: PROMEDIO | AL88: 1 | AM88: 0.8815384414 | AN88: 0.1045627723 | AO88: 0.005403422994 | AP88: 0.009134443846 | AQ88: RNC16 | AR88: PROMEDIO | AS88: 1 | AT88: 0.5 | AU88: 1 | AV88: 0.5 | AX88: D | AY88: 1.5 | AZ88: PROVINCIA121DISTRITO525 | BB88: ANCASHURBANA | BC88: ANCASHMACRO | BD88: PROVINCIA URBANA | BH88: =IF(usaDistribucin2G3G="SI",PARAMETROS!$C$25,'LISTA CELDA'!W88)*'CELDA RESUMEN'!AG88 -> 0.4 | BI88: =IF(usaDistribucin2G3G="SI",PARAMETROS!$C$26,'LISTA CELDA'!X88)*'CELDA RESUMEN'!AG88 -> 0.02 | BJ88: =IF(usaDistribucin2G3G="SI",PARAMETROS!$D$25,'LISTA CELDA'!Y88)*'CELDA RESUMEN'!AH88 -> 0.6 | BK88: =IF(usaDistribucin2G3G="SI",PARAMETROS!$D$26,'LISTA CELDA'!Z88)*'CELDA RESUMEN'!AH88 -> 0.33 | BL88: =IF(usaDistribucin2G3G="SI",PARAMETROS!$E$25,0) -> 0 | BM88: =IF(usaDistribucin2G3G="SI",PARAMETROS!$E$26,'LISTA CELDA'!AA88)*'CELDA RESUMEN'!AI88 -> 0.65
B89: 82 | C89: URBANA | D89: PROVINCIA | E89: NOR ORIENTE | F89: ANCASH | G89: PROVINCIA60 | H89: DISTRITO207 | I89: 77 | J89: 4 | K89: 12 | L89: 22 | M89: 12 | N89: 3 | O89: IDCELL82 | P89: ID_LOCAL82 | Q89: 0 | R89: D | S89: MACRO | T89: FO | U89: 0.000198019802 | V89: 0.000198019802 | W89: 0.71 | X89: 0.1 | Y89: 0.39 | Z89: 0.7 | AA89: 0.2 | AB89: BSC27 | AC89: PROMEDIO | AD89: 1 | AE89: 0.3631642449 | AF89: 0.3631642449 | AG89: 1 | AH89: 0.6368357551 | AI89: 0.6368357551 | AJ89: RNC16 | AK89: PROMEDIO | AL89: 1 | AM89: 0.8815384414 | AN89: 0.1045627723 | AO89: 0.005403422994 | AP89: 0.009134443846 | AQ89: RNC16 | AR89: PROMEDIO | AS89: 1 | AT89: 0.5 | AU89: 1 | AV89: 0.5 | AX89: D | AY89: 1.5 | AZ89: PROVINCIA60DISTRITO207 | BB89: ANCASHURBANA | BC89: ANCASHMACRO | BD89: PROVINCIA URBANA | BH89: =IF(usaDistribucin2G3G="SI",PARAMETROS!$C$25,'LISTA CELDA'!W89)*'CELDA RESUMEN'!AG89 -> 0.4 | BI89: =IF(usaDistribucin2G3G="SI",PARAMETROS!$C$26,'LISTA CELDA'!X89)*'CELDA RESUMEN'!AG89 -> 0.02 | BJ89: =IF(usaDistribucin2G3G="SI",PARAMETROS!$D$25,'LISTA CELDA'!Y89)*'CELDA RESUMEN'!AH89 -> 0.6 | BK89: =IF(usaDistribucin2G3G="SI",PARAMETROS!$D$26,'LISTA CELDA'!Z89)*'CELDA RESUMEN'!AH89 -> 0.33 | BL89: =IF(usaDistribucin2G3G="SI",PARAMETROS!$E$25,0) -> 0 | BM89: =IF(usaDistribucin2G3G="SI",PARAMETROS!$E$26,'LISTA CELDA'!AA89)*'CELDA RESUMEN'!AI89 -> 0.65
B90: 83 | C90: RURAL | D90: PROVINCIA | E90: NOR ORIENTE | F90: ANCASH | G90: PROVINCIA121 | H90: DISTRITO525 | I90: 77 | J90: 4 | K90: 12 | L90: 22 | M90: 12 | N90: 3 | O90: IDCELL83 | P90: ID_LOCAL83 | Q90: 0 | R90: D | S90: MACRO | T90: FO | U90: 0.000198019802 | V90: 0.000198019802 | W90: 1 | X90: 1 | Y90: 0 | Z90: 0 | AA90: 0 | AB90: BSC27 | AC90: PROMEDIO | AD90: 1 | AE90: 1 | AF90: 1 | AG90: 0 | AH90: 0 | AI90: 0 | AJ90: 0 | AK90: PROMEDIO | AL90: 0 | AM90: 0 | AN90: 0 | AO90: 0 | AP90: 0 | AR90: PROMEDIO | AS90: 0 | AT90: 0 | AU90: 0 | AV90: 0 | AX90: D | AY90: 1.5 | AZ90: PROVINCIA121DISTRITO525 | BB90: ANCASHRURAL | BC90: ANCASHMACRO | BD90: PROVINCIA RURAL | BH90: =IF(usaDistribucin2G3G="SI",PARAMETROS!$C$25,'LISTA CELDA'!W90)*'CELDA RESUMEN'!AG90 -> 0.4 | BI90: =IF(usaDistribucin2G3G="SI",PARAMETROS!$C$26,'LISTA CELDA'!X90)*'CELDA RESUMEN'!AG90 -> 0.02 | BJ90: =IF(usaDistribucin2G3G="SI",PARAMETROS!$D$25,'LISTA CELDA'!Y90)*'CELDA RESUMEN'!AH90 -> 0 | BK90: =IF(usaDistribucin2G3G="SI",PARAMETROS!$D$26,'LISTA CELDA'!Z90)*'CELDA RESUMEN'!AH90 -> 0 | BL90: =IF(usaDistribucin2G3G="SI",PARAMETROS!$E$25,0) -> 0 | BM90: =IF(usaDistribucin2G3G="SI",PARAMETROS!$E$26,'LISTA CELDA'!AA90)*'CELDA RESUMEN'!AI90 -> 0
B91: 84 | C91: RURAL | D91: PROVINCIA | E91: NOR ORIENTE | F91: ANCASH | G91: PROVINCIA121 | H91: DISTRITO525 | I91: 77 | J91: 4 | K91: 12 | L91: 22 | M91: 12 | N91: 3 | O91: IDCELL84 | P91: ID_LOCAL84 | Q91: 0 | R91: D | S91: MACRO | T91: FO | U91: 0.000198019802 | V91: 0.000198019802 | W91: 1 | X91: 1 | Y91: 0 | Z91: 0 | AA91: 0 | AB91: BSC27 | AC91: PROMEDIO | AD91: 1 | AE91: 1 | AF91: 1 | AG91: 0 | AH91: 0 | AI91: 0 | AJ91: 0 | AK91: PROMEDIO | AL91: 0 | AM91: 0 | AN91: 0 | AO91: 0 | AP91: 0 | AR91: PROMEDIO | AS91: 0 | AT91: 0 | AU91: 0 | AV91: 0 | AX91: D | AY91: 1.5 | AZ91: PROVINCIA121DISTRITO525 | BB91: ANCASHRURAL | BC91: ANCASHMACRO | BD91: PROVINCIA RURAL | BH91: =IF(usaDistribucin2G3G="SI",PARAMETROS!$C$25,'LISTA CELDA'!W91)*'CELDA RESUMEN'!AG91 -> 0.4 | BI91: =IF(usaDistribucin2G3G="SI",PARAMETROS!$C$26,'LISTA CELDA'!X91)*'CELDA RESUMEN'!AG91 -> 0.02 | BJ91: =IF(usaDistribucin2G3G="SI",PARAMETROS!$D$25,'LISTA CELDA'!Y91)*'CELDA RESUMEN'!AH91 -> 0 | BK91: =IF(usaDistribucin2G3G="SI",PARAMETROS!$D$26,'LISTA CELDA'!Z91)*'CELDA RESUMEN'!AH91 -> 0 | BL91: =IF(usaDistribucin2G3G="SI",PARAMETROS!$E$25,0) -> 0 | BM91: =IF(usaDistribucin2G3G="SI",PARAMETROS!$E$26,'LISTA CELDA'!AA91)*'CELDA RESUMEN'!AI91 -> 0
B92: 85 | C92: URBANA | D92: PROVINCIA | E92: NOR ORIENTE | F92: ANCASH | G92: PROVINCIA207 | H92: DISTRITO814 | I92: 77 | J92: 4 | K92: 12 | L92: 22 | M92: 12 | N92: 3 | O92: IDCELL85 | P92: ID_LOCAL85 | Q92: 0 | R92: D | S92: MACRO | T92: FO | U92: 0.000198019802 | V92: 0.000198019802 | W92: 0.71 | X92: 0.1 | Y92: 0.39 | Z92: 0.7 | AA92: 0.2 | AB92: BSC27 | AC92: PROMEDIO | AD92: 1 | AE92: 1 | AF92: 1 | AG92: 0 | AH92: 0 | AI92: 0 | AJ92: RNC16 | AK92: PROMEDIO | AL92: 1 | AM92: 0.8815384414 | AN92: 0.1045627723 | AO92: 0.005403422994 | AP92: 0.009134443846 | AQ92: RNC16 | AR92: PROMEDIO | AS92: 1 | AT92: 0.5 | AU92: 1 | AV92: 0.5 | AX92: D | AY92: 1.5 | AZ92: PROVINCIA207DISTRITO814 | BB92: ANCASHURBANA | BC92: ANCASHMACRO | BD92: PROVINCIA URBANA | BH92: =IF(usaDistribucin2G3G="SI",PARAMETROS!$C$25,'LISTA CELDA'!W92)*'CELDA RESUMEN'!AG92 -> 0.4 | BI92: =IF(usaDistribucin2G3G="SI",PARAMETROS!$C$26,'LISTA CELDA'!X92)*'CELDA RESUMEN'!AG92 -> 0.02 | BJ92: =IF(usaDistribucin2G3G="SI",PARAMETROS!$D$25,'LISTA CELDA'!Y92)*'CELDA RESUMEN'!AH92 -> 0.6 | BK92: =IF(usaDistribucin2G3G="SI",PARAMETROS!$D$26,'LISTA CELDA'!Z92)*'CELDA RESUMEN'!AH92 -> 0.33 | BL92: =IF(usaDistribucin2G3G="SI",PARAMETROS!$E$25,0) -> 0 | BM92: =IF(usaDistribucin2G3G="SI",PARAMETROS!$E$26,'LISTA CELDA'!AA92)*'CELDA RESUMEN'!AI92 -> 0.65
B93: 86 | C93: URBANA | D93: PROVINCIA | E93: NOR ORIENTE | F93: ANCASH | G93: PROVINCIA207 | H93: DISTRITO830 | I93: 77 | J93: 4 | K93: 12 | L93: 22 | M93: 12 | N93: 3 | O93: IDCELL86 | P93: ID_LOCAL86 | Q93: 0 | R93: D | S93: MACRO | T93: FO | U93: 0.000198019802 | V93: 0.000198019802 | W93: 0.71 | X93: 0.1 | Y93: 0.39 | Z93: 0.7 | AA93: 0.2 | AB93: BSC27 | AC93: PROMEDIO | AD93: 1 | AE93: 1 | AF93: 1 | AG93: 0 | AH93: 0 | AI93: 0 | AJ93: RNC16 | AK93: PROMEDIO | AL93: 1 | AM93: 0.8815384414 | AN93: 0.1045627723 | AO93: 0.005403422994 | AP93: 0.009134443846 | AQ93: RNC16 | AR93: PROMEDIO | AS93: 1 | AT93: 0.5 | AU93: 1 | AV93: 0.5 | AX93: D | AY93: 1.5 | AZ93: PROVINCIA207DISTRITO830 | BB93: ANCASHURBANA | BC93: ANCASHMACRO | BD93: PROVINCIA URBANA | BH93: =IF(usaDistribucin2G3G="SI",PARAMETROS!$C$25,'LISTA CELDA'!W93)*'CELDA RESUMEN'!AG93 -> 0.4 | BI93: =IF(usaDistribucin2G3G="SI",PARAMETROS!$C$26,'LISTA CELDA'!X93)*'CELDA RESUMEN'!AG93 -> 0.02 | BJ93: =IF(usaDistribucin2G3G="SI",PARAMETROS!$D$25,'LISTA CELDA'!Y93)*'CELDA RESUMEN'!AH93 -> 0.6 | BK93: =IF(usaDistribucin2G3G="SI",PARAMETROS!$D$26,'LISTA CELDA'!Z93)*'CELDA RESUMEN'!AH93 -> 0.33 | BL93: =IF(usaDistribucin2G3G="SI",PARAMETROS!$E$25,0) -> 0 | BM93: =IF(usaDistribucin2G3G="SI",PARAMETROS!$E$26,'LISTA CELDA'!AA93)*'CELDA RESUMEN'!AI93 -> 0.65
B94: 87 | C94: RURAL | D94: PROVINCIA | E94: NOR ORIENTE | F94: ANCASH | G94: PROVINCIA207 | H94: DISTRITO830 | I94: 77 | J94: 4 | K94: 12 | L94: 22 | M94: 12 | N94: 3 | O94: IDCELL87 | P94: ID_LOCAL87 | Q94: 0 | R94: D | S94: MACRO | T94: FO | U94: 0.000198019802 | V94: 0.000198019802 | W94: 1 | X94: 1 | Y94: 0 | Z94: 0 | AA94: 0 | AB94: BSC27 | AC94: PROMEDIO | AD94: 1 | AE94: 1 | AF94: 1 | AG94: 0 | AH94: 0 | AI94: 0 | AJ94: 0 | AK94: PROMEDIO | AL94: 0 | AM94: 0 | AN94: 0 | AO94: 0 | AP94: 0 | AR94: PROMEDIO | AS94: 0 | AT94: 0 | AU94: 0 | AV94: 0 | AX94: D | AY94: 1.5 | AZ94: PROVINCIA207DISTRITO830 | BB94: ANCASHRURAL | BC94: ANCASHMACRO | BD94: PROVINCIA RURAL | BH94: =IF(usaDistribucin2G3G="SI",PARAMETROS!$C$25,'LISTA CELDA'!W94)*'CELDA RESUMEN'!AG94 -> 0.4 | BI94: =IF(usaDistribucin2G3G="SI",PARAMETROS!$C$26,'LISTA CELDA'!X94)*'CELDA RESUMEN'!AG94 -> 0.02 | BJ94: =IF(usaDistribucin2G3G="SI",PARAMETROS!$D$25,'LISTA CELDA'!Y94)*'CELDA RESUMEN'!AH94 -> 0 | BK94: =IF(usaDistribucin2G3G="SI",PARAMETROS!$D$26,'LISTA CELDA'!Z94)*'CELDA RESUMEN'!AH94 -> 0 | BL94: =IF(usaDistribucin2G3G="SI",PARAMETROS!$E$25,0) -> 0 | BM94: =IF(usaDistribucin2G3G="SI",PARAMETROS!$E$26,'LISTA CELDA'!AA94)*'CELDA RESUMEN'!AI94 -> 0
B95: 88 | C95: RURAL | D95: PROVINCIA | E95: NOR ORIENTE | F95: ANCASH | G95: PROVINCIA121 | H95: DISTRITO392 | I95: 77 | J95: 4 | K95: 12 | L95: 22 | M95: 12 | N95: 3 | O95: IDCELL88 | P95: ID_LOCAL88 | Q95: 0 | R95: D | S95: MACRO | T95: FO | U95: 0.000198019802 | V95: 0.000198019802 | W95: 0.71 | X95: 0.1 | Y95: 0.39 | Z95: 0.7 | AA95: 0.2 | AB95: BSC27 | AC95: PROMEDIO | AD95: 1 | AE95: 1 | AF95: 1 | AG95: 0 | AH95: 0 | AI95: 0 | AJ95: RNC16 | AK95: PROMEDIO | AL95: 1 | AM95: 0.8815384414 | AN95: 0.1045627723 | AO95: 0.005403422994 | AP95: 0.009134443846 | AQ95: RNC16 | AR95: PROMEDIO | AS95: 1 | AT95: 0.5 | AU95: 1 | AV95: 0.5 | AX95: D | AY95: 1.5 | AZ95: PROVINCIA121DISTRITO392 | BB95: ANCASHRURAL | BC95: ANCASHMACRO | BD95: PROVINCIA RURAL | BH95: =IF(usaDistribucin2G3G="SI",PARAMETROS!$C$25,'LISTA CELDA'!W95)*'CELDA RESUMEN'!AG95 -> 0.4 | BI95: =IF(usaDistribucin2G3G="SI",PARAMETROS!$C$26,'LISTA CELDA'!X95)*'CELDA RESUMEN'!AG95 -> 0.02 | BJ95: =IF(usaDistribucin2G3G="SI",PARAMETROS!$D$25,'LISTA CELDA'!Y95)*'CELDA RESUMEN'!AH95 -> 0.6 | BK95: =IF(usaDistribucin2G3G="SI",PARAMETROS!$D$26,'LISTA CELDA'!Z95)*'CELDA RESUMEN'!AH95 -> 0.33 | BL95: =IF(usaDistribucin2G3G="SI",PARAMETROS!$E$25,0) -> 0 | BM95: =IF(usaDistribucin2G3G="SI",PARAMETROS!$E$26,'LISTA CELDA'!AA95)*'CELDA RESUMEN'!AI95 -> 0.65
B96: 89 | C96: URBANA | D96: PROVINCIA | E96: NOR ORIENTE | F96: ANCASH | G96: PROVINCIA207 | H96: DISTRITO283 | I96: 77 | J96: 4 | K96: 12 | L96: 22 | M96: 12 | N96: 3 | O96: IDCELL89 | P96: ID_LOCAL89 | Q96: 0 | R96: D | S96: MACRO | T96: FO | U96: 0.000198019802 | V96: 0.000198019802 | W96: 0.71 | X96: 0.1 | Y96: 0.39 | Z96: 0.7 | AA96: 0.2 | AB96: BSC27 | AC96: PROMEDIO | AD96: 1 | AE96: 0.4297080327 | AF96: 0.4297080327 | AG96: 1 | AH96: 0.5702919673 | AI96: 0.5702919673 | AJ96: RNC16 | AK96: PROMEDIO | AL96: 1 | AM96: 0.8815384414 | AN96: 0.1045627723 | AO96: 0.005403422994 | AP96: 0.009134443846 | AQ96: RNC16 | AR96: PROMEDIO | AS96: 1 | AT96: 0.5 | AU96: 1 | AV96: 0.5 | AX96: D | AY96: 1.5 | AZ96: PROVINCIA207DISTRITO283 | BB96: ANCASHURBANA | BC96: ANCASHMACRO | BD96: PROVINCIA URBANA | BH96: =IF(usaDistribucin2G3G="SI",PARAMETROS!$C$25,'LISTA CELDA'!W96)*'CELDA RESUMEN'!AG96 -> 0.4 | BI96: =IF(usaDistribucin2G3G="SI",PARAMETROS!$C$26,'LISTA CELDA'!X96)*'CELDA RESUMEN'!AG96 -> 0.02 | BJ96: =IF(usaDistribucin2G3G="SI",PARAMETROS!$D$25,'LISTA CELDA'!Y96)*'CELDA RESUMEN'!AH96 -> 0.6 | BK96: =IF(usaDistribucin2G3G="SI",PARAMETROS!$D$26,'LISTA CELDA'!Z96)*'CELDA RESUMEN'!AH96 -> 0.33 | BL96: =IF(usaDistribucin2G3G="SI",PARAMETROS!$E$25,0) -> 0 | BM96: =IF(usaDistribucin2G3G="SI",PARAMETROS!$E$26,'LISTA CELDA'!AA96)*'CELDA RESUMEN'!AI96 -> 0.65
B97: 90 | C97: RURAL | D97: PROVINCIA | E97: NOR ORIENTE | F97: ANCASH | G97: PROVINCIA37 | H97: DISTRITO73 | I97: 77 | J97: 4 | K97: 12 | L97: 22 | M97: 12 | N97: 3 | O97: IDCELL90 | P97: ID_LOCAL90 | Q97: 0 | R97: D | S97: MACRO | T97: FO | U97: 0.000198019802 | V97: 0.000198019802 | W97: 1 | X97: 1 | Y97: 0 | Z97: 0 | AA97: 0 | AB97: BSC27 | AC97: PROMEDIO | AD97: 1 | AE97: 1 | AF97: 1 | AG97: 0 | AH97: 0 | AI97: 0 | AJ97: 0 | AK97: PROMEDIO | AL97: 0 | AM97: 0 | AN97: 0 | AO97: 0 | AP97: 0 | AR97: PROMEDIO | AS97: 0 | AT97: 0 | AU97: 0 | AV97: 0 | AX97: D | AY97: 1.5 | AZ97: =G97&H97 -> PROVINCIA37DISTRITO73 | BB97: =F97&C97 -> ANCASHRURAL | BC97: =F97&S97 -> ANCASHMACRO | BD97: =D97&" "&C97 -> PROVINCIA RURAL | BH97: =IF(usaDistribucin2G3G="SI",PARAMETROS!$C$25,'LISTA CELDA'!W97)*'CELDA RESUMEN'!AG97 -> 0.4 | BI97: =IF(usaDistribucin2G3G="SI",PARAMETROS!$C$26,'LISTA CELDA'!X97)*'CELDA RESUMEN'!AG97 -> 0.02 | BJ97: =IF(usaDistribucin2G3G="SI",PARAMETROS!$D$25,'LISTA CELDA'!Y97)*'CELDA RESUMEN'!AH97 -> 0 | BK97: =IF(usaDistribucin2G3G="SI",PARAMETROS!$D$26,'LISTA CELDA'!Z97)*'CELDA RESUMEN'!AH97 -> 0 | BL97: =IF(usaDistribucin2G3G="SI",PARAMETROS!$E$25,0) -> 0 | BM97: =IF(usaDistribucin2G3G="SI",PARAMETROS!$E$26,'LISTA CELDA'!AA97)*'CELDA RESUMEN'!AI97 -> 0
B98: 91 | C98: URBANA | D98: PROVINCIA | E98: NOR ORIENTE | F98: ANCASH | G98: PROVINCIA37 | H98: DISTRITO73 | I98: 77 | J98: 4 | K98: 12 | L98: 22 | M98: 12 | N98: 3 | O98: IDCELL91 | P98: ID_LOCAL91 | Q98: 0 | R98: D | S98: MACRO | T98: FO | U98: 0.000198019802 | V98: 0.000198019802 | W98: 1 | X98: 1 | Y98: 0 | Z98: 0 | AA98: 0 | AB98: BSC27 | AC98: PROMEDIO | AD98: 1 | AE98: 1 | AF98: 1 | AG98: 0 | AH98: 0 | AI98: 0 | AJ98: 0 | AK98: PROMEDIO | AL98: 0 | AM98: 0 | AN98: 0 | AO98: 0 | AP98: 0 | AR98: PROMEDIO | AS98: 0 | AT98: 0 | AU98: 0 | AV98: 0 | AX98: D | AY98: 1.5 | AZ98: PROVINCIA37DISTRITO73 | BB98: ANCASHURBANA | BC98: ANCASHMACRO | BD98: PROVINCIA URBANA | BH98: =IF(usaDistribucin2G3G="SI",PARAMETROS!$C$25,'LISTA CELDA'!W98)*'CELDA RESUMEN'!AG98 -> 0.4 | BI98: =IF(usaDistribucin2G3G="SI",PARAMETROS!$C$26,'LISTA CELDA'!X98)*'CELDA RESUMEN'!AG98 -> 0.02 | BJ98: =IF(usaDistribucin2G3G="SI",PARAMETROS!$D$25,'LISTA CELDA'!Y98)*'CELDA RESUMEN'!AH98 -> 0 | BK98: =IF(usaDistribucin2G3G="SI",PARAMETROS!$D$26,'LISTA CELDA'!Z98)*'CELDA RESUMEN'!AH98 -> 0 | BL98: =IF(usaDistribucin2G3G="SI",PARAMETROS!$E$25,0) -> 0 | BM98: =IF(usaDistribucin2G3G="SI",PARAMETROS!$E$26,'LISTA CELDA'!AA98)*'CELDA RESUMEN'!AI98 -> 0
B99: 92 | C99: RURAL | D99: PROVINCIA | E99: NOR ORIENTE | F99: ANCASH | G99: PROVINCIA120 | H99: DISTRITO258 | I99: 77 | J99: 4 | K99: 12 | L99: 22 | M99: 12 | N99: 3 | O99: IDCELL92 | P99: ID_LOCAL92 | Q99: 0 | R99: D | S99: MACRO | T99: FO | U99: 0.000198019802 | V99: 0.000198019802 | W99: 1 | X99: 1 | Y99: 0 | Z99: 0 | AA99: 0 | AB99: BSC12 | AC99: PROMEDIO | AD99: 1 | AE99: 1 | AF99: 1 | AG99: 0 | AH99: 0 | AI99: 0 | AJ99: 0 | AK99: PROMEDIO | AL99: 0 | AM99: 0 | AN99: 0 | AO99: 0 | AP99: 0 | AR99: PROMEDIO | AS99: 0 | AT99: 0 | AU99: 0 | AV99: 0 | AX99: D | AY99: 1.5 | AZ99: PROVINCIA120DISTRITO258 | BB99: ANCASHRURAL | BC99: ANCASHMACRO | BD99: PROVINCIA RURAL | BH99: =IF(usaDistribucin2G3G="SI",PARAMETROS!$C$25,'LISTA CELDA'!W99)*'CELDA RESUMEN'!AG99 -> 0.4 | BI99: =IF(usaDistribucin2G3G="SI",PARAMETROS!$C$26,'LISTA CELDA'!X99)*'CELDA RESUMEN'!AG99 -> 0.02 | BJ99: =IF(usaDistribucin2G3G="SI",PARAMETROS!$D$25,'LISTA CELDA'!Y99)*'CELDA RESUMEN'!AH99 -> 0 | BK99: =IF(usaDistribucin2G3G="SI",PARAMETROS!$D$26,'LISTA CELDA'!Z99)*'CELDA RESUMEN'!AH99 -> 0 | BL99: =IF(usaDistribucin2G3G="SI",PARAMETROS!$E$25,0) -> 0 | BM99: =IF(usaDistribucin2G3G="SI",PARAMETROS!$E$26,'LISTA CELDA'!AA99)*'CELDA RESUMEN'!AI99 -> 0
B100: 93 | C100: RURAL | D100: PROVINCIA | E100: NOR ORIENTE | F100: ANCASH | G100: PROVINCIA120 | H100: DISTRITO779 | I100: 77 | J100: 4 | K100: 12 | L100: 22 | M100: 12 | N100: 3 | O100: IDCELL93 | P100: ID_LOCAL93 | Q100: 0 | R100: D | S100: MACRO | T100: FO | U100: 0.000198019802 | V100: 0.000198019802 | W100: 1 | X100: 1 | Y100: 0 | Z100: 0 | AA100: 0 | AB100: BSC27 | AC100: PROMEDIO | AD100: 1 | AE100: 1 | AF100: 1 | AG100: 0 | AH100: 0 | AI100: 0 | AJ100: 0 | AK100: PROMEDIO | AL100: 0 | AM100: 0 | AN100: 0 | AO100: 0 | AP100: 0 | AR100: PROMEDIO | AS100: 0 | AT100: 0 | AU100: 0 | AV100: 0 | AX100: D | AY100: 1.5 | AZ100: PROVINCIA120DISTRITO779 | BB100: ANCASHRURAL | BC100: ANCASHMACRO | BD100: PROVINCIA RURAL | BH100: =IF(usaDistribucin2G3G="SI",PARAMETROS!$C$25,'LISTA CELDA'!W100)*'CELDA RESUMEN'!AG100 -> 0.4 | BI100: =IF(usaDistribucin2G3G="SI",PARAMETROS!$C$26,'LISTA CELDA'!X100)*'CELDA RESUMEN'!AG100 -> 0.02 | BJ100: =IF(usaDistribucin2G3G="SI",PARAMETROS!$D$25,'LISTA CELDA'!Y100)*'CELDA RESUMEN'!AH100 -> 0 | BK100: =IF(usaDistribucin2G3G="SI",PARAMETROS!$D$26,'LISTA CELDA'!Z100)*'CELDA RESUMEN'!AH100 -> 0 | BL100: =IF(usaDistribucin2G3G="SI",PARAMETROS!$E$25,0) -> 0 | BM100: =IF(usaDistribucin2G3G="SI",PARAMETROS!$E$26,'LISTA CELDA'!AA100)*'CELDA RESUMEN'!AI100 -> 0
B101: 94 | C101: URBANA | D101: PROVINCIA | E101: NOR ORIENTE | F101: ANCASH | G101: PROVINCIA120 | H101: DISTRITO779 | I101: 77 | J101: 4 | K101: 12 | L101: 22 | M101: 12 | N101: 3 | O101: IDCELL94 | P101: ID_LOCAL94 | Q101: 0 | R101: D | S101: MACRO | T101: FO | U101: 0.000198019802 | V101: 0.000198019802 | W101: 1 | X101: 1 | Y101: 0 | Z101: 0 | AA101: 0 | AB101: BSC27 | AC101: PROMEDIO | AD101: 0 | AE101: 0 | AF101: 0 | AG101: 1 | AH101: 1 | AI101: 1 | AJ101: 0 | AK101: PROMEDIO | AL101: 0 | AM101: 0 | AN101: 0 | AO101: 0 | AP101: 0 | AR101: PROMEDIO | AS101: 0 | AT101: 0 | AU101: 0 | AV101: 0 | AX101: D | AY101: 1.5 | AZ101: PROVINCIA120DISTRITO779 | BB101: ANCASHURBANA | BC101: ANCASHMACRO | BD101: PROVINCIA URBANA | BH101: =IF(usaDistribucin2G3G="SI",PARAMETROS!$C$25,'LISTA CELDA'!W101)*'CELDA RESUMEN'!AG101 -> 0.4 | BI101: =IF(usaDistribucin2G3G="SI",PARAMETROS!$C$26,'LISTA CELDA'!X101)*'CELDA RESUMEN'!AG101 -> 0.02 | BJ101: =IF(usaDistribucin2G3G="SI",PARAMETROS!$D$25,'LISTA CELDA'!Y101)*'CELDA RESUMEN'!AH101 -> 0 | BK101: =IF(usaDistribucin2G3G="SI",PARAMETROS!$D$26,'LISTA CELDA'!Z101)*'CELDA RESUMEN'!AH101 -> 0 | BL101: =IF(usaDistribucin2G3G="SI",PARAMETROS!$E$25,0) -> 0 | BM101: =IF(usaDistribucin2G3G="SI",PARAMETROS!$E$26,'LISTA CELDA'!AA101)*'CELDA RESUMEN'!AI101 -> 0
B102: 95 | C102: URBANA | D102: PROVINCIA | E102: NOR ORIENTE | F102: ANCASH | G102: PROVINCIA120 | H102: DISTRITO1064 | I102: 77 | J102: 4 | K102: 12 | L102: 22 | M102: 12 | N102: 3 | O102: IDCELL95 | P102: ID_LOCAL95 | Q102: 0 | R102: D | S102: MACRO | T102: FO | U102: 0.000198019802 | V102: 0.000198019802 | W102: 1 | X102: 1 | Y102: 0 | Z102: 0 | AA102: 0 | AB102: BSC27 | AC102: PROMEDIO | AD102: 1 | AE102: 1 | AF102: 1 | AG102: 0 | AH102: 0 | AI102: 0 | AJ102: 0 | AK102: PROMEDIO | AL102: 0 | AM102: 0 | AN102: 0 | AO102: 0 | AP102: 0 | AR102: PROMEDIO | AS102: 0 | AT102: 0 | AU102: 0 | AV102: 0 | AX102: D | AY102: 1.5 | AZ102: PROVINCIA120DISTRITO1064 | BB102: ANCASHURBANA | BC102: ANCASHMACRO | BD102: PROVINCIA URBANA | BH102: =IF(usaDistribucin2G3G="SI",PARAMETROS!$C$25,'LISTA CELDA'!W102)*'CELDA RESUMEN'!AG102 -> 0.4 | BI102: =IF(usaDistribucin2G3G="SI",PARAMETROS!$C$26,'LISTA CELDA'!X102)*'CELDA RESUMEN'!AG102 -> 0.02 | BJ102: =IF(usaDistribucin2G3G="SI",PARAMETROS!$D$25,'LISTA CELDA'!Y102)*'CELDA RESUMEN'!AH102 -> 0 | BK102: =IF(usaDistribucin2G3G="SI",PARAMETROS!$D$26,'LISTA CELDA'!Z102)*'CELDA RESUMEN'!AH102 -> 0 | BL102: =IF(usaDistribucin2G3G="SI",PARAMETROS!$E$25,0) -> 0 | BM102: =IF(usaDistribucin2G3G="SI",PARAMETROS!$E$26,'LISTA CELDA'!AA102)*'CELDA RESUMEN'!AI102 -> 0
B103: 96 | C103: URBANA | D103: PROVINCIA | E103: NOR ORIENTE | F103: ANCASH | G103: PROVINCIA164 | H103: DISTRITO11 | I103: 77 | J103: 4 | K103: 12 | L103: 22 | M103: 12 | N103: 3 | O103: IDCELL96 | P103: ID_LOCAL96 | Q103: 0 | R103: D | S103: MACRO | T103: FO | U103: 0.000198019802 | V103: 0.000198019802 | W103: 1 | X103: 1 | Y103: 0 | Z103: 0 | AA103: 0 | AB103: BSC27 | AC103: PROMEDIO | AD103: 1 | AE103: 1 | AF103: 1 | AG103: 0 | AH103: 0 | AI103: 0 | AJ103: 0 | AK103: PROMEDIO | AL103: 0 | AM103: 0 | AN103: 0 | AO103: 0 | AP103: 0 | AR103: PROMEDIO | AS103: 0 | AT103: 0 | AU103: 0 | AV103: 0 | AX103: D | AY103: 1.5 | AZ103: PROVINCIA164DISTRITO11 | BB103: ANCASHURBANA | BC103: ANCASHMACRO | BD103: PROVINCIA URBANA | BH103: =IF(usaDistribucin2G3G="SI",PARAMETROS!$C$25,'LISTA CELDA'!W103)*'CELDA RESUMEN'!AG103 -> 0.4 | BI103: =IF(usaDistribucin2G3G="SI",PARAMETROS!$C$26,'LISTA CELDA'!X103)*'CELDA RESUMEN'!AG103 -> 0.02 | BJ103: =IF(usaDistribucin2G3G="SI",PARAMETROS!$D$25,'LISTA CELDA'!Y103)*'CELDA RESUMEN'!AH103 -> 0 | BK103: =IF(usaDistribucin2G3G="SI",PARAMETROS!$D$26,'LISTA CELDA'!Z103)*'CELDA RESUMEN'!AH103 -> 0 | BL103: =IF(usaDistribucin2G3G="SI",PARAMETROS!$E$25,0) -> 0 | BM103: =IF(usaDistribucin2G3G="SI",PARAMETROS!$E$26,'LISTA CELDA'!AA103)*'CELDA RESUMEN'!AI103 -> 0
B104: 97 | C104: RURAL | D104: PROVINCIA | E104: NOR ORIENTE | F104: ANCASH | G104: PROVINCIA37 | H104: DISTRITO294 | I104: 77 | J104: 4 | K104: 12 | L104: 22 | M104: 12 | N104: 3 | O104: IDCELL97 | P104: ID_LOCAL97 | Q104: 0 | R104: D | S104: MACRO | T104: FO | U104: 0.000198019802 | V104: 0.000198019802 | W104: 1 | X104: 1 | Y104: 0 | Z104: 0 | AA104: 0 | AB104: BSC27 | AC104: PROMEDIO | AD104: 1 | AE104: 1 | AF104: 1 | AG104: 0 | AH104: 0 | AI104: 0 | AJ104: 0 | AK104: PROMEDIO | AL104: 0 | AM104: 0 | AN104: 0 | AO104: 0 | AP104: 0 | AR104: PROMEDIO | AS104: 0 | AT104: 0 | AU104: 0 | AV104: 0 | AX104: D | AY104: 1.5 | AZ104: PROVINCIA37DISTRITO294 | BB104: ANCASHRURAL | BC104: ANCASHMACRO | BD104: PROVINCIA RURAL | BH104: =IF(usaDistribucin2G3G="SI",PARAMETROS!$C$25,'LISTA CELDA'!W104)*'CELDA RESUMEN'!AG104 -> 0.4 | BI104: =IF(usaDistribucin2G3G="SI",PARAMETROS!$C$26,'LISTA CELDA'!X104)*'CELDA RESUMEN'!AG104 -> 0.02 | BJ104: =IF(usaDistribucin2G3G="SI",PARAMETROS!$D$25,'LISTA CELDA'!Y104)*'CELDA RESUMEN'!AH104 -> 0 | BK104: =IF(usaDistribucin2G3G="SI",PARAMETROS!$D$26,'LISTA CELDA'!Z104)*'CELDA RESUMEN'!AH104 -> 0 | BL104: =IF(usaDistribucin2G3G="SI",PARAMETROS!$E$25,0) -> 0 | BM104: =IF(usaDistribucin2G3G="SI",PARAMETROS!$E$26,'LISTA CELDA'!AA104)*'CELDA RESUMEN'!AI104 -> 0
B105: 98 | C105: RURAL | D105: PROVINCIA | E105: NOR ORIENTE | F105: ANCASH | G105: PROVINCIA194 | H105: DISTRITO210 | I105: 77 | J105: 4 | K105: 12 | L105: 22 | M105: 12 | N105: 3 | O105: IDCELL98 | P105: ID_LOCAL98 | Q105: 0 | R105: D | S105: MACRO | T105: FO | U105: 0.000198019802 | V105: 0.000198019802 | W105: 1 | X105: 1 | Y105: 0 | Z105: 0 | AA105: 0 | AB105: BSC27 | AC105: PROMEDIO | AD105: 1 | AE105: 1 | AF105: 1 | AG105: 0 | AH105: 0 | AI105: 0 | AJ105: 0 | AK105: PROMEDIO | AL105: 0 | AM105: 0 | AN105: 0 | AO105: 0 | AP105: 0 | AR105: PROMEDIO | AS105: 0 | AT105: 0 | AU105: 0 | AV105: 0 | AX105: D | AY105: 1.5 | AZ105: PROVINCIA194DISTRITO210 | BB105: ANCASHRURAL | BC105: ANCASHMACRO | BD105: PROVINCIA RURAL | BH105: =IF(usaDistribucin2G3G="SI",PARAMETROS!$C$25,'LISTA CELDA'!W105)*'CELDA RESUMEN'!AG105 -> 0.4 | BI105: =IF(usaDistribucin2G3G="SI",PARAMETROS!$C$26,'LISTA CELDA'!X105)*'CELDA RESUMEN'!AG105 -> 0.02 | BJ105: =IF(usaDistribucin2G3G="SI",PARAMETROS!$D$25,'LISTA CELDA'!Y105)*'CELDA RESUMEN'!AH105 -> 0 | BK105: =IF(usaDistribucin2G3G="SI",PARAMETROS!$D$26,'LISTA CELDA'!Z105)*'CELDA RESUMEN'!AH105 -> 0 | BL105: =IF(usaDistribucin2G3G="SI",PARAMETROS!$E$25,0) -> 0 | BM105: =IF(usaDistribucin2G3G="SI",PARAMETROS!$E$26,'LISTA CELDA'!AA105)*'CELDA RESUMEN'!AI105 -> 0
B106: 99 | C106: RURAL | D106: PROVINCIA | E106: NOR ORIENTE | F106: ANCASH | G106: PROVINCIA37 | H106: DISTRITO148 | I106: 77 | J106: 4 | K106: 12 | L106: 22 | M106: 12 | N106: 3 | O106: IDCELL99 | P106: ID_LOCAL99 | Q106: 0 | R106: D | S106: MACRO | T106: FO | U106: 0.000198019802 | V106: 0.000198019802 | W106: 1 | X106: 1 | Y106: 0 | Z106: 0 | AA106: 0 | AB106: BSC27 | AC106: PROMEDIO | AD106: 1 | AE106: 1 | AF106: 1 | AG106: 0 | AH106: 0 | AI106: 0 | AJ106: 0 | AK106: PROMEDIO | AL106: 0 | AM106: 0 | AN106: 0 | AO106: 0 | AP106: 0 | AR106: PROMEDIO | AS106: 0 | AT106: 0 | AU106: 0 | AV106: 0 | AX106: D | AY106: 1.5 | AZ106: PROVINCIA37DISTRITO148 | BB106: ANCASHRURAL | BC106: ANCASHMACRO | BD106: PROVINCIA RURAL | BH106: =IF(usaDistribucin2G3G="SI",PARAMETROS!$C$25,'LISTA CELDA'!W106)*'CELDA RESUMEN'!AG106 -> 0.4 | BI106: =IF(usaDistribucin2G3G="SI",PARAMETROS!$C$26,'LISTA CELDA'!X106)*'CELDA RESUMEN'!AG106 -> 0.02 | BJ106: =IF(usaDistribucin2G3G="SI",PARAMETROS!$D$25,'LISTA CELDA'!Y106)*'CELDA RESUMEN'!AH106 -> 0 | BK106: =IF(usaDistribucin2G3G="SI",PARAMETROS!$D$26,'LISTA CELDA'!Z106)*'CELDA RESUMEN'!AH106 -> 0 | BL106: =IF(usaDistribucin2G3G="SI",PARAMETROS!$E$25,0) -> 0 | BM106: =IF(usaDistribucin2G3G="SI",PARAMETROS!$E$26,'LISTA CELDA'!AA106)*'CELDA RESUMEN'!AI106 -> 0
B107: 100 | C107: RURAL | D107: PROVINCIA | E107: NOR ORIENTE | F107: ANCASH | G107: PROVINCIA37 | H107: DISTRITO477 | I107: 77 | J107: 4 | K107: 12 | L107: 22 | M107: 12 | N107: 3 | O107: IDCELL100 | P107: ID_LOCAL100 | Q107: 0 | R107: D | S107: MACRO | T107: FO | U107: 0.000198019802 | V107: 0.000198019802 | W107: 1 | X107: 1 | Y107: 0 | Z107: 0 | AA107: 0 | AB107: BSC12 | AC107: PROMEDIO | AD107: 1 | AE107: 1 | AF107: 1 | AG107: 0 | AH107: 0 | AI107: 0 | AJ107: 0 | AK107: PROMEDIO | AL107: 0 | AM107: 0 | AN107: 0 | AO107: 0 | AP107: 0 | AR107: PROMEDIO | AS107: 0 | AT107: 0 | AU107: 0 | AV107: 0 | AX107: D | AY107: 1.5 | AZ107: PROVINCIA37DISTRITO477 | BB107: ANCASHRURAL | BC107: ANCASHMACRO | BD107: PROVINCIA RURAL | BH107: =IF(usaDistribucin2G3G="SI",PARAMETROS!$C$25,'LISTA CELDA'!W107)*'CELDA RESUMEN'!AG107 -> 0.4 | BI107: =IF(usaDistribucin2G3G="SI",PARAMETROS!$C$26,'LISTA CELDA'!X107)*'CELDA RESUMEN'!AG107 -> 0.02 | BJ107: =IF(usaDistribucin2G3G="SI",PARAMETROS!$D$25,'LISTA CELDA'!Y107)*'CELDA RESUMEN'!AH107 -> 0 | BK107: =IF(usaDistribucin2G3G="SI",PARAMETROS!$D$26,'LISTA CELDA'!Z107)*'CELDA RESUMEN'!AH107 -> 0 | BL107: =IF(usaDistribucin2G3G="SI",PARAMETROS!$E$25,0) -> 0 | BM107: =IF(usaDistribucin2G3G="SI",PARAMETROS!$E$26,'LISTA CELDA'!AA107)*'CELDA RESUMEN'!AI107 -> 0
B108: 101 | C108: URBANA | D108: PROVINCIA | E108: NOR ORIENTE | F108: ANCASH | G108: PROVINCIA239 | H108: DISTRITO1288 | I108: 77 | J108: 4 | K108: 12 | L108: 22 | M108: 12 | N108: 3 | O108: IDCELL101 | P108: ID_LOCAL101 | Q108: 0 | R108: D | S108: MACRO | T108: FO | U108: 0.000198019802 | V108: 0.000198019802 | W108: 1 | X108: 1 | Y108: 0 | Z108: 0 | AA108: 0 | AB108: BSC27 | AC108: PROMEDIO | AD108: 1 | AE108: 0.7578142663 | AF108: 0.7578142663 | AG108: 1 | AH108: 0.2421857337 | AI108: 0.2421857337 | AJ108: 0 | AK108: PROMEDIO | AL108: 0 | AM108: 0 | AN108: 0 | AO108: 0 | AP108: 0 | AR108: PROMEDIO | AS108: 0 | AT108: 0 | AU108: 0 | AV108: 0 | AX108: D | AY108: 1.5 | AZ108: PROVINCIA239DISTRITO1288 | BB108: ANCASHURBANA | BC108: ANCASHMACRO | BD108: PROVINCIA URBANA | BH108: =IF(usaDistribucin2G3G="SI",PARAMETROS!$C$25,'LISTA CELDA'!W108)*'CELDA RESUMEN'!AG108 -> 0.4 | BI108: =IF(usaDistribucin2G3G="SI",PARAMETROS!$C$26,'LISTA CELDA'!X108)*'CELDA RESUMEN'!AG108 -> 0.02 | BJ108: =IF(usaDistribucin2G3G="SI",PARAMETROS!$D$25,'LISTA CELDA'!Y108)*'CELDA RESUMEN'!AH108 -> 0 | BK108: =IF(usaDistribucin2G3G="SI",PARAMETROS!$D$26,'LISTA CELDA'!Z108)*'CELDA RESUMEN'!AH108 -> 0 | BL108: =IF(usaDistribucin2G3G="SI",PARAMETROS!$E$25,0) -> 0 | BM108: =IF(usaDistribucin2G3G="SI",PARAMETROS!$E$26,'LISTA CELDA'!AA108)*'CELDA RESUMEN'!AI108 -> 0
B109: 102 | C109: RURAL | D109: PROVINCIA | E109: NOR ORIENTE | F109: ANCASH | G109: PROVINCIA124 | H109: DISTRITO192 | I109: 77 | J109: 4 | K109: 12 | L109: 22 | M109: 12 | N109: 3 | O109: IDCELL102 | P109: ID_LOCAL102 | Q109: 0 | R109: D | S109: MACRO | T109: FO | U109: 0.000198019802 | V109: 0.000198019802 | W109: 0.71 | X109: 0.1 | Y109: 0.39 | Z109: 0.7 | AA109: 0.2 | AB109: BSC27 | AC109: PROMEDIO | AD109: 1 | AE109: 0.663201086 | AF109: 0.663201086 | AG109: 1 | AH109: 0.336798914 | AI109: 0.336798914 | AJ109: RNC16 | AK109: PROMEDIO | AL109: 1 | AM109: 0.8815384414 | AN109: 0.1045627723 | AO109: 0.005403422994 | AP109: 0.009134443846 | AQ109: RNC16 | AR109: PROMEDIO | AS109: 1 | AT109: 0.5 | AU109: 1 | AV109: 0.5 | AX109: D | AY109: 1.5 | AZ109: PROVINCIA124DISTRITO192 | BB109: ANCASHRURAL | BC109: ANCASHMACRO | BD109: PROVINCIA RURAL | BH109: =IF(usaDistribucin2G3G="SI",PARAMETROS!$C$25,'LISTA CELDA'!W109)*'CELDA RESUMEN'!AG109 -> 0.4 | BI109: =IF(usaDistribucin2G3G="SI",PARAMETROS!$C$26,'LISTA CELDA'!X109)*'CELDA RESUMEN'!AG109 -> 0.02 | BJ109: =IF(usaDistribucin2G3G="SI",PARAMETROS!$D$25,'LISTA CELDA'!Y109)*'CELDA RESUMEN'!AH109 -> 0.6 | BK109: =IF(usaDistribucin2G3G="SI",PARAMETROS!$D$26,'LISTA CELDA'!Z109)*'CELDA RESUMEN'!AH109 -> 0.33 | BL109: =IF(usaDistribucin2G3G="SI",PARAMETROS!$E$25,0) -> 0 | BM109: =IF(usaDistribucin2G3G="SI",PARAMETROS!$E$26,'LISTA CELDA'!AA109)*'CELDA RESUMEN'!AI109 -> 0.65
B110: 103 | C110: URBANA | D110: PROVINCIA | E110: NOR ORIENTE | F110: ANCASH | G110: PROVINCIA124 | H110: DISTRITO192 | I110: 77 | J110: 4 | K110: 12 | L110: 22 | M110: 12 | N110: 3 | O110: IDCELL103 | P110: ID_LOCAL103 | Q110: 0 | R110: D | S110: MACRO | T110: FO | U110: 0.000198019802 | V110: 0.000198019802 | W110: 0.71 | X110: 0.1 | Y110: 0.39 | Z110: 0.7 | AA110: 0.2 | AB110: BSC27 | AC110: PROMEDIO | AD110: 1 | AE110: 1 | AF110: 1 | AG110: 0 | AH110: 0 | AI110: 0 | AJ110: RNC16 | AK110: PROMEDIO | AL110: 1 | AM110: 0.8815384414 | AN110: 0.1045627723 | AO110: 0.005403422994 | AP110: 0.009134443846 | AQ110: RNC16 | AR110: PROMEDIO | AS110: 1 | AT110: 0.5 | AU110: 1 | AV110: 0.5 | AX110: D | AY110: 1.5 | AZ110: PROVINCIA124DISTRITO192 | BB110: ANCASHURBANA | BC110: ANCASHMACRO | BD110: PROVINCIA URBANA | BH110: =IF(usaDistribucin2G3G="SI",PARAMETROS!$C$25,'LISTA CELDA'!W110)*'CELDA RESUMEN'!AG110 -> 0.4 | BI110: =IF(usaDistribucin2G3G="SI",PARAMETROS!$C$26,'LISTA CELDA'!X110)*'CELDA RESUMEN'!AG110 -> 0.02 | BJ110: =IF(usaDistribucin2G3G="SI",PARAMETROS!$D$25,'LISTA CELDA'!Y110)*'CELDA RESUMEN'!AH110 -> 0.6 | BK110: =IF(usaDistribucin2G3G="SI",PARAMETROS!$D$26,'LISTA CELDA'!Z110)*'CELDA RESUMEN'!AH110 -> 0.33 | BL110: =IF(usaDistribucin2G3G="SI",PARAMETROS!$E$25,0) -> 0 | BM110: =IF(usaDistribucin2G3G="SI",PARAMETROS!$E$26,'LISTA CELDA'!AA110)*'CELDA RESUMEN'!AI110 -> 0.65
B111: 104 | C111: URBANA | D111: PROVINCIA | E111: NOR ORIENTE | F111: ANCASH | G111: PROVINCIA239 | H111: DISTRITO749 | I111: 77 | J111: 4 | K111: 12 | L111: 22 | M111: 12 | N111: 3 | O111: IDCELL104 | P111: ID_LOCAL104 | Q111: 0 | R111: D | S111: MACRO | T111: FO | U111: 0.000198019802 | V111: 0.000198019802 | W111: 0.71 | X111: 0.1 | Y111: 0.39 | Z111: 0.7 | AA111: 0.2 | AB111: BSC27 | AC111: PROMEDIO | AD111: 1 | AE111: 1 | AF111: 1 | AG111: 0 | AH111: 0 | AI111: 0 | AJ111: RNC16 | AK111: PROMEDIO | AL111: 1 | AM111: 0.8815384414 | AN111: 0.1045627723 | AO111: 0.005403422994 | AP111: 0.009134443846 | AQ111: RNC16 | AR111: PROMEDIO | AS111: 1 | AT111: 0.5 | AU111: 1 | AV111: 0.5 | AX111: D | AY111: 1.5 | AZ111: PROVINCIA239DISTRITO749 | BB111: ANCASHURBANA | BC111: ANCASHMACRO | BD111: PROVINCIA URBANA | BH111: =IF(usaDistribucin2G3G="SI",PARAMETROS!$C$25,'LISTA CELDA'!W111)*'CELDA RESUMEN'!AG111 -> 0.4 | BI111: =IF(usaDistribucin2G3G="SI",PARAMETROS!$C$26,'LISTA CELDA'!X111)*'CELDA RESUMEN'!AG111 -> 0.02 | BJ111: =IF(usaDistribucin2G3G="SI",PARAMETROS!$D$25,'LISTA CELDA'!Y111)*'CELDA RESUMEN'!AH111 -> 0.6 | BK111: =IF(usaDistribucin2G3G="SI",PARAMETROS!$D$26,'LISTA CELDA'!Z111)*'CELDA RESUMEN'!AH111 -> 0.33 | BL111: =IF(usaDistribucin2G3G="SI",PARAMETROS!$E$25,0) -> 0 | BM111: =IF(usaDistribucin2G3G="SI",PARAMETROS!$E$26,'LISTA CELDA'!AA111)*'CELDA RESUMEN'!AI111 -> 0.65
B112: 105 | C112: URBANA | D112: PROVINCIA | E112: NOR ORIENTE | F112: ANCASH | G112: PROVINCIA239 | H112: DISTRITO1488 | I112: 77 | J112: 4 | K112: 12 | L112: 22 | M112: 12 | N112: 3 | O112: IDCELL105 | P112: ID_LOCAL105 | Q112: 0 | R112: D | S112: MACRO | T112: FO | U112: 0.000198019802 | V112: 0.000198019802 | W112: 1 | X112: 0.1 | Y112: 0 | Z112: 0.7 | AA112: 0.2 | AB112: BSC27 | AC112: PROMEDIO | AD112: 1 | AE112: 1 | AF112: 1 | AG112: 0 | AH112: 0 | AI112: 0 | AJ112: RNC16 | AK112: PROMEDIO | AL112: 1 | AM112: 0.8815384414 | AN112: 0.1045627723 | AO112: 0.005403422994 | AP112: 0.009134443846 | AQ112: RNC16 | AR112: PROMEDIO | AS112: 1 | AT112: 0.5 | AU112: 1 | AV112: 0.5 | AX112: D | AY112: 1.5 | AZ112: PROVINCIA239DISTRITO1488 | BB112: ANCASHURBANA | BC112: ANCASHMACRO | BD112: PROVINCIA URBANA | BH112: =IF(usaDistribucin2G3G="SI",PARAMETROS!$C$25,'LISTA CELDA'!W112)*'CELDA RESUMEN'!AG112 -> 0.4 | BI112: =IF(usaDistribucin2G3G="SI",PARAMETROS!$C$26,'LISTA CELDA'!X112)*'CELDA RESUMEN'!AG112 -> 0.02 | BJ112: =IF(usaDistribucin2G3G="SI",PARAMETROS!$D$25,'LISTA CELDA'!Y112)*'CELDA RESUMEN'!AH112 -> 0.6 | BK112: =IF(usaDistribucin2G3G="SI",PARAMETROS!$D$26,'LISTA CELDA'!Z112)*'CELDA RESUMEN'!AH112 -> 0.33 | BL112: =IF(usaDistribucin2G3G="SI",PARAMETROS!$E$25,0) -> 0 | BM112: =IF(usaDistribucin2G3G="SI",PARAMETROS!$E$26,'LISTA CELDA'!AA112)*'CELDA RESUMEN'!AI112 -> 0.65
B113: 106 | C113: RURAL | D113: PROVINCIA | E113: NOR ORIENTE | F113: ANCASH | G113: PROVINCIA58 | H113: DISTRITO197 | I113: 77 | J113: 4 | K113: 12 | L113: 22 | M113: 12 | N113: 3 | O113: IDCELL106 | P113: ID_LOCAL106 | Q113: 0 | R113: D | S113: MACRO | T113: FO | U113: 0.000198019802 | V113: 0.000198019802 | W113: 1 | X113: 1 | Y113: 0 | Z113: 0 | AA113: 0 | AB113: BSC27 | AC113: PROMEDIO | AD113: 1 | AE113: 0.7758967482 | AF113: 0.7758967482 | AG113: 1 | AH113: 0.2241032518 | AI113: 0.2241032518 | AJ113: 0 | AK113: PROMEDIO | AL113: 0 | AM113: 0 | AN113: 0 | AO113: 0 | AP113: 0 | AR113: PROMEDIO | AS113: 0 | AT113: 0 | AU113: 0 | AV113: 0 | AX113: D | AY113: 1.5 | AZ113: PROVINCIA58DISTRITO197 | BB113: ANCASHRURAL | BC113: ANCASHMACRO | BD113: PROVINCIA RURAL | BH113: =IF(usaDistribucin2G3G="SI",PARAMETROS!$C$25,'LISTA CELDA'!W113)*'CELDA RESUMEN'!AG113 -> 0.4 | BI113: =IF(usaDistribucin2G3G="SI",PARAMETROS!$C$26,'LISTA CELDA'!X113)*'CELDA RESUMEN'!AG113 -> 0.02 | BJ113: =IF(usaDistribucin2G3G="SI",PARAMETROS!$D$25,'LISTA CELDA'!Y113)*'CELDA RESUMEN'!AH113 -> 0 | BK113: =IF(usaDistribucin2G3G="SI",PARAMETROS!$D$26,'LISTA CELDA'!Z113)*'CELDA RESUMEN'!AH113 -> 0 | BL113: =IF(usaDistribucin2G3G="SI",PARAMETROS!$E$25,0) -> 0 | BM113: =IF(usaDistribucin2G3G="SI",PARAMETROS!$E$26,'LISTA CELDA'!AA113)*'CELDA RESUMEN'!AI113 -> 0
B114: 107 | C114: URBANA | D114: PROVINCIA | E114: NOR ORIENTE | F114: Ancash | G114: PROVINCIA58 | H114: DISTRITO197 | I114: 77 | J114: 4 | K114: 12 | L114: 22 | M114: 12 | N114: 3 | O114: IDCELL107 | P114: ID_LOCAL107 | Q114: 0 | R114: D | S114: MACRO | T114: FO | U114: 0.000198019802 | V114: 0.000198019802 | W114: 0.71 | X114: 0.1 | Y114: 0.39 | Z114: 0.7 | AA114: 0.2 | AB114: BSC27 | AC114: PROMEDIO | AD114: 0 | AE114: 0 | AF114: 0 | AG114: 1 | AH114: 1 | AI114: 1 | AJ114: RNC16 | AK114: PROMEDIO | AL114: 1 | AM114: 0.8815384414 | AN114: 0.1045627723 | AO114: 0.005403422994 | AP114: 0.009134443846 | AQ114: RNC16 | AR114: PROMEDIO | AS114: 1 | AT114: 0.5 | AU114: 1 | AV114: 0.5 | AX114: D | AY114: 1.5 | AZ114: PROVINCIA58DISTRITO197 | BB114: AncashURBANA | BC114: AncashMACRO | BD114: PROVINCIA URBANA | BH114: =IF(usaDistribucin2G3G="SI",PARAMETROS!$C$25,'LISTA CELDA'!W114)*'CELDA RESUMEN'!AG114 -> 0.4 | BI114: =IF(usaDistribucin2G3G="SI",PARAMETROS!$C$26,'LISTA CELDA'!X114)*'CELDA RESUMEN'!AG114 -> 0.02 | BJ114: =IF(usaDistribucin2G3G="SI",PARAMETROS!$D$25,'LISTA CELDA'!Y114)*'CELDA RESUMEN'!AH114 -> 0.6 | BK114: =IF(usaDistribucin2G3G="SI",PARAMETROS!$D$26,'LISTA CELDA'!Z114)*'CELDA RESUMEN'!AH114 -> 0.33 | BL114: =IF(usaDistribucin2G3G="SI",PARAMETROS!$E$25,0) -> 0 | BM114: =IF(usaDistribucin2G3G="SI",PARAMETROS!$E$26,'LISTA CELDA'!AA114)*'CELDA RESUMEN'!AI114 -> 0.65
B115: 108 | C115: RURAL | D115: PROVINCIA | E115: NOR ORIENTE | F115: ANCASH | G115: PROVINCIA58 | H115: DISTRITO764 | I115: 77 | J115: 4 | K115: 12 | L115: 22 | M115: 12 | N115: 3 | O115: IDCELL108 | P115: ID_LOCAL108 | Q115: 0 | R115: D | S115: MACRO | T115: FO | U115: 0.000198019802 | V115: 0.000198019802 | W115: 0.71 | X115: 0.1 | Y115: 0.39 | Z115: 0.7 | AA115: 0.2 | AB115: BSC27 | AC115: PROMEDIO | AD115: 1 | AE115: 1 | AF115: 1 | AG115: 0 | AH115: 0 | AI115: 0 | AJ115: RNC16 | AK115: PROMEDIO | AL115: 1 | AM115: 0.8815384414 | AN115: 0.1045627723 | AO115: 0.005403422994 | AP115: 0.009134443846 | AQ115: RNC16 | AR115: PROMEDIO | AS115: 1 | AT115: 0.5 | AU115: 1 | AV115: 0.5 | AX115: D | AY115: 1.5 | AZ115: PROVINCIA58DISTRITO764 | BB115: ANCASHRURAL | BC115: ANCASHMACRO | BD115: PROVINCIA RURAL | BH115: =IF(usaDistribucin2G3G="SI",PARAMETROS!$C$25,'LISTA CELDA'!W115)*'CELDA RESUMEN'!AG115 -> 0.4 | BI115: =IF(usaDistribucin2G3G="SI",PARAMETROS!$C$26,'LISTA CELDA'!X115)*'CELDA RESUMEN'!AG115 -> 0.02 | BJ115: =IF(usaDistribucin2G3G="SI",PARAMETROS!$D$25,'LISTA CELDA'!Y115)*'CELDA RESUMEN'!AH115 -> 0.6 | BK115: =IF(usaDistribucin2G3G="SI",PARAMETROS!$D$26,'LISTA CELDA'!Z115)*'CELDA RESUMEN'!AH115 -> 0.33 | BL115: =IF(usaDistribucin2G3G="SI",PARAMETROS!$E$25,0) -> 0 | BM115: =IF(usaDistribucin2G3G="SI",PARAMETROS!$E$26,'LISTA CELDA'!AA115)*'CELDA RESUMEN'!AI115 -> 0.65
B116: 109 | C116: RURAL | D116: PROVINCIA | E116: NOR ORIENTE | F116: ANCASH | G116: PROVINCIA119 | H116: DISTRITO573 | I116: 77 | J116: 4 | K116: 12 | L116: 22 | M116: 12 | N116: 3 | O116: IDCELL109 | P116: ID_LOCAL109 | Q116: 0 | R116: D | S116: MACRO | T116: FO | U116: 0.000198019802 | V116: 0.000198019802 | W116: 0.71 | X116: 0.1 | Y116: 0.39 | Z116: 0.7 | AA116: 0.2 | AB116: BSC27 | AC116: PROMEDIO | AD116: 0 | AE116: 0 | AF116: 0 | AG116: 1 | AH116: 1 | AI116: 1 | AJ116: RNC16 | AK116: PROMEDIO | AL116: 1 | AM116: 0.8815384414 | AN116: 0.1045627723 | AO116: 0.005403422994 | AP116: 0.009134443846 | AQ116: RNC16 | AR116: PROMEDIO | AS116: 1 | AT116: 0.5 | AU116: 1 | AV116: 0.5 | AX116: D | AY116: 1.5 | AZ116: PROVINCIA119DISTRITO573 | BB116: ANCASHRURAL | BC116: ANCASHMACRO | BD116: PROVINCIA RURAL | BH116: =IF(usaDistribucin2G3G="SI",PARAMETROS!$C$25,'LISTA CELDA'!W116)*'CELDA RESUMEN'!AG116 -> 0.4 | BI116: =IF(usaDistribucin2G3G="SI",PARAMETROS!$C$26,'LISTA CELDA'!X116)*'CELDA RESUMEN'!AG116 -> 0.02 | BJ116: =IF(usaDistribucin2G3G="SI",PARAMETROS!$D$25,'LISTA CELDA'!Y116)*'CELDA RESUMEN'!AH116 -> 0.6 | BK116: =IF(usaDistribucin2G3G="SI",PARAMETROS!$D$26,'LISTA CELDA'!Z116)*'CELDA RESUMEN'!AH116 -> 0.33 | BL116: =IF(usaDistribucin2G3G="SI",PARAMETROS!$E$25,0) -> 0 | BM116: =IF(usaDistribucin2G3G="SI",PARAMETROS!$E$26,'LISTA CELDA'!AA116)*'CELDA RESUMEN'!AI116 -> 0.65
B117: 110 | C117: RURAL | D117: PROVINCIA | E117: NOR ORIENTE | F117: ANCASH | G117: PROVINCIA119 | H117: DISTRITO520 | I117: 77 | J117: 4 | K117: 12 | L117: 22 | M117: 12 | N117: 3 | O117: IDCELL110 | P117: ID_LOCAL110 | Q117: 0 | R117: D | S117: MACRO | T117: FO | U117: 0.000198019802 | V117: 0.000198019802 | W117: 0.71 | X117: 0.1 | Y117: 0.39 | Z117: 0.7 | AA117: 0.2 | AB117: BSC27 | AC117: PROMEDIO | AD117: 1 | AE117: 0.467605264 | AF117: 0.467605264 | AG117: 1 | AH117: 0.532394736 | AI117: 0.532394736 | AJ117: RNC16 | AK117: PROMEDIO | AL117: 1 | AM117: 0.8815384414 | AN117: 0.1045627723 | AO117: 0.005403422994 | AP117: 0.009134443846 | AQ117: RNC16 | AR117: PROMEDIO | AS117: 1 | AT117: 0.5 | AU117: 1 | AV117: 0.5 | AX117: D | AY117: 1.5 | AZ117: PROVINCIA119DISTRITO520 | BB117: ANCASHRURAL | BC117: ANCASHMACRO | BD117: PROVINCIA RURAL | BH117: =IF(usaDistribucin2G3G="SI",PARAMETROS!$C$25,'LISTA CELDA'!W117)*'CELDA RESUMEN'!AG117 -> 0.4 | BI117: =IF(usaDistribucin2G3G="SI",PARAMETROS!$C$26,'LISTA CELDA'!X117)*'CELDA RESUMEN'!AG117 -> 0.02 | BJ117: =IF(usaDistribucin2G3G="SI",PARAMETROS!$D$25,'LISTA CELDA'!Y117)*'CELDA RESUMEN'!AH117 -> 0.6 | BK117: =IF(usaDistribucin2G3G="SI",PARAMETROS!$D$26,'LISTA CELDA'!Z117)*'CELDA RESUMEN'!AH117 -> 0.33 | BL117: =IF(usaDistribucin2G3G="SI",PARAMETROS!$E$25,0) -> 0 | BM117: =IF(usaDistribucin2G3G="SI",PARAMETROS!$E$26,'LISTA CELDA'!AA117)*'CELDA RESUMEN'!AI117 -> 0.65
B118: 111 | C118: URBANA | D118: PROVINCIA | E118: NOR ORIENTE | F118: Ancash | G118: PROVINCIA119 | H118: DISTRITO520 | I118: 77 | J118: 4 | K118: 12 | L118: 22 | M118: 12 | N118: 3 | O118: IDCELL111 | P118: ID_LOCAL111 | Q118: 0 | R118: D | S118: MACRO | T118: FO | U118: 0.000198019802 | V118: 0.000198019802 | W118: 0.71 | X118: 0.1 | Y118: 0.39 | Z118: 0.7 | AA118: 0.2 | AB118: BSC27 | AC118: PROMEDIO | AD118: 1 | AE118: 0.4055047711 | AF118: 0.4055047711 | AG118: 1 | AH118: 0.5944952289 | AI118: 0.5944952289 | AJ118: RNC16 | AK118: PROMEDIO | AL118: 1 | AM118: 0.8815384414 | AN118: 0.1045627723 | AO118: 0.005403422994 | AP118: 0.009134443846 | AQ118: RNC16 | AR118: PROMEDIO | AS118: 1 | AT118: 0.5 | AU118: 1 | AV118: 0.5 | AX118: D | AY118: 1.5 | AZ118: PROVINCIA119DISTRITO520 | BB118: AncashURBANA | BC118: AncashMACRO | BD118: PROVINCIA URBANA | BH118: =IF(usaDistribucin2G3G="SI",PARAMETROS!$C$25,'LISTA CELDA'!W118)*'CELDA RESUMEN'!AG118 -> 0.4 | BI118: =IF(usaDistribucin2G3G="SI",PARAMETROS!$C$26,'LISTA CELDA'!X118)*'CELDA RESUMEN'!AG118 -> 0.02 | BJ118: =IF(usaDistribucin2G3G="SI",PARAMETROS!$D$25,'LISTA CELDA'!Y118)*'CELDA RESUMEN'!AH118 -> 0.6 | BK118: =IF(usaDistribucin2G3G="SI",PARAMETROS!$D$26,'LISTA CELDA'!Z118)*'CELDA RESUMEN'!AH118 -> 0.33 | BL118: =IF(usaDistribucin2G3G="SI",PARAMETROS!$E$25,0) -> 0 | BM118: =IF(usaDistribucin2G3G="SI",PARAMETROS!$E$26,'LISTA CELDA'!AA118)*'CELDA RESUMEN'!AI118 -> 0.65
B119: 112 | C119: URBANA | D119: PROVINCIA | E119: NOR ORIENTE | F119: ANCASH | G119: PROVINCIA119 | H119: DISTRITO520 | I119: 77 | J119: 4 | K119: 12 | L119: 22 | M119: 12 | N119: 3 | O119: IDCELL112 | P119: ID_LOCAL112 | Q119: 0 | R119: D | S119: MACRO | T119: FO | U119: 0.000198019802 | V119: 0.000198019802 | W119: 0.71 | X119: 0.1 | Y119: 0.39 | Z119: 0.7 | AA119: 0.2 | AB119: BSC27 | AC119: PROMEDIO | AD119: 1 | AE119: 0.3470210127 | AF119: 0.3470210127 | AG119: 1 | AH119: 0.6529789873 | AI119: 0.6529789873 | AJ119: RNC16 | AK119: PROMEDIO | AL119: 1 | AM119: 0.8815384414 | AN119: 0.1045627723 | AO119: 0.005403422994 | AP119: 0.009134443846 | AQ119: RNC16 | AR119: PROMEDIO | AS119: 1 | AT119: 0.5 | AU119: 1 | AV119: 0.5 | AX119: D | AY119: 1.5 | AZ119: PROVINCIA119DISTRITO520 | BB119: ANCASHURBANA | BC119: ANCASHMACRO | BD119: PROVINCIA URBANA | BH119: =IF(usaDistribucin2G3G="SI",PARAMETROS!$C$25,'LISTA CELDA'!W119)*'CELDA RESUMEN'!AG119 -> 0.4 | BI119: =IF(usaDistribucin2G3G="SI",PARAMETROS!$C$26,'LISTA CELDA'!X119)*'CELDA RESUMEN'!AG119 -> 0.02 | BJ119: =IF(usaDistribucin2G3G="SI",PARAMETROS!$D$25,'LISTA CELDA'!Y119)*'CELDA RESUMEN'!AH119 -> 0.6 | BK119: =IF(usaDistribucin2G3G="SI",PARAMETROS!$D$26,'LISTA CELDA'!Z119)*'CELDA RESUMEN'!AH119 -> 0.33 | BL119: =IF(usaDistribucin2G3G="SI",PARAMETROS!$E$25,0) -> 0 | BM119: =IF(usaDistribucin2G3G="SI",PARAMETROS!$E$26,'LISTA CELDA'!AA119)*'CELDA RESUMEN'!AI119 -> 0.65
B120: 113 | C120: URBANA | D120: PROVINCIA | E120: NOR ORIENTE | F120: ANCASH | G120: PROVINCIA119 | H120: DISTRITO520 | I120: 77 | J120: 4 | K120: 12 | L120: 22 | M120: 12 | N120: 3 | O120: IDCELL113 | P120: ID_LOCAL113 | Q120: 0 | R120: D | S120: MACRO | T120: FO | U120: 0.000198019802 | V120: 0.000198019802 | W120: 0.71 | X120: 0.1 | Y120: 0.39 | Z120: 0.7 | AA120: 0.2 | AB120: BSC27 | AC120: PROMEDIO | AD120: 1 | AE120: 0.300736129 | AF120: 0.300736129 | AG120: 1 | AH120: 0.699263871 | AI120: 0.699263871 | AJ120: RNC16 | AK120: PROMEDIO | AL120: 1 | AM120: 0.8815384414 | AN120: 0.1045627723 | AO120: 0.005403422994 | AP120: 0.009134443846 | AQ120: RNC16 | AR120: PROMEDIO | AS120: 1 | AT120: 0.5 | AU120: 1 | AV120: 0.5 | AX120: D | AY120: 1.5 | AZ120: PROVINCIA119DISTRITO520 | BB120: ANCASHURBANA | BC120: ANCASHMACRO | BD120: PROVINCIA URBANA | BH120: =IF(usaDistribucin2G3G="SI",PARAMETROS!$C$25,'LISTA CELDA'!W120)*'CELDA RESUMEN'!AG120 -> 0.4 | BI120: =IF(usaDistribucin2G3G="SI",PARAMETROS!$C$26,'LISTA CELDA'!X120)*'CELDA RESUMEN'!AG120 -> 0.02 | BJ120: =IF(usaDistribucin2G3G="SI",PARAMETROS!$D$25,'LISTA CELDA'!Y120)*'CELDA RESUMEN'!AH120 -> 0.6 | BK120: =IF(usaDistribucin2G3G="SI",PARAMETROS!$D$26,'LISTA CELDA'!Z120)*'CELDA RESUMEN'!AH120 -> 0.33 | BL120: =IF(usaDistribucin2G3G="SI",PARAMETROS!$E$25,0) -> 0 | BM120: =IF(usaDistribucin2G3G="SI",PARAMETROS!$E$26,'LISTA CELDA'!AA120)*'CELDA RESUMEN'!AI120 -> 0.65
B121: 114 | C121: URBANA | D121: PROVINCIA | E121: NOR ORIENTE | F121: ANCASH | G121: PROVINCIA119 | H121: DISTRITO573 | I121: 77 | J121: 4 | K121: 12 | L121: 22 | M121: 12 | N121: 3 | O121: IDCELL114 | P121: ID_LOCAL114 | Q121: 0 | R121: D | S121: MACRO | T121: FO | U121: 0.000198019802 | V121: 0.000198019802 | W121: 0.71 | X121: 0.1 | Y121: 0.39 | Z121: 0.7 | AA121: 0.2 | AB121: BSC27 | AC121: PROMEDIO | AD121: 1 | AE121: 0.4296030734 | AF121: 0.4296030734 | AG121: 1 | AH121: 0.5703969266 | AI121: 0.5703969266 | AJ121: RNC16 | AK121: PROMEDIO | AL121: 1 | AM121: 0.8815384414 | AN121: 0.1045627723 | AO121: 0.005403422994 | AP121: 0.009134443846 | AQ121: RNC16 | AR121: PROMEDIO | AS121: 1 | AT121: 0.5 | AU121: 1 | AV121: 0.5 | AX121: D | AY121: 1.5 | AZ121: PROVINCIA119DISTRITO573 | BB121: ANCASHURBANA | BC121: ANCASHMACRO | BD121: PROVINCIA URBANA | BH121: =IF(usaDistribucin2G3G="SI",PARAMETROS!$C$25,'LISTA CELDA'!W121)*'CELDA RESUMEN'!AG121 -> 0.4 | BI121: =IF(usaDistribucin2G3G="SI",PARAMETROS!$C$26,'LISTA CELDA'!X121)*'CELDA RESUMEN'!AG121 -> 0.02 | BJ121: =IF(usaDistribucin2G3G="SI",PARAMETROS!$D$25,'LISTA CELDA'!Y121)*'CELDA RESUMEN'!AH121 -> 0.6 | BK121: =IF(usaDistribucin2G3G="SI",PARAMETROS!$D$26,'LISTA CELDA'!Z121)*'CELDA RESUMEN'!AH121 -> 0.33 | BL121: =IF(usaDistribucin2G3G="SI",PARAMETROS!$E$25,0) -> 0 | BM121: =IF(usaDistribucin2G3G="SI",PARAMETROS!$E$26,'LISTA CELDA'!AA121)*'CELDA RESUMEN'!AI121 -> 0.65
B122: 115 | C122: RURAL | D122: PROVINCIA | E122: NOR ORIENTE | F122: Ancash | G122: PROVINCIA119 | H122: DISTRITO520 | I122: 77 | J122: 4 | K122: 12 | L122: 22 | M122: 12 | N122: 3 | O122: IDCELL115 | P122: ID_LOCAL115 | Q122: 0 | R122: D | S122: MACRO | T122: FO | U122: 0.000198019802 | V122: 0.000198019802 | W122: 0.71 | X122: 0.1 | Y122: 0.39 | Z122: 0.7 | AA122: 0.2 | AB122: BSC27 | AC122: PROMEDIO | AD122: 1 | AE122: 0.5479081225 | AF122: 0.5479081225 | AG122: 1 | AH122: 0.4520918775 | AI122: 0.4520918775 | AJ122: RNC16 | AK122: PROMEDIO | AL122: 1 | AM122: 0.8815384414 | AN122: 0.1045627723 | AO122: 0.005403422994 | AP122: 0.009134443846 | AQ122: RNC16 | AR122: PROMEDIO | AS122: 1 | AT122: 0.5 | AU122: 1 | AV122: 0.5 | AX122: D | AY122: 1.5 | AZ122: PROVINCIA119DISTRITO520 | BB122: AncashRURAL | BC122: AncashMACRO | BD122: PROVINCIA RURAL | BH122: =IF(usaDistribucin2G3G="SI",PARAMETROS!$C$25,'LISTA CELDA'!W122)*'CELDA RESUMEN'!AG122 -> 0.4 | BI122: =IF(usaDistribucin2G3G="SI",PARAMETROS!$C$26,'LISTA CELDA'!X122)*'CELDA RESUMEN'!AG122 -> 0.02 | BJ122: =IF(usaDistribucin2G3G="SI",PARAMETROS!$D$25,'LISTA CELDA'!Y122)*'CELDA RESUMEN'!AH122 -> 0.6 | BK122: =IF(usaDistribucin2G3G="SI",PARAMETROS!$D$26,'LISTA CELDA'!Z122)*'CELDA RESUMEN'!AH122 -> 0.33 | BL122: =IF(usaDistribucin2G3G="SI",PARAMETROS!$E$25,0) -> 0 | BM122: =IF(usaDistribucin2G3G="SI",PARAMETROS!$E$26,'LISTA CELDA'!AA122)*'CELDA RESUMEN'!AI122 -> 0.65
B123: 116 | C123: RURAL | D123: PROVINCIA | E123: NOR ORIENTE | F123: ANCASH | G123: PROVINCIA119 | H123: DISTRITO520 | I123: 77 | J123: 4 | K123: 12 | L123: 22 | M123: 12 | N123: 3 | O123: IDCELL116 | P123: ID_LOCAL116 | Q123: 0 | R123: D | S123: MACRO | T123: FO | U123: 0.000198019802 | V123: 0.000198019802 | W123: 0.71 | X123: 0.1 | Y123: 0.39 | Z123: 0.7 | AA123: 0.2 | AB123: BSC27 | AC123: PROMEDIO | AD123: 1 | AE123: 0.4112602223 | AF123: 0.4112602223 | AG123: 1 | AH123: 0.5887397777 | AI123: 0.5887397777 | AJ123: RNC16 | AK123: PROMEDIO | AL123: 1 | AM123: 0.8815384414 | AN123: 0.1045627723 | AO123: 0.005403422994 | AP123: 0.009134443846 | AQ123: RNC16 | AR123: PROMEDIO | AS123: 1 | AT123: 0.5 | AU123: 1 | AV123: 0.5 | AX123: D | AY123: 1.5 | AZ123: PROVINCIA119DISTRITO520 | BB123: ANCASHRURAL | BC123: ANCASHMACRO | BD123: PROVINCIA RURAL | BH123: =IF(usaDistribucin2G3G="SI",PARAMETROS!$C$25,'LISTA CELDA'!W123)*'CELDA RESUMEN'!AG123 -> 0.4 | BI123: =IF(usaDistribucin2G3G="SI",PARAMETROS!$C$26,'LISTA CELDA'!X123)*'CELDA RESUMEN'!AG123 -> 0.02 | BJ123: =IF(usaDistribucin2G3G="SI",PARAMETROS!$D$25,'LISTA CELDA'!Y123)*'CELDA RESUMEN'!AH123 -> 0.6 | BK123: =IF(usaDistribucin2G3G="SI",PARAMETROS!$D$26,'LISTA CELDA'!Z123)*'CELDA RESUMEN'!AH123 -> 0.33 | BL123: =IF(usaDistribucin2G3G="SI",PARAMETROS!$E$25,0) -> 0 | BM123: =IF(usaDistribucin2G3G="SI",PARAMETROS!$E$26,'LISTA CELDA'!AA123)*'CELDA RESUMEN'!AI123 -> 0.65
B124: 117 | C124: RURAL | D124: PROVINCIA | E124: NOR ORIENTE | F124: ANCASH | G124: PROVINCIA119 | H124: DISTRITO573 | I124: 77 | J124: 4 | K124: 12 | L124: 22 | M124: 12 | N124: 3 | O124: IDCELL117 | P124: ID_LOCAL117 | Q124: 0 | R124: D | S124: MACRO | T124: FO | U124: 0.000198019802 | V124: 0.000198019802 | W124: 0.71 | X124: 0.1 | Y124: 0.39 | Z124: 0.7 | AA124: 0.2 | AB124: BSC27 | AC124: PROMEDIO | AD124: 1 | AE124: 1 | AF124: 1 | AG124: 0 | AH124: 0 | AI124: 0 | AJ124: RNC16 | AK124: PROMEDIO | AL124: 1 | AM124: 0.8815384414 | AN124: 0.1045627723 | AO124: 0.005403422994 | AP124: 0.009134443846 | AQ124: RNC16 | AR124: PROMEDIO | AS124: 1 | AT124: 0.5 | AU124: 1 | AV124: 0.5 | AX124: D | AY124: 1.5 | AZ124: PROVINCIA119DISTRITO573 | BB124: ANCASHRURAL | BC124: ANCASHMACRO | BD124: PROVINCIA RURAL | BH124: =IF(usaDistribucin2G3G="SI",PARAMETROS!$C$25,'LISTA CELDA'!W124)*'CELDA RESUMEN'!AG124 -> 0.4 | BI124: =IF(usaDistribucin2G3G="SI",PARAMETROS!$C$26,'LISTA CELDA'!X124)*'CELDA RESUMEN'!AG124 -> 0.02 | BJ124: =IF(usaDistribucin2G3G="SI",PARAMETROS!$D$25,'LISTA CELDA'!Y124)*'CELDA RESUMEN'!AH124 -> 0.6 | BK124: =IF(usaDistribucin2G3G="SI",PARAMETROS!$D$26,'LISTA CELDA'!Z124)*'CELDA RESUMEN'!AH124 -> 0.33 | BL124: =IF(usaDistribucin2G3G="SI",PARAMETROS!$E$25,0) -> 0 | BM124: =IF(usaDistribucin2G3G="SI",PARAMETROS!$E$26,'LISTA CELDA'!AA124)*'CELDA RESUMEN'!AI124 -> 0.65
B125: 118 | C125: RURAL | D125: PROVINCIA | E125: NOR ORIENTE | F125: LA LIBERTAD | G125: PROVINCIA235 | H125: DISTRITO450 | I125: 77 | J125: 4 | K125: 12 | L125: 22 | M125: 12 | N125: 3 | O125: IDCELL118 | P125: ID_LOCAL118 | Q125: 0 | R125: D | S125: MACRO | T125: FO | U125: 0.000198019802 | V125: 0.000198019802 | W125: 1 | X125: 1 | Y125: 0 | Z125: 0 | AA125: 0 | AB125: BSC27 | AC125: PROMEDIO | AD125: 1 | AE125: 1 | AF125: 1 | AG125: 0 | AH125: 0 | AI125: 0 | AJ125: 0 | AK125: PROMEDIO | AL125: 0 | AM125: 0 | AN125: 0 | AO125: 0 | AP125: 0 | AR125: PROMEDIO | AS125: 0 | AT125: 0 | AU125: 0 | AV125: 0 | AX125: D | AY125: 1.5 | AZ125: PROVINCIA235DISTRITO450 | BB125: LA LIBERTADRURAL | BC125: LA LIBERTADMACRO | BD125: PROVINCIA RURAL | BH125: =IF(usaDistribucin2G3G="SI",PARAMETROS!$C$25,'LISTA CELDA'!W125)*'CELDA RESUMEN'!AG125 -> 0.4 | BI125: =IF(usaDistribucin2G3G="SI",PARAMETROS!$C$26,'LISTA CELDA'!X125)*'CELDA RESUMEN'!AG125 -> 0.02 | BJ125: =IF(usaDistribucin2G3G="SI",PARAMETROS!$D$25,'LISTA CELDA'!Y125)*'CELDA RESUMEN'!AH125 -> 0 | BK125: =IF(usaDistribucin2G3G="SI",PARAMETROS!$D$26,'LISTA CELDA'!Z125)*'CELDA RESUMEN'!AH125 -> 0 | BL125: =IF(usaDistribucin2G3G="SI",PARAMETROS!$E$25,0) -> 0 | BM125: =IF(usaDistribucin2G3G="SI",PARAMETROS!$E$26,'LISTA CELDA'!AA125)*'CELDA RESUMEN'!AI125 -> 0
B126: 119 | C126: RURAL | D126: PROVINCIA | E126: NOR ORIENTE | F126: ANCASH | G126: PROVINCIA207 | H126: DISTRITO1212 | I126: 77 | J126: 4 | K126: 12 | L126: 22 | M126: 12 | N126: 3 | O126: IDCELL119 | P126: ID_LOCAL119 | Q126: 0 | R126: D | S126: MACRO | T126: FO | U126: 0.000198019802 | V126: 0.000198019802 | W126: 0.71 | X126: 0.1 | Y126: 0.39 | Z126: 0.7 | AA126: 0.2 | AB126: BSC27 | AC126: PROMEDIO | AD126: 1 | AE126: 0.5809195884 | AF126: 0.5809195884 | AG126: 1 | AH126: 0.4190804116 | AI126: 0.4190804116 | AJ126: RNC16 | AK126: PROMEDIO | AL126: 1 | AM126: 0.8815384414 | AN126: 0.1045627723 | AO126: 0.005403422994 | AP126: 0.009134443846 | AQ126: RNC16 | AR126: PROMEDIO | AS126: 1 | AT126: 0.5 | AU126: 1 | AV126: 0.5 | AX126: D | AY126: 1.5 | AZ126: PROVINCIA207DISTRITO1212 | BB126: ANCASHRURAL | BC126: ANCASHMACRO | BD126: PROVINCIA RURAL | BH126: =IF(usaDistribucin2G3G="SI",PARAMETROS!$C$25,'LISTA CELDA'!W126)*'CELDA RESUMEN'!AG126 -> 0.4 | BI126: =IF(usaDistribucin2G3G="SI",PARAMETROS!$C$26,'LISTA CELDA'!X126)*'CELDA RESUMEN'!AG126 -> 0.02 | BJ126: =IF(usaDistribucin2G3G="SI",PARAMETROS!$D$25,'LISTA CELDA'!Y126)*'CELDA RESUMEN'!AH126 -> 0.6 | BK126: =IF(usaDistribucin2G3G="SI",PARAMETROS!$D$26,'LISTA CELDA'!Z126)*'CELDA RESUMEN'!AH126 -> 0.33 | BL126: =IF(usaDistribucin2G3G="SI",PARAMETROS!$E$25,0) -> 0 | BM126: =IF(usaDistribucin2G3G="SI",PARAMETROS!$E$26,'LISTA CELDA'!AA126)*'CELDA RESUMEN'!AI126 -> 0.65
B127: 120 | C127: URBANA | D127: PROVINCIA | E127: NOR ORIENTE | F127: ANCASH | G127: PROVINCIA207 | H127: DISTRITO1212 | I127: 77 | J127: 4 | K127: 12 | L127: 22 | M127: 12 | N127: 3 | O127: IDCELL120 | P127: ID_LOCAL120 | Q127: 0 | R127: D | S127: MACRO | T127: FO | U127: 0.000198019802 | V127: 0.000198019802 | W127: 0.71 | X127: 0.1 | Y127: 0.39 | Z127: 0.7 | AA127: 0.2 | AB127: BSC27 | AC127: PROMEDIO | AD127: 1 | AE127: 1 | AF127: 1 | AG127: 0 | AH127: 0 | AI127: 0 | AJ127: RNC16 | AK127: PROMEDIO | AL127: 1 | AM127: 0.8815384414 | AN127: 0.1045627723 | AO127: 0.005403422994 | AP127: 0.009134443846 | AQ127: RNC16 | AR127: PROMEDIO | AS127: 1 | AT127: 0.5 | AU127: 1 | AV127: 0.5 | AX127: D | AY127: 1.5 | AZ127: PROVINCIA207DISTRITO1212 | BB127: ANCASHURBANA | BC127: ANCASHMACRO | BD127: PROVINCIA URBANA | BH127: =IF(usaDistribucin2G3G="SI",PARAMETROS!$C$25,'LISTA CELDA'!W127)*'CELDA RESUMEN'!AG127 -> 0.4 | BI127: =IF(usaDistribucin2G3G="SI",PARAMETROS!$C$26,'LISTA CELDA'!X127)*'CELDA RESUMEN'!AG127 -> 0.02 | BJ127: =IF(usaDistribucin2G3G="SI",PARAMETROS!$D$25,'LISTA CELDA'!Y127)*'CELDA RESUMEN'!AH127 -> 0.6 | BK127: =IF(usaDistribucin2G3G="SI",PARAMETROS!$D$26,'LISTA CELDA'!Z127)*'CELDA RESUMEN'!AH127 -> 0.33 | BL127: =IF(usaDistribucin2G3G="SI",PARAMETROS!$E$25,0) -> 0 | BM127: =IF(usaDistribucin2G3G="SI",PARAMETROS!$E$26,'LISTA CELDA'!AA127)*'CELDA RESUMEN'!AI127 -> 0.65
B128: 121 | C128: URBANA | D128: PROVINCIA | E128: NOR ORIENTE | F128: ANCASH | G128: PROVINCIA207 | H128: DISTRITO284 | I128: 77 | J128: 4 | K128: 12 | L128: 22 | M128: 12 | N128: 3 | O128: IDCELL121 | P128: ID_LOCAL121 | Q128: 0 | R128: D | S128: MACRO | T128: FO | U128: 0.000198019802 | V128: 0.000198019802 | W128: 0.71 | X128: 0.1 | Y128: 0.39 | Z128: 0.7 | AA128: 0.2 | AB128: BSC27 | AC128: PROMEDIO | AD128: 1 | AE128: 1 | AF128: 1 | AG128: 0 | AH128: 0 | AI128: 0 | AJ128: RNC16 | AK128: PROMEDIO | AL128: 1 | AM128: 0.8815384414 | AN128: 0.1045627723 | AO128: 0.005403422994 | AP128: 0.009134443846 | AQ128: RNC16 | AR128: PROMEDIO | AS128: 1 | AT128: 0.5 | AU128: 1 | AV128: 0.5 | AX128: D | AY128: 1.5 | AZ128: PROVINCIA207DISTRITO284 | BB128: ANCASHURBANA | BC128: ANCASHMACRO | BD128: PROVINCIA URBANA | BH128: =IF(usaDistribucin2G3G="SI",PARAMETROS!$C$25,'LISTA CELDA'!W128)*'CELDA RESUMEN'!AG128 -> 0.4 | BI128: =IF(usaDistribucin2G3G="SI",PARAMETROS!$C$26,'LISTA CELDA'!X128)*'CELDA RESUMEN'!AG128 -> 0.02 | BJ128: =IF(usaDistribucin2G3G="SI",PARAMETROS!$D$25,'LISTA CELDA'!Y128)*'CELDA RESUMEN'!AH128 -> 0.6 | BK128: =IF(usaDistribucin2G3G="SI",PARAMETROS!$D$26,'LISTA CELDA'!Z128)*'CELDA RESUMEN'!AH128 -> 0.33 | BL128: =IF(usaDistribucin2G3G="SI",PARAMETROS!$E$25,0) -> 0 | BM128: =IF(usaDistribucin2G3G="SI",PARAMETROS!$E$26,'LISTA CELDA'!AA128)*'CELDA RESUMEN'!AI128 -> 0.65
B129: 122 | C129: URBANA | D129: PROVINCIA | E129: NOR ORIENTE | F129: ANCASH | G129: PROVINCIA207 | H129: DISTRITO283 | I129: 77 | J129: 4 | K129: 12 | L129: 22 | M129: 12 | N129: 3 | O129: IDCELL122 | P129: ID_LOCAL122 | Q129: 0 | R129: D | S129: MACRO | T129: FO | U129: 0.000198019802 | V129: 0.000198019802 | W129: 0.71 | X129: 0.1 | Y129: 0.39 | Z129: 0.7 | AA129: 0.2 | AB129: BSC27 | AC129: PROMEDIO | AD129: 1 | AE129: 1 | AF129: 1 | AG129: 0 | AH129: 0 | AI129: 0 | AJ129: RNC16 | AK129: PROMEDIO | AL129: 1 | AM129: 0.8815384414 | AN129: 0.1045627723 | AO129: 0.005403422994 | AP129: 0.009134443846 | AQ129: RNC16 | AR129: PROMEDIO | AS129: 1 | AT129: 0.5 | AU129: 1 | AV129: 0.5 | AX129: D | AY129: 1.5 | AZ129: PROVINCIA207DISTRITO283 | BB129: ANCASHURBANA | BC129: ANCASHMACRO | BD129: PROVINCIA URBANA | BH129: =IF(usaDistribucin2G3G="SI",PARAMETROS!$C$25,'LISTA CELDA'!W129)*'CELDA RESUMEN'!AG129 -> 0.4 | BI129: =IF(usaDistribucin2G3G="SI",PARAMETROS!$C$26,'LISTA CELDA'!X129)*'CELDA RESUMEN'!AG129 -> 0.02 | BJ129: =IF(usaDistribucin2G3G="SI",PARAMETROS!$D$25,'LISTA CELDA'!Y129)*'CELDA RESUMEN'!AH129 -> 0.6 | BK129: =IF(usaDistribucin2G3G="SI",PARAMETROS!$D$26,'LISTA CELDA'!Z129)*'CELDA RESUMEN'!AH129 -> 0.33 | BL129: =IF(usaDistribucin2G3G="SI",PARAMETROS!$E$25,0) -> 0 | BM129: =IF(usaDistribucin2G3G="SI",PARAMETROS!$E$26,'LISTA CELDA'!AA129)*'CELDA RESUMEN'!AI129 -> 0.65
B130: 123 | C130: URBANA | D130: PROVINCIA | E130: NOR ORIENTE | F130: ANCASH | G130: PROVINCIA207 | H130: DISTRITO283 | I130: 77 | J130: 4 | K130: 12 | L130: 22 | M130: 12 | N130: 3 | O130: IDCELL123 | P130: ID_LOCAL123 | Q130: 0 | R130: D | S130: MACRO | T130: FO | U130: 0.000198019802 | V130: 0.000198019802 | W130: 0.71 | X130: 0.1 | Y130: 0.39 | Z130: 0.7 | AA130: 0.2 | AB130: BSC27 | AC130: PROMEDIO | AD130: 1 | AE130: 0.2556174268 | AF130: 0.2556174268 | AG130: 1 | AH130: 0.7443825732 | AI130: 0.7443825732 | AJ130: RNC16 | AK130: PROMEDIO | AL130: 1 | AM130: 0.8815384414 | AN130: 0.1045627723 | AO130: 0.005403422994 | AP130: 0.009134443846 | AQ130: RNC16 | AR130: PROMEDIO | AS130: 1 | AT130: 0.5 | AU130: 1 | AV130: 0.5 | AX130: D | AY130: 1.5 | AZ130: PROVINCIA207DISTRITO283 | BB130: ANCASHURBANA | BC130: ANCASHMACRO | BD130: PROVINCIA URBANA | BH130: =IF(usaDistribucin2G3G="SI",PARAMETROS!$C$25,'LISTA CELDA'!W130)*'CELDA RESUMEN'!AG130 -> 0.4 | BI130: =IF(usaDistribucin2G3G="SI",PARAMETROS!$C$26,'LISTA CELDA'!X130)*'CELDA RESUMEN'!AG130 -> 0.02 | BJ130: =IF(usaDistribucin2G3G="SI",PARAMETROS!$D$25,'LISTA CELDA'!Y130)*'CELDA RESUMEN'!AH130 -> 0.6 | BK130: =IF(usaDistribucin2G3G="SI",PARAMETROS!$D$26,'LISTA CELDA'!Z130)*'CELDA RESUMEN'!AH130 -> 0.33 | BL130: =IF(usaDistribucin2G3G="SI",PARAMETROS!$E$25,0) -> 0 | BM130: =IF(usaDistribucin2G3G="SI",PARAMETROS!$E$26,'LISTA CELDA'!AA130)*'CELDA RESUMEN'!AI130 -> 0.65
B131: 124 | C131: URBANA | D131: PROVINCIA | E131: NOR ORIENTE | F131: ANCASH | G131: PROVINCIA207 | H131: DISTRITO283 | I131: 77 | J131: 4 | K131: 12 | L131: 22 | M131: 12 | N131: 3 | O131: IDCELL124 | P131: ID_LOCAL124 | Q131: 0 | R131: D | S131: MACRO | T131: FO | U131: 0.000198019802 | V131: 0.000198019802 | W131: 0.71 | X131: 0.1 | Y131: 0.39 | Z131: 0.7 | AA131: 0.2 | AB131: BSC27 | AC131: PROMEDIO | AD131: 0 | AE131: 0 | AF131: 0 | AG131: 1 | AH131: 1 | AI131: 1 | AJ131: RNC16 | AK131: PROMEDIO | AL131: 1 | AM131: 0.8815384414 | AN131: 0.1045627723 | AO131: 0.005403422994 | AP131: 0.009134443846 | AQ131: RNC16 | AR131: PROMEDIO | AS131: 1 | AT131: 0.5 | AU131: 1 | AV131: 0.5 | AX131: D | AY131: 1.5 | AZ131: PROVINCIA207DISTRITO283 | BB131: ANCASHURBANA | BC131: ANCASHMACRO | BD131: PROVINCIA URBANA | BH131: =IF(usaDistribucin2G3G="SI",PARAMETROS!$C$25,'LISTA CELDA'!W131)*'CELDA RESUMEN'!AG131 -> 0.4 | BI131: =IF(usaDistribucin2G3G="SI",PARAMETROS!$C$26,'LISTA CELDA'!X131)*'CELDA RESUMEN'!AG131 -> 0.02 | BJ131: =IF(usaDistribucin2G3G="SI",PARAMETROS!$D$25,'LISTA CELDA'!Y131)*'CELDA RESUMEN'!AH131 -> 0.6 | BK131: =IF(usaDistribucin2G3G="SI",PARAMETROS!$D$26,'LISTA CELDA'!Z131)*'CELDA RESUMEN'!AH131 -> 0.33 | BL131: =IF(usaDistribucin2G3G="SI",PARAMETROS!$E$25,0) -> 0 | BM131: =IF(usaDistribucin2G3G="SI",PARAMETROS!$E$26,'LISTA CELDA'!AA131)*'CELDA RESUMEN'!AI131 -> 0.65
B132: 125 | C132: URBANA | D132: PROVINCIA | E132: NOR ORIENTE | F132: Ancash | G132: PROVINCIA207 | H132: DISTRITO283 | I132: 77 | J132: 4 | K132: 12 | L132: 22 | M132: 12 | N132: 3 | O132: IDCELL125 | P132: ID_LOCAL125 | Q132: 0 | R132: D | S132: MACRO | T132: FO | U132: 0.000198019802 | V132: 0.000198019802 | W132: 0.71 | X132: 0.1 | Y132: 0.39 | Z132: 0.7 | AA132: 0.2 | AB132: BSC27 | AC132: PROMEDIO | AD132: 1 | AE132: 0.2785311913 | AF132: 0.2785311913 | AG132: 1 | AH132: 0.7214688087 | AI132: 0.7214688087 | AJ132: RNC16 | AK132: PROMEDIO | AL132: 1 | AM132: 0.8815384414 | AN132: 0.1045627723 | AO132: 0.005403422994 | AP132: 0.009134443846 | AQ132: RNC16 | AR132: PROMEDIO | AS132: 1 | AT132: 0.5 | AU132: 1 | AV132: 0.5 | AX132: D | AY132: 1.5 | AZ132: PROVINCIA207DISTRITO283 | BB132: AncashURBANA | BC132: AncashMACRO | BD132: PROVINCIA URBANA | BH132: =IF(usaDistribucin2G3G="SI",PARAMETROS!$C$25,'LISTA CELDA'!W132)*'CELDA RESUMEN'!AG132 -> 0.4 | BI132: =IF(usaDistribucin2G3G="SI",PARAMETROS!$C$26,'LISTA CELDA'!X132)*'CELDA RESUMEN'!AG132 -> 0.02 | BJ132: =IF(usaDistribucin2G3G="SI",PARAMETROS!$D$25,'LISTA CELDA'!Y132)*'CELDA RESUMEN'!AH132 -> 0.6 | BK132: =IF(usaDistribucin2G3G="SI",PARAMETROS!$D$26,'LISTA CELDA'!Z132)*'CELDA RESUMEN'!AH132 -> 0.33 | BL132: =IF(usaDistribucin2G3G="SI",PARAMETROS!$E$25,0) -> 0 | BM132: =IF(usaDistribucin2G3G="SI",PARAMETROS!$E$26,'LISTA CELDA'!AA132)*'CELDA RESUMEN'!AI132 -> 0.65
B133: 126 | C133: URBANA | D133: PROVINCIA | E133: NOR ORIENTE | F133: ANCASH | G133: PROVINCIA207 | H133: DISTRITO283 | I133: 77 | J133: 4 | K133: 12 | L133: 22 | M133: 12 | N133: 3 | O133: IDCELL126 | P133: ID_LOCAL126 | Q133: 0 | R133: D | S133: MACRO | T133: FO | U133: 0.000198019802 | V133: 0.000198019802 | W133: 0 | X133: 0.1 | Y133: 1 | Z133: 0.7 | AA133: 0.2 | AB133: BSC27 | AC133: PROMEDIO | AD133: 1 | AE133: 1 | AF133: 1 | AG133: 0 | AH133: 0 | AI133: 0 | AJ133: RNC16 | AK133: PROMEDIO | AL133: 1 | AM133: 0.8815384414 | AN133: 0.1045627723 | AO133: 0.005403422994 | AP133: 0.009134443846 | AQ133: RNC16 | AR133: PROMEDIO | AS133: 1 | AT133: 0.5 | AU133: 1 | AV133: 0.5 | AX133: D | AY133: 1.5 | AZ133: PROVINCIA207DISTRITO283 | BB133: ANCASHURBANA | BC133: ANCASHMACRO | BD133: PROVINCIA URBANA | BH133: =IF(usaDistribucin2G3G="SI",PARAMETROS!$C$25,'LISTA CELDA'!W133)*'CELDA RESUMEN'!AG133 -> 0.4 | BI133: =IF(usaDistribucin2G3G="SI",PARAMETROS!$C$26,'LISTA CELDA'!X133)*'CELDA RESUMEN'!AG133 -> 0.02 | BJ133: =IF(usaDistribucin2G3G="SI",PARAMETROS!$D$25,'LISTA CELDA'!Y133)*'CELDA RESUMEN'!AH133 -> 0.6 | BK133: =IF(usaDistribucin2G3G="SI",PARAMETROS!$D$26,'LISTA CELDA'!Z133)*'CELDA RESUMEN'!AH133 -> 0.33 | BL133: =IF(usaDistribucin2G3G="SI",PARAMETROS!$E$25,0) -> 0 | BM133: =IF(usaDistribucin2G3G="SI",PARAMETROS!$E$26,'LISTA CELDA'!AA133)*'CELDA RESUMEN'!AI133 -> 0.65
B134: 127 | C134: URBANA | D134: PROVINCIA | E134: NOR ORIENTE | F134: ANCASH | G134: PROVINCIA207 | H134: DISTRITO283 | I134: 77 | J134: 4 | K134: 12 | L134: 22 | M134: 12 | N134: 3 | O134: IDCELL127 | P134: ID_LOCAL127 | Q134: 0 | R134: D | S134: MACRO | T134: FO | U134: 0.000198019802 | V134: 0.000198019802 | W134: 0.71 | X134: 0.1 | Y134: 0.39 | Z134: 0.7 | AA134: 0.2 | AB134: BSC27 | AC134: PROMEDIO | AD134: 0 | AE134: 0 | AF134: 0 | AG134: 1 | AH134: 1 | AI134: 1 | AJ134: RNC16 | AK134: PROMEDIO | AL134: 1 | AM134: 0.8815384414 | AN134: 0.1045627723 | AO134: 0.005403422994 | AP134: 0.009134443846 | AQ134: RNC16 | AR134: PROMEDIO | AS134: 1 | AT134: 0.5 | AU134: 1 | AV134: 0.5 | AX134: D | AY134: 1.5 | AZ134: PROVINCIA207DISTRITO283 | BB134: ANCASHURBANA | BC134: ANCASHMACRO | BD134: PROVINCIA URBANA | BH134: =IF(usaDistribucin2G3G="SI",PARAMETROS!$C$25,'LISTA CELDA'!W134)*'CELDA RESUMEN'!AG134 -> 0.4 | BI134: =IF(usaDistribucin2G3G="SI",PARAMETROS!$C$26,'LISTA CELDA'!X134)*'CELDA RESUMEN'!AG134 -> 0.02 | BJ134: =IF(usaDistribucin2G3G="SI",PARAMETROS!$D$25,'LISTA CELDA'!Y134)*'CELDA RESUMEN'!AH134 -> 0.6 | BK134: =IF(usaDistribucin2G3G="SI",PARAMETROS!$D$26,'LISTA CELDA'!Z134)*'CELDA RESUMEN'!AH134 -> 0.33 | BL134: =IF(usaDistribucin2G3G="SI",PARAMETROS!$E$25,0) -> 0 | BM134: =IF(usaDistribucin2G3G="SI",PARAMETROS!$E$26,'LISTA CELDA'!AA134)*'CELDA RESUMEN'!AI134 -> 0.65
B135: 128 | C135: URBANA | D135: PROVINCIA | E135: NOR ORIENTE | F135: ANCASH | G135: PROVINCIA207 | H135: DISTRITO283 | I135: 77 | J135: 4 | K135: 12 | L135: 22 | M135: 12 | N135: 3 | O135: IDCELL128 | P135: ID_LOCAL128 | Q135: 0 | R135: D | S135: MACRO | T135: FO | U135: 0.000198019802 | V135: 0.000198019802 | W135: 0.71 | X135: 0.1 | Y135: 0.39 | Z135: 0.7 | AA135: 0.2 | AB135: BSC27 | AC135: PROMEDIO | AD135: 0 | AE135: 0 | AF135: 0 | AG135: 1 | AH135: 1 | AI135: 1 | AJ135: RNC16 | AK135: PROMEDIO | AL135: 1 | AM135: 0.8815384414 | AN135: 0.1045627723 | AO135: 0.005403422994 | AP135: 0.009134443846 | AQ135: RNC16 | AR135: PROMEDIO | AS135: 1 | AT135: 0.5 | AU135: 1 | AV135: 0.5 | AX135: D | AY135: 1.5 | AZ135: PROVINCIA207DISTRITO283 | BB135: ANCASHURBANA | BC135: ANCASHMACRO | BD135: PROVINCIA URBANA | BH135: =IF(usaDistribucin2G3G="SI",PARAMETROS!$C$25,'LISTA CELDA'!W135)*'CELDA RESUMEN'!AG135 -> 0.4 | BI135: =IF(usaDistribucin2G3G="SI",PARAMETROS!$C$26,'LISTA CELDA'!X135)*'CELDA RESUMEN'!AG135 -> 0.02 | BJ135: =IF(usaDistribucin2G3G="SI",PARAMETROS!$D$25,'LISTA CELDA'!Y135)*'CELDA RESUMEN'!AH135 -> 0.6 | BK135: =IF(usaDistribucin2G3G="SI",PARAMETROS!$D$26,'LISTA CELDA'!Z135)*'CELDA RESUMEN'!AH135 -> 0.33 | BL135: =IF(usaDistribucin2G3G="SI",PARAMETROS!$E$25,0) -> 0 | BM135: =IF(usaDistribucin2G3G="SI",PARAMETROS!$E$26,'LISTA CELDA'!AA135)*'CELDA RESUMEN'!AI135 -> 0.65
B136: 129 | C136: URBANA | D136: PROVINCIA | E136: NOR ORIENTE | F136: Ancash | G136: PROVINCIA208 | H136: DISTRITO283 | I136: 77 | J136: 4 | K136: 12 | L136: 22 | M136: 12 | N136: 3 | O136: IDCELL129 | P136: ID_LOCAL129 | Q136: 0 | R136: D | S136: MACRO | T136: FO | U136: 0.000198019802 | V136: 0.000198019802 | W136: 0.71 | X136: 0.1 | Y136: 0.39 | Z136: 0.7 | AA136: 0.2 | AB136: BSC27 | AC136: PROMEDIO | AD136: 1 | AE136: 0.2959227072 | AF136: 0.2959227072 | AG136: 1 | AH136: 0.7040772928 | AI136: 0.7040772928 | AJ136: RNC16 | AK136: PROMEDIO | AL136: 1 | AM136: 0.8815384414 | AN136: 0.1045627723 | AO136: 0.005403422994 | AP136: 0.009134443846 | AQ136: RNC16 | AR136: PROMEDIO | AS136: 1 | AT136: 0.5 | AU136: 1 | AV136: 0.5 | AX136: D | AY136: 1.5 | AZ136: PROVINCIA208DISTRITO283 | BB136: AncashURBANA | BC136: AncashMACRO | BD136: PROVINCIA URBANA | BH136: =IF(usaDistribucin2G3G="SI",PARAMETROS!$C$25,'LISTA CELDA'!W136)*'CELDA RESUMEN'!AG136 -> 0.4 | BI136: =IF(usaDistribucin2G3G="SI",PARAMETROS!$C$26,'LISTA CELDA'!X136)*'CELDA RESUMEN'!AG136 -> 0.02 | BJ136: =IF(usaDistribucin2G3G="SI",PARAMETROS!$D$25,'LISTA CELDA'!Y136)*'CELDA RESUMEN'!AH136 -> 0.6 | BK136: =IF(usaDistribucin2G3G="SI",PARAMETROS!$D$26,'LISTA CELDA'!Z136)*'CELDA RESUMEN'!AH136 -> 0.33 | BL136: =IF(usaDistribucin2G3G="SI",PARAMETROS!$E$25,0) -> 0 | BM136: =IF(usaDistribucin2G3G="SI",PARAMETROS!$E$26,'LISTA CELDA'!AA136)*'CELDA RESUMEN'!AI136 -> 0.65
B137: 130 | C137: URBANA | D137: PROVINCIA | E137: SUR ESTE | F137: APURIMAC | G137: PROVINCIA16 | H137: DISTRITO1182 | I137: 77 | J137: 4 | K137: 12 | L137: 22 | M137: 12 | N137: 3 | O137: IDCELL130 | P137: ID_LOCAL130 | Q137: 0 | R137: D | S137: MACRO | T137: FO | U137: 0.000198019802 | V137: 0.000198019802 | W137: 1 | X137: 1 | Y137: 0 | Z137: 0 | AA137: 0 | AB137: BSC42 | AC137: PROMEDIO | AD137: 1 | AE137: 1 | AF137: 1 | AG137: 0 | AH137: 0 | AI137: 0 | AJ137: 0 | AK137: PROMEDIO | AL137: 0 | AM137: 0 | AN137: 0 | AO137: 0 | AP137: 0 | AR137: PROMEDIO | AS137: 0 | AT137: 0 | AU137: 0 | AV137: 0 | AX137: D | AY137: 1.5 | AZ137: PROVINCIA16DISTRITO1182 | BB137: APURIMACURBANA | BC137: APURIMACMACRO | BD137: PROVINCIA URBANA | BH137: =IF(usaDistribucin2G3G="SI",PARAMETROS!$C$25,'LISTA CELDA'!W137)*'CELDA RESUMEN'!AG137 -> 0.4 | BI137: =IF(usaDistribucin2G3G="SI",PARAMETROS!$C$26,'LISTA CELDA'!X137)*'CELDA RESUMEN'!AG137 -> 0.02 | BJ137: =IF(usaDistribucin2G3G="SI",PARAMETROS!$D$25,'LISTA CELDA'!Y137)*'CELDA RESUMEN'!AH137 -> 0 | BK137: =IF(usaDistribucin2G3G="SI",PARAMETROS!$D$26,'LISTA CELDA'!Z137)*'CELDA RESUMEN'!AH137 -> 0 | BL137: =IF(usaDistribucin2G3G="SI",PARAMETROS!$E$25,0) -> 0 | BM137: =IF(usaDistribucin2G3G="SI",PARAMETROS!$E$26,'LISTA CELDA'!AA137)*'CELDA RESUMEN'!AI137 -> 0
B138: 131 | C138: URBANA | D138: PROVINCIA | E138: SUR ESTE | F138: APURIMAC | G138: PROVINCIA16 | H138: DISTRITO1337 | I138: 77 | J138: 4 | K138: 12 | L138: 22 | M138: 12 | N138: 3 | O138: IDCELL131 | P138: ID_LOCAL131 | Q138: 0 | R138: D | S138: MACRO | T138: FO | U138: 0.000198019802 | V138: 0.000198019802 | W138: 0.71 | X138: 0.1 | Y138: 0.39 | Z138: 0.7 | AA138: 0.2 | AB138: BSC42 | AC138: PROMEDIO | AD138: 1 | AE138: 1 | AF138: 1 | AG138: 0 | AH138: 0 | AI138: 0 | AJ138: RNC38 | AK138: PROMEDIO | AL138: 1 | AM138: 0.8815384414 | AN138: 0.1045627723 | AO138: 0.005403422994 | AP138: 0.009134443846 | AQ138: RNC38 | AR138: PROMEDIO | AS138: 1 | AT138: 0.5 | AU138: 1 | AV138: 0.5 | AX138: D | AY138: 1.5 | AZ138: PROVINCIA16DISTRITO1337 | BB138: APURIMACURBANA | BC138: APURIMACMACRO | BD138: PROVINCIA URBANA | BH138: =IF(usaDistribucin2G3G="SI",PARAMETROS!$C$25,'LISTA CELDA'!W138)*'CELDA RESUMEN'!AG138 -> 0.4 | BI138: =IF(usaDistribucin2G3G="SI",PARAMETROS!$C$26,'LISTA CELDA'!X138)*'CELDA RESUMEN'!AG138 -> 0.02 | BJ138: =IF(usaDistribucin2G3G="SI",PARAMETROS!$D$25,'LISTA CELDA'!Y138)*'CELDA RESUMEN'!AH138 -> 0.6 | BK138: =IF(usaDistribucin2G3G="SI",PARAMETROS!$D$26,'LISTA CELDA'!Z138)*'CELDA RESUMEN'!AH138 -> 0.33 | BL138: =IF(usaDistribucin2G3G="SI",PARAMETROS!$E$25,0) -> 0 | BM138: =IF(usaDistribucin2G3G="SI",PARAMETROS!$E$26,'LISTA CELDA'!AA138)*'CELDA RESUMEN'!AI138 -> 0.65
B139: 132 | C139: URBANA | D139: PROVINCIA | E139: SUR ESTE | F139: APURIMAC | G139: PROVINCIA28 | H139: DISTRITO1349 | I139: 77 | J139: 4 | K139: 12 | L139: 22 | M139: 12 | N139: 3 | O139: IDCELL132 | P139: ID_LOCAL132 | Q139: 0 | R139: D | S139: MACRO | T139: FO | U139: 0.000198019802 | V139: 0.000198019802 | W139: 1 | X139: 1 | Y139: 0 | Z139: 0 | AA139: 0 | AB139: BSC42 | AC139: PROMEDIO | AD139: 1 | AE139: 1 | AF139: 1 | AG139: 0 | AH139: 0 | AI139: 0 | AJ139: 0 | AK139: PROMEDIO | AL139: 0 | AM139: 0 | AN139: 0 | AO139: 0 | AP139: 0 | AR139: PROMEDIO | AS139: 0 | AT139: 0 | AU139: 0 | AV139: 0 | AX139: D | AY139: 1.5 | AZ139: PROVINCIA28DISTRITO1349 | BB139: APURIMACURBANA | BC139: APURIMACMACRO | BD139: PROVINCIA URBANA | BH139: =IF(usaDistribucin2G3G="SI",PARAMETROS!$C$25,'LISTA CELDA'!W139)*'CELDA RESUMEN'!AG139 -> 0.4 | BI139: =IF(usaDistribucin2G3G="SI",PARAMETROS!$C$26,'LISTA CELDA'!X139)*'CELDA RESUMEN'!AG139 -> 0.02 | BJ139: =IF(usaDistribucin2G3G="SI",PARAMETROS!$D$25,'LISTA CELDA'!Y139)*'CELDA RESUMEN'!AH139 -> 0 | BK139: =IF(usaDistribucin2G3G="SI",PARAMETROS!$D$26,'LISTA CELDA'!Z139)*'CELDA RESUMEN'!AH139 -> 0 | BL139: =IF(usaDistribucin2G3G="SI",PARAMETROS!$E$25,0) -> 0 | BM139: =IF(usaDistribucin2G3G="SI",PARAMETROS!$E$26,'LISTA CELDA'!AA139)*'CELDA RESUMEN'!AI139 -> 0
B140: 133 | C140: URBANA | D140: PROVINCIA | E140: SUR ESTE | F140: APURIMAC | G140: PROVINCIA28 | H140: DISTRITO1312 | I140: 77 | J140: 4 | K140: 12 | L140: 22 | M140: 12 | N140: 3 | O140: IDCELL133 | P140: ID_LOCAL133 | Q140: 0 | R140: D | S140: MACRO | T140: FO | U140: 0.000198019802 | V140: 0.000198019802 | W140: 1 | X140: 1 | Y140: 0 | Z140: 0 | AA140: 0 | AB140: BSC42 | AC140: PROMEDIO | AD140: 1 | AE140: 1 | AF140: 1 | AG140: 0 | AH140: 0 | AI140: 0 | AJ140: 0 | AK140: PROMEDIO | AL140: 0 | AM140: 0 | AN140: 0 | AO140: 0 | AP140: 0 | AR140: PROMEDIO | AS140: 0 | AT140: 0 | AU140: 0 | AV140: 0 | AX140: D | AY140: 1.5 | AZ140: PROVINCIA28DISTRITO1312 | BB140: APURIMACURBANA | BC140: APURIMACMACRO | BD140: PROVINCIA URBANA | BH140: =IF(usaDistribucin2G3G="SI",PARAMETROS!$C$25,'LISTA CELDA'!W140)*'CELDA RESUMEN'!AG140 -> 0.4 | BI140: =IF(usaDistribucin2G3G="SI",PARAMETROS!$C$26,'LISTA CELDA'!X140)*'CELDA RESUMEN'!AG140 -> 0.02 | BJ140: =IF(usaDistribucin2G3G="SI",PARAMETROS!$D$25,'LISTA CELDA'!Y140)*'CELDA RESUMEN'!AH140 -> 0 | BK140: =IF(usaDistribucin2G3G="SI",PARAMETROS!$D$26,'LISTA CELDA'!Z140)*'CELDA RESUMEN'!AH140 -> 0 | BL140: =IF(usaDistribucin2G3G="SI",PARAMETROS!$E$25,0) -> 0 | BM140: =IF(usaDistribucin2G3G="SI",PARAMETROS!$E$26,'LISTA CELDA'!AA140)*'CELDA RESUMEN'!AI140 -> 0
B141: 134 | C141: RURAL | D141: PROVINCIA | E141: SUR ESTE | F141: APURIMAC | G141: PROVINCIA16 | H141: DISTRITO1315 | I141: 77 | J141: 4 | K141: 12 | L141: 22 | M141: 12 | N141: 3 | O141: IDCELL134 | P141: ID_LOCAL134 | Q141: 0 | R141: D | S141: MACRO | T141: FO | U141: 0.000198019802 | V141: 0.000198019802 | W141: 1 | X141: 1 | Y141: 0 | Z141: 0 | AA141: 0 | AB141: BSC42 | AC141: PROMEDIO | AD141: 1 | AE141: 1 | AF141: 1 | AG141: 0 | AH141: 0 | AI141: 0 | AJ141: 0 | AK141: PROMEDIO | AL141: 0 | AM141: 0 | AN141: 0 | AO141: 0 | AP141: 0 | AR141: PROMEDIO | AS141: 0 | AT141: 0 | AU141: 0 | AV141: 0 | AX141: D | AY141: 1.5 | AZ141: PROVINCIA16DISTRITO1315 | BB141: APURIMACRURAL | BC141: APURIMACMACRO | BD141: PROVINCIA RURAL | BH141: =IF(usaDistribucin2G3G="SI",PARAMETROS!$C$25,'LISTA CELDA'!W141)*'CELDA RESUMEN'!AG141 -> 0.4 | BI141: =IF(usaDistribucin2G3G="SI",PARAMETROS!$C$26,'LISTA CELDA'!X141)*'CELDA RESUMEN'!AG141 -> 0.02 | BJ141: =IF(usaDistribucin2G3G="SI",PARAMETROS!$D$25,'LISTA CELDA'!Y141)*'CELDA RESUMEN'!AH141 -> 0 | BK141: =IF(usaDistribucin2G3G="SI",PARAMETROS!$D$26,'LISTA CELDA'!Z141)*'CELDA RESUMEN'!AH141 -> 0 | BL141: =IF(usaDistribucin2G3G="SI",PARAMETROS!$E$25,0) -> 0 | BM141: =IF(usaDistribucin2G3G="SI",PARAMETROS!$E$26,'LISTA CELDA'!AA141)*'CELDA RESUMEN'!AI141 -> 0
B142: 135 | C142: URBANA | D142: PROVINCIA | E142: SUR ESTE | F142: APURIMAC | G142: PROVINCIA10 | H142: DISTRITO1188 | I142: 77 | J142: 4 | K142: 12 | L142: 22 | M142: 12 | N142: 3 | O142: IDCELL135 | P142: ID_LOCAL135 | Q142: 0 | R142: D | S142: MACRO | T142: FO | U142: 0.000198019802 | V142: 0.000198019802 | W142: 1 | X142: 1 | Y142: 0 | Z142: 0 | AA142: 0 | AB142: BSC42 | AC142: PROMEDIO | AD142: 1 | AE142: 1 | AF142: 1 | AG142: 0 | AH142: 0 | AI142: 0 | AJ142: 0 | AK142: PROMEDIO | AL142: 0 | AM142: 0 | AN142: 0 | AO142: 0 | AP142: 0 | AR142: PROMEDIO | AS142: 0 | AT142: 0 | AU142: 0 | AV142: 0 | AX142: D | AY142: 1.5 | AZ142: PROVINCIA10DISTRITO1188 | BB142: APURIMACURBANA | BC142: APURIMACMACRO | BD142: PROVINCIA URBANA | BH142: =IF(usaDistribucin2G3G="SI",PARAMETROS!$C$25,'LISTA CELDA'!W142)*'CELDA RESUMEN'!AG142 -> 0.4 | BI142: =IF(usaDistribucin2G3G="SI",PARAMETROS!$C$26,'LISTA CELDA'!X142)*'CELDA RESUMEN'!AG142 -> 0.02 | BJ142: =IF(usaDistribucin2G3G="SI",PARAMETROS!$D$25,'LISTA CELDA'!Y142)*'CELDA RESUMEN'!AH142 -> 0 | BK142: =IF(usaDistribucin2G3G="SI",PARAMETROS!$D$26,'LISTA CELDA'!Z142)*'CELDA RESUMEN'!AH142 -> 0 | BL142: =IF(usaDistribucin2G3G="SI",PARAMETROS!$E$25,0) -> 0 | BM142: =IF(usaDistribucin2G3G="SI",PARAMETROS!$E$26,'LISTA CELDA'!AA142)*'CELDA RESUMEN'!AI142 -> 0
B143: 136 | C143: RURAL | D143: PROVINCIA | E143: SUR ESTE | F143: APURIMAC | G143: PROVINCIA90 | H143: DISTRITO243 | I143: 77 | J143: 4 | K143: 12 | L143: 22 | M143: 12 | N143: 3 | O143: IDCELL136 | P143: ID_LOCAL136 | Q143: 0 | R143: D | S143: MACRO | T143: FO | U143: 0.000198019802 | V143: 0.000198019802 | W143: 1 | X143: 1 | Y143: 0 | Z143: 0 | AA143: 0 | AB143: BSC42 | AC143: PROMEDIO | AD143: 1 | AE143: 1 | AF143: 1 | AG143: 0 | AH143: 0 | AI143: 0 | AJ143: 0 | AK143: PROMEDIO | AL143: 0 | AM143: 0 | AN143: 0 | AO143: 0 | AP143: 0 | AR143: PROMEDIO | AS143: 0 | AT143: 0 | AU143: 0 | AV143: 0 | AX143: D | AY143: 1.5 | AZ143: PROVINCIA90DISTRITO243 | BB143: APURIMACRURAL | BC143: APURIMACMACRO | BD143: PROVINCIA RURAL | BH143: =IF(usaDistribucin2G3G="SI",PARAMETROS!$C$25,'LISTA CELDA'!W143)*'CELDA RESUMEN'!AG143 -> 0.4 | BI143: =IF(usaDistribucin2G3G="SI",PARAMETROS!$C$26,'LISTA CELDA'!X143)*'CELDA RESUMEN'!AG143 -> 0.02 | BJ143: =IF(usaDistribucin2G3G="SI",PARAMETROS!$D$25,'LISTA CELDA'!Y143)*'CELDA RESUMEN'!AH143 -> 0 | BK143: =IF(usaDistribucin2G3G="SI",PARAMETROS!$D$26,'LISTA CELDA'!Z143)*'CELDA RESUMEN'!AH143 -> 0 | BL143: =IF(usaDistribucin2G3G="SI",PARAMETROS!$E$25,0) -> 0 | BM143: =IF(usaDistribucin2G3G="SI",PARAMETROS!$E$26,'LISTA CELDA'!AA143)*'CELDA RESUMEN'!AI143 -> 0
B144: 137 | C144: URBANA | D144: PROVINCIA | E144: SUR ESTE | F144: APURIMAC | G144: PROVINCIA20 | H144: DISTRITO70 | I144: 77 | J144: 4 | K144: 12 | L144: 22 | M144: 12 | N144: 3 | O144: IDCELL137 | P144: ID_LOCAL137 | Q144: 0 | R144: D | S144: MACRO | T144: FO | U144: 0.000198019802 | V144: 0.000198019802 | W144: 1 | X144: 1 | Y144: 0 | Z144: 0 | AA144: 0 | AB144: BSC42 | AC144: PROMEDIO | AD144: 1 | AE144: 1 | AF144: 1 | AG144: 0 | AH144: 0 | AI144: 0 | AJ144: 0 | AK144: PROMEDIO | AL144: 0 | AM144: 0 | AN144: 0 | AO144: 0 | AP144: 0 | AR144: PROMEDIO | AS144: 0 | AT144: 0 | AU144: 0 | AV144: 0 | AX144: D | AY144: 1.5 | AZ144: PROVINCIA20DISTRITO70 | BB144: APURIMACURBANA | BC144: APURIMACMACRO | BD144: PROVINCIA URBANA | BH144: =IF(usaDistribucin2G3G="SI",PARAMETROS!$C$25,'LISTA CELDA'!W144)*'CELDA RESUMEN'!AG144 -> 0.4 | BI144: =IF(usaDistribucin2G3G="SI",PARAMETROS!$C$26,'LISTA CELDA'!X144)*'CELDA RESUMEN'!AG144 -> 0.02 | BJ144: =IF(usaDistribucin2G3G="SI",PARAMETROS!$D$25,'LISTA CELDA'!Y144)*'CELDA RESUMEN'!AH144 -> 0 | BK144: =IF(usaDistribucin2G3G="SI",PARAMETROS!$D$26,'LISTA CELDA'!Z144)*'CELDA RESUMEN'!AH144 -> 0 | BL144: =IF(usaDistribucin2G3G="SI",PARAMETROS!$E$25,0) -> 0 | BM144: =IF(usaDistribucin2G3G="SI",PARAMETROS!$E$26,'LISTA CELDA'!AA144)*'CELDA RESUMEN'!AI144 -> 0
B145: 138 | C145: URBANA | D145: PROVINCIA | E145: SUR ESTE | F145: APURIMAC | G145: PROVINCIA90 | H145: DISTRITO1342 | I145: 77 | J145: 4 | K145: 12 | L145: 22 | M145: 12 | N145: 3 | O145: IDCELL138 | P145: ID_LOCAL138 | Q145: 0 | R145: D | S145: MACRO | T145: FO | U145: 0.000198019802 | V145: 0.000198019802 | W145: 1 | X145: 1 | Y145: 0 | Z145: 0 | AA145: 0 | AB145: BSC42 | AC145: PROMEDIO | AD145: 1 | AE145: 1 | AF145: 1 | AG145: 0 | AH145: 0 | AI145: 0 | AJ145: 0 | AK145: PROMEDIO | AL145: 0 | AM145: 0 | AN145: 0 | AO145: 0 | AP145: 0 | AR145: PROMEDIO | AS145: 0 | AT145: 0 | AU145: 0 | AV145: 0 | AX145: D | AY145: 1.5 | AZ145: PROVINCIA90DISTRITO1342 | BB145: APURIMACURBANA | BC145: APURIMACMACRO | BD145: PROVINCIA URBANA | BH145: =IF(usaDistribucin2G3G="SI",PARAMETROS!$C$25,'LISTA CELDA'!W145)*'CELDA RESUMEN'!AG145 -> 0.4 | BI145: =IF(usaDistribucin2G3G="SI",PARAMETROS!$C$26,'LISTA CELDA'!X145)*'CELDA RESUMEN'!AG145 -> 0.02 | BJ145: =IF(usaDistribucin2G3G="SI",PARAMETROS!$D$25,'LISTA CELDA'!Y145)*'CELDA RESUMEN'!AH145 -> 0 | BK145: =IF(usaDistribucin2G3G="SI",PARAMETROS!$D$26,'LISTA CELDA'!Z145)*'CELDA RESUMEN'!AH145 -> 0 | BL145: =IF(usaDistribucin2G3G="SI",PARAMETROS!$E$25,0) -> 0 | BM145: =IF(usaDistribucin2G3G="SI",PARAMETROS!$E$26,'LISTA CELDA'!AA145)*'CELDA RESUMEN'!AI145 -> 0
B146: 139 | C146: RURAL | D146: PROVINCIA | E146: SUR ESTE | F146: APURIMAC | G146: PROVINCIA90 | H146: DISTRITO243 | I146: 77 | J146: 4 | K146: 12 | L146: 22 | M146: 12 | N146: 3 | O146: IDCELL139 | P146: ID_LOCAL139 | Q146: 0 | R146: D | S146: MACRO | T146: FO | U146: 0.000198019802 | V146: 0.000198019802 | W146: 1 | X146: 1 | Y146: 0 | Z146: 0 | AA146: 0 | AB146: BSC42 | AC146: PROMEDIO | AD146: 1 | AE146: 1 | AF146: 1 | AG146: 0 | AH146: 0 | AI146: 0 | AJ146: 0 | AK146: PROMEDIO | AL146: 0 | AM146: 0 | AN146: 0 | AO146: 0 | AP146: 0 | AR146: PROMEDIO | AS146: 0 | AT146: 0 | AU146: 0 | AV146: 0 | AX146: D | AY146: 1.5 | AZ146: PROVINCIA90DISTRITO243 | BB146: APURIMACRURAL | BC146: APURIMACMACRO | BD146: PROVINCIA RURAL | BH146: =IF(usaDistribucin2G3G="SI",PARAMETROS!$C$25,'LISTA CELDA'!W146)*'CELDA RESUMEN'!AG146 -> 0.4 | BI146: =IF(usaDistribucin2G3G="SI",PARAMETROS!$C$26,'LISTA CELDA'!X146)*'CELDA RESUMEN'!AG146 -> 0.02 | BJ146: =IF(usaDistribucin2G3G="SI",PARAMETROS!$D$25,'LISTA CELDA'!Y146)*'CELDA RESUMEN'!AH146 -> 0 | BK146: =IF(usaDistribucin2G3G="SI",PARAMETROS!$D$26,'LISTA CELDA'!Z146)*'CELDA RESUMEN'!AH146 -> 0 | BL146: =IF(usaDistribucin2G3G="SI",PARAMETROS!$E$25,0) -> 0 | BM146: =IF(usaDistribucin2G3G="SI",PARAMETROS!$E$26,'LISTA CELDA'!AA146)*'CELDA RESUMEN'!AI146 -> 0
B147: 140 | C147: URBANA | D147: PROVINCIA | E147: SUR ESTE | F147: APURIMAC | G147: PROVINCIA90 | H147: DISTRITO453 | I147: 77 | J147: 4 | K147: 12 | L147: 22 | M147: 12 | N147: 3 | O147: IDCELL140 | P147: ID_LOCAL140 | Q147: 0 | R147: D | S147: MACRO | T147: FO | U147: 0.000198019802 | V147: 0.000198019802 | W147: 1 | X147: 1 | Y147: 0 | Z147: 0 | AA147: 0 | AB147: BSC42 | AC147: PROMEDIO | AD147: 1 | AE147: 1 | AF147: 1 | AG147: 0 | AH147: 0 | AI147: 0 | AJ147: 0 | AK147: PROMEDIO | AL147: 0 | AM147: 0 | AN147: 0 | AO147: 0 | AP147: 0 | AR147: PROMEDIO | AS147: 0 | AT147: 0 | AU147: 0 | AV147: 0 | AX147: D | AY147: 1.5 | AZ147: PROVINCIA90DISTRITO453 | BB147: APURIMACURBANA | BC147: APURIMACMACRO | BD147: PROVINCIA URBANA | BH147: =IF(usaDistribucin2G3G="SI",PARAMETROS!$C$25,'LISTA CELDA'!W147)*'CELDA RESUMEN'!AG147 -> 0.4 | BI147: =IF(usaDistribucin2G3G="SI",PARAMETROS!$C$26,'LISTA CELDA'!X147)*'CELDA RESUMEN'!AG147 -> 0.02 | BJ147: =IF(usaDistribucin2G3G="SI",PARAMETROS!$D$25,'LISTA CELDA'!Y147)*'CELDA RESUMEN'!AH147 -> 0 | BK147: =IF(usaDistribucin2G3G="SI",PARAMETROS!$D$26,'LISTA CELDA'!Z147)*'CELDA RESUMEN'!AH147 -> 0 | BL147: =IF(usaDistribucin2G3G="SI",PARAMETROS!$E$25,0) -> 0 | BM147: =IF(usaDistribucin2G3G="SI",PARAMETROS!$E$26,'LISTA CELDA'!AA147)*'CELDA RESUMEN'!AI147 -> 0
B148: 141 | C148: RURAL | D148: PROVINCIA | E148: SUR ESTE | F148: APURIMAC | G148: PROVINCIA10 | H148: DISTRITO09 | I148: 77 | J148: 4 | K148: 12 | L148: 22 | M148: 12 | N148: 3 | O148: IDCELL141 | P148: ID_LOCAL141 | Q148: 0 | R148: D | S148: MACRO | T148: FO | U148: 0.000198019802 | V148: 0.000198019802 | W148: 0.71 | X148: 0.1 | Y148: 0.39 | Z148: 0.7 | AA148: 0.2 | AB148: BSC42 | AC148: PROMEDIO | AD148: 1 | AE148: 1 | AF148: 1 | AG148: 0 | AH148: 0 | AI148: 0 | AJ148: RNC37 | AK148: PROMEDIO | AL148: 1 | AM148: 0.8815384414 | AN148: 0.1045627723 | AO148: 0.005403422994 | AP148: 0.009134443846 | AQ148: RNC37 | AR148: PROMEDIO | AS148: 1 | AT148: 0.5 | AU148: 1 | AV148: 0.5 | AX148: D | AY148: 1.5 | AZ148: PROVINCIA10DISTRITO09 | BB148: APURIMACRURAL | BC148: APURIMACMACRO | BD148: PROVINCIA RURAL | BH148: =IF(usaDistribucin2G3G="SI",PARAMETROS!$C$25,'LISTA CELDA'!W148)*'CELDA RESUMEN'!AG148 -> 0.4 | BI148: =IF(usaDistribucin2G3G="SI",PARAMETROS!$C$26,'LISTA CELDA'!X148)*'CELDA RESUMEN'!AG148 -> 0.02 | BJ148: =IF(usaDistribucin2G3G="SI",PARAMETROS!$D$25,'LISTA CELDA'!Y148)*'CELDA RESUMEN'!AH148 -> 0.6 | BK148: =IF(usaDistribucin2G3G="SI",PARAMETROS!$D$26,'LISTA CELDA'!Z148)*'CELDA RESUMEN'!AH148 -> 0.33 | BL148: =IF(usaDistribucin2G3G="SI",PARAMETROS!$E$25,0) -> 0 | BM148: =IF(usaDistribucin2G3G="SI",PARAMETROS!$E$26,'LISTA CELDA'!AA148)*'CELDA RESUMEN'!AI148 -> 0.65
B149: 142 | C149: URBANA | D149: PROVINCIA | E149: SUR ESTE | F149: APURIMAC | G149: PROVINCIA16 | H149: DISTRITO59 | I149: 77 | J149: 4 | K149: 12 | L149: 22 | M149: 12 | N149: 3 | O149: IDCELL142 | P149: ID_LOCAL142 | Q149: 0 | R149: D | S149: MACRO | T149: FO | U149: 0.000198019802 | V149: 0.000198019802 | W149: 0.71 | X149: 0.1 | Y149: 0.39 | Z149: 0.7 | AA149: 0.2 | AB149: BSC42 | AC149: PROMEDIO | AD149: 1 | AE149: 1 | AF149: 1 | AG149: 0 | AH149: 0 | AI149: 0 | AJ149: RNC37 | AK149: PROMEDIO | AL149: 1 | AM149: 0.8815384414 | AN149: 0.1045627723 | AO149: 0.005403422994 | AP149: 0.009134443846 | AQ149: RNC37 | AR149: PROMEDIO | AS149: 1 | AT149: 0.5 | AU149: 1 | AV149: 0.5 | AX149: D | AY149: 1.5 | AZ149: PROVINCIA16DISTRITO59 | BB149: APURIMACURBANA | BC149: APURIMACMACRO | BD149: PROVINCIA URBANA | BH149: =IF(usaDistribucin2G3G="SI",PARAMETROS!$C$25,'LISTA CELDA'!W149)*'CELDA RESUMEN'!AG149 -> 0.4 | BI149: =IF(usaDistribucin2G3G="SI",PARAMETROS!$C$26,'LISTA CELDA'!X149)*'CELDA RESUMEN'!AG149 -> 0.02 | BJ149: =IF(usaDistribucin2G3G="SI",PARAMETROS!$D$25,'LISTA CELDA'!Y149)*'CELDA RESUMEN'!AH149 -> 0.6 | BK149: =IF(usaDistribucin2G3G="SI",PARAMETROS!$D$26,'LISTA CELDA'!Z149)*'CELDA RESUMEN'!AH149 -> 0.33 | BL149: =IF(usaDistribucin2G3G="SI",PARAMETROS!$E$25,0) -> 0 | BM149: =IF(usaDistribucin2G3G="SI",PARAMETROS!$E$26,'LISTA CELDA'!AA149)*'CELDA RESUMEN'!AI149 -> 0.65
B150: 143 | C150: RURAL | D150: PROVINCIA | E150: SUR ESTE | F150: APURIMAC | G150: PROVINCIA10 | H150: DISTRITO09 | I150: 77 | J150: 4 | K150: 12 | L150: 22 | M150: 12 | N150: 3 | O150: IDCELL143 | P150: ID_LOCAL143 | Q150: 0 | R150: D | S150: MACRO | T150: FO | U150: 0.000198019802 | V150: 0.000198019802 | W150: 0.71 | X150: 0.1 | Y150: 0.39 | Z150: 0.7 | AA150: 0.2 | AB150: BSC42 | AC150: PROMEDIO | AD150: 1 | AE150: 1 | AF150: 1 | AG150: 0 | AH150: 0 | AI150: 0 | AJ150: RNC37 | AK150: PROMEDIO | AL150: 1 | AM150: 0.8815384414 | AN150: 0.1045627723 | AO150: 0.005403422994 | AP150: 0.009134443846 | AQ150: RNC37 | AR150: PROMEDIO | AS150: 1 | AT150: 0.5 | AU150: 1 | AV150: 0.5 | AX150: D | AY150: 1.5 | AZ150: PROVINCIA10DISTRITO09 | BB150: APURIMACRURAL | BC150: APURIMACMACRO | BD150: PROVINCIA RURAL | BH150: =IF(usaDistribucin2G3G="SI",PARAMETROS!$C$25,'LISTA CELDA'!W150)*'CELDA RESUMEN'!AG150 -> 0.4 | BI150: =IF(usaDistribucin2G3G="SI",PARAMETROS!$C$26,'LISTA CELDA'!X150)*'CELDA RESUMEN'!AG150 -> 0.02 | BJ150: =IF(usaDistribucin2G3G="SI",PARAMETROS!$D$25,'LISTA CELDA'!Y150)*'CELDA RESUMEN'!AH150 -> 0.6 | BK150: =IF(usaDistribucin2G3G="SI",PARAMETROS!$D$26,'LISTA CELDA'!Z150)*'CELDA RESUMEN'!AH150 -> 0.33 | BL150: =IF(usaDistribucin2G3G="SI",PARAMETROS!$E$25,0) -> 0 | BM150: =IF(usaDistribucin2G3G="SI",PARAMETROS!$E$26,'LISTA CELDA'!AA150)*'CELDA RESUMEN'!AI150 -> 0.65
B151: 144 | C151: RURAL | D151: PROVINCIA | E151: SUR ESTE | F151: APURIMAC | G151: PROVINCIA10 | H151: DISTRITO09 | I151: 77 | J151: 4 | K151: 12 | L151: 22 | M151: 12 | N151: 3 | O151: IDCELL144 | P151: ID_LOCAL144 | Q151: 0 | R151: D | S151: MACRO | T151: FO | U151: 0.000198019802 | V151: 0.000198019802 | W151: 0.71 | X151: 0.1 | Y151: 0.39 | Z151: 0.7 | AA151: 0.2 | AB151: BSC42 | AC151: PROMEDIO | AD151: 1 | AE151: 1 | AF151: 1 | AG151: 0 | AH151: 0 | AI151: 0 | AJ151: RNC37 | AK151: PROMEDIO | AL151: 1 | AM151: 0.8815384414 | AN151: 0.1045627723 | AO151: 0.005403422994 | AP151: 0.009134443846 | AQ151: RNC37 | AR151: PROMEDIO | AS151: 1 | AT151: 0.5 | AU151: 1 | AV151: 0.5 | AX151: D | AY151: 1.5 | AZ151: PROVINCIA10DISTRITO09 | BB151: APURIMACRURAL | BC151: APURIMACMACRO | BD151: PROVINCIA RURAL | BH151: =IF(usaDistribucin2G3G="SI",PARAMETROS!$C$25,'LISTA CELDA'!W151)*'CELDA RESUMEN'!AG151 -> 0.4 | BI151: =IF(usaDistribucin2G3G="SI",PARAMETROS!$C$26,'LISTA CELDA'!X151)*'CELDA RESUMEN'!AG151 -> 0.02 | BJ151: =IF(usaDistribucin2G3G="SI",PARAMETROS!$D$25,'LISTA CELDA'!Y151)*'CELDA RESUMEN'!AH151 -> 0.6 | BK151: =IF(usaDistribucin2G3G="SI",PARAMETROS!$D$26,'LISTA CELDA'!Z151)*'CELDA RESUMEN'!AH151 -> 0.33 | BL151: =IF(usaDistribucin2G3G="SI",PARAMETROS!$E$25,0) -> 0 | BM151: =IF(usaDistribucin2G3G="SI",PARAMETROS!$E$26,'LISTA CELDA'!AA151)*'CELDA RESUMEN'!AI151 -> 0.65
B152: 145 | C152: RURAL | D152: PROVINCIA | E152: SUR ESTE | F152: APURIMAC | G152: PROVINCIA10 | H152: DISTRITO327 | I152: 77 | J152: 4 | K152: 12 | L152: 22 | M152: 12 | N152: 3 | O152: IDCELL145 | P152: ID_LOCAL145 | Q152: 0 | R152: D | S152: MACRO | T152: FO | U152: 0.000198019802 | V152: 0.000198019802 | W152: 1 | X152: 1 | Y152: 0 | Z152: 0 | AA152: 0 | AB152: BSC42 | AC152: PROMEDIO | AD152: 0 | AE152: 0 | AF152: 0 | AG152: 1 | AH152: 1 | AI152: 1 | AJ152: 0 | AK152: PROMEDIO | AL152: 0 | AM152: 0 | AN152: 0 | AO152: 0 | AP152: 0 | AR152: PROMEDIO | AS152: 0 | AT152: 0 | AU152: 0 | AV152: 0 | AX152: D | AY152: 1.5 | AZ152: PROVINCIA10DISTRITO327 | BB152: APURIMACRURAL | BC152: APURIMACMACRO | BD152: PROVINCIA RURAL | BH152: =IF(usaDistribucin2G3G="SI",PARAMETROS!$C$25,'LISTA CELDA'!W152)*'CELDA RESUMEN'!AG152 -> 0.4 | BI152: =IF(usaDistribucin2G3G="SI",PARAMETROS!$C$26,'LISTA CELDA'!X152)*'CELDA RESUMEN'!AG152 -> 0.02 | BJ152: =IF(usaDistribucin2G3G="SI",PARAMETROS!$D$25,'LISTA CELDA'!Y152)*'CELDA RESUMEN'!AH152 -> 0 | BK152: =IF(usaDistribucin2G3G="SI",PARAMETROS!$D$26,'LISTA CELDA'!Z152)*'CELDA RESUMEN'!AH152 -> 0 | BL152: =IF(usaDistribucin2G3G="SI",PARAMETROS!$E$25,0) -> 0 | BM152: =IF(usaDistribucin2G3G="SI",PARAMETROS!$E$26,'LISTA CELDA'!AA152)*'CELDA RESUMEN'!AI152 -> 0
B153: 146 | C153: URBANA | D153: PROVINCIA | E153: SUR ESTE | F153: APURIMAC | G153: PROVINCIA28 | H153: DISTRITO181 | I153: 77 | J153: 4 | K153: 12 | L153: 22 | M153: 12 | N153: 3 | O153: IDCELL146 | P153: ID_LOCAL146 | Q153: 0 | R153: D | S153: MACRO | T153: FO | U153: 0.000198019802 | V153: 0.000198019802 | W153: 1 | X153: 1 | Y153: 0 | Z153: 0 | AA153: 0 | AB153: BSC42 | AC153: PROMEDIO | AD153: 1 | AE153: 1 | AF153: 1 | AG153: 0 | AH153: 0 | AI153: 0 | AJ153: 0 | AK153: PROMEDIO | AL153: 0 | AM153: 0 | AN153: 0 | AO153: 0 | AP153: 0 | AR153: PROMEDIO | AS153: 0 | AT153: 0 | AU153: 0 | AV153: 0 | AX153: D | AY153: 1.5 | AZ153: PROVINCIA28DISTRITO181 | BB153: APURIMACURBANA | BC153: APURIMACMACRO | BD153: PROVINCIA URBANA | BH153: =IF(usaDistribucin2G3G="SI",PARAMETROS!$C$25,'LISTA CELDA'!W153)*'CELDA RESUMEN'!AG153 -> 0.4 | BI153: =IF(usaDistribucin2G3G="SI",PARAMETROS!$C$26,'LISTA CELDA'!X153)*'CELDA RESUMEN'!AG153 -> 0.02 | BJ153: =IF(usaDistribucin2G3G="SI",PARAMETROS!$D$25,'LISTA CELDA'!Y153)*'CELDA RESUMEN'!AH153 -> 0 | BK153: =IF(usaDistribucin2G3G="SI",PARAMETROS!$D$26,'LISTA CELDA'!Z153)*'CELDA RESUMEN'!AH153 -> 0 | BL153: =IF(usaDistribucin2G3G="SI",PARAMETROS!$E$25,0) -> 0 | BM153: =IF(usaDistribucin2G3G="SI",PARAMETROS!$E$26,'LISTA CELDA'!AA153)*'CELDA RESUMEN'!AI153 -> 0
B154: 147 | C154: URBANA | D154: PROVINCIA | E154: SUR ESTE | F154: APURIMAC | G154: PROVINCIA10 | H154: DISTRITO234 | I154: 77 | J154: 4 | K154: 12 | L154: 22 | M154: 12 | N154: 3 | O154: IDCELL147 | P154: ID_LOCAL147 | Q154: 0 | R154: D | S154: MACRO | T154: FO | U154: 0.000198019802 | V154: 0.000198019802 | W154: 1 | X154: 1 | Y154: 0 | Z154: 0 | AA154: 0 | AB154: BSC42 | AC154: PROMEDIO | AD154: 1 | AE154: 1 | AF154: 1 | AG154: 0 | AH154: 0 | AI154: 0 | AJ154: 0 | AK154: PROMEDIO | AL154: 0 | AM154: 0 | AN154: 0 | AO154: 0 | AP154: 0 | AR154: PROMEDIO | AS154: 0 | AT154: 0 | AU154: 0 | AV154: 0 | AX154: D | AY154: 1.5 | AZ154: PROVINCIA10DISTRITO234 | BB154: APURIMACURBANA | BC154: APURIMACMACRO | BD154: PROVINCIA URBANA | BH154: =IF(usaDistribucin2G3G="SI",PARAMETROS!$C$25,'LISTA CELDA'!W154)*'CELDA RESUMEN'!AG154 -> 0.4 | BI154: =IF(usaDistribucin2G3G="SI",PARAMETROS!$C$26,'LISTA CELDA'!X154)*'CELDA RESUMEN'!AG154 -> 0.02 | BJ154: =IF(usaDistribucin2G3G="SI",PARAMETROS!$D$25,'LISTA CELDA'!Y154)*'CELDA RESUMEN'!AH154 -> 0 | BK154: =IF(usaDistribucin2G3G="SI",PARAMETROS!$D$26,'LISTA CELDA'!Z154)*'CELDA RESUMEN'!AH154 -> 0 | BL154: =IF(usaDistribucin2G3G="SI",PARAMETROS!$E$25,0) -> 0 | BM154: =IF(usaDistribucin2G3G="SI",PARAMETROS!$E$26,'LISTA CELDA'!AA154)*'CELDA RESUMEN'!AI154 -> 0
B155: 148 | C155: URBANA | D155: PROVINCIA | E155: SUR | F155: AREQUIPA | G155: PROVINCIA22 | H155: DISTRITO82 | I155: 77 | J155: 4 | K155: 12 | L155: 22 | M155: 12 | N155: 3 | O155: IDCELL148 | P155: ID_LOCAL148 | Q155: 0 | R155: D | S155: MACRO | T155: FO | U155: 0.000198019802 | V155: 0.000198019802 | W155: 0.71 | X155: 0.1 | Y155: 0.39 | Z155: 0.7 | AA155: 0.2 | AB155: BSC40 | AC155: PROMEDIO | AD155: 1 | AE155: 0.2398961048 | AF155: 0.2398961048 | AG155: 1 | AH155: 0.7601038952 | AI155: 0.7601038952 | AJ155: RNC37 | AK155: PROMEDIO | AL155: 1 | AM155: 0.8815384414 | AN155: 0.1045627723 | AO155: 0.005403422994 | AP155: 0.009134443846 | AQ155: RNC37 | AR155: PROMEDIO | AS155: 1 | AT155: 0.5 | AU155: 1 | AV155: 0.5 | AX155: D | AY155: 1.5 | AZ155: PROVINCIA22DISTRITO82 | BB155: AREQUIPAURBANA | BC155: AREQUIPAMACRO | BD155: PROVINCIA URBANA | BH155: =IF(usaDistribucin2G3G="SI",PARAMETROS!$C$25,'LISTA CELDA'!W155)*'CELDA RESUMEN'!AG155 -> 0.4 | BI155: =IF(usaDistribucin2G3G="SI",PARAMETROS!$C$26,'LISTA CELDA'!X155)*'CELDA RESUMEN'!AG155 -> 0.02 | BJ155: =IF(usaDistribucin2G3G="SI",PARAMETROS!$D$25,'LISTA CELDA'!Y155)*'CELDA RESUMEN'!AH155 -> 0.6 | BK155: =IF(usaDistribucin2G3G="SI",PARAMETROS!$D$26,'LISTA CELDA'!Z155)*'CELDA RESUMEN'!AH155 -> 0.33 | BL155: =IF(usaDistribucin2G3G="SI",PARAMETROS!$E$25,0) -> 0 | BM155: =IF(usaDistribucin2G3G="SI",PARAMETROS!$E$26,'LISTA CELDA'!AA155)*'CELDA RESUMEN'!AI155 -> 0.65
B156: 149 | C156: URBANA | D156: PROVINCIA | E156: SUR | F156: AREQUIPA | G156: PROVINCIA45 | H156: DISTRITO1104 | I156: 77 | J156: 4 | K156: 12 | L156: 22 | M156: 12 | N156: 3 | O156: IDCELL149 | P156: ID_LOCAL149 | Q156: 0 | R156: D | S156: MACRO | T156: FO | U156: 0.000198019802 | V156: 0.000198019802 | W156: 0.71 | X156: 0.1 | Y156: 0.39 | Z156: 0.7 | AA156: 0.2 | AB156: BSC41 | AC156: PROMEDIO | AD156: 1 | AE156: 0.5711698469 | AF156: 0.5711698469 | AG156: 1 | AH156: 0.4288301531 | AI156: 0.4288301531 | AJ156: RNC38 | AK156: PROMEDIO | AL156: 1 | AM156: 0.8815384414 | AN156: 0.1045627723 | AO156: 0.005403422994 | AP156: 0.009134443846 | AQ156: RNC38 | AR156: PROMEDIO | AS156: 1 | AT156: 0.5 | AU156: 1 | AV156: 0.5 | AX156: D | AY156: 1.5 | AZ156: PROVINCIA45DISTRITO1104 | BB156: AREQUIPAURBANA | BC156: AREQUIPAMACRO | BD156: PROVINCIA URBANA | BH156: =IF(usaDistribucin2G3G="SI",PARAMETROS!$C$25,'LISTA CELDA'!W156)*'CELDA RESUMEN'!AG156 -> 0.4 | BI156: =IF(usaDistribucin2G3G="SI",PARAMETROS!$C$26,'LISTA CELDA'!X156)*'CELDA RESUMEN'!AG156 -> 0.02 | BJ156: =IF(usaDistribucin2G3G="SI",PARAMETROS!$D$25,'LISTA CELDA'!Y156)*'CELDA RESUMEN'!AH156 -> 0.6 | BK156: =IF(usaDistribucin2G3G="SI",PARAMETROS!$D$26,'LISTA CELDA'!Z156)*'CELDA RESUMEN'!AH156 -> 0.33 | BL156: =IF(usaDistribucin2G3G="SI",PARAMETROS!$E$25,0) -> 0 | BM156: =IF(usaDistribucin2G3G="SI",PARAMETROS!$E$26,'LISTA CELDA'!AA156)*'CELDA RESUMEN'!AI156 -> 0.65
B157: 150 | C157: RURAL | D157: PROVINCIA | E157: SUR | F157: AREQUIPA | G157: PROVINCIA128 | H157: DISTRITO1023 | I157: 77 | J157: 4 | K157: 12 | L157: 22 | M157: 12 | N157: 3 | O157: IDCELL150 | P157: ID_LOCAL150 | Q157: 0 | R157: D | S157: MACRO | T157: FO | U157: 0.000198019802 | V157: 0.000198019802 | W157: 0.71 | X157: 0.1 | Y157: 0.39 | Z157: 0.7 | AA157: 0.2 | AB157: BSC41 | AC157: PROMEDIO | AD157: 1 | AE157: 0.6563261328 | AF157: 0.6563261328 | AG157: 1 | AH157: 0.3436738672 | AI157: 0.3436738672 | AJ157: RNC38 | AK157: PROMEDIO | AL157: 1 | AM157: 0.8815384414 | AN157: 0.1045627723 | AO157: 0.005403422994 | AP157: 0.009134443846 | AQ157: RNC38 | AR157: PROMEDIO | AS157: 1 | AT157: 0.5 | AU157: 1 | AV157: 0.5 | AX157: D | AY157: 1.5 | AZ157: PROVINCIA128DISTRITO1023 | BB157: AREQUIPARURAL | BC157: AREQUIPAMACRO | BD157: PROVINCIA RURAL | BH157: =IF(usaDistribucin2G3G="SI",PARAMETROS!$C$25,'LISTA CELDA'!W157)*'CELDA RESUMEN'!AG157 -> 0.4 | BI157: =IF(usaDistribucin2G3G="SI",PARAMETROS!$C$26,'LISTA CELDA'!X157)*'CELDA RESUMEN'!AG157 -> 0.02 | BJ157: =IF(usaDistribucin2G3G="SI",PARAMETROS!$D$25,'LISTA CELDA'!Y157)*'CELDA RESUMEN'!AH157 -> 0.6 | BK157: =IF(usaDistribucin2G3G="SI",PARAMETROS!$D$26,'LISTA CELDA'!Z157)*'CELDA RESUMEN'!AH157 -> 0.33 | BL157: =IF(usaDistribucin2G3G="SI",PARAMETROS!$E$25,0) -> 0 | BM157: =IF(usaDistribucin2G3G="SI",PARAMETROS!$E$26,'LISTA CELDA'!AA157)*'CELDA RESUMEN'!AI157 -> 0.65
B158: 151 | C158: URBANA | D158: PROVINCIA | E158: SUR | F158: AREQUIPA | G158: PROVINCIA22 | H158: DISTRITO1465 | I158: 77 | J158: 4 | K158: 12 | L158: 22 | M158: 12 | N158: 3 | O158: IDCELL151 | P158: ID_LOCAL151 | Q158: 0 | R158: D | S158: MACRO | T158: FO | U158: 0.000198019802 | V158: 0.000198019802 | W158: 0.71 | X158: 0.1 | Y158: 0.39 | Z158: 0.7 | AA158: 0.2 | AB158: BSC40 | AC158: PROMEDIO | AD158: 1 | AE158: 0.3903599934 | AF158: 0.3903599934 | AG158: 1 | AH158: 0.6096400066 | AI158: 0.6096400066 | AJ158: RNC37 | AK158: PROMEDIO | AL158: 1 | AM158: 0.8815384414 | AN158: 0.1045627723 | AO158: 0.005403422994 | AP158: 0.009134443846 | AQ158: RNC37 | AR158: PROMEDIO | AS158: 1 | AT158: 0.5 | AU158: 1 | AV158: 0.5 | AX158: D | AY158: 1.5 | AZ158: PROVINCIA22DISTRITO1465 | BB158: AREQUIPAURBANA | BC158: AREQUIPAMACRO | BD158: PROVINCIA URBANA | BH158: =IF(usaDistribucin2G3G="SI",PARAMETROS!$C$25,'LISTA CELDA'!W158)*'CELDA RESUMEN'!AG158 -> 0.4 | BI158: =IF(usaDistribucin2G3G="SI",PARAMETROS!$C$26,'LISTA CELDA'!X158)*'CELDA RESUMEN'!AG158 -> 0.02 | BJ158: =IF(usaDistribucin2G3G="SI",PARAMETROS!$D$25,'LISTA CELDA'!Y158)*'CELDA RESUMEN'!AH158 -> 0.6 | BK158: =IF(usaDistribucin2G3G="SI",PARAMETROS!$D$26,'LISTA CELDA'!Z158)*'CELDA RESUMEN'!AH158 -> 0.33 | BL158: =IF(usaDistribucin2G3G="SI",PARAMETROS!$E$25,0) -> 0 | BM158: =IF(usaDistribucin2G3G="SI",PARAMETROS!$E$26,'LISTA CELDA'!AA158)*'CELDA RESUMEN'!AI158 -> 0.65
B159: 152 | C159: RURAL | D159: PROVINCIA | E159: SUR | F159: AREQUIPA | G159: PROVINCIA22 | H159: DISTRITO1415 | I159: 77 | J159: 4 | K159: 12 | L159: 22 | M159: 12 | N159: 3 | O159: IDCELL152 | P159: ID_LOCAL152 | Q159: 0 | R159: D | S159: MACRO | T159: FO | U159: 0.000198019802 | V159: 0.000198019802 | W159: 0.71 | X159: 0.1 | Y159: 0.39 | Z159: 0.7 | AA159: 0.2 | AB159: BSC45 | AC159: PROMEDIO | AD159: 1 | AE159: 1 | AF159: 1 | AG159: 0 | AH159: 0 | AI159: 0 | AJ159: RNC38 | AK159: PROMEDIO | AL159: 1 | AM159: 0.8815384414 | AN159: 0.1045627723 | AO159: 0.005403422994 | AP159: 0.009134443846 | AQ159: RNC38 | AR159: PROMEDIO | AS159: 1 | AT159: 0.5 | AU159: 1 | AV159: 0.5 | AX159: D | AY159: 1.5 | AZ159: PROVINCIA22DISTRITO1415 | BB159: AREQUIPARURAL | BC159: AREQUIPAMACRO | BD159: PROVINCIA RURAL | BH159: =IF(usaDistribucin2G3G="SI",PARAMETROS!$C$25,'LISTA CELDA'!W159)*'CELDA RESUMEN'!AG159 -> 0.4 | BI159: =IF(usaDistribucin2G3G="SI",PARAMETROS!$C$26,'LISTA CELDA'!X159)*'CELDA RESUMEN'!AG159 -> 0.02 | BJ159: =IF(usaDistribucin2G3G="SI",PARAMETROS!$D$25,'LISTA CELDA'!Y159)*'CELDA RESUMEN'!AH159 -> 0.6 | BK159: =IF(usaDistribucin2G3G="SI",PARAMETROS!$D$26,'LISTA CELDA'!Z159)*'CELDA RESUMEN'!AH159 -> 0.33 | BL159: =IF(usaDistribucin2G3G="SI",PARAMETROS!$E$25,0) -> 0 | BM159: =IF(usaDistribucin2G3G="SI",PARAMETROS!$E$26,'LISTA CELDA'!AA159)*'CELDA RESUMEN'!AI159 -> 0.65
B160: 153 | C160: RURAL | D160: PROVINCIA | E160: SUR | F160: AREQUIPA | G160: PROVINCIA22 | H160: DISTRITO1415 | I160: 77 | J160: 4 | K160: 12 | L160: 22 | M160: 12 | N160: 3 | O160: IDCELL153 | P160: ID_LOCAL153 | Q160: 0 | R160: D | S160: MACRO | T160: FO | U160: 0.000198019802 | V160: 0.000198019802 | W160: 0 | X160: 0.1 | Y160: 1 | Z160: 0.7 | AA160: 0.2 | AB160: BSC45 | AC160: PROMEDIO | AD160: 1 | AE160: 0.433420042 | AF160: 0.433420042 | AG160: 1 | AH160: 0.566579958 | AI160: 0.566579958 | AJ160: RNC38 | AK160: PROMEDIO | AL160: 1 | AM160: 0.8815384414 | AN160: 0.1045627723 | AO160: 0.005403422994 | AP160: 0.009134443846 | AQ160: RNC38 | AR160: PROMEDIO | AS160: 1 | AT160: 0.5 | AU160: 1 | AV160: 0.5 | AX160: D | AY160: 1.5 | AZ160: PROVINCIA22DISTRITO1415 | BB160: AREQUIPARURAL | BC160: AREQUIPAMACRO | BD160: PROVINCIA RURAL | BH160: =IF(usaDistribucin2G3G="SI",PARAMETROS!$C$25,'LISTA CELDA'!W160)*'CELDA RESUMEN'!AG160 -> 0.4 | BI160: =IF(usaDistribucin2G3G="SI",PARAMETROS!$C$26,'LISTA CELDA'!X160)*'CELDA RESUMEN'!AG160 -> 0.02 | BJ160: =IF(usaDistribucin2G3G="SI",PARAMETROS!$D$25,'LISTA CELDA'!Y160)*'CELDA RESUMEN'!AH160 -> 0.6 | BK160: =IF(usaDistribucin2G3G="SI",PARAMETROS!$D$26,'LISTA CELDA'!Z160)*'CELDA RESUMEN'!AH160 -> 0.33 | BL160: =IF(usaDistribucin2G3G="SI",PARAMETROS!$E$25,0) -> 0 | BM160: =IF(usaDistribucin2G3G="SI",PARAMETROS!$E$26,'LISTA CELDA'!AA160)*'CELDA RESUMEN'!AI160 -> 0.65
B161: 154 | C161: URBANA | D161: PROVINCIA | E161: SUR | F161: AREQUIPA | G161: PROVINCIA56 | H161: DISTRITO237 | I161: 77 | J161: 4 | K161: 12 | L161: 22 | M161: 12 | N161: 3 | O161: IDCELL154 | P161: ID_LOCAL154 | Q161: 0 | R161: D | S161: MACRO | T161: FO | U161: 0.000198019802 | V161: 0.000198019802 | W161: 0.71 | X161: 0.1 | Y161: 0.39 | Z161: 0.7 | AA161: 0.2 | AB161: BSC41 | AC161: PROMEDIO | AD161: 1 | AE161: 1 | AF161: 1 | AG161: 0 | AH161: 0 | AI161: 0 | AJ161: RNC41 | AK161: PROMEDIO | AL161: 1 | AM161: 0.8815384414 | AN161: 0.1045627723 | AO161: 0.005403422994 | AP161: 0.009134443846 | AQ161: RNC41 | AR161: PROMEDIO | AS161: 1 | AT161: 0.5 | AU161: 1 | AV161: 0.5 | AX161: D | AY161: 1.5 | AZ161: =G161&H161 -> PROVINCIA56DISTRITO237 | BB161: =F161&C161 -> AREQUIPAURBANA | BC161: =F161&S161 -> AREQUIPAMACRO | BD161: =D161&" "&C161 -> PROVINCIA URBANA | BH161: =IF(usaDistribucin2G3G="SI",PARAMETROS!$C$25,'LISTA CELDA'!W161)*'CELDA RESUMEN'!AG161 -> 0.4 | BI161: =IF(usaDistribucin2G3G="SI",PARAMETROS!$C$26,'LISTA CELDA'!X161)*'CELDA RESUMEN'!AG161 -> 0.02 | BJ161: =IF(usaDistribucin2G3G="SI",PARAMETROS!$D$25,'LISTA CELDA'!Y161)*'CELDA RESUMEN'!AH161 -> 0.6 | BK161: =IF(usaDistribucin2G3G="SI",PARAMETROS!$D$26,'LISTA CELDA'!Z161)*'CELDA RESUMEN'!AH161 -> 0.33 | BL161: =IF(usaDistribucin2G3G="SI",PARAMETROS!$E$25,0) -> 0 | BM161: =IF(usaDistribucin2G3G="SI",PARAMETROS!$E$26,'LISTA CELDA'!AA161)*'CELDA RESUMEN'!AI161 -> 0.65
B162: 155 | C162: URBANA | D162: PROVINCIA | E162: SUR | F162: AREQUIPA | G162: PROVINCIA22 | H162: DISTRITO252 | I162: 77 | J162: 4 | K162: 12 | L162: 22 | M162: 12 | N162: 3 | O162: IDCELL155 | P162: ID_LOCAL155 | Q162: 0 | R162: D | S162: MACRO | T162: FO | U162: 0.000198019802 | V162: 0.000198019802 | W162: 0.71 | X162: 0.1 | Y162: 0.39 | Z162: 0.7 | AA162: 0.2 | AB162: BSC45 | AC162: PROMEDIO | AD162: 1 | AE162: 0.4778097206 | AF162: 0.4778097206 | AG162: 1 | AH162: 0.5221902794 | AI162: 0.5221902794 | AJ162: RNC37 | AK162: PROMEDIO | AL162: 1 | AM162: 0.8815384414 | AN162: 0.1045627723 | AO162: 0.005403422994 | AP162: 0.009134443846 | AQ162: RNC37 | AR162: PROMEDIO | AS162: 1 | AT162: 0.5 | AU162: 1 | AV162: 0.5 | AX162: D | AY162: 1.5 | AZ162: PROVINCIA22DISTRITO252 | BB162: AREQUIPAURBANA | BC162: AREQUIPAMACRO | BD162: PROVINCIA URBANA | BH162: =IF(usaDistribucin2G3G="SI",PARAMETROS!$C$25,'LISTA CELDA'!W162)*'CELDA RESUMEN'!AG162 -> 0.4 | BI162: =IF(usaDistribucin2G3G="SI",PARAMETROS!$C$26,'LISTA CELDA'!X162)*'CELDA RESUMEN'!AG162 -> 0.02 | BJ162: =IF(usaDistribucin2G3G="SI",PARAMETROS!$D$25,'LISTA CELDA'!Y162)*'CELDA RESUMEN'!AH162 -> 0.6 | BK162: =IF(usaDistribucin2G3G="SI",PARAMETROS!$D$26,'LISTA CELDA'!Z162)*'CELDA RESUMEN'!AH162 -> 0.33 | BL162: =IF(usaDistribucin2G3G="SI",PARAMETROS!$E$25,0) -> 0 | BM162: =IF(usaDistribucin2G3G="SI",PARAMETROS!$E$26,'LISTA CELDA'!AA162)*'CELDA RESUMEN'!AI162 -> 0.65
B163: 156 | C163: RURAL | D163: PROVINCIA | E163: SUR | F163: AREQUIPA | G163: PROVINCIA61 | H163: DISTRITO1424 | I163: 77 | J163: 4 | K163: 12 | L163: 22 | M163: 12 | N163: 3 | O163: IDCELL156 | P163: ID_LOCAL156 | Q163: 0 | R163: D | S163: MACRO | T163: FO | U163: 0.000198019802 | V163: 0.000198019802 | W163: 0.71 | X163: 0.1 | Y163: 0.39 | Z163: 0.7 | AA163: 0.2 | AB163: BSC41 | AC163: PROMEDIO | AD163: 1 | AE163: 0.4721807429 | AF163: 0.4721807429 | AG163: 1 | AH163: 0.5278192571 | AI163: 0.5278192571 | AJ163: RNC38 | AK163: PROMEDIO | AL163: 1 | AM163: 0.8815384414 | AN163: 0.1045627723 | AO163: 0.005403422994 | AP163: 0.009134443846 | AQ163: RNC38 | AR163: PROMEDIO | AS163: 1 | AT163: 0.5 | AU163: 1 | AV163: 0.5 | AX163: D | AY163: 1.5 | AZ163: PROVINCIA61DISTRITO1424 | BB163: AREQUIPARURAL | BC163: AREQUIPAMACRO | BD163: PROVINCIA RURAL | BH163: =IF(usaDistribucin2G3G="SI",PARAMETROS!$C$25,'LISTA CELDA'!W163)*'CELDA RESUMEN'!AG163 -> 0.4 | BI163: =IF(usaDistribucin2G3G="SI",PARAMETROS!$C$26,'LISTA CELDA'!X163)*'CELDA RESUMEN'!AG163 -> 0.02 | BJ163: =IF(usaDistribucin2G3G="SI",PARAMETROS!$D$25,'LISTA CELDA'!Y163)*'CELDA RESUMEN'!AH163 -> 0.6 | BK163: =IF(usaDistribucin2G3G="SI",PARAMETROS!$D$26,'LISTA CELDA'!Z163)*'CELDA RESUMEN'!AH163 -> 0.33 | BL163: =IF(usaDistribucin2G3G="SI",PARAMETROS!$E$25,0) -> 0 | BM163: =IF(usaDistribucin2G3G="SI",PARAMETROS!$E$26,'LISTA CELDA'!AA163)*'CELDA RESUMEN'!AI163 -> 0.65
B164: 157 | C164: URBANA | D164: PROVINCIA | E164: SUR | F164: AREQUIPA | G164: PROVINCIA22 | H164: DISTRITO585 | I164: 77 | J164: 4 | K164: 12 | L164: 22 | M164: 12 | N164: 3 | O164: IDCELL157 | P164: ID_LOCAL157 | Q164: 0 | R164: D | S164: MACRO | T164: FO | U164: 0.000198019802 | V164: 0.000198019802 | W164: 0.71 | X164: 0.1 | Y164: 0.39 | Z164: 0.7 | AA164: 0.2 | AB164: BSC45 | AC164: PROMEDIO | AD164: 1 | AE164: 0.380147559 | AF164: 0.380147559 | AG164: 1 | AH164: 0.619852441 | AI164: 0.619852441 | AJ164: RNC37 | AK164: PROMEDIO | AL164: 1 | AM164: 0.8815384414 | AN164: 0.1045627723 | AO164: 0.005403422994 | AP164: 0.009134443846 | AQ164: RNC37 | AR164: PROMEDIO | AS164: 1 | AT164: 0.5 | AU164: 1 | AV164: 0.5 | AX164: D | AY164: 1.5 | AZ164: PROVINCIA22DISTRITO585 | BB164: AREQUIPAURBANA | BC164: AREQUIPAMACRO | BD164: PROVINCIA URBANA | BH164: =IF(usaDistribucin2G3G="SI",PARAMETROS!$C$25,'LISTA CELDA'!W164)*'CELDA RESUMEN'!AG164 -> 0.4 | BI164: =IF(usaDistribucin2G3G="SI",PARAMETROS!$C$26,'LISTA CELDA'!X164)*'CELDA RESUMEN'!AG164 -> 0.02 | BJ164: =IF(usaDistribucin2G3G="SI",PARAMETROS!$D$25,'LISTA CELDA'!Y164)*'CELDA RESUMEN'!AH164 -> 0.6 | BK164: =IF(usaDistribucin2G3G="SI",PARAMETROS!$D$26,'LISTA CELDA'!Z164)*'CELDA RESUMEN'!AH164 -> 0.33 | BL164: =IF(usaDistribucin2G3G="SI",PARAMETROS!$E$25,0) -> 0 | BM164: =IF(usaDistribucin2G3G="SI",PARAMETROS!$E$26,'LISTA CELDA'!AA164)*'CELDA RESUMEN'!AI164 -> 0.65
B165: 158 | C165: URBANA | D165: PROVINCIA | E165: SUR | F165: AREQUIPA | G165: PROVINCIA22 | H165: DISTRITO82 | I165: 77 | J165: 4 | K165: 12 | L165: 22 | M165: 12 | N165: 3 | O165: IDCELL158 | P165: ID_LOCAL158 | Q165: 0 | R165: D | S165: MACRO | T165: FO | U165: 0.000198019802 | V165: 0.000198019802 | W165: 0.71 | X165: 0.1 | Y165: 0.39 | Z165: 0.7 | AA165: 0.2 | AB165: BSC40 | AC165: PROMEDIO | AD165: 1 | AE165: 0.3128758634 | AF165: 0.3128758634 | AG165: 1 | AH165: 0.6871241366 | AI165: 0.6871241366 | AJ165: RNC37 | AK165: PROMEDIO | AL165: 1 | AM165: 0.8815384414 | AN165: 0.1045627723 | AO165: 0.005403422994 | AP165: 0.009134443846 | AQ165: RNC37 | AR165: PROMEDIO | AS165: 1 | AT165: 0.5 | AU165: 1 | AV165: 0.5 | AX165: D | AY165: 1.5 | AZ165: PROVINCIA22DISTRITO82 | BB165: AREQUIPAURBANA | BC165: AREQUIPAMACRO | BD165: PROVINCIA URBANA | BH165: =IF(usaDistribucin2G3G="SI",PARAMETROS!$C$25,'LISTA CELDA'!W165)*'CELDA RESUMEN'!AG165 -> 0.4 | BI165: =IF(usaDistribucin2G3G="SI",PARAMETROS!$C$26,'LISTA CELDA'!X165)*'CELDA RESUMEN'!AG165 -> 0.02 | BJ165: =IF(usaDistribucin2G3G="SI",PARAMETROS!$D$25,'LISTA CELDA'!Y165)*'CELDA RESUMEN'!AH165 -> 0.6 | BK165: =IF(usaDistribucin2G3G="SI",PARAMETROS!$D$26,'LISTA CELDA'!Z165)*'CELDA RESUMEN'!AH165 -> 0.33 | BL165: =IF(usaDistribucin2G3G="SI",PARAMETROS!$E$25,0) -> 0 | BM165: =IF(usaDistribucin2G3G="SI",PARAMETROS!$E$26,'LISTA CELDA'!AA165)*'CELDA RESUMEN'!AI165 -> 0.65
B166: 159 | C166: URBANA | D166: PROVINCIA | E166: SUR | F166: AREQUIPA | G166: PROVINCIA22 | H166: DISTRITO634 | I166: 77 | J166: 4 | K166: 12 | L166: 22 | M166: 12 | N166: 3 | O166: IDCELL159 | P166: ID_LOCAL159 | Q166: 0 | R166: D | S166: MACRO | T166: FO | U166: 0.000198019802 | V166: 0.000198019802 | W166: 1 | X166: 1 | Y166: 0 | Z166: 0 | AA166: 0 | AB166: BSC41 | AC166: PROMEDIO | AD166: 1 | AE166: 1 | AF166: 1 | AG166: 0 | AH166: 0 | AI166: 0 | AJ166: RNC38 | AK166: PROMEDIO | AL166: 0 | AM166: 0 | AN166: 0 | AO166: 0 | AP166: 0 | AR166: PROMEDIO | AS166: 0 | AT166: 0 | AU166: 0 | AV166: 0 | AX166: D | AY166: 1.5 | AZ166: PROVINCIA22DISTRITO634 | BB166: AREQUIPAURBANA | BC166: AREQUIPAMACRO | BD166: PROVINCIA URBANA | BH166: =IF(usaDistribucin2G3G="SI",PARAMETROS!$C$25,'LISTA CELDA'!W166)*'CELDA RESUMEN'!AG166 -> 0.4 | BI166: =IF(usaDistribucin2G3G="SI",PARAMETROS!$C$26,'LISTA CELDA'!X166)*'CELDA RESUMEN'!AG166 -> 0.02 | BJ166: =IF(usaDistribucin2G3G="SI",PARAMETROS!$D$25,'LISTA CELDA'!Y166)*'CELDA RESUMEN'!AH166 -> 0 | BK166: =IF(usaDistribucin2G3G="SI",PARAMETROS!$D$26,'LISTA CELDA'!Z166)*'CELDA RESUMEN'!AH166 -> 0 | BL166: =IF(usaDistribucin2G3G="SI",PARAMETROS!$E$25,0) -> 0 | BM166: =IF(usaDistribucin2G3G="SI",PARAMETROS!$E$26,'LISTA CELDA'!AA166)*'CELDA RESUMEN'!AI166 -> 0
B167: 160 | C167: URBANA | D167: PROVINCIA | E167: SUR | F167: AREQUIPA | G167: PROVINCIA22 | H167: DISTRITO82 | I167: 77 | J167: 4 | K167: 12 | L167: 22 | M167: 12 | N167: 3 | O167: IDCELL160 | P167: ID_LOCAL160 | Q167: 0 | R167: D | S167: MACRO | T167: FO | U167: 0.000198019802 | V167: 0.000198019802 | W167: 0.71 | X167: 0.1 | Y167: 0.39 | Z167: 0.7 | AA167: 0.2 | AB167: BSC40 | AC167: PROMEDIO | AD167: 1 | AE167: 0.2654444937 | AF167: 0.2654444937 | AG167: 1 | AH167: 0.7345555063 | AI167: 0.7345555063 | AJ167: RNC37 | AK167: PROMEDIO | AL167: 1 | AM167: 0.8815384414 | AN167: 0.1045627723 | AO167: 0.005403422994 | AP167: 0.009134443846 | AQ167: RNC37 | AR167: PROMEDIO | AS167: 1 | AT167: 0.5 | AU167: 1 | AV167: 0.5 | AX167: D | AY167: 1.5 | AZ167: PROVINCIA22DISTRITO82 | BB167: AREQUIPAURBANA | BC167: AREQUIPAMACRO | BD167: PROVINCIA URBANA | BH167: =IF(usaDistribucin2G3G="SI",PARAMETROS!$C$25,'LISTA CELDA'!W167)*'CELDA RESUMEN'!AG167 -> 0.4 | BI167: =IF(usaDistribucin2G3G="SI",PARAMETROS!$C$26,'LISTA CELDA'!X167)*'CELDA RESUMEN'!AG167 -> 0.02 | BJ167: =IF(usaDistribucin2G3G="SI",PARAMETROS!$D$25,'LISTA CELDA'!Y167)*'CELDA RESUMEN'!AH167 -> 0.6 | BK167: =IF(usaDistribucin2G3G="SI",PARAMETROS!$D$26,'LISTA CELDA'!Z167)*'CELDA RESUMEN'!AH167 -> 0.33 | BL167: =IF(usaDistribucin2G3G="SI",PARAMETROS!$E$25,0) -> 0 | BM167: =IF(usaDistribucin2G3G="SI",PARAMETROS!$E$26,'LISTA CELDA'!AA167)*'CELDA RESUMEN'!AI167 -> 0.65
B168: 161 | C168: URBANA | D168: PROVINCIA | E168: SUR | F168: AREQUIPA | G168: PROVINCIA128 | H168: DISTRITO804 | I168: 77 | J168: 4 | K168: 12 | L168: 22 | M168: 12 | N168: 3 | O168: IDCELL161 | P168: ID_LOCAL161 | Q168: 0 | R168: D | S168: MACRO | T168: FO | U168: 0.000198019802 | V168: 0.000198019802 | W168: 0.71 | X168: 0.1 | Y168: 0.39 | Z168: 0.7 | AA168: 0.2 | AB168: BSC41 | AC168: PROMEDIO | AD168: 1 | AE168: 0.4959756114 | AF168: 0.4959756114 | AG168: 1 | AH168: 0.5040243886 | AI168: 0.5040243886 | AJ168: RNC38 | AK168: PROMEDIO | AL168: 1 | AM168: 0.8815384414 | AN168: 0.1045627723 | AO168: 0.005403422994 | AP168: 0.009134443846 | AQ168: RNC38 | AR168: PROMEDIO | AS168: 1 | AT168: 0.5 | AU168: 1 | AV168: 0.5 | AX168: D | AY168: 1.5 | AZ168: PROVINCIA128DISTRITO804 | BB168: AREQUIPAURBANA | BC168: AREQUIPAMACRO | BD168: PROVINCIA URBANA | BH168: =IF(usaDistribucin2G3G="SI",PARAMETROS!$C$25,'LISTA CELDA'!W168)*'CELDA RESUMEN'!AG168 -> 0.4 | BI168: =IF(usaDistribucin2G3G="SI",PARAMETROS!$C$26,'LISTA CELDA'!X168)*'CELDA RESUMEN'!AG168 -> 0.02 | BJ168: =IF(usaDistribucin2G3G="SI",PARAMETROS!$D$25,'LISTA CELDA'!Y168)*'CELDA RESUMEN'!AH168 -> 0.6 | BK168: =IF(usaDistribucin2G3G="SI",PARAMETROS!$D$26,'LISTA CELDA'!Z168)*'CELDA RESUMEN'!AH168 -> 0.33 | BL168: =IF(usaDistribucin2G3G="SI",PARAMETROS!$E$25,0) -> 0 | BM168: =IF(usaDistribucin2G3G="SI",PARAMETROS!$E$26,'LISTA CELDA'!AA168)*'CELDA RESUMEN'!AI168 -> 0.65
B169: 162 | C169: URBANA | D169: PROVINCIA | E169: SUR | F169: AREQUIPA | G169: PROVINCIA22 | H169: DISTRITO607 | I169: 77 | J169: 4 | K169: 12 | L169: 22 | M169: 12 | N169: 3 | O169: IDCELL162 | P169: ID_LOCAL162 | Q169: 0 | R169: D | S169: MACRO | T169: FO | U169: 0.000198019802 | V169: 0.000198019802 | W169: 0.71 | X169: 0.1 | Y169: 0.39 | Z169: 0.7 | AA169: 0.2 | AB169: BSC45 | AC169: PROMEDIO | AD169: 1 | AE169: 0.439320264 | AF169: 0.439320264 | AG169: 1 | AH169: 0.560679736 | AI169: 0.560679736 | AJ169: RNC37 | AK169: PROMEDIO | AL169: 1 | AM169: 0.8815384414 | AN169: 0.1045627723 | AO169: 0.005403422994 | AP169: 0.009134443846 | AQ169: RNC37 | AR169: PROMEDIO | AS169: 1 | AT169: 0.5 | AU169: 1 | AV169: 0.5 | AX169: D | AY169: 1.5 | AZ169: PROVINCIA22DISTRITO607 | BB169: AREQUIPAURBANA | BC169: AREQUIPAMACRO | BD169: PROVINCIA URBANA | BH169: =IF(usaDistribucin2G3G="SI",PARAMETROS!$C$25,'LISTA CELDA'!W169)*'CELDA RESUMEN'!AG169 -> 0.4 | BI169: =IF(usaDistribucin2G3G="SI",PARAMETROS!$C$26,'LISTA CELDA'!X169)*'CELDA RESUMEN'!AG169 -> 0.02 | BJ169: =IF(usaDistribucin2G3G="SI",PARAMETROS!$D$25,'LISTA CELDA'!Y169)*'CELDA RESUMEN'!AH169 -> 0.6 | BK169: =IF(usaDistribucin2G3G="SI",PARAMETROS!$D$26,'LISTA CELDA'!Z169)*'CELDA RESUMEN'!AH169 -> 0.33 | BL169: =IF(usaDistribucin2G3G="SI",PARAMETROS!$E$25,0) -> 0 | BM169: =IF(usaDistribucin2G3G="SI",PARAMETROS!$E$26,'LISTA CELDA'!AA169)*'CELDA RESUMEN'!AI169 -> 0.65
B170: 163 | C170: URBANA | D170: PROVINCIA | E170: SUR | F170: AREQUIPA | G170: PROVINCIA22 | H170: DISTRITO82 | I170: 77 | J170: 4 | K170: 12 | L170: 22 | M170: 12 | N170: 3 | O170: IDCELL163 | P170: ID_LOCAL163 | Q170: 0 | R170: D | S170: MACRO | T170: FO | U170: 0.000198019802 | V170: 0.000198019802 | W170: 0.71 | X170: 0.1 | Y170: 0.39 | Z170: 0.7 | AA170: 0.2 | AB170: BSC40 | AC170: PROMEDIO | AD170: 1 | AE170: 0.3971243244 | AF170: 0.3971243244 | AG170: 1 | AH170: 0.6028756756 | AI170: 0.6028756756 | AJ170: RNC37 | AK170: PROMEDIO | AL170: 1 | AM170: 0.8815384414 | AN170: 0.1045627723 | AO170: 0.005403422994 | AP170: 0.009134443846 | AQ170: RNC37 | AR170: PROMEDIO | AS170: 1 | AT170: 0.5 | AU170: 1 | AV170: 0.5 | AX170: D | AY170: 1.5 | AZ170: PROVINCIA22DISTRITO82 | BB170: AREQUIPAURBANA | BC170: AREQUIPAMACRO | BD170: PROVINCIA URBANA | BH170: =IF(usaDistribucin2G3G="SI",PARAMETROS!$C$25,'LISTA CELDA'!W170)*'CELDA RESUMEN'!AG170 -> 0.4 | BI170: =IF(usaDistribucin2G3G="SI",PARAMETROS!$C$26,'LISTA CELDA'!X170)*'CELDA RESUMEN'!AG170 -> 0.02 | BJ170: =IF(usaDistribucin2G3G="SI",PARAMETROS!$D$25,'LISTA CELDA'!Y170)*'CELDA RESUMEN'!AH170 -> 0.6 | BK170: =IF(usaDistribucin2G3G="SI",PARAMETROS!$D$26,'LISTA CELDA'!Z170)*'CELDA RESUMEN'!AH170 -> 0.33 | BL170: =IF(usaDistribucin2G3G="SI",PARAMETROS!$E$25,0) -> 0 | BM170: =IF(usaDistribucin2G3G="SI",PARAMETROS!$E$26,'LISTA CELDA'!AA170)*'CELDA RESUMEN'!AI170 -> 0.65
B171: 164 | C171: URBANA | D171: PROVINCIA | E171: SUR | F171: AREQUIPA | G171: PROVINCIA63 | H171: DISTRITO742 | I171: 77 | J171: 4 | K171: 12 | L171: 22 | M171: 12 | N171: 3 | O171: IDCELL164 | P171: ID_LOCAL164 | Q171: 0 | R171: D | S171: MACRO | T171: FO | U171: 0.000198019802 | V171: 0.000198019802 | W171: 0.71 | X171: 0.1 | Y171: 0.39 | Z171: 0.7 | AA171: 0.2 | AB171: BSC41 | AC171: PROMEDIO | AD171: 1 | AE171: 0.4424012089 | AF171: 0.4424012089 | AG171: 1 | AH171: 0.5575987911 | AI171: 0.5575987911 | AJ171: RNC38 | AK171: PROMEDIO | AL171: 1 | AM171: 0.8815384414 | AN171: 0.1045627723 | AO171: 0.005403422994 | AP171: 0.009134443846 | AQ171: RNC38 | AR171: PROMEDIO | AS171: 1 | AT171: 0.5 | AU171: 1 | AV171: 0.5 | AX171: D | AY171: 1.5 | AZ171: PROVINCIA63DISTRITO742 | BB171: AREQUIPAURBANA | BC171: AREQUIPAMACRO | BD171: PROVINCIA URBANA | BH171: =IF(usaDistribucin2G3G="SI",PARAMETROS!$C$25,'LISTA CELDA'!W171)*'CELDA RESUMEN'!AG171 -> 0.4 | BI171: =IF(usaDistribucin2G3G="SI",PARAMETROS!$C$26,'LISTA CELDA'!X171)*'CELDA RESUMEN'!AG171 -> 0.02 | BJ171: =IF(usaDistribucin2G3G="SI",PARAMETROS!$D$25,'LISTA CELDA'!Y171)*'CELDA RESUMEN'!AH171 -> 0.6 | BK171: =IF(usaDistribucin2G3G="SI",PARAMETROS!$D$26,'LISTA CELDA'!Z171)*'CELDA RESUMEN'!AH171 -> 0.33 | BL171: =IF(usaDistribucin2G3G="SI",PARAMETROS!$E$25,0) -> 0 | BM171: =IF(usaDistribucin2G3G="SI",PARAMETROS!$E$26,'LISTA CELDA'!AA171)*'CELDA RESUMEN'!AI171 -> 0.65
B172: 165 | C172: URBANA | D172: PROVINCIA | E172: SUR | F172: AREQUIPA | G172: PROVINCIA22 | H172: DISTRITO950 | I172: 77 | J172: 4 | K172: 12 | L172: 22 | M172: 12 | N172: 3 | O172: IDCELL165 | P172: ID_LOCAL165 | Q172: 0 | R172: D | S172: MACRO | T172: FO | U172: 0.000198019802 | V172: 0.000198019802 | W172: 0.71 | X172: 0.1 | Y172: 0.39 | Z172: 0.7 | AA172: 0.2 | AB172: BSC40 | AC172: PROMEDIO | AD172: 1 | AE172: 0.4201210992 | AF172: 0.4201210992 | AG172: 1 | AH172: 0.5798789008 | AI172: 0.5798789008 | AJ172: RNC37 | AK172: PROMEDIO | AL172: 1 | AM172: 0.8815384414 | AN172: 0.1045627723 | AO172: 0.005403422994 | AP172: 0.009134443846 | AQ172: RNC37 | AR172: PROMEDIO | AS172: 1 | AT172: 0.5 | AU172: 1 | AV172: 0.5 | AX172: D | AY172: 1.5 | AZ172: PROVINCIA22DISTRITO950 | BB172: AREQUIPAURBANA | BC172: AREQUIPAMACRO | BD172: PROVINCIA URBANA | BH172: =IF(usaDistribucin2G3G="SI",PARAMETROS!$C$25,'LISTA CELDA'!W172)*'CELDA RESUMEN'!AG172 -> 0.4 | BI172: =IF(usaDistribucin2G3G="SI",PARAMETROS!$C$26,'LISTA CELDA'!X172)*'CELDA RESUMEN'!AG172 -> 0.02 | BJ172: =IF(usaDistribucin2G3G="SI",PARAMETROS!$D$25,'LISTA CELDA'!Y172)*'CELDA RESUMEN'!AH172 -> 0.6 | BK172: =IF(usaDistribucin2G3G="SI",PARAMETROS!$D$26,'LISTA CELDA'!Z172)*'CELDA RESUMEN'!AH172 -> 0.33 | BL172: =IF(usaDistribucin2G3G="SI",PARAMETROS!$E$25,0) -> 0 | BM172: =IF(usaDistribucin2G3G="SI",PARAMETROS!$E$26,'LISTA CELDA'!AA172)*'CELDA RESUMEN'!AI172 -> 0.65
B173: 166 | C173: URBANA | D173: PROVINCIA | E173: SUR | F173: AREQUIPA | G173: PROVINCIA22 | H173: DISTRITO795 | I173: 77 | J173: 4 | K173: 12 | L173: 22 | M173: 12 | N173: 3 | O173: IDCELL166 | P173: ID_LOCAL166 | Q173: 0 | R173: D | S173: MACRO | T173: FO | U173: 0.000198019802 | V173: 0.000198019802 | W173: 0.71 | X173: 0.1 | Y173: 0.39 | Z173: 0.7 | AA173: 0.2 | AB173: BSC40 | AC173: PROMEDIO | AD173: 1 | AE173: 0.3882235347 | AF173: 0.3882235347 | AG173: 1 | AH173: 0.6117764653 | AI173: 0.6117764653 | AJ173: RNC37 | AK173: PROMEDIO | AL173: 1 | AM173: 0.8815384414 | AN173: 0.1045627723 | AO173: 0.005403422994 | AP173: 0.009134443846 | AQ173: RNC37 | AR173: PROMEDIO | AS173: 1 | AT173: 0.5 | AU173: 1 | AV173: 0.5 | AX173: D | AY173: 1.5 | AZ173: PROVINCIA22DISTRITO795 | BB173: AREQUIPAURBANA | BC173: AREQUIPAMACRO | BD173: PROVINCIA URBANA | BH173: =IF(usaDistribucin2G3G="SI",PARAMETROS!$C$25,'LISTA CELDA'!W173)*'CELDA RESUMEN'!AG173 -> 0.4 | BI173: =IF(usaDistribucin2G3G="SI",PARAMETROS!$C$26,'LISTA CELDA'!X173)*'CELDA RESUMEN'!AG173 -> 0.02 | BJ173: =IF(usaDistribucin2G3G="SI",PARAMETROS!$D$25,'LISTA CELDA'!Y173)*'CELDA RESUMEN'!AH173 -> 0.6 | BK173: =IF(usaDistribucin2G3G="SI",PARAMETROS!$D$26,'LISTA CELDA'!Z173)*'CELDA RESUMEN'!AH173 -> 0.33 | BL173: =IF(usaDistribucin2G3G="SI",PARAMETROS!$E$25,0) -> 0 | BM173: =IF(usaDistribucin2G3G="SI",PARAMETROS!$E$26,'LISTA CELDA'!AA173)*'CELDA RESUMEN'!AI173 -> 0.65
B174: 167 | C174: URBANA | D174: PROVINCIA | E174: SUR | F174: AREQUIPA | G174: PROVINCIA22 | H174: DISTRITO1465 | I174: 77 | J174: 4 | K174: 12 | L174: 22 | M174: 12 | N174: 3 | O174: IDCELL167 | P174: ID_LOCAL167 | Q174: 0 | R174: D | S174: MACRO | T174: FO | U174: 0.000198019802 | V174: 0.000198019802 | W174: 0.71 | X174: 0.1 | Y174: 0.39 | Z174: 0.7 | AA174: 0.2 | AB174: BSC40 | AC174: PROMEDIO | AD174: 1 | AE174: 0.3235286799 | AF174: 0.3235286799 | AG174: 1 | AH174: 0.6764713201 | AI174: 0.6764713201 | AJ174: RNC37 | AK174: PROMEDIO | AL174: 1 | AM174: 0.8815384414 | AN174: 0.1045627723 | AO174: 0.005403422994 | AP174: 0.009134443846 | AQ174: RNC37 | AR174: PROMEDIO | AS174: 1 | AT174: 0.5 | AU174: 1 | AV174: 0.5 | AX174: D | AY174: 1.5 | AZ174: PROVINCIA22DISTRITO1465 | BB174: AREQUIPAURBANA | BC174: AREQUIPAMACRO | BD174: PROVINCIA URBANA | BH174: =IF(usaDistribucin2G3G="SI",PARAMETROS!$C$25,'LISTA CELDA'!W174)*'CELDA RESUMEN'!AG174 -> 0.4 | BI174: =IF(usaDistribucin2G3G="SI",PARAMETROS!$C$26,'LISTA CELDA'!X174)*'CELDA RESUMEN'!AG174 -> 0.02 | BJ174: =IF(usaDistribucin2G3G="SI",PARAMETROS!$D$25,'LISTA CELDA'!Y174)*'CELDA RESUMEN'!AH174 -> 0.6 | BK174: =IF(usaDistribucin2G3G="SI",PARAMETROS!$D$26,'LISTA CELDA'!Z174)*'CELDA RESUMEN'!AH174 -> 0.33 | BL174: =IF(usaDistribucin2G3G="SI",PARAMETROS!$E$25,0) -> 0 | BM174: =IF(usaDistribucin2G3G="SI",PARAMETROS!$E$26,'LISTA CELDA'!AA174)*'CELDA RESUMEN'!AI174 -> 0.65
B175: 168 | C175: URBANA | D175: PROVINCIA | E175: SUR | F175: AREQUIPA | G175: PROVINCIA128 | H175: DISTRITO580 | I175: 77 | J175: 4 | K175: 12 | L175: 22 | M175: 12 | N175: 3 | O175: IDCELL168 | P175: ID_LOCAL168 | Q175: 0 | R175: D | S175: MACRO | T175: FO | U175: 0.000198019802 | V175: 0.000198019802 | W175: 0.71 | X175: 0.1 | Y175: 0.39 | Z175: 0.7 | AA175: 0.2 | AB175: BSC41 | AC175: PROMEDIO | AD175: 1 | AE175: 1 | AF175: 1 | AG175: 0 | AH175: 0 | AI175: 0 | AJ175: RNC38 | AK175: PROMEDIO | AL175: 1 | AM175: 0.8815384414 | AN175: 0.1045627723 | AO175: 0.005403422994 | AP175: 0.009134443846 | AQ175: RNC38 | AR175: PROMEDIO | AS175: 1 | AT175: 0.5 | AU175: 1 | AV175: 0.5 | AX175: D | AY175: 1.5 | AZ175: PROVINCIA128DISTRITO580 | BB175: AREQUIPAURBANA | BC175: AREQUIPAMACRO | BD175: PROVINCIA URBANA | BH175: =IF(usaDistribucin2G3G="SI",PARAMETROS!$C$25,'LISTA CELDA'!W175)*'CELDA RESUMEN'!AG175 -> 0.4 | BI175: =IF(usaDistribucin2G3G="SI",PARAMETROS!$C$26,'LISTA CELDA'!X175)*'CELDA RESUMEN'!AG175 -> 0.02 | BJ175: =IF(usaDistribucin2G3G="SI",PARAMETROS!$D$25,'LISTA CELDA'!Y175)*'CELDA RESUMEN'!AH175 -> 0.6 | BK175: =IF(usaDistribucin2G3G="SI",PARAMETROS!$D$26,'LISTA CELDA'!Z175)*'CELDA RESUMEN'!AH175 -> 0.33 | BL175: =IF(usaDistribucin2G3G="SI",PARAMETROS!$E$25,0) -> 0 | BM175: =IF(usaDistribucin2G3G="SI",PARAMETROS!$E$26,'LISTA CELDA'!AA175)*'CELDA RESUMEN'!AI175 -> 0.65
B176: 169 | C176: URBANA | D176: PROVINCIA | E176: SUR | F176: AREQUIPA | G176: PROVINCIA22 | H176: DISTRITO229 | I176: 77 | J176: 4 | K176: 12 | L176: 22 | M176: 12 | N176: 3 | O176: IDCELL169 | P176: ID_LOCAL169 | Q176: 0 | R176: D | S176: MACRO | T176: FO | U176: 0.000198019802 | V176: 0.000198019802 | W176: 0.71 | X176: 0.1 | Y176: 0.39 | Z176: 0.7 | AA176: 0.2 | AB176: BSC45 | AC176: PROMEDIO | AD176: 1 | AE176: 0.3146976685 | AF176: 0.3146976685 | AG176: 1 | AH176: 0.6853023315 | AI176: 0.6853023315 | AJ176: RNC37 | AK176: PROMEDIO | AL176: 1 | AM176: 0.8815384414 | AN176: 0.1045627723 | AO176: 0.005403422994 | AP176: 0.009134443846 | AQ176: RNC37 | AR176: PROMEDIO | AS176: 1 | AT176: 0.5 | AU176: 1 | AV176: 0.5 | AX176: D | AY176: 1.5 | AZ176: PROVINCIA22DISTRITO229 | BB176: AREQUIPAURBANA | BC176: AREQUIPAMACRO | BD176: PROVINCIA URBANA | BH176: =IF(usaDistribucin2G3G="SI",PARAMETROS!$C$25,'LISTA CELDA'!W176)*'CELDA RESUMEN'!AG176 -> 0.4 | BI176: =IF(usaDistribucin2G3G="SI",PARAMETROS!$C$26,'LISTA CELDA'!X176)*'CELDA RESUMEN'!AG176 -> 0.02 | BJ176: =IF(usaDistribucin2G3G="SI",PARAMETROS!$D$25,'LISTA CELDA'!Y176)*'CELDA RESUMEN'!AH176 -> 0.6 | BK176: =IF(usaDistribucin2G3G="SI",PARAMETROS!$D$26,'LISTA CELDA'!Z176)*'CELDA RESUMEN'!AH176 -> 0.33 | BL176: =IF(usaDistribucin2G3G="SI",PARAMETROS!$E$25,0) -> 0 | BM176: =IF(usaDistribucin2G3G="SI",PARAMETROS!$E$26,'LISTA CELDA'!AA176)*'CELDA RESUMEN'!AI176 -> 0.65
B177: 170 | C177: URBANA | D177: PROVINCIA | E177: SUR | F177: AREQUIPA | G177: PROVINCIA22 | H177: DISTRITO229 | I177: 77 | J177: 4 | K177: 12 | L177: 22 | M177: 12 | N177: 3 | O177: IDCELL170 | P177: ID_LOCAL170 | Q177: 0 | R177: D | S177: MACRO | T177: FO | U177: 0.000198019802 | V177: 0.000198019802 | W177: 0.71 | X177: 0.1 | Y177: 0.39 | Z177: 0.7 | AA177: 0.2 | AB177: BSC45 | AC177: PROMEDIO | AD177: 1 | AE177: 0.5188473924 | AF177: 0.5188473924 | AG177: 1 | AH177: 0.4811526076 | AI177: 0.4811526076 | AJ177: RNC37 | AK177: PROMEDIO | AL177: 1 | AM177: 0.8815384414 | AN177: 0.1045627723 | AO177: 0.005403422994 | AP177: 0.009134443846 | AQ177: RNC37 | AR177: PROMEDIO | AS177: 1 | AT177: 0.5 | AU177: 1 | AV177: 0.5 | AX177: D | AY177: 1.5 | AZ177: PROVINCIA22DISTRITO229 | BB177: AREQUIPAURBANA | BC177: AREQUIPAMACRO | BD177: PROVINCIA URBANA | BH177: =IF(usaDistribucin2G3G="SI",PARAMETROS!$C$25,'LISTA CELDA'!W177)*'CELDA RESUMEN'!AG177 -> 0.4 | BI177: =IF(usaDistribucin2G3G="SI",PARAMETROS!$C$26,'LISTA CELDA'!X177)*'CELDA RESUMEN'!AG177 -> 0.02 | BJ177: =IF(usaDistribucin2G3G="SI",PARAMETROS!$D$25,'LISTA CELDA'!Y177)*'CELDA RESUMEN'!AH177 -> 0.6 | BK177: =IF(usaDistribucin2G3G="SI",PARAMETROS!$D$26,'LISTA CELDA'!Z177)*'CELDA RESUMEN'!AH177 -> 0.33 | BL177: =IF(usaDistribucin2G3G="SI",PARAMETROS!$E$25,0) -> 0 | BM177: =IF(usaDistribucin2G3G="SI",PARAMETROS!$E$26,'LISTA CELDA'!AA177)*'CELDA RESUMEN'!AI177 -> 0.65
B178: 171 | C178: URBANA | D178: PROVINCIA | E178: SUR | F178: AREQUIPA | G178: PROVINCIA22 | H178: DISTRITO82 | I178: 77 | J178: 4 | K178: 12 | L178: 22 | M178: 12 | N178: 3 | O178: IDCELL171 | P178: ID_LOCAL171 | Q178: 0 | R178: D | S178: MACRO | T178: FO | U178: 0.000198019802 | V178: 0.000198019802 | W178: 0.71 | X178: 0.1 | Y178: 0.39 | Z178: 0.7 | AA178: 0.2 | AB178: BSC40 | AC178: PROMEDIO | AD178: 1 | AE178: 0.3998180285 | AF178: 0.3998180285 | AG178: 1 | AH178: 0.6001819715 | AI178: 0.6001819715 | AJ178: RNC37 | AK178: PROMEDIO | AL178: 1 | AM178: 0.8815384414 | AN178: 0.1045627723 | AO178: 0.005403422994 | AP178: 0.009134443846 | AQ178: RNC37 | AR178: PROMEDIO | AS178: 1 | AT178: 0.5 | AU178: 1 | AV178: 0.5 | AX178: D | AY178: 1.5 | AZ178: PROVINCIA22DISTRITO82 | BB178: AREQUIPAURBANA | BC178: AREQUIPAMACRO | BD178: PROVINCIA URBANA | BH178: =IF(usaDistribucin2G3G="SI",PARAMETROS!$C$25,'LISTA CELDA'!W178)*'CELDA RESUMEN'!AG178 -> 0.4 | BI178: =IF(usaDistribucin2G3G="SI",PARAMETROS!$C$26,'LISTA CELDA'!X178)*'CELDA RESUMEN'!AG178 -> 0.02 | BJ178: =IF(usaDistribucin2G3G="SI",PARAMETROS!$D$25,'LISTA CELDA'!Y178)*'CELDA RESUMEN'!AH178 -> 0.6 | BK178: =IF(usaDistribucin2G3G="SI",PARAMETROS!$D$26,'LISTA CELDA'!Z178)*'CELDA RESUMEN'!AH178 -> 0.33 | BL178: =IF(usaDistribucin2G3G="SI",PARAMETROS!$E$25,0) -> 0 | BM178: =IF(usaDistribucin2G3G="SI",PARAMETROS!$E$26,'LISTA CELDA'!AA178)*'CELDA RESUMEN'!AI178 -> 0.65
B179: 172 | C179: RURAL | D179: PROVINCIA | E179: SUR | F179: AREQUIPA | G179: PROVINCIA63 | H179: DISTRITO1470 | I179: 77 | J179: 4 | K179: 12 | L179: 22 | M179: 12 | N179: 3 | O179: IDCELL172 | P179: ID_LOCAL172 | Q179: 0 | R179: D | S179: MACRO | T179: FO | U179: 0.000198019802 | V179: 0.000198019802 | W179: 0.71 | X179: 0.1 | Y179: 0.39 | Z179: 0.7 | AA179: 0.2 | AB179: BSC41 | AC179: PROMEDIO | AD179: 1 | AE179: 1 | AF179: 1 | AG179: 0 | AH179: 0 | AI179: 0 | AJ179: RNC38 | AK179: PROMEDIO | AL179: 1 | AM179: 0.8815384414 | AN179: 0.1045627723 | AO179: 0.005403422994 | AP179: 0.009134443846 | AQ179: RNC38 | AR179: PROMEDIO | AS179: 1 | AT179: 0.5 | AU179: 1 | AV179: 0.5 | AX179: D | AY179: 1.5 | AZ179: PROVINCIA63DISTRITO1470 | BB179: AREQUIPARURAL | BC179: AREQUIPAMACRO | BD179: PROVINCIA RURAL | BH179: =IF(usaDistribucin2G3G="SI",PARAMETROS!$C$25,'LISTA CELDA'!W179)*'CELDA RESUMEN'!AG179 -> 0.4 | BI179: =IF(usaDistribucin2G3G="SI",PARAMETROS!$C$26,'LISTA CELDA'!X179)*'CELDA RESUMEN'!AG179 -> 0.02 | BJ179: =IF(usaDistribucin2G3G="SI",PARAMETROS!$D$25,'LISTA CELDA'!Y179)*'CELDA RESUMEN'!AH179 -> 0.6 | BK179: =IF(usaDistribucin2G3G="SI",PARAMETROS!$D$26,'LISTA CELDA'!Z179)*'CELDA RESUMEN'!AH179 -> 0.33 | BL179: =IF(usaDistribucin2G3G="SI",PARAMETROS!$E$25,0) -> 0 | BM179: =IF(usaDistribucin2G3G="SI",PARAMETROS!$E$26,'LISTA CELDA'!AA179)*'CELDA RESUMEN'!AI179 -> 0.65
B180: 173 | C180: RURAL | D180: PROVINCIA | E180: SUR | F180: AREQUIPA | G180: PROVINCIA45 | H180: DISTRITO847 | I180: 77 | J180: 4 | K180: 12 | L180: 22 | M180: 12 | N180: 3 | O180: IDCELL173 | P180: ID_LOCAL173 | Q180: 0 | R180: D | S180: MACRO | T180: FO | U180: 0.000198019802 | V180: 0.000198019802 | W180: 1 | X180: 1 | Y180: 0 | Z180: 0 | AA180: 0 | AB180: BSC41 | AC180: PROMEDIO | AD180: 1 | AE180: 1 | AF180: 1 | AG180: 0 | AH180: 0 | AI180: 0 | AJ180: 0 | AK180: PROMEDIO | AL180: 0 | AM180: 0 | AN180: 0 | AO180: 0 | AP180: 0 | AR180: PROMEDIO | AS180: 0 | AT180: 0 | AU180: 0 | AV180: 0 | AX180: D | AY180: 1.5 | AZ180: PROVINCIA45DISTRITO847 | BB180: AREQUIPARURAL | BC180: AREQUIPAMACRO | BD180: PROVINCIA RURAL | BH180: =IF(usaDistribucin2G3G="SI",PARAMETROS!$C$25,'LISTA CELDA'!W180)*'CELDA RESUMEN'!AG180 -> 0.4 | BI180: =IF(usaDistribucin2G3G="SI",PARAMETROS!$C$26,'LISTA CELDA'!X180)*'CELDA RESUMEN'!AG180 -> 0.02 | BJ180: =IF(usaDistribucin2G3G="SI",PARAMETROS!$D$25,'LISTA CELDA'!Y180)*'CELDA RESUMEN'!AH180 -> 0 | BK180: =IF(usaDistribucin2G3G="SI",PARAMETROS!$D$26,'LISTA CELDA'!Z180)*'CELDA RESUMEN'!AH180 -> 0 | BL180: =IF(usaDistribucin2G3G="SI",PARAMETROS!$E$25,0) -> 0 | BM180: =IF(usaDistribucin2G3G="SI",PARAMETROS!$E$26,'LISTA CELDA'!AA180)*'CELDA RESUMEN'!AI180 -> 0
B181: 174 | C181: RURAL | D181: PROVINCIA | E181: SUR | F181: AREQUIPA | G181: PROVINCIA56 | H181: DISTRITO190 | I181: 77 | J181: 4 | K181: 12 | L181: 22 | M181: 12 | N181: 3 | O181: IDCELL174 | P181: ID_LOCAL174 | Q181: 0 | R181: D | S181: MACRO | T181: FO | U181: 0.000198019802 | V181: 0.000198019802 | W181: 0.71 | X181: 0.1 | Y181: 0.39 | Z181: 0.7 | AA181: 0.2 | AB181: BSC41 | AC181: PROMEDIO | AD181: 1 | AE181: 1 | AF181: 1 | AG181: 0 | AH181: 0 | AI181: 0 | AJ181: RNC38 | AK181: PROMEDIO | AL181: 1 | AM181: 0.8815384414 | AN181: 0.1045627723 | AO181: 0.005403422994 | AP181: 0.009134443846 | AQ181: RNC38 | AR181: PROMEDIO | AS181: 1 | AT181: 0.5 | AU181: 1 | AV181: 0.5 | AX181: D | AY181: 1.5 | AZ181: PROVINCIA56DISTRITO190 | BB181: AREQUIPARURAL | BC181: AREQUIPAMACRO | BD181: PROVINCIA RURAL | BH181: =IF(usaDistribucin2G3G="SI",PARAMETROS!$C$25,'LISTA CELDA'!W181)*'CELDA RESUMEN'!AG181 -> 0.4 | BI181: =IF(usaDistribucin2G3G="SI",PARAMETROS!$C$26,'LISTA CELDA'!X181)*'CELDA RESUMEN'!AG181 -> 0.02 | BJ181: =IF(usaDistribucin2G3G="SI",PARAMETROS!$D$25,'LISTA CELDA'!Y181)*'CELDA RESUMEN'!AH181 -> 0.6 | BK181: =IF(usaDistribucin2G3G="SI",PARAMETROS!$D$26,'LISTA CELDA'!Z181)*'CELDA RESUMEN'!AH181 -> 0.33 | BL181: =IF(usaDistribucin2G3G="SI",PARAMETROS!$E$25,0) -> 0 | BM181: =IF(usaDistribucin2G3G="SI",PARAMETROS!$E$26,'LISTA CELDA'!AA181)*'CELDA RESUMEN'!AI181 -> 0.65
B182: 175 | C182: URBANA | D182: PROVINCIA | E182: SUR | F182: AREQUIPA | G182: PROVINCIA56 | H182: DISTRITO93 | I182: 77 | J182: 4 | K182: 12 | L182: 22 | M182: 12 | N182: 3 | O182: IDCELL175 | P182: ID_LOCAL175 | Q182: 0 | R182: D | S182: MACRO | T182: FO | U182: 0.000198019802 | V182: 0.000198019802 | W182: 0.71 | X182: 0.1 | Y182: 0.39 | Z182: 0.7 | AA182: 0.2 | AB182: BSC41 | AC182: PROMEDIO | AD182: 1 | AE182: 0.5309755367 | AF182: 0.5309755367 | AG182: 1 | AH182: 0.4690244633 | AI182: 0.4690244633 | AJ182: RNC41 | AK182: PROMEDIO | AL182: 1 | AM182: 0.8815384414 | AN182: 0.1045627723 | AO182: 0.005403422994 | AP182: 0.009134443846 | AQ182: RNC41 | AR182: PROMEDIO | AS182: 1 | AT182: 0.5 | AU182: 1 | AV182: 0.5 | AX182: D | AY182: 1.5 | AZ182: PROVINCIA56DISTRITO93 | BB182: AREQUIPAURBANA | BC182: AREQUIPAMACRO | BD182: PROVINCIA URBANA | BH182: =IF(usaDistribucin2G3G="SI",PARAMETROS!$C$25,'LISTA CELDA'!W182)*'CELDA RESUMEN'!AG182 -> 0.4 | BI182: =IF(usaDistribucin2G3G="SI",PARAMETROS!$C$26,'LISTA CELDA'!X182)*'CELDA RESUMEN'!AG182 -> 0.02 | BJ182: =IF(usaDistribucin2G3G="SI",PARAMETROS!$D$25,'LISTA CELDA'!Y182)*'CELDA RESUMEN'!AH182 -> 0.6 | BK182: =IF(usaDistribucin2G3G="SI",PARAMETROS!$D$26,'LISTA CELDA'!Z182)*'CELDA RESUMEN'!AH182 -> 0.33 | BL182: =IF(usaDistribucin2G3G="SI",PARAMETROS!$E$25,0) -> 0 | BM182: =IF(usaDistribucin2G3G="SI",PARAMETROS!$E$26,'LISTA CELDA'!AA182)*'CELDA RESUMEN'!AI182 -> 0.65
B183: 176 | C183: URBANA | D183: PROVINCIA | E183: SUR | F183: AREQUIPA | G183: PROVINCIA22 | H183: DISTRITO607 | I183: 77 | J183: 4 | K183: 12 | L183: 22 | M183: 12 | N183: 3 | O183: IDCELL176 | P183: ID_LOCAL176 | Q183: 0 | R183: D | S183: MACRO | T183: FO | U183: 0.000198019802 | V183: 0.000198019802 | W183: 0.71 | X183: 0.1 | Y183: 0.39 | Z183: 0.7 | AA183: 0.2 | AB183: BSC40 | AC183: PROMEDIO | AD183: 0 | AE183: 0 | AF183: 0 | AG183: 1 | AH183: 1 | AI183: 1 | AJ183: RNC37 | AK183: PROMEDIO | AL183: 1 | AM183: 0.8815384414 | AN183: 0.1045627723 | AO183: 0.005403422994 | AP183: 0.009134443846 | AQ183: RNC37 | AR183: PROMEDIO | AS183: 1 | AT183: 0.5 | AU183: 1 | AV183: 0.5 | AX183: D | AY183: 1.5 | AZ183: PROVINCIA22DISTRITO607 | BB183: AREQUIPAURBANA | BC183: AREQUIPAMACRO | BD183: PROVINCIA URBANA | BH183: =IF(usaDistribucin2G3G="SI",PARAMETROS!$C$25,'LISTA CELDA'!W183)*'CELDA RESUMEN'!AG183 -> 0.4 | BI183: =IF(usaDistribucin2G3G="SI",PARAMETROS!$C$26,'LISTA CELDA'!X183)*'CELDA RESUMEN'!AG183 -> 0.02 | BJ183: =IF(usaDistribucin2G3G="SI",PARAMETROS!$D$25,'LISTA CELDA'!Y183)*'CELDA RESUMEN'!AH183 -> 0.6 | BK183: =IF(usaDistribucin2G3G="SI",PARAMETROS!$D$26,'LISTA CELDA'!Z183)*'CELDA RESUMEN'!AH183 -> 0.33 | BL183: =IF(usaDistribucin2G3G="SI",PARAMETROS!$E$25,0) -> 0 | BM183: =IF(usaDistribucin2G3G="SI",PARAMETROS!$E$26,'LISTA CELDA'!AA183)*'CELDA RESUMEN'!AI183 -> 0.65
B184: 177 | C184: URBANA | D184: PROVINCIA | E184: SUR | F184: AREQUIPA | G184: PROVINCIA22 | H184: DISTRITO1303 | I184: 77 | J184: 4 | K184: 12 | L184: 22 | M184: 12 | N184: 3 | O184: IDCELL177 | P184: ID_LOCAL177 | Q184: 0 | R184: D | S184: MACRO | T184: FO | U184: 0.000198019802 | V184: 0.000198019802 | W184: 0.71 | X184: 0.1 | Y184: 0.39 | Z184: 0.7 | AA184: 0.2 | AB184: BSC45 | AC184: PROMEDIO | AD184: 1 | AE184: 0.6200277809 | AF184: 0.6200277809 | AG184: 1 | AH184: 0.3799722191 | AI184: 0.3799722191 | AJ184: RNC37 | AK184: PROMEDIO | AL184: 1 | AM184: 0.8815384414 | AN184: 0.1045627723 | AO184: 0.005403422994 | AP184: 0.009134443846 | AQ184: RNC37 | AR184: PROMEDIO | AS184: 1 | AT184: 0.5 | AU184: 1 | AV184: 0.5 | AX184: D | AY184: 1.5 | AZ184: PROVINCIA22DISTRITO1303 | BB184: AREQUIPAURBANA | BC184: AREQUIPAMACRO | BD184: PROVINCIA URBANA | BH184: =IF(usaDistribucin2G3G="SI",PARAMETROS!$C$25,'LISTA CELDA'!W184)*'CELDA RESUMEN'!AG184 -> 0.4 | BI184: =IF(usaDistribucin2G3G="SI",PARAMETROS!$C$26,'LISTA CELDA'!X184)*'CELDA RESUMEN'!AG184 -> 0.02 | BJ184: =IF(usaDistribucin2G3G="SI",PARAMETROS!$D$25,'LISTA CELDA'!Y184)*'CELDA RESUMEN'!AH184 -> 0.6 | BK184: =IF(usaDistribucin2G3G="SI",PARAMETROS!$D$26,'LISTA CELDA'!Z184)*'CELDA RESUMEN'!AH184 -> 0.33 | BL184: =IF(usaDistribucin2G3G="SI",PARAMETROS!$E$25,0) -> 0 | BM184: =IF(usaDistribucin2G3G="SI",PARAMETROS!$E$26,'LISTA CELDA'!AA184)*'CELDA RESUMEN'!AI184 -> 0.65
B185: 178 | C185: RURAL | D185: PROVINCIA | E185: SUR | F185: AREQUIPA | G185: PROVINCIA22 | H185: DISTRITO1491 | I185: 77 | J185: 4 | K185: 12 | L185: 22 | M185: 12 | N185: 3 | O185: IDCELL178 | P185: ID_LOCAL178 | Q185: 0 | R185: D | S185: MACRO | T185: FO | U185: 0.000198019802 | V185: 0.000198019802 | W185: 0.71 | X185: 0.1 | Y185: 0.39 | Z185: 0.7 | AA185: 0.2 | AB185: BSC41 | AC185: PROMEDIO | AD185: 1 | AE185: 1 | AF185: 1 | AG185: 0 | AH185: 0 | AI185: 0 | AJ185: RNC38 | AK185: PROMEDIO | AL185: 1 | AM185: 0.8815384414 | AN185: 0.1045627723 | AO185: 0.005403422994 | AP185: 0.009134443846 | AQ185: RNC38 | AR185: PROMEDIO | AS185: 1 | AT185: 0.5 | AU185: 1 | AV185: 0.5 | AX185: D | AY185: 1.5 | AZ185: PROVINCIA22DISTRITO1491 | BB185: AREQUIPARURAL | BC185: AREQUIPAMACRO | BD185: PROVINCIA RURAL | BH185: =IF(usaDistribucin2G3G="SI",PARAMETROS!$C$25,'LISTA CELDA'!W185)*'CELDA RESUMEN'!AG185 -> 0.4 | BI185: =IF(usaDistribucin2G3G="SI",PARAMETROS!$C$26,'LISTA CELDA'!X185)*'CELDA RESUMEN'!AG185 -> 0.02 | BJ185: =IF(usaDistribucin2G3G="SI",PARAMETROS!$D$25,'LISTA CELDA'!Y185)*'CELDA RESUMEN'!AH185 -> 0.6 | BK185: =IF(usaDistribucin2G3G="SI",PARAMETROS!$D$26,'LISTA CELDA'!Z185)*'CELDA RESUMEN'!AH185 -> 0.33 | BL185: =IF(usaDistribucin2G3G="SI",PARAMETROS!$E$25,0) -> 0 | BM185: =IF(usaDistribucin2G3G="SI",PARAMETROS!$E$26,'LISTA CELDA'!AA185)*'CELDA RESUMEN'!AI185 -> 0.65
B186: 179 | C186: RURAL | D186: PROVINCIA | E186: SUR | F186: AREQUIPA | G186: PROVINCIA61 | H186: DISTRITO277 | I186: 77 | J186: 4 | K186: 12 | L186: 22 | M186: 12 | N186: 3 | O186: IDCELL179 | P186: ID_LOCAL179 | Q186: 0 | R186: D | S186: MACRO | T186: FO | U186: 0.000198019802 | V186: 0.000198019802 | W186: 1 | X186: 1 | Y186: 0 | Z186: 0 | AA186: 0 | AB186: BSC41 | AC186: PROMEDIO | AD186: 1 | AE186: 1 | AF186: 1 | AG186: 0 | AH186: 0 | AI186: 0 | AJ186: 0 | AK186: PROMEDIO | AL186: 0 | AM186: 0 | AN186: 0 | AO186: 0 | AP186: 0 | AR186: PROMEDIO | AS186: 0 | AT186: 0 | AU186: 0 | AV186: 0 | AX186: D | AY186: 1.5 | AZ186: PROVINCIA61DISTRITO277 | BB186: AREQUIPARURAL | BC186: AREQUIPAMACRO | BD186: PROVINCIA RURAL | BH186: =IF(usaDistribucin2G3G="SI",PARAMETROS!$C$25,'LISTA CELDA'!W186)*'CELDA RESUMEN'!AG186 -> 0.4 | BI186: =IF(usaDistribucin2G3G="SI",PARAMETROS!$C$26,'LISTA CELDA'!X186)*'CELDA RESUMEN'!AG186 -> 0.02 | BJ186: =IF(usaDistribucin2G3G="SI",PARAMETROS!$D$25,'LISTA CELDA'!Y186)*'CELDA RESUMEN'!AH186 -> 0 | BK186: =IF(usaDistribucin2G3G="SI",PARAMETROS!$D$26,'LISTA CELDA'!Z186)*'CELDA RESUMEN'!AH186 -> 0 | BL186: =IF(usaDistribucin2G3G="SI",PARAMETROS!$E$25,0) -> 0 | BM186: =IF(usaDistribucin2G3G="SI",PARAMETROS!$E$26,'LISTA CELDA'!AA186)*'CELDA RESUMEN'!AI186 -> 0
B187: 180 | C187: URBANA | D187: PROVINCIA | E187: SUR | F187: AREQUIPA | G187: PROVINCIA128 | H187: DISTRITO789 | I187: 77 | J187: 4 | K187: 12 | L187: 22 | M187: 12 | N187: 3 | O187: IDCELL180 | P187: ID_LOCAL180 | Q187: 0 | R187: D | S187: MACRO | T187: FO | U187: 0.000198019802 | V187: 0.000198019802 | W187: 0.71 | X187: 0.1 | Y187: 0.39 | Z187: 0.7 | AA187: 0.2 | AB187: BSC41 | AC187: PROMEDIO | AD187: 1 | AE187: 1 | AF187: 1 | AG187: 0 | AH187: 0 | AI187: 0 | AJ187: RNC38 | AK187: PROMEDIO | AL187: 1 | AM187: 0.8815384414 | AN187: 0.1045627723 | AO187: 0.005403422994 | AP187: 0.009134443846 | AQ187: RNC38 | AR187: PROMEDIO | AS187: 1 | AT187: 0.5 | AU187: 1 | AV187: 0.5 | AX187: D | AY187: 1.5 | AZ187: PROVINCIA128DISTRITO789 | BB187: AREQUIPAURBANA | BC187: AREQUIPAMACRO | BD187: PROVINCIA URBANA | BH187: =IF(usaDistribucin2G3G="SI",PARAMETROS!$C$25,'LISTA CELDA'!W187)*'CELDA RESUMEN'!AG187 -> 0.4 | BI187: =IF(usaDistribucin2G3G="SI",PARAMETROS!$C$26,'LISTA CELDA'!X187)*'CELDA RESUMEN'!AG187 -> 0.02 | BJ187: =IF(usaDistribucin2G3G="SI",PARAMETROS!$D$25,'LISTA CELDA'!Y187)*'CELDA RESUMEN'!AH187 -> 0.6 | BK187: =IF(usaDistribucin2G3G="SI",PARAMETROS!$D$26,'LISTA CELDA'!Z187)*'CELDA RESUMEN'!AH187 -> 0.33 | BL187: =IF(usaDistribucin2G3G="SI",PARAMETROS!$E$25,0) -> 0 | BM187: =IF(usaDistribucin2G3G="SI",PARAMETROS!$E$26,'LISTA CELDA'!AA187)*'CELDA RESUMEN'!AI187 -> 0.65
B188: 181 | C188: RURAL | D188: PROVINCIA | E188: SUR | F188: AREQUIPA | G188: PROVINCIA56 | H188: DISTRITO94 | I188: 77 | J188: 4 | K188: 12 | L188: 22 | M188: 12 | N188: 3 | O188: IDCELL181 | P188: ID_LOCAL181 | Q188: 0 | R188: D | S188: MACRO | T188: FO | U188: 0.000198019802 | V188: 0.000198019802 | W188: 1 | X188: 1 | Y188: 0 | Z188: 0 | AA188: 0 | AB188: BSC41 | AC188: PROMEDIO | AD188: 1 | AE188: 1 | AF188: 1 | AG188: 0 | AH188: 0 | AI188: 0 | AJ188: 0 | AK188: PROMEDIO | AL188: 0 | AM188: 0 | AN188: 0 | AO188: 0 | AP188: 0 | AR188: PROMEDIO | AS188: 0 | AT188: 0 | AU188: 0 | AV188: 0 | AX188: D | AY188: 1.5 | AZ188: PROVINCIA56DISTRITO94 | BB188: AREQUIPARURAL | BC188: AREQUIPAMACRO | BD188: PROVINCIA RURAL | BH188: =IF(usaDistribucin2G3G="SI",PARAMETROS!$C$25,'LISTA CELDA'!W188)*'CELDA RESUMEN'!AG188 -> 0.4 | BI188: =IF(usaDistribucin2G3G="SI",PARAMETROS!$C$26,'LISTA CELDA'!X188)*'CELDA RESUMEN'!AG188 -> 0.02 | BJ188: =IF(usaDistribucin2G3G="SI",PARAMETROS!$D$25,'LISTA CELDA'!Y188)*'CELDA RESUMEN'!AH188 -> 0 | BK188: =IF(usaDistribucin2G3G="SI",PARAMETROS!$D$26,'LISTA CELDA'!Z188)*'CELDA RESUMEN'!AH188 -> 0 | BL188: =IF(usaDistribucin2G3G="SI",PARAMETROS!$E$25,0) -> 0 | BM188: =IF(usaDistribucin2G3G="SI",PARAMETROS!$E$26,'LISTA CELDA'!AA188)*'CELDA RESUMEN'!AI188 -> 0
B189: 182 | C189: RURAL | D189: PROVINCIA | E189: SUR | F189: AREQUIPA | G189: PROVINCIA138 | H189: DISTRITO549 | I189: 77 | J189: 4 | K189: 12 | L189: 22 | M189: 12 | N189: 3 | O189: IDCELL182 | P189: ID_LOCAL182 | Q189: 0 | R189: D | S189: MACRO | T189: FO | U189: 0.000198019802 | V189: 0.000198019802 | W189: 1 | X189: 1 | Y189: 0 | Z189: 0 | AA189: 0 | AB189: BSC41 | AC189: PROMEDIO | AD189: 1 | AE189: 1 | AF189: 1 | AG189: 0 | AH189: 0 | AI189: 0 | AJ189: 0 | AK189: PROMEDIO | AL189: 0 | AM189: 0 | AN189: 0 | AO189: 0 | AP189: 0 | AR189: PROMEDIO | AS189: 0 | AT189: 0 | AU189: 0 | AV189: 0 | AX189: D | AY189: 1.5 | AZ189: PROVINCIA138DISTRITO549 | BB189: AREQUIPARURAL | BC189: AREQUIPAMACRO | BD189: PROVINCIA RURAL | BH189: =IF(usaDistribucin2G3G="SI",PARAMETROS!$C$25,'LISTA CELDA'!W189)*'CELDA RESUMEN'!AG189 -> 0.4 | BI189: =IF(usaDistribucin2G3G="SI",PARAMETROS!$C$26,'LISTA CELDA'!X189)*'CELDA RESUMEN'!AG189 -> 0.02 | BJ189: =IF(usaDistribucin2G3G="SI",PARAMETROS!$D$25,'LISTA CELDA'!Y189)*'CELDA RESUMEN'!AH189 -> 0 | BK189: =IF(usaDistribucin2G3G="SI",PARAMETROS!$D$26,'LISTA CELDA'!Z189)*'CELDA RESUMEN'!AH189 -> 0 | BL189: =IF(usaDistribucin2G3G="SI",PARAMETROS!$E$25,0) -> 0 | BM189: =IF(usaDistribucin2G3G="SI",PARAMETROS!$E$26,'LISTA CELDA'!AA189)*'CELDA RESUMEN'!AI189 -> 0
B190: 183 | C190: RURAL | D190: PROVINCIA | E190: SUR | F190: AREQUIPA | G190: PROVINCIA61 | H190: DISTRITO915 | I190: 77 | J190: 4 | K190: 12 | L190: 22 | M190: 12 | N190: 3 | O190: IDCELL183 | P190: ID_LOCAL183 | Q190: 0 | R190: D | S190: MACRO | T190: FO | U190: 0.000198019802 | V190: 0.000198019802 | W190: 1 | X190: 1 | Y190: 0 | Z190: 0 | AA190: 0 | AB190: BSC41 | AC190: PROMEDIO | AD190: 1 | AE190: 1 | AF190: 1 | AG190: 0 | AH190: 0 | AI190: 0 | AJ190: 0 | AK190: PROMEDIO | AL190: 0 | AM190: 0 | AN190: 0 | AO190: 0 | AP190: 0 | AR190: PROMEDIO | AS190: 0 | AT190: 0 | AU190: 0 | AV190: 0 | AX190: D | AY190: 1.5 | AZ190: PROVINCIA61DISTRITO915 | BB190: AREQUIPARURAL | BC190: AREQUIPAMACRO | BD190: PROVINCIA RURAL | BH190: =IF(usaDistribucin2G3G="SI",PARAMETROS!$C$25,'LISTA CELDA'!W190)*'CELDA RESUMEN'!AG190 -> 0.4 | BI190: =IF(usaDistribucin2G3G="SI",PARAMETROS!$C$26,'LISTA CELDA'!X190)*'CELDA RESUMEN'!AG190 -> 0.02 | BJ190: =IF(usaDistribucin2G3G="SI",PARAMETROS!$D$25,'LISTA CELDA'!Y190)*'CELDA RESUMEN'!AH190 -> 0 | BK190: =IF(usaDistribucin2G3G="SI",PARAMETROS!$D$26,'LISTA CELDA'!Z190)*'CELDA RESUMEN'!AH190 -> 0 | BL190: =IF(usaDistribucin2G3G="SI",PARAMETROS!$E$25,0) -> 0 | BM190: =IF(usaDistribucin2G3G="SI",PARAMETROS!$E$26,'LISTA CELDA'!AA190)*'CELDA RESUMEN'!AI190 -> 0
B191: 184 | C191: URBANA | D191: PROVINCIA | E191: SUR | F191: AREQUIPA | G191: PROVINCIA61 | H191: DISTRITO732 | I191: 77 | J191: 4 | K191: 12 | L191: 22 | M191: 12 | N191: 3 | O191: IDCELL184 | P191: ID_LOCAL184 | Q191: 0 | R191: D | S191: MACRO | T191: FO | U191: 0.000198019802 | V191: 0.000198019802 | W191: 1 | X191: 1 | Y191: 0 | Z191: 0 | AA191: 0 | AB191: BSC41 | AC191: PROMEDIO | AD191: 1 | AE191: 1 | AF191: 1 | AG191: 0 | AH191: 0 | AI191: 0 | AJ191: 0 | AK191: PROMEDIO | AL191: 0 | AM191: 0 | AN191: 0 | AO191: 0 | AP191: 0 | AR191: PROMEDIO | AS191: 0 | AT191: 0 | AU191: 0 | AV191: 0 | AX191: D | AY191: 1.5 | AZ191: PROVINCIA61DISTRITO732 | BB191: AREQUIPAURBANA | BC191: AREQUIPAMACRO | BD191: PROVINCIA URBANA | BH191: =IF(usaDistribucin2G3G="SI",PARAMETROS!$C$25,'LISTA CELDA'!W191)*'CELDA RESUMEN'!AG191 -> 0.4 | BI191: =IF(usaDistribucin2G3G="SI",PARAMETROS!$C$26,'LISTA CELDA'!X191)*'CELDA RESUMEN'!AG191 -> 0.02 | BJ191: =IF(usaDistribucin2G3G="SI",PARAMETROS!$D$25,'LISTA CELDA'!Y191)*'CELDA RESUMEN'!AH191 -> 0 | BK191: =IF(usaDistribucin2G3G="SI",PARAMETROS!$D$26,'LISTA CELDA'!Z191)*'CELDA RESUMEN'!AH191 -> 0 | BL191: =IF(usaDistribucin2G3G="SI",PARAMETROS!$E$25,0) -> 0 | BM191: =IF(usaDistribucin2G3G="SI",PARAMETROS!$E$26,'LISTA CELDA'!AA191)*'CELDA RESUMEN'!AI191 -> 0
B192: 185 | C192: URBANA | D192: PROVINCIA | E192: SUR | F192: AREQUIPA | G192: PROVINCIA81 | H192: DISTRITO321 | I192: 77 | J192: 4 | K192: 12 | L192: 22 | M192: 12 | N192: 3 | O192: IDCELL185 | P192: ID_LOCAL185 | Q192: 0 | R192: D | S192: MACRO | T192: FO | U192: 0.000198019802 | V192: 0.000198019802 | W192: 0.71 | X192: 0.1 | Y192: 0.39 | Z192: 0.7 | AA192: 0.2 | AB192: BSC41 | AC192: PROMEDIO | AD192: 1 | AE192: 1 | AF192: 1 | AG192: 0 | AH192: 0 | AI192: 0 | AJ192: RNC38 | AK192: PROMEDIO | AL192: 1 | AM192: 0.8815384414 | AN192: 0.1045627723 | AO192: 0.005403422994 | AP192: 0.009134443846 | AQ192: RNC38 | AR192: PROMEDIO | AS192: 1 | AT192: 0.5 | AU192: 1 | AV192: 0.5 | AX192: D | AY192: 1.5 | AZ192: PROVINCIA81DISTRITO321 | BB192: AREQUIPAURBANA | BC192: AREQUIPAMACRO | BD192: PROVINCIA URBANA | BH192: =IF(usaDistribucin2G3G="SI",PARAMETROS!$C$25,'LISTA CELDA'!W192)*'CELDA RESUMEN'!AG192 -> 0.4 | BI192: =IF(usaDistribucin2G3G="SI",PARAMETROS!$C$26,'LISTA CELDA'!X192)*'CELDA RESUMEN'!AG192 -> 0.02 | BJ192: =IF(usaDistribucin2G3G="SI",PARAMETROS!$D$25,'LISTA CELDA'!Y192)*'CELDA RESUMEN'!AH192 -> 0.6 | BK192: =IF(usaDistribucin2G3G="SI",PARAMETROS!$D$26,'LISTA CELDA'!Z192)*'CELDA RESUMEN'!AH192 -> 0.33 | BL192: =IF(usaDistribucin2G3G="SI",PARAMETROS!$E$25,0) -> 0 | BM192: =IF(usaDistribucin2G3G="SI",PARAMETROS!$E$26,'LISTA CELDA'!AA192)*'CELDA RESUMEN'!AI192 -> 0.65
B193: 186 | C193: RURAL | D193: PROVINCIA | E193: SUR | F193: AREQUIPA | G193: PROVINCIA81 | H193: DISTRITO218 | I193: 77 | J193: 4 | K193: 12 | L193: 22 | M193: 12 | N193: 3 | O193: IDCELL186 | P193: ID_LOCAL186 | Q193: 0 | R193: D | S193: MACRO | T193: FO | U193: 0.000198019802 | V193: 0.000198019802 | W193: 1 | X193: 1 | Y193: 0 | Z193: 0 | AA193: 0 | AB193: BSC41 | AC193: PROMEDIO | AD193: 1 | AE193: 1 | AF193: 1 | AG193: 0 | AH193: 0 | AI193: 0 | AJ193: 0 | AK193: PROMEDIO | AL193: 0 | AM193: 0 | AN193: 0 | AO193: 0 | AP193: 0 | AR193: PROMEDIO | AS193: 0 | AT193: 0 | AU193: 0 | AV193: 0 | AX193: D | AY193: 1.5 | AZ193: PROVINCIA81DISTRITO218 | BB193: AREQUIPARURAL | BC193: AREQUIPAMACRO | BD193: PROVINCIA RURAL | BH193: =IF(usaDistribucin2G3G="SI",PARAMETROS!$C$25,'LISTA CELDA'!W193)*'CELDA RESUMEN'!AG193 -> 0.4 | BI193: =IF(usaDistribucin2G3G="SI",PARAMETROS!$C$26,'LISTA CELDA'!X193)*'CELDA RESUMEN'!AG193 -> 0.02 | BJ193: =IF(usaDistribucin2G3G="SI",PARAMETROS!$D$25,'LISTA CELDA'!Y193)*'CELDA RESUMEN'!AH193 -> 0 | BK193: =IF(usaDistribucin2G3G="SI",PARAMETROS!$D$26,'LISTA CELDA'!Z193)*'CELDA RESUMEN'!AH193 -> 0 | BL193: =IF(usaDistribucin2G3G="SI",PARAMETROS!$E$25,0) -> 0 | BM193: =IF(usaDistribucin2G3G="SI",PARAMETROS!$E$26,'LISTA CELDA'!AA193)*'CELDA RESUMEN'!AI193 -> 0
B194: 187 | C194: RURAL | D194: PROVINCIA | E194: SUR | F194: AREQUIPA | G194: PROVINCIA61 | H194: DISTRITO865 | I194: 77 | J194: 4 | K194: 12 | L194: 22 | M194: 12 | N194: 3 | O194: IDCELL187 | P194: ID_LOCAL187 | Q194: 0 | R194: D | S194: MACRO | T194: FO | U194: 0.000198019802 | V194: 0.000198019802 | W194: 1 | X194: 1 | Y194: 0 | Z194: 0 | AA194: 0 | AB194: BSC41 | AC194: PROMEDIO | AD194: 1 | AE194: 1 | AF194: 1 | AG194: 0 | AH194: 0 | AI194: 0 | AJ194: 0 | AK194: PROMEDIO | AL194: 0 | AM194: 0 | AN194: 0 | AO194: 0 | AP194: 0 | AR194: PROMEDIO | AS194: 0 | AT194: 0 | AU194: 0 | AV194: 0 | AX194: D | AY194: 1.5 | AZ194: PROVINCIA61DISTRITO865 | BB194: AREQUIPARURAL | BC194: AREQUIPAMACRO | BD194: PROVINCIA RURAL | BH194: =IF(usaDistribucin2G3G="SI",PARAMETROS!$C$25,'LISTA CELDA'!W194)*'CELDA RESUMEN'!AG194 -> 0.4 | BI194: =IF(usaDistribucin2G3G="SI",PARAMETROS!$C$26,'LISTA CELDA'!X194)*'CELDA RESUMEN'!AG194 -> 0.02 | BJ194: =IF(usaDistribucin2G3G="SI",PARAMETROS!$D$25,'LISTA CELDA'!Y194)*'CELDA RESUMEN'!AH194 -> 0 | BK194: =IF(usaDistribucin2G3G="SI",PARAMETROS!$D$26,'LISTA CELDA'!Z194)*'CELDA RESUMEN'!AH194 -> 0 | BL194: =IF(usaDistribucin2G3G="SI",PARAMETROS!$E$25,0) -> 0 | BM194: =IF(usaDistribucin2G3G="SI",PARAMETROS!$E$26,'LISTA CELDA'!AA194)*'CELDA RESUMEN'!AI194 -> 0
B195: 188 | C195: URBANA | D195: PROVINCIA | E195: SUR | F195: AREQUIPA | G195: PROVINCIA22 | H195: DISTRITO1089 | I195: 77 | J195: 4 | K195: 12 | L195: 22 | M195: 12 | N195: 3 | O195: IDCELL188 | P195: ID_LOCAL188 | Q195: 0 | R195: D | S195: MACRO | T195: FO | U195: 0.000198019802 | V195: 0.000198019802 | W195: 0.71 | X195: 0.1 | Y195: 0.39 | Z195: 0.7 | AA195: 0.2 | AB195: BSC45 | AC195: PROMEDIO | AD195: 1 | AE195: 0.2742233045 | AF195: 0.2742233045 | AG195: 1 | AH195: 0.7257766955 | AI195: 0.7257766955 | AJ195: RNC37 | AK195: PROMEDIO | AL195: 1 | AM195: 0.8815384414 | AN195: 0.1045627723 | AO195: 0.005403422994 | AP195: 0.009134443846 | AQ195: RNC37 | AR195: PROMEDIO | AS195: 1 | AT195: 0.5 | AU195: 1 | AV195: 0.5 | AX195: D | AY195: 1.5 | AZ195: PROVINCIA22DISTRITO1089 | BB195: AREQUIPAURBANA | BC195: AREQUIPAMACRO | BD195: PROVINCIA URBANA | BH195: =IF(usaDistribucin2G3G="SI",PARAMETROS!$C$25,'LISTA CELDA'!W195)*'CELDA RESUMEN'!AG195 -> 0.4 | BI195: =IF(usaDistribucin2G3G="SI",PARAMETROS!$C$26,'LISTA CELDA'!X195)*'CELDA RESUMEN'!AG195 -> 0.02 | BJ195: =IF(usaDistribucin2G3G="SI",PARAMETROS!$D$25,'LISTA CELDA'!Y195)*'CELDA RESUMEN'!AH195 -> 0.6 | BK195: =IF(usaDistribucin2G3G="SI",PARAMETROS!$D$26,'LISTA CELDA'!Z195)*'CELDA RESUMEN'!AH195 -> 0.33 | BL195: =IF(usaDistribucin2G3G="SI",PARAMETROS!$E$25,0) -> 0 | BM195: =IF(usaDistribucin2G3G="SI",PARAMETROS!$E$26,'LISTA CELDA'!AA195)*'CELDA RESUMEN'!AI195 -> 0.65
B196: 189 | C196: RURAL | D196: PROVINCIA | E196: SUR | F196: AREQUIPA | G196: PROVINCIA63 | H196: DISTRITO159 | I196: 77 | J196: 4 | K196: 12 | L196: 22 | M196: 12 | N196: 3 | O196: IDCELL189 | P196: ID_LOCAL189 | Q196: 0 | R196: D | S196: MACRO | T196: FO | U196: 0.000198019802 | V196: 0.000198019802 | W196: 1 | X196: 1 | Y196: 0 | Z196: 0 | AA196: 0 | AB196: BSC41 | AC196: PROMEDIO | AD196: 1 | AE196: 1 | AF196: 1 | AG196: 0 | AH196: 0 | AI196: 0 | AJ196: 0 | AK196: PROMEDIO | AL196: 0 | AM196: 0 | AN196: 0 | AO196: 0 | AP196: 0 | AR196: PROMEDIO | AS196: 0 | AT196: 0 | AU196: 0 | AV196: 0 | AX196: D | AY196: 1.5 | AZ196: PROVINCIA63DISTRITO159 | BB196: AREQUIPARURAL | BC196: AREQUIPAMACRO | BD196: PROVINCIA RURAL | BH196: =IF(usaDistribucin2G3G="SI",PARAMETROS!$C$25,'LISTA CELDA'!W196)*'CELDA RESUMEN'!AG196 -> 0.4 | BI196: =IF(usaDistribucin2G3G="SI",PARAMETROS!$C$26,'LISTA CELDA'!X196)*'CELDA RESUMEN'!AG196 -> 0.02 | BJ196: =IF(usaDistribucin2G3G="SI",PARAMETROS!$D$25,'LISTA CELDA'!Y196)*'CELDA RESUMEN'!AH196 -> 0 | BK196: =IF(usaDistribucin2G3G="SI",PARAMETROS!$D$26,'LISTA CELDA'!Z196)*'CELDA RESUMEN'!AH196 -> 0 | BL196: =IF(usaDistribucin2G3G="SI",PARAMETROS!$E$25,0) -> 0 | BM196: =IF(usaDistribucin2G3G="SI",PARAMETROS!$E$26,'LISTA CELDA'!AA196)*'CELDA RESUMEN'!AI196 -> 0
B197: 190 | C197: RURAL | D197: PROVINCIA | E197: SUR | F197: AREQUIPA | G197: PROVINCIA63 | H197: DISTRITO1113 | I197: 77 | J197: 4 | K197: 12 | L197: 22 | M197: 12 | N197: 3 | O197: IDCELL190 | P197: ID_LOCAL190 | Q197: 0 | R197: D | S197: MACRO | T197: FO | U197: 0.000198019802 | V197: 0.000198019802 | W197: 1 | X197: 1 | Y197: 0 | Z197: 0 | AA197: 0 | AB197: BSC41 | AC197: PROMEDIO | AD197: 1 | AE197: 1 | AF197: 1 | AG197: 0 | AH197: 0 | AI197: 0 | AJ197: 0 | AK197: PROMEDIO | AL197: 0 | AM197: 0 | AN197: 0 | AO197: 0 | AP197: 0 | AR197: PROMEDIO | AS197: 0 | AT197: 0 | AU197: 0 | AV197: 0 | AX197: D | AY197: 1.5 | AZ197: PROVINCIA63DISTRITO1113 | BB197: AREQUIPARURAL | BC197: AREQUIPAMACRO | BD197: PROVINCIA RURAL | BH197: =IF(usaDistribucin2G3G="SI",PARAMETROS!$C$25,'LISTA CELDA'!W197)*'CELDA RESUMEN'!AG197 -> 0.4 | BI197: =IF(usaDistribucin2G3G="SI",PARAMETROS!$C$26,'LISTA CELDA'!X197)*'CELDA RESUMEN'!AG197 -> 0.02 | BJ197: =IF(usaDistribucin2G3G="SI",PARAMETROS!$D$25,'LISTA CELDA'!Y197)*'CELDA RESUMEN'!AH197 -> 0 | BK197: =IF(usaDistribucin2G3G="SI",PARAMETROS!$D$26,'LISTA CELDA'!Z197)*'CELDA RESUMEN'!AH197 -> 0 | BL197: =IF(usaDistribucin2G3G="SI",PARAMETROS!$E$25,0) -> 0 | BM197: =IF(usaDistribucin2G3G="SI",PARAMETROS!$E$26,'LISTA CELDA'!AA197)*'CELDA RESUMEN'!AI197 -> 0
B198: 191 | C198: RURAL | D198: PROVINCIA | E198: SUR | F198: AREQUIPA | G198: PROVINCIA22 | H198: DISTRITO1039 | I198: 77 | J198: 4 | K198: 12 | L198: 22 | M198: 12 | N198: 3 | O198: IDCELL191 | P198: ID_LOCAL191 | Q198: 0 | R198: D | S198: MACRO | T198: FO | U198: 0.000198019802 | V198: 0.000198019802 | W198: 0.71 | X198: 0.1 | Y198: 0.39 | Z198: 0.7 | AA198: 0.2 | AB198: BSC45 | AC198: PROMEDIO | AD198: 1 | AE198: 1 | AF198: 1 | AG198: 0 | AH198: 0 | AI198: 0 | AJ198: RNC37 | AK198: PROMEDIO | AL198: 1 | AM198: 0.8815384414 | AN198: 0.1045627723 | AO198: 0.005403422994 | AP198: 0.009134443846 | AQ198: RNC37 | AR198: PROMEDIO | AS198: 1 | AT198: 0.5 | AU198: 1 | AV198: 0.5 | AX198: D | AY198: 1.5 | AZ198: PROVINCIA22DISTRITO1039 | BB198: AREQUIPARURAL | BC198: AREQUIPAMACRO | BD198: PROVINCIA RURAL | BH198: =IF(usaDistribucin2G3G="SI",PARAMETROS!$C$25,'LISTA CELDA'!W198)*'CELDA RESUMEN'!AG198 -> 0.4 | BI198: =IF(usaDistribucin2G3G="SI",PARAMETROS!$C$26,'LISTA CELDA'!X198)*'CELDA RESUMEN'!AG198 -> 0.02 | BJ198: =IF(usaDistribucin2G3G="SI",PARAMETROS!$D$25,'LISTA CELDA'!Y198)*'CELDA RESUMEN'!AH198 -> 0.6 | BK198: =IF(usaDistribucin2G3G="SI",PARAMETROS!$D$26,'LISTA CELDA'!Z198)*'CELDA RESUMEN'!AH198 -> 0.33 | BL198: =IF(usaDistribucin2G3G="SI",PARAMETROS!$E$25,0) -> 0 | BM198: =IF(usaDistribucin2G3G="SI",PARAMETROS!$E$26,'LISTA CELDA'!AA198)*'CELDA RESUMEN'!AI198 -> 0.65
B199: 192 | C199: URBANA | D199: PROVINCIA | E199: SUR | F199: AREQUIPA | G199: PROVINCIA22 | H199: DISTRITO795 | I199: 77 | J199: 4 | K199: 12 | L199: 22 | M199: 12 | N199: 3 | O199: IDCELL192 | P199: ID_LOCAL192 | Q199: 0 | R199: D | S199: MACRO | T199: FO | U199: 0.000198019802 | V199: 0.000198019802 | W199: 0.71 | X199: 0.1 | Y199: 0.39 | Z199: 0.7 | AA199: 0.2 | AB199: BSC40 | AC199: PROMEDIO | AD199: 1 | AE199: 0.419864986 | AF199: 0.419864986 | AG199: 1 | AH199: 0.580135014 | AI199: 0.580135014 | AJ199: RNC37 | AK199: PROMEDIO | AL199: 1 | AM199: 0.8815384414 | AN199: 0.1045627723 | AO199: 0.005403422994 | AP199: 0.009134443846 | AQ199: RNC37 | AR199: PROMEDIO | AS199: 1 | AT199: 0.5 | AU199: 1 | AV199: 0.5 | AX199: D | AY199: 1.5 | AZ199: PROVINCIA22DISTRITO795 | BB199: AREQUIPAURBANA | BC199: AREQUIPAMACRO | BD199: PROVINCIA URBANA | BH199: =IF(usaDistribucin2G3G="SI",PARAMETROS!$C$25,'LISTA CELDA'!W199)*'CELDA RESUMEN'!AG199 -> 0.4 | BI199: =IF(usaDistribucin2G3G="SI",PARAMETROS!$C$26,'LISTA CELDA'!X199)*'CELDA RESUMEN'!AG199 -> 0.02 | BJ199: =IF(usaDistribucin2G3G="SI",PARAMETROS!$D$25,'LISTA CELDA'!Y199)*'CELDA RESUMEN'!AH199 -> 0.6 | BK199: =IF(usaDistribucin2G3G="SI",PARAMETROS!$D$26,'LISTA CELDA'!Z199)*'CELDA RESUMEN'!AH199 -> 0.33 | BL199: =IF(usaDistribucin2G3G="SI",PARAMETROS!$E$25,0) -> 0 | BM199: =IF(usaDistribucin2G3G="SI",PARAMETROS!$E$26,'LISTA CELDA'!AA199)*'CELDA RESUMEN'!AI199 -> 0.65
B200: 193 | C200: RURAL | D200: PROVINCIA | E200: SUR | F200: AREQUIPA | G200: PROVINCIA22 | H200: DISTRITO229 | I200: 77 | J200: 4 | K200: 12 | L200: 22 | M200: 12 | N200: 3 | O200: IDCELL193 | P200: ID_LOCAL193 | Q200: 0 | R200: D | S200: MACRO | T200: FO | U200: 0.000198019802 | V200: 0.000198019802 | W200: 0.71 | X200: 0.1 | Y200: 0.39 | Z200: 0.7 | AA200: 0.2 | AB200: BSC45 | AC200: PROMEDIO | AD200: 1 | AE200: 0.3426195863 | AF200: 0.3426195863 | AG200: 1 | AH200: 0.6573804137 | AI200: 0.6573804137 | AJ200: RNC37 | AK200: PROMEDIO | AL200: 1 | AM200: 0.8815384414 | AN200: 0.1045627723 | AO200: 0.005403422994 | AP200: 0.009134443846 | AQ200: RNC37 | AR200: PROMEDIO | AS200: 1 | AT200: 0.5 | AU200: 1 | AV200: 0.5 | AX200: D | AY200: 1.5 | AZ200: PROVINCIA22DISTRITO229 | BB200: AREQUIPARURAL | BC200: AREQUIPAMACRO | BD200: PROVINCIA RURAL | BH200: =IF(usaDistribucin2G3G="SI",PARAMETROS!$C$25,'LISTA CELDA'!W200)*'CELDA RESUMEN'!AG200 -> 0.4 | BI200: =IF(usaDistribucin2G3G="SI",PARAMETROS!$C$26,'LISTA CELDA'!X200)*'CELDA RESUMEN'!AG200 -> 0.02 | BJ200: =IF(usaDistribucin2G3G="SI",PARAMETROS!$D$25,'LISTA CELDA'!Y200)*'CELDA RESUMEN'!AH200 -> 0.6 | BK200: =IF(usaDistribucin2G3G="SI",PARAMETROS!$D$26,'LISTA CELDA'!Z200)*'CELDA RESUMEN'!AH200 -> 0.33 | BL200: =IF(usaDistribucin2G3G="SI",PARAMETROS!$E$25,0) -> 0 | BM200: =IF(usaDistribucin2G3G="SI",PARAMETROS!$E$26,'LISTA CELDA'!AA200)*'CELDA RESUMEN'!AI200 -> 0.65
B201: 194 | C201: RURAL | D201: PROVINCIA | E201: SUR | F201: AREQUIPA | G201: PROVINCIA22 | H201: DISTRITO1365 | I201: 77 | J201: 4 | K201: 12 | L201: 22 | M201: 12 | N201: 3 | O201: IDCELL194 | P201: ID_LOCAL194 | Q201: 0 | R201: D | S201: MACRO | T201: FO | U201: 0.000198019802 | V201: 0.000198019802 | W201: 0.71 | X201: 0.1 | Y201: 0.39 | Z201: 0.7 | AA201: 0.2 | AB201: BSC45 | AC201: PROMEDIO | AD201: 1 | AE201: 0.4452981291 | AF201: 0.4452981291 | AG201: 1 | AH201: 0.5547018709 | AI201: 0.5547018709 | AJ201: RNC37 | AK201: PROMEDIO | AL201: 1 | AM201: 0.8815384414 | AN201: 0.1045627723 | AO201: 0.005403422994 | AP201: 0.009134443846 | AQ201: RNC37 | AR201: PROMEDIO | AS201: 1 | AT201: 0.5 | AU201: 1 | AV201: 0.5 | AX201: D | AY201: 1.5 | AZ201: PROVINCIA22DISTRITO1365 | BB201: AREQUIPARURAL | BC201: AREQUIPAMACRO | BD201: PROVINCIA RURAL | BH201: =IF(usaDistribucin2G3G="SI",PARAMETROS!$C$25,'LISTA CELDA'!W201)*'CELDA RESUMEN'!AG201 -> 0.4 | BI201: =IF(usaDistribucin2G3G="SI",PARAMETROS!$C$26,'LISTA CELDA'!X201)*'CELDA RESUMEN'!AG201 -> 0.02 | BJ201: =IF(usaDistribucin2G3G="SI",PARAMETROS!$D$25,'LISTA CELDA'!Y201)*'CELDA RESUMEN'!AH201 -> 0.6 | BK201: =IF(usaDistribucin2G3G="SI",PARAMETROS!$D$26,'LISTA CELDA'!Z201)*'CELDA RESUMEN'!AH201 -> 0.33 | BL201: =IF(usaDistribucin2G3G="SI",PARAMETROS!$E$25,0) -> 0 | BM201: =IF(usaDistribucin2G3G="SI",PARAMETROS!$E$26,'LISTA CELDA'!AA201)*'CELDA RESUMEN'!AI201 -> 0.65
B202: 195 | C202: URBANA | D202: PROVINCIA | E202: SUR | F202: AREQUIPA | G202: PROVINCIA128 | H202: DISTRITO804 | I202: 77 | J202: 4 | K202: 12 | L202: 22 | M202: 12 | N202: 3 | O202: IDCELL195 | P202: ID_LOCAL195 | Q202: 0 | R202: D | S202: MACRO | T202: FO | U202: 0.000198019802 | V202: 0.000198019802 | W202: 0.71 | X202: 0.1 | Y202: 0.39 | Z202: 0.7 | AA202: 0.2 | AB202: BSC41 | AC202: PROMEDIO | AD202: 1 | AE202: 0.4809799939 | AF202: 0.4809799939 | AG202: 1 | AH202: 0.5190200061 | AI202: 0.5190200061 | AJ202: RNC38 | AK202: PROMEDIO | AL202: 1 | AM202: 0.8815384414 | AN202: 0.1045627723 | AO202: 0.005403422994 | AP202: 0.009134443846 | AQ202: RNC38 | AR202: PROMEDIO | AS202: 1 | AT202: 0.5 | AU202: 1 | AV202: 0.5 | AX202: D | AY202: 1.5 | AZ202: PROVINCIA128DISTRITO804 | BB202: AREQUIPAURBANA | BC202: AREQUIPAMACRO | BD202: PROVINCIA URBANA | BH202: =IF(usaDistribucin2G3G="SI",PARAMETROS!$C$25,'LISTA CELDA'!W202)*'CELDA RESUMEN'!AG202 -> 0.4 | BI202: =IF(usaDistribucin2G3G="SI",PARAMETROS!$C$26,'LISTA CELDA'!X202)*'CELDA RESUMEN'!AG202 -> 0.02 | BJ202: =IF(usaDistribucin2G3G="SI",PARAMETROS!$D$25,'LISTA CELDA'!Y202)*'CELDA RESUMEN'!AH202 -> 0.6 | BK202: =IF(usaDistribucin2G3G="SI",PARAMETROS!$D$26,'LISTA CELDA'!Z202)*'CELDA RESUMEN'!AH202 -> 0.33 | BL202: =IF(usaDistribucin2G3G="SI",PARAMETROS!$E$25,0) -> 0 | BM202: =IF(usaDistribucin2G3G="SI",PARAMETROS!$E$26,'LISTA CELDA'!AA202)*'CELDA RESUMEN'!AI202 -> 0.65
B203: 196 | C203: URBANA | D203: PROVINCIA | E203: SUR | F203: AREQUIPA | G203: PROVINCIA22 | H203: DISTRITO82 | I203: 77 | J203: 4 | K203: 12 | L203: 22 | M203: 12 | N203: 3 | O203: IDCELL196 | P203: ID_LOCAL196 | Q203: 0 | R203: D | S203: MACRO | T203: FO | U203: 0.000198019802 | V203: 0.000198019802 | W203: 0.71 | X203: 0.1 | Y203: 0.39 | Z203: 0.7 | AA203: 0.2 | AB203: BSC40 | AC203: PROMEDIO | AD203: 0 | AE203: 0 | AF203: 0 | AG203: 1 | AH203: 1 | AI203: 1 | AJ203: RNC37 | AK203: PROMEDIO | AL203: 1 | AM203: 0.8815384414 | AN203: 0.1045627723 | AO203: 0.005403422994 | AP203: 0.009134443846 | AQ203: RNC37 | AR203: PROMEDIO | AS203: 1 | AT203: 0.5 | AU203: 1 | AV203: 0.5 | AX203: D | AY203: 1.5 | AZ203: PROVINCIA22DISTRITO82 | BB203: AREQUIPAURBANA | BC203: AREQUIPAMACRO | BD203: PROVINCIA URBANA | BH203: =IF(usaDistribucin2G3G="SI",PARAMETROS!$C$25,'LISTA CELDA'!W203)*'CELDA RESUMEN'!AG203 -> 0.4 | BI203: =IF(usaDistribucin2G3G="SI",PARAMETROS!$C$26,'LISTA CELDA'!X203)*'CELDA RESUMEN'!AG203 -> 0.02 | BJ203: =IF(usaDistribucin2G3G="SI",PARAMETROS!$D$25,'LISTA CELDA'!Y203)*'CELDA RESUMEN'!AH203 -> 0.6 | BK203: =IF(usaDistribucin2G3G="SI",PARAMETROS!$D$26,'LISTA CELDA'!Z203)*'CELDA RESUMEN'!AH203 -> 0.33 | BL203: =IF(usaDistribucin2G3G="SI",PARAMETROS!$E$25,0) -> 0 | BM203: =IF(usaDistribucin2G3G="SI",PARAMETROS!$E$26,'LISTA CELDA'!AA203)*'CELDA RESUMEN'!AI203 -> 0.65
B204: 197 | C204: URBANA | D204: PROVINCIA | E204: SUR | F204: AREQUIPA | G204: PROVINCIA22 | H204: DISTRITO44 | I204: 77 | J204: 4 | K204: 12 | L204: 22 | M204: 12 | N204: 3 | O204: IDCELL197 | P204: ID_LOCAL197 | Q204: 0 | R204: D | S204: MACRO | T204: FO | U204: 0.000198019802 | V204: 0.000198019802 | W204: 0.71 | X204: 0.1 | Y204: 0.39 | Z204: 0.7 | AA204: 0.2 | AB204: BSC45 | AC204: PROMEDIO | AD204: 0 | AE204: 0 | AF204: 0 | AG204: 1 | AH204: 1 | AI204: 1 | AJ204: RNC37 | AK204: PROMEDIO | AL204: 1 | AM204: 0.8815384414 | AN204: 0.1045627723 | AO204: 0.005403422994 | AP204: 0.009134443846 | AQ204: RNC37 | AR204: PROMEDIO | AS204: 1 | AT204: 0.5 | AU204: 1 | AV204: 0.5 | AX204: D | AY204: 1.5 | AZ204: PROVINCIA22DISTRITO44 | BB204: AREQUIPAURBANA | BC204: AREQUIPAMACRO | BD204: PROVINCIA URBANA | BH204: =IF(usaDistribucin2G3G="SI",PARAMETROS!$C$25,'LISTA CELDA'!W204)*'CELDA RESUMEN'!AG204 -> 0.4 | BI204: =IF(usaDistribucin2G3G="SI",PARAMETROS!$C$26,'LISTA CELDA'!X204)*'CELDA RESUMEN'!AG204 -> 0.02 | BJ204: =IF(usaDistribucin2G3G="SI",PARAMETROS!$D$25,'LISTA CELDA'!Y204)*'CELDA RESUMEN'!AH204 -> 0.6 | BK204: =IF(usaDistribucin2G3G="SI",PARAMETROS!$D$26,'LISTA CELDA'!Z204)*'CELDA RESUMEN'!AH204 -> 0.33 | BL204: =IF(usaDistribucin2G3G="SI",PARAMETROS!$E$25,0) -> 0 | BM204: =IF(usaDistribucin2G3G="SI",PARAMETROS!$E$26,'LISTA CELDA'!AA204)*'CELDA RESUMEN'!AI204 -> 0.65
... 921 more rows

Sheet LISTA BSC
A1: <-- EDICIÓN | B1: BSC
A4: Listado BSC
H6: GRADOS | J6: MINUTOS | L6: SEGUNDOS
B7: ID_BSC | C7: DEPARTAMENTO | D7: PROVINCIA | E7: DISTRITO | F7: COD_BSC | G7: REGIÓN | H7: LON. | I7: LAT. | J7: LON. | K7: LAT. | L7: LON. | M7: LAT.
B8: 1 | C8: LIMA | F8: BSC01 | G8: LIMA | H8: 77 | I8: 12 | J8: 0 | K8: 5 | L8: 46 | M8: 31
B9: 2 | C9: LIMA | F9: BSC02 | G9: LIMA | H9: 77 | I9: 12 | J9: 0 | K9: 5 | L9: 46 | M9: 31
B10: 3 | C10: LIMA | F10: BSC03 | G10: LIMA | H10: 77 | I10: 12 | J10: 0 | K10: 5 | L10: 46 | M10: 31
B11: 4 | C11: LIMA | F11: BSC04 | G11: LIMA | H11: 77 | I11: 12 | J11: 0 | K11: 5 | L11: 46 | M11: 31
B12: 5 | C12: LIMA | F12: BSC05 | G12: LIMA | H12: 77 | I12: 12 | J12: 0 | K12: 5 | L12: 46 | M12: 31
B13: 6 | C13: LIMA | F13: BSC06 | G13: LIMA | H13: 77 | I13: 12 | J13: 0 | K13: 5 | L13: 46 | M13: 31
B14: 7 | C14: LIMA | F14: BSC07 | G14: LIMA | H14: 77 | I14: 12 | J14: 0 | K14: 5 | L14: 46 | M14: 31
B15: 8 | C15: LIMA | F15: BSC08 | G15: LIMA | H15: 77 | I15: 12 | J15: 0 | K15: 5 | L15: 46 | M15: 31
B16: 9 | C16: LIMA | F16: BSC09 | G16: LIMA | H16: 77 | I16: 12 | J16: 0 | K16: 5 | L16: 46 | M16: 31
B17: 10 | C17: LIMA | F17: BSC10 | G17: LIMA | H17: 77 | I17: 12 | J17: 0 | K17: 5 | L17: 46 | M17: 31
B18: 11 | C18: LA LIBERTAD | F18: BSC11 | G18: NORTE | H18: 79 | I18: 8 | J18: 1 | K18: 6 | L18: 45 | M18: 45
B19: 12 | C19: LA LIBERTAD | F19: BSC12 | G19: NORTE | H19: 79 | I19: 8 | J19: 1 | K19: 6 | L19: 45 | M19: 45
B20: 13 | C20: LA LIBERTAD | F20: BSC13 | G20: NORTE | H20: 79 | I20: 8 | J20: 1 | K20: 6 | L20: 45 | M20: 45
B21: 14 | C21: LA LIBERTAD | F21: BSC14 | G21: NORTE | H21: 79 | I21: 8 | J21: 1 | K21: 6 | L21: 45 | M21: 45
B22: 15 | C22: LA LIBERTAD | F22: BSC15 | G22: NORTE | H22: 79 | I22: 8 | J22: 1 | K22: 6 | L22: 45 | M22: 45
B23: 16 | C23: LA LIBERTAD | F23: BSC16 | G23: NORTE | H23: 79 | I23: 8 | J23: 1 | K23: 6 | L23: 45 | M23: 45
B24: 17 | C24: LA LIBERTAD | F24: BSC17 | G24: NORTE | H24: 79 | I24: 8 | J24: 1 | K24: 6 | L24: 45 | M24: 45
B25: 18 | C25: LA LIBERTAD | F25: BSC18 | G25: NORTE | H25: 79 | I25: 8 | J25: 1 | K25: 6 | L25: 45 | M25: 45
B26: 19 | C26: LA LIBERTAD | F26: BSC19 | G26: NORTE | H26: 79 | I26: 8 | J26: 1 | K26: 6 | L26: 45 | M26: 45
B27: 20 | C27: LA LIBERTAD | F27: BSC20 | G27: NOR ORIENTE | H27: 79 | I27: 8 | J27: 1 | K27: 6 | L27: 45 | M27: 45
B28: 21 | C28: LA LIBERTAD | F28: BSC21 | G28: NOR ORIENTE | H28: 79 | I28: 8 | J28: 1 | K28: 6 | L28: 45 | M28: 45
B29: 22 | C29: LA LIBERTAD | F29: BSC22 | G29: NOR ORIENTE | H29: 79 | I29: 8 | J29: 1 | K29: 6 | L29: 45 | M29: 45
B30: 23 | C30: LA LIBERTAD | F30: BSC23 | G30: NORTE | H30: 79 | I30: 8 | J30: 1 | K30: 6 | L30: 45 | M30: 45
B31: 24 | C31: LA LIBERTAD | F31: BSC24 | G31: NORTE | H31: 79 | I31: 8 | J31: 1 | K31: 6 | L31: 45 | M31: 45
B32: 25 | C32: LA LIBERTAD | F32: BSC25 | G32: NORTE | H32: 79 | I32: 8 | J32: 1 | K32: 6 | L32: 45 | M32: 45
B33: 26 | C33: LA LIBERTAD | F33: BSC26 | G33: NOR ORIENTE | H33: 79 | I33: 8 | J33: 1 | K33: 6 | L33: 45 | M33: 45
B34: 27 | C34: LA LIBERTAD | F34: BSC27 | G34: NOR ORIENTE | H34: 79 | I34: 8 | J34: 1 | K34: 6 | L34: 45 | M34: 45
B35: 28 | C35: LA LIBERTAD | F35: BSC28 | G35: NOR ORIENTE | H35: 79 | I35: 8 | J35: 1 | K35: 6 | L35: 45 | M35: 45
B36: 29 | C36: LORETO | F36: BSC29 | G36: NOR ORIENTE | H36: 73 | I36: 3 | J36: 15 | K36: 44 | L36: 4 | M36: 41
B37: 30 | C37: LIMA | F37: BSC30 | G37: CENTRO ORIENTE | H37: 77 | I37: 12 | J37: 0 | K37: 5 | L37: 46 | M37: 31
B38: 31 | C38: LIMA | F38: BSC31 | G38: CENTRO ORIENTE | H38: 77 | I38: 12 | J38: 0 | K38: 5 | L38: 46 | M38: 31
B39: 32 | C39: LIMA | F39: BSC32 | G39: CENTRO ORIENTE | H39: 77 | I39: 12 | J39: 0 | K39: 5 | L39: 46 | M39: 31
B40: 33 | C40: LIMA | F40: BSC33 | G40: CENTRO ORIENTE | H40: 77 | I40: 12 | J40: 0 | K40: 5 | L40: 46 | M40: 31
B41: 34 | C41: LIMA | F41: BSC34 | G41: CENTRO ORIENTE | H41: 77 | I41: 12 | J41: 0 | K41: 5 | L41: 46 | M41: 31
B42: 35 | C42: LIMA | F42: BSC35 | G42: CENTRO ORIENTE | H42: 77 | I42: 12 | J42: 0 | K42: 5 | L42: 46 | M42: 31
B43: 36 | C43: LIMA | F43: BSC36 | G43: CENTRO ORIENTE | H43: 77 | I43: 12 | J43: 0 | K43: 5 | L43: 46 | M43: 31
B44: 37 | C44: LIMA | F44: BSC37 | G44: CENTRO ORIENTE | H44: 77 | I44: 12 | J44: 0 | K44: 5 | L44: 46 | M44: 31
B45: 38 | C45: AREQUIPA | F45: BSC38 | G45: SUR ESTE | H45: 71 | I45: 16 | J45: 32 | K45: 24 | L45: 14 | M45: 34
B46: 39 | C46: AREQUIPA | F46: BSC39 | G46: SUR ESTE | H46: 71 | I46: 16 | J46: 32 | K46: 24 | L46: 14 | M46: 34
B47: 40 | C47: AREQUIPA | F47: BSC40 | G47: SUR | H47: 71 | I47: 16 | J47: 32 | K47: 24 | L47: 14 | M47: 34
B48: 41 | C48: AREQUIPA | F48: BSC41 | G48: SUR | H48: 71 | I48: 16 | J48: 32 | K48: 24 | L48: 14 | M48: 34
B49: 42 | C49: AREQUIPA | F49: BSC42 | G49: SUR ESTE | H49: 71 | I49: 16 | J49: 32 | K49: 24 | L49: 14 | M49: 34
B50: 43 | C50: AREQUIPA | F50: BSC43 | G50: SUR | H50: 71 | I50: 16 | J50: 32 | K50: 24 | L50: 14 | M50: 34
B51: 44 | C51: AREQUIPA | F51: BSC44 | G51: SUR | H51: 71 | I51: 16 | J51: 32 | K51: 24 | L51: 14 | M51: 34
B52: 45 | C52: AREQUIPA | F52: BSC45 | G52: SUR ESTE | H52: 71 | I52: 16 | J52: 32 | K52: 24 | L52: 14 | M52: 34
B53: 46 | C53: AREQUIPA | F53: BSC46 | G53: SUR ESTE | H53: 71 | I53: 16 | J53: 32 | K53: 24 | L53: 14 | M53: 34
B54: 47 | C54: AREQUIPA | F54: BSC47 | G54: SUR ESTE | H54: 71 | I54: 16 | J54: 32 | K54: 24 | L54: 14 | M54: 34
B55: 48 | C55: LA LIBERTAD | F55: BSC48 | G55: NORTE | H55: 79 | I55: 8 | J55: 1 | K55: 6 | L55: 45 | M55: 45
B56: 49
B57: 50
B58: 51
B59: 52
B60: 53
B61: 54
B62: 55
B63: 56
B64: 57
B65: 58
B66: 59
B67: 60
B68: 61
B69: 62
B70: 63
B71: 64
B72: 65

Sheet LISTA RNC
A1: <-- EDICIÓN | B1: RNC
A4: Listado RNC
H6: GRADOS | J6: MINUTOS | L6: SEGUNDOS
B7: ID_RNC | C7: DEPARTAMENTO | D7: PROVINCIA | E7: DISTRITO | F7: COD_RNC | G7: REGIÓN | H7: LON. | I7: LAT. | J7: LON. | K7: LAT. | L7: LON. | M7: LAT.
B8: 1 | C8: LIMA | F8: RNC01 | G8: LIMA | H8: 77 | I8: 12 | J8: 0 | K8: 5 | L8: 46 | M8: 31
B9: 1 | C9: LIMA | F9: RNC02 | G9: LIMA | H9: 77 | I9: 12 | J9: 0 | K9: 5 | L9: 46 | M9: 31
B10: 2 | C10: LIMA | F10: RNC03 | G10: LIMA | H10: 77 | I10: 12 | J10: 0 | K10: 5 | L10: 46 | M10: 31
B11: 3 | C11: LIMA | F11: RNC04 | G11: LIMA | H11: 77 | I11: 12 | J11: 0 | K11: 5 | L11: 46 | M11: 31
B12: 4 | C12: LIMA | F12: RNC05 | G12: LIMA | H12: 77 | I12: 12 | J12: 0 | K12: 5 | L12: 46 | M12: 31
B13: 4 | C13: LIMA | F13: RNC06 | G13: LIMA | H13: 77 | I13: 12 | J13: 0 | K13: 5 | L13: 46 | M13: 31
B14: 5 | C14: LIMA | F14: RNC07 | G14: LIMA | H14: 77 | I14: 12 | J14: 0 | K14: 5 | L14: 46 | M14: 31
B15: 6 | C15: LIMA | F15: RNC08 | G15: LIMA | H15: 77 | I15: 12 | J15: 0 | K15: 5 | L15: 46 | M15: 31
B16: 7 | C16: LIMA | F16: RNC09 | G16: LIMA | H16: 77 | I16: 12 | J16: 0 | K16: 5 | L16: 46 | M16: 31
B17: 8 | C17: LIMA | F17: RNC10 | G17: LIMA | H17: 77 | I17: 12 | J17: 0 | K17: 5 | L17: 46 | M17: 31
B18: 9 | C18: LIMA | F18: RNC11 | G18: LIMA | H18: 77 | I18: 12 | J18: 0 | K18: 5 | L18: 46 | M18: 31
B19: 10 | C19: LIMA | F19: RNC12 | G19: LIMA | H19: 77 | I19: 12 | J19: 0 | K19: 5 | L19: 46 | M19: 31
B20: 11 | C20: LIMA | F20: RNC13 | G20: LIMA | H20: 77 | I20: 12 | J20: 0 | K20: 5 | L20: 46 | M20: 31
B21: 12 | C21: LIMA | F21: RNC14 | G21: LIMA | H21: 77 | I21: 12 | J21: 0 | K21: 5 | L21: 46 | M21: 31
B22: 13 | C22: LIMA | F22: RNC15 | G22: LIMA | H22: 77 | I22: 12 | J22: 0 | K22: 5 | L22: 46 | M22: 31
B23: 14 | C23: LA LIBERTAD | F23: RNC16 | G23: NOR ORIENTE | H23: 79 | I23: 8 | J23: 1 | K23: 6 | L23: 45 | M23: 45
B24: 15 | C24: LA LIBERTAD | F24: RNC17 | G24: NORTE | H24: 79 | I24: 8 | J24: 1 | K24: 6 | L24: 45 | M24: 45
B25: 15 | C25: LA LIBERTAD | F25: RNC18 | G25: NORTE | H25: 79 | I25: 8 | J25: 1 | K25: 6 | L25: 45 | M25: 45
B26: 16 | C26: LA LIBERTAD | F26: RNC19 | G26: NOR ORIENTE | H26: 79 | I26: 8 | J26: 1 | K26: 6 | L26: 45 | M26: 45
B27: 17 | C27: LA LIBERTAD | F27: RNC20 | G27: NORTE | H27: 79 | I27: 8 | J27: 1 | K27: 6 | L27: 45 | M27: 45
B28: 18 | C28: LA LIBERTAD | F28: RNC21 | G28: NORTE | H28: 79 | I28: 8 | J28: 1 | K28: 6 | L28: 45 | M28: 45
B29: 19 | C29: LA LIBERTAD | F29: RNC22 | G29: NORTE | H29: 79 | I29: 8 | J29: 1 | K29: 6 | L29: 45 | M29: 45
B30: 20 | C30: LA LIBERTAD | F30: RNC23 | G30: NOR ORIENTE | H30: 79 | I30: 8 | J30: 1 | K30: 6 | L30: 45 | M30: 45
B31: 21 | C31: LA LIBERTAD | F31: RNC24 | G31: NOR ORIENTE | H31: 79 | I31: 8 | J31: 1 | K31: 6 | L31: 45 | M31: 45
B32: 22 | C32: LA LIBERTAD | F32: RNC25 | G32: NORTE | H32: 79 | I32: 8 | J32: 1 | K32: 6 | L32: 45 | M32: 45
B33: 23 | C33: LA LIBERTAD | F33: RNC26 | G33: NOR ORIENTE | H33: 79 | I33: 8 | J33: 1 | K33: 6 | L33: 45 | M33: 45
B34: 24 | C34: LA LIBERTAD | F34: RNC27 | G34: NORTE | H34: 79 | I34: 8 | J34: 1 | K34: 6 | L34: 45 | M34: 45
B35: 25 | C35: LA LIBERTAD | F35: RNC28 | G35: NORTE | H35: 79 | I35: 8 | J35: 1 | K35: 6 | L35: 45 | M35: 45
B36: 26 | C36: LORETO | F36: RNC29 | G36: NOR ORIENTE | H36: 79 | I36: 8 | J36: 1 | K36: 6 | L36: 45 | M36: 45
B37: 27 | C37: LIMA | F37: RNC30 | G37: LIMA | H37: 77 | I37: 12 | J37: 0 | K37: 5 | L37: 46 | M37: 31
B38: 27 | C38: LIMA | F38: RNC31 | G38: LIMA | H38: 77 | I38: 12 | J38: 0 | K38: 5 | L38: 46 | M38: 31
B39: 28 | C39: LIMA | F39: RNC32 | G39: LIMA | H39: 77 | I39: 12 | J39: 0 | K39: 5 | L39: 46 | M39: 31
B40: 29 | C40: LIMA | F40: RNC33 | G40: CENTRO ORIENTE | H40: 77 | I40: 12 | J40: 0 | K40: 5 | L40: 46 | M40: 31
B41: 30 | C41: LIMA | F41: RNC34 | G41: CENTRO ORIENTE | H41: 77 | I41: 12 | J41: 0 | K41: 5 | L41: 46 | M41: 31
B42: 31 | C42: LIMA | F42: RNC35 | G42: LIMA | H42: 77 | I42: 12 | J42: 0 | K42: 5 | L42: 46 | M42: 31
B43: 32 | C43: LIMA | F43: RNC36 | G43: LIMA | H43: 77 | I43: 12 | J43: 0 | K43: 5 | L43: 46 | M43: 31
B44: 33 | C44: AREQUIPA | F44: RNC37 | G44: SUR ESTE | H44: 71 | I44: 16 | J44: 32 | K44: 24 | L44: 14 | M44: 34
B45: 34 | C45: AREQUIPA | F45: RNC38 | G45: SUR ESTE | H45: 71 | I45: 16 | J45: 32 | K45: 24 | L45: 14 | M45: 34
B46: 35 | C46: AREQUIPA | F46: RNC39 | G46: SUR ESTE | H46: 71 | I46: 16 | J46: 32 | K46: 24 | L46: 14 | M46: 34
B47: 36 | C47: AREQUIPA | F47: RNC40 | G47: SUR ESTE | H47: 71 | I47: 16 | J47: 32 | K47: 24 | L47: 14 | M47: 34
B48: 37 | C48: AREQUIPA | F48: RNC41 | G48: SUR | H48: 71 | I48: 16 | J48: 32 | K48: 24 | L48: 14 | M48: 34
B49: 37
B50: 38
B51: 39
B52: 30
B53: 41
B54: 42
B55: 43
B56: 44

Sheet LISTA MSC
A1: <-- EDICIÓN | B1: MSC
A4: LISTADO MSC
I6: GRADOS | K6: MINUTOS | M6: SEGUNDOS
B7: ID_MSC | C7: DEPARTAMENTO | D7: PROVINCIA | E7: DISTRITO | F7: COD_MSC | G7: TIPO | H7: REGIÓN | I7: LON. | J7: LAT. | K7: LON. | L7: LAT. | M7: LON. | N7: LAT.
B8: 1 | C8: LIMA | F8: NODO01 | G8: GCS | H8: CENTRO ORIENTE | I8: 77 | J8: 12 | K8: 0 | L8: 5 | M8: 46 | N8: 31
B9: 2 | C9: LIMA | F9: NODO02 | G9: GCS | H9: LIMA | I9: 77 | J9: 12 | K9: 0 | L9: 5 | M9: 46 | N9: 31
B10: 3 | C10: AREQUIPA | F10: NODO03 | G10: MGW | H10: SUR ESTE | I10: 71 | J10: 16 | K10: 32 | L10: 24 | M10: 14 | N10: 34
B11: 4 | C11: LORETO | F11: NODO04 | G11: MGW | H11: CENTRO ORIENTE | I11: 73 | J11: 3 | K11: 15 | L11: 44 | M11: 4 | N11: 41
B12: 5 | C12: LIMA | F12: NODO05 | G12: MGW | H12: LIMA | I12: 77 | J12: 12 | K12: 0 | L12: 5 | M12: 46 | N12: 31
B13: 6 | C13: AREQUIPA | F13: NODO06 | G13: MGW | H13: SUR ESTE | I13: 71 | J13: 16 | K13: 32 | L13: 24 | M13: 14 | N13: 34
B14: 7 | C14: LIMA | F14: NODO07 | G14: MGW | H14: LIMA | I14: 77 | J14: 12 | K14: 0 | L14: 5 | M14: 46 | N14: 31
B15: 8 | C15: AREQUIPA | F15: NODO08 | G15: MGW | H15: SUR | I15: 71 | J15: 16 | K15: 32 | L15: 24 | M15: 14 | N15: 34
B16: 9 | C16: LA LIBERTAD | F16: NODO09 | G16: MGW | H16: NORTE | I16: 79 | J16: 8 | K16: 1 | L16: 6 | M16: 45 | N16: 45
B17: 10 | C17: AREQUIPA | F17: NODO10 | G17: MGW | H17: SUR | I17: 71 | J17: 16 | K17: 32 | L17: 24 | M17: 14 | N17: 34
B18: 11 | C18: LIMA | F18: NODO11 | G18: MGW | H18: NOR ORIENTE | I18: 77 | J18: 12 | K18: 0 | L18: 5 | M18: 46 | N18: 31
B19: 12 | C19: LA LIBERTAD | F19: NODO12 | G19: MGW | H19: NORTE | I19: 79 | J19: 8 | K19: 1 | L19: 6 | M19: 45 | N19: 45
B20: 13 | C20: AREQUIPA | F20: NODO13 | G20: MGW | H20: SUR | I20: 71 | J20: 16 | K20: 32 | L20: 24 | M20: 14 | N20: 34
B21: 14 | C21: LA LIBERTAD | F21: NODO14 | G21: MGW | H21: NORTE | I21: 79 | J21: 8 | K21: 1 | L21: 6 | M21: 45 | N21: 45
B22: 15 | C22: AREQUIPA | F22: NODO15 | G22: MGW | H22: SUR ESTE | I22: 71 | J22: 16 | K22: 32 | L22: 24 | M22: 14 | N22: 34
B23: 16 | C23: LA LIBERTAD | F23: NODO16 | G23: MGW | H23: NORTE | I23: 79 | J23: 8 | K23: 1 | L23: 6 | M23: 45 | N23: 45
B24: 17 | C24: LIMA | F24: NODO17 | G24: MGW | H24: CENTRO ORIENTE | I24: 77 | J24: 12 | K24: 0 | L24: 5 | M24: 46 | N24: 31
B25: 18 | C25: LIMA | F25: NODO18 | G25: MGW | H25: LIMA | I25: 77 | J25: 12 | K25: 0 | L25: 5 | M25: 46 | N25: 31
B26: 19 | C26: LA LIBERTAD | F26: NODO19 | G26: MGW | H26: NORTE | I26: 79 | J26: 8 | K26: 1 | L26: 6 | M26: 45 | N26: 45
B27: 20 | C27: LIMA | F27: NODO20 | G27: MGW | H27: LIMA | I27: 77 | J27: 12 | K27: 0 | L27: 5 | M27: 46 | N27: 31
B28: 21 | C28: LIMA | F28: NODO21 | G28: MGW | H28: CENTRO ORIENTE | I28: 77 | J28: 12 | K28: 0 | L28: 5 | M28: 46 | N28: 31
B29: 22 | C29: LA LIBERTAD | F29: NODO22 | G29: MGW | H29: NORTE | I29: 79 | J29: 8 | K29: 1 | L29: 6 | M29: 45 | N29: 45
B30: 23 | C30: LIMA | F30: NODO23 | G30: MGW | H30: CENTRO ORIENTE | I30: 77 | J30: 12 | K30: 0 | L30: 5 | M30: 46 | N30: 31
B31: 24 | C31: LIMA | F31: NODO24 | G31: MGW | H31: CENTRO ORIENTE | I31: 77 | J31: 12 | K31: 0 | L31: 5 | M31: 46 | N31: 31
B32: 25 | C32: LIMA | F32: NODO25 | G32: MGW | H32: CENTRO ORIENTE | I32: 77 | J32: 12 | K32: 0 | L32: 5 | M32: 46 | N32: 31
B33: 26 | C33: LIMA | F33: NODO26 | G33: MGW | H33: CENTRO ORIENTE | I33: 77 | J33: 12 | K33: 0 | L33: 5 | M33: 46 | N33: 31
B34: 27 | C34: LIMA | F34: NODO27 | G34: MGW | H34: CENTRO ORIENTE | I34: 77 | J34: 12 | K34: 0 | L34: 5 | M34: 46 | N34: 31
B35: 28 | C35: AREQUIPA | F35: NODO28 | G35: MSS | H35: SUR ESTE | I35: 71 | J35: 16 | K35: 32 | L35: 24 | M35: 14 | N35: 34
B36: 29 | C36: LIMA | F36: NODO29 | G36: MSS | H36: LIMA | I36: 77 | J36: 12 | K36: 0 | L36: 5 | M36: 46 | N36: 31
B37: 30 | C37: AREQUIPA | F37: NODO30 | G37: MSS | H37: SUR | I37: 71 | J37: 16 | K37: 32 | L37: 24 | M37: 14 | N37: 34
B38: 31 | C38: LIMA | F38: NODO31 | G38: MSS | H38: CENTRO ORIENTE | I38: 77 | J38: 12 | K38: 0 | L38: 5 | M38: 46 | N38: 31
B39: 32 | C39: LIMA | F39: NODO32 | G39: MSS | H39: LIMA | I39: 77 | J39: 12 | K39: 0 | L39: 5 | M39: 46 | N39: 31
B40: 33 | C40: LA LIBERTAD | F40: NODO33 | G40: MSS | H40: NORTE | I40: 79 | J40: 8 | K40: 1 | L40: 6 | M40: 45 | N40: 45
B41: 34 | C41: AREQUIPA | F41: NODO34 | G41: MSS | H41: SUR | I41: 71 | J41: 16 | K41: 32 | L41: 24 | M41: 14 | N41: 34
B42: 35 | C42: LIMA | F42: NODO35 | G42: MSS | H42: LIMA | I42: 77 | J42: 12 | K42: 0 | L42: 5 | M42: 46 | N42: 31
B43: 36 | C43: LA LIBERTAD | F43: NODO36 | G43: MSS | H43: NORTE | I43: 79 | J43: 8 | K43: 1 | L43: 6 | M43: 45 | N43: 45
B44: 37 | C44: LIMA | F44: NODO37 | G44: MSS | H44: CENTRO ORIENTE | I44: 77 | J44: 12 | K44: 0 | L44: 5 | M44: 46 | N44: 31
B45: 38 | C45: LA LIBERTAD | F45: NODO38 | G45: MSS | H45: NORTE | I45: 79 | J45: 8 | K45: 1 | L45: 6 | M45: 45 | N45: 45
B46: 39 | C46: LIMA | F46: NODO39 | G46: MSS | H46: CENTRO ORIENTE | I46: 77 | J46: 12 | K46: 0 | L46: 5 | M46: 46 | N46: 31

Sheet TRÁFICO
A1: <-- EDICIÓN | B1: SERVICIOS
B5: Clientes
B7: Líneas móviles | C7: 17518388
B8: Líneas móviles prepago | C8: 12039724
B9: Líneas móviles corportativo | C9: 491615.34
B12: Tráfico
B14: SERVICIO | C14: MINUTOS MENSUALES | D14: COMUNICACIONES MENSUALES | E14: MB MENSUALES | F14: INGRESOS (miles de soles)
B15: Entrante LDI | C15: 13000000 | D15: 12000000 | E15: 0 | F15: 0
B16: Entrante LDN Fijo | C16: 0 | D16: 0 | E16: 0 | F16: 0
B17: Entrante LDN Móvil | C17: 0 | D17: 0 | E17: 0 | F17: 0
B18: Entrante Local Fijo | C18: 130000000 | D18: 100000000 | E18: 0 | F18: 0
B19: Entrante Local Móvil | C19: 500000000 | D19: 450000000 | E19: 0 | F19: 100000
B20: On-net LDN | C20: 0 | D20: 0 | E20: 0 | F20: 100000
B21: On-net Local | C21: 2000000000 | D21: 1200000000 | E21: 0 | F21: 1000000
B22: Saliente LDI | C22: 13000000 | D22: 12000000 | E22: 0 | F22: 100000
B23: Saliente LDN Fijo | C23: 0 | D23: 0 | E23: 0 | F23: 0
B24: Saliente LDN Móvil | C24: 0 | D24: 0 | E24: 0 | F24: 0
B25: Saliente Local Fijo | C25: 130000000 | D25: 100000000 | E25: 0 | F25: 100000
B26: Saliente Local Móvil | C26: 500000000 | D26: 450000000 | E26: 0 | F26: 300000
B27: Entrante SMS | C27: 0 | D27: 0 | E27: 0 | F27: 0
B28: Entrante MMS | C28: 0 | D28: 0 | E28: 0 | F28: 0
B29: Saliente SMS | C29: 0 | D29: 0 | E29: 0 | F29: 0
B30: Saliente MMS | C30: 0 | D30: 0 | E30: 0 | F30: 0
B31: On-net SMS | C31: 0 | D31: 0 | E31: 0 | F31: 0
B32: On-net MMS | C32: 0 | D32: 0 | E32: 0 | F32: 0
B33: Servicios de datos | C33: 0 | D33: 0 | E33: 0 | F33: 0
B34: Banda Ancha Móvil | C34: 0 | D34: 10000000 | E34: 2500000000 | F34: 500000
B35: Telefonía fija | C35: 0 | D35: 0 | E35: 0 | F35: 0

Sheet TRÁFICO CALCULADO
A1: TRÁFICO POR SERVICIO I routing matrix
B6: SERVICIO | C6: MINUTOS MENSUALES | D6: COMUNICACIONES MENSUALES | E6: MB MENSUALES | F6: RADIO | G6: RADIO ESTABLECIMIENTO | H6: RADIO VOZ | I6: RADIO DATOS | J6: SERVER | K6: MGW | L6: ENALCES MGW | M6: HLR | N6: IN PREPAGO | O6: IN CORPORATIVO | P6: STP | Q6: ENTRANTE
B7: DRIVER | F7: 1 | G7: 2 | H7: 1 | I7: 3 | J7: 2 | K7: 1 | L7: 1 | M7: 2 | N7: 2 | O7: 2 | P7: 2
B8: =TRÁFICO!B15:B35 -> Entrante LDI | C8: =TRÁFICO!C15:E35 -> 13000000 | D8: 12000000 | E8: 0 | F8: =H8+I8 -> 0.98 | G8: 1 | H8: =1-ESTADISTICAS!$D$45 -> 0.98 | I8: 0 | J8: =(1*ESTADISTICAS!D47+2*ESTADISTICAS!D48)*ESTADISTICAS!D71 -> 2.02 | K8: =(1*ESTADISTICAS!D47+2*ESTADISTICAS!D48) -> 2.02 | L8: =K8 -> 2.02 | M8: =ESTADISTICAS!D82 -> 1 | N8: 0 | O8: 0 | P8: =ESTADISTICAS!D89 -> 1 | Q8: ='INPUTS GENERALES'!C125 -> 1
B9: Entrante LDN Fijo | C9: 0 | D9: 0 | E9: 0 | F9: =H9+I9 -> 0.98 | G9: 1 | H9: =1-ESTADISTICAS!$D$45 -> 0.98 | I9: 0 | J9: =(1*ESTADISTICAS!D49+2*ESTADISTICAS!D50)*ESTADISTICAS!D72 -> 2.02 | K9: =(1*ESTADISTICAS!D49+2*ESTADISTICAS!D50) -> 2.02 | L9: =K9 -> 2.02 | M9: =ESTADISTICAS!D83 -> 1 | N9: 0 | O9: 0 | P9: =ESTADISTICAS!D90 -> 1 | Q9: ='INPUTS GENERALES'!C126 -> 1
B10: Entrante LDN Móvil | C10: 0 | D10: 0 | E10: 0 | F10: 0.98 | G10: 1 | H10: =1-ESTADISTICAS!$D$45 -> 0.98 | I10: 0 | J10: =(1*ESTADISTICAS!D51+2*ESTADISTICAS!D52)*ESTADISTICAS!D72 -> 2.02 | K10: =(1*ESTADISTICAS!D51+2*ESTADISTICAS!D52) -> 2.02 | L10: 2.02 | M10: =ESTADISTICAS!D83 -> 1 | N10: 0 | O10: 0 | P10: =ESTADISTICAS!D90 -> 1 | Q10: ='INPUTS GENERALES'!C127 -> 1
B11: Entrante Local Fijo | C11: 130000000 | D11: 100000000 | E11: 0 | F11: 0.98 | G11: 1 | H11: =1-ESTADISTICAS!$D$45 -> 0.98 | I11: 0 | J11: =(1*ESTADISTICAS!D53+2*ESTADISTICAS!D54)*ESTADISTICAS!D73 -> 2.12 | K11: =(1*ESTADISTICAS!D53+2*ESTADISTICAS!D54) -> 2.12 | L11: 2.12 | M11: =ESTADISTICAS!D84 -> 1 | N11: 0 | O11: 0 | P11: =ESTADISTICAS!D91 -> 1 | Q11: ='INPUTS GENERALES'!C128 -> 1
B12: Entrante Local Móvil | C12: 500000000 | D12: 450000000 | E12: 0 | F12: 0.98 | G12: 1 | H12: =1-ESTADISTICAS!$D$45 -> 0.98 | I12: 0 | J12: =(1*ESTADISTICAS!D55+2*ESTADISTICAS!D56)*ESTADISTICAS!D73 -> 2.12 | K12: =(1*ESTADISTICAS!D55+2*ESTADISTICAS!D56) -> 2.12 | L12: 2.12 | M12: =ESTADISTICAS!D84 -> 1 | N12: 0 | O12: 0 | P12: =ESTADISTICAS!D91 -> 1 | Q12: ='INPUTS GENERALES'!C129 -> 1
B13: On-net LDN | C13: 0 | D13: 0 | E13: 0 | F13: 1.98 | G13: 2 | H13: =2-ESTADISTICAS!$D$46 -> 1.98 | I13: 0 | J13: =(1*ESTADISTICAS!D57+2*ESTADISTICAS!D58)*ESTADISTICAS!D74 -> 2.12 | K13: =(1*ESTADISTICAS!D57+2*ESTADISTICAS!D58) -> 2.12 | L13: 2.12 | M13: =ESTADISTICAS!D85 -> 1 | N13: 1 | O13: 1 | P13: =ESTADISTICAS!D92 -> 1 | Q13: ='INPUTS GENERALES'!C130 -> 0
B14: On-net Local | C14: 2000000000 | D14: 1200000000 | E14: 0 | F14: 1.98 | G14: 2 | H14: =2-ESTADISTICAS!$D$46 -> 1.98 | I14: 0 | J14: =(1*ESTADISTICAS!D59+2*ESTADISTICAS!D60)*ESTADISTICAS!D75 -> 2.12 | K14: =(1*ESTADISTICAS!D59+2*ESTADISTICAS!D60) -> 2.12 | L14: 2.12 | M14: =ESTADISTICAS!D86 -> 1 | N14: 1 | O14: 1 | P14: =ESTADISTICAS!D93 -> 1 | Q14: ='INPUTS GENERALES'!C131 -> 0
B15: Saliente LDI | C15: 13000000 | D15: 12000000 | E15: 0 | F15: 1 | G15: 1 | H15: 1 | I15: 0 | J15: =(1*ESTADISTICAS!D61+2*ESTADISTICAS!D62)*ESTADISTICAS!D76 -> 1.24 | K15: =(1*ESTADISTICAS!D61+2*ESTADISTICAS!D62) -> 1.24 | L15: 1.24 | M15: 0 | N15: 1 | O15: 0 | P15: =ESTADISTICAS!D94 -> 1 | Q15: ='INPUTS GENERALES'!C132 -> 1
B16: Saliente LDN Fijo | C16: 0 | D16: 0 | E16: 0 | F16: 1 | G16: 1 | H16: 1 | I16: 0 | J16: =(1*ESTADISTICAS!D63+2*ESTADISTICAS!D64)*ESTADISTICAS!D77 -> 1.24 | K16: =(1*ESTADISTICAS!D63+2*ESTADISTICAS!D64) -> 1.24 | L16: 1.24 | M16: 0 | N16: 1 | O16: 0 | P16: =ESTADISTICAS!D95 -> 1 | Q16: ='INPUTS GENERALES'!C133 -> 1
B17: Saliente LDN Móvil | C17: 0 | D17: 0 | E17: 0 | F17: 1 | G17: 1 | H17: 1 | I17: 0 | J17: =(1*ESTADISTICAS!D65+2*ESTADISTICAS!D66)*ESTADISTICAS!D77 -> 1.24 | K17: =(1*ESTADISTICAS!D65+2*ESTADISTICAS!D66) -> 1.24 | L17: 1.24 | M17: 0 | N17: 1 | O17: 0 | P17: =ESTADISTICAS!D95 -> 1 | Q17: ='INPUTS GENERALES'!C134 -> 1
B18: Saliente Local Fijo | C18: 130000000 | D18: 100000000 | E18: 0 | F18: 1 | G18: 1 | H18: 1 | I18: 0 | J18: =(1*ESTADISTICAS!D67+2*ESTADISTICAS!D68)*ESTADISTICAS!D78 -> 1.24 | K18: =(1*ESTADISTICAS!D67+2*ESTADISTICAS!D68) -> 1.24 | L18: 1.24 | M18: 0 | N18: 1 | O18: 0 | P18: =ESTADISTICAS!D96 -> 1 | Q18: ='INPUTS GENERALES'!C135 -> 1
B19: Saliente Local Móvil | C19: 500000000 | D19: 450000000 | E19: 0 | F19: 1 | G19: 1 | H19: 1 | I19: 0 | J19: =(1*ESTADISTICAS!D69+2*ESTADISTICAS!D70)*ESTADISTICAS!D78 -> 1.04 | K19: =(1*ESTADISTICAS!D69+2*ESTADISTICAS!D70) -> 1.04 | L19: 1.04 | M19: 0 | N19: 1 | O19: 0 | P19: =ESTADISTICAS!D96 -> 1 | Q19: ='INPUTS GENERALES'!C136 -> 1
B20: Entrante SMS | C20: 0 | D20: 0 | E20: 0 | F20: 0 | G20: 1 | H20: 0 | I20: 0 | J20: =ESTADISTICAS!D79 -> 1 | K20: 0 | L20: 0 | M20: =ESTADISTICAS!D87 -> 1 | N20: 0 | O20: 0 | P20: =ESTADISTICAS!D97 -> 1 | Q20: ='INPUTS GENERALES'!C137 -> 0
B21: Entrante MMS | C21: 0 | D21: 0 | E21: 0 | F21: 1 | G21: 1 | H21: 0 | I21: 1 | J21: 0 | K21: 0 | L21: 0 | M21: =M20 -> 1 | N21: 1 | O21: 0 | P21: 0 | Q21: ='INPUTS GENERALES'!C138 -> 0
B22: Saliente SMS | C22: 0 | D22: 0 | E22: 0 | F22: 0 | G22: 1 | H22: 0 | I22: 0 | J22: =ESTADISTICAS!D80 -> 1 | K22: 0 | L22: 0 | M22: 0 | N22: 1 | O22: 1 | P22: =ESTADISTICAS!D98 -> 1 | Q22: ='INPUTS GENERALES'!C139 -> 0
B23: Saliente MMS | C23: 0 | D23: 0 | E23: 0 | F23: 1 | G23: 1 | H23: 0 | I23: 1 | J23: 0 | K23: 0 | L23: 0 | M23: 0 | N23: 0 | O23: 0 | P23: 0 | Q23: 0
B24: On-net SMS | C24: 0 | D24: 0 | E24: 0 | F24: 0 | G24: 2 | H24: 0 | I24: 0 | J24: =ESTADISTICAS!D81 -> 1 | K24: 0 | L24: 0 | M24: =ESTADISTICAS!D88 -> 1 | N24: 1 | O24: 0 | P24: =ESTADISTICAS!D99 -> 1 | Q24: =ESTADISTICAS!E99 -> 0
B25: On-net MMS | C25: 0 | D25: 0 | E25: 0 | F25: 2 | G25: 2 | H25: 0 | I25: 2 | J25: 0 | K25: 0 | L25: 0 | M25: =M24 -> 1 | N25: 1 | O25: 0 | P25: 0 | Q25: 0
B26: Servicios de datos | C26: 0 | D26: 0 | E26: 0 | F26: 1 | G26: 1 | H26: 0 | I26: 1 | J26: 0 | K26: 0 | L26: 0 | M26: 1 | N26: 1 | O26: 0 | P26: 0 | Q26: 0
B27: Banda Ancha Móvil | C27: 0 | D27: 10000000 | E27: 2500000000 | F27: 1 | G27: 1 | H27: 0 | I27: 1 | J27: 0 | K27: 0 | L27: 0 | M27: 1 | N27: 1 | O27: 0 | P27: 0 | Q27: 0
B28: Telefonía fija | C28: 0 | D28: 0 | E28: 0 | F28: 1 | G28: =ESTADISTICAS!D102 -> 1 | H28: =ESTADISTICAS!D101 -> 1 | I28: 0 | J28: =J14 -> 2.12 | K28: =J14 -> 2.12 | L28: 2.12 | M28: =ESTADISTICAS!D75*ESTADISTICAS!D102 -> 1 | N28: 0 | O28: 0 | P28: =P14 -> 1 | Q28: =Q14 -> 0
B29: TOTAL | F29: =SUMPRODUCT(INDEX($C$8:$E$28,,F$7),F8:F28) -> 5233140000 | G29: =SUMPRODUCT(INDEX($C$8:$E$28,,G$7),G8:G28) -> 3534000000 | H29: 5233140000 | I29: 2500000000 | J29: 4341120000 | K29: 6299180000 | L29: 6299180000 | M29: 1772000000 | N29: 1772000000 | O29: 1200000000 | P29: 2324000000
B30: Tráfico Datos | F30: =E26*F26+E27*F27 -> 2500000000
B31: Tráfico SMS | F31: =D20*F20+D22*F22+D24*F24 -> 0
B32: Tráfico MMS | F32: =D21*F21+D23*F23+D25*F25 -> 0

Sheet RADIO ACCESS
C8: CELDA RESUMEN | I8: PARAMETROS 2G
C10: DIMENSIONADO 2G | I10: COSTOS 2G
C12: PARAMETROS 3G | I12: DIMENSIONADO 3G
C14: COSTOS 3G | I14: PARAMETROS 4G
C16: DIMENSIONADO 4G | I16: COSTOS 4G
C18: PARAMETROS CELDA | I18: DIMENSIONADO CELDA
C20: COSTOS CELDA | I20: PARAMETROS TERRENO
C22: COSTOS TERRENO

Sheet CELDA RESUMEN
B1: Coverage
A5: Coverage designation by cell | X5: =SUM(X8:X6167) -> 2697 | Y5: 329 | Z5: 0 | AA5: 0 | AB5: 0 | AC5: 85 | AD5: 1939 | AE5: 5050
B7: ID_CELL_SITE | C7: TIPO_ZONA | D7: DEPARTAMENTO | E7: PROVINCIA | F7: DISTRITO | G7: TIPO | H7: %TRAFICO VOZ POR CELL SITE | I7: % TRAFICO DATOS POR CELL SITE | K7: 2G 800MHz | L7: 2G 1900MHz | M7: %TRAFICO VOZ POR CELL SITE | N7: % TRAFICO DATOS POR CELL SITE | P7: 3G | Q7: 3G VOZ | R7: 3G DATA | T7: 4G | U7: 4G VOZ | V7: 4G DATA | X7: 2G | Y7: 3G | Z7: 4G | AA7: 2G & 3G | AB7: 2G & 4G | AC7: 3G & 4G | AD7: 2G & 3G & 4G | AE7: Todo | AG7: 2G | AH7: 3G | AI7: 4G
B8: ='LISTA CELDA'!B8 -> 1 | C8: ='LISTA CELDA'!C8 -> URBANA | D8: ='LISTA CELDA'!F8 -> AMAZONAS | E8: ='LISTA CELDA'!G8 -> PROVINCIA31 | F8: ='LISTA CELDA'!H8 -> DISTRITO641 | G8: ='LISTA CELDA'!S8 -> MACRO | H8: ='LISTA CELDA'!U8 -> 0.000198019802 | I8: ='LISTA CELDA'!V8 -> 0.000198019802 | K8: ='LISTA CELDA'!AD8 -> 1 | L8: ='LISTA CELDA'!AG8 -> 1 | M8: =MAX(K8:L8)*'LISTA CELDA'!BH8 -> 0.4 | N8: =MAX(K8:L8)*'LISTA CELDA'!BI8 -> 0.02 | P8: ='LISTA CELDA'!AL8 -> 1 | Q8: =P8*'LISTA CELDA'!BJ8 -> 0.6 | R8: =P8*'LISTA CELDA'!BK8 -> 0.33 | T8: ='LISTA CELDA'!AS8 -> 1 | U8: =T8*'LISTA CELDA'!BL8 -> 0 | V8: =T8*'LISTA CELDA'!BM8 -> 0.65 | X8: =(SUM($K8:$L8)>0)*($P8=0)*($T8=0) -> 0 | Y8: =(SUM($K8:$L8)=0)*($P8>0)*($T8=0) -> 0 | Z8: =(SUM($K8:$L8)=0)*($P8=0)*($T8>0) -> 0 | AA8: =(SUM($K8:$L8)>0)*($P8>0)*($T8=0) -> 0 | AB8: =(SUM($K8:$L8)>0)*($P8=0)*($T8>0) -> 0 | AC8: =(SUM($K8:$L8)=0)*($P8>0)*($T8>0) -> 0 | AD8: =(SUM($K8:$L8)>0)*($P8>0)*($T8>0) -> 1 | AE8: =SUM(X8:AD8) -> 1 | AG8: =MAX(K8:L8) -> 1 | AH8: =P8 -> 1 | AI8: =T8 -> 1
B9: ='LISTA CELDA'!B9 -> 2 | C9: ='LISTA CELDA'!C9 -> URBANA | D9: ='LISTA CELDA'!F9 -> AMAZONAS | E9: ='LISTA CELDA'!G9 -> PROVINCIA232 | F9: ='LISTA CELDA'!H9 -> DISTRITO111 | G9: ='LISTA CELDA'!S9 -> MACRO | H9: ='LISTA CELDA'!U9 -> 0.000198019802 | I9: ='LISTA CELDA'!V9 -> 0.000198019802 | K9: ='LISTA CELDA'!AD9 -> 1 | L9: ='LISTA CELDA'!AG9 -> 1 | M9: =MAX(K9:L9)*'LISTA CELDA'!BH9 -> 0.4 | N9: =MAX(K9:L9)*'LISTA CELDA'!BI9 -> 0.02 | P9: ='LISTA CELDA'!AL9 -> 1 | Q9: =P9*'LISTA CELDA'!BJ9 -> 0.6 | R9: =P9*'LISTA CELDA'!BK9 -> 0.33 | T9: ='LISTA CELDA'!AS9 -> 1 | U9: =T9*'LISTA CELDA'!BL9 -> 0 | V9: =T9*'LISTA CELDA'!BM9 -> 0.65 | X9: 0 | Y9: 0 | Z9: 0 | AA9: 0 | AB9: 0 | AC9: 0 | AD9: 1 | AE9: =SUM(X9:AD9) -> 1 | AG9: =MAX(K9:L9) -> 1 | AH9: =P9 -> 1 | AI9: =T9 -> 1
B10: ='LISTA CELDA'!B10 -> 3 | C10: ='LISTA CELDA'!C10 -> RURAL | D10: ='LISTA CELDA'!F10 -> AMAZONAS | E10: ='LISTA CELDA'!G10 -> PROVINCIA31 | F10: ='LISTA CELDA'!H10 -> DISTRITO641 | G10: ='LISTA CELDA'!S10 -> MACRO | H10: ='LISTA CELDA'!U10 -> 0.000198019802 | I10: ='LISTA CELDA'!V10 -> 0.000198019802 | K10: ='LISTA CELDA'!AD10 -> 1 | L10: ='LISTA CELDA'!AG10 -> 0 | M10: =MAX(K10:L10)*'LISTA CELDA'!BH10 -> 0.4 | N10: =MAX(K10:L10)*'LISTA CELDA'!BI10 -> 0.02 | P10: ='LISTA CELDA'!AL10 -> 1 | Q10: =P10*'LISTA CELDA'!BJ10 -> 0.6 | R10: =P10*'LISTA CELDA'!BK10 -> 0.33 | T10: ='LISTA CELDA'!AS10 -> 1 | U10: =T10*'LISTA CELDA'!BL10 -> 0 | V10: =T10*'LISTA CELDA'!BM10 -> 0.65 | X10: 0 | Y10: 0 | Z10: 0 | AA10: 0 | AB10: 0 | AC10: 0 | AD10: 1 | AE10: 1 | AG10: 1 | AH10: 1 | AI10: 1
B11: ='LISTA CELDA'!B11 -> 4 | C11: ='LISTA CELDA'!C11 -> RURAL | D11: ='LISTA CELDA'!F11 -> AMAZONAS | E11: ='LISTA CELDA'!G11 -> PROVINCIA38 | F11: ='LISTA CELDA'!H11 -> DISTRITO592 | G11: ='LISTA CELDA'!S11 -> MACRO | H11: ='LISTA CELDA'!U11 -> 0.000198019802 | I11: ='LISTA CELDA'!V11 -> 0.000198019802 | K11: ='LISTA CELDA'!AD11 -> 1 | L11: ='LISTA CELDA'!AG11 -> 0 | M11: =MAX(K11:L11)*'LISTA CELDA'!BH11 -> 0.4 | N11: =MAX(K11:L11)*'LISTA CELDA'!BI11 -> 0.02 | P11: ='LISTA CELDA'!AL11 -> 0 | Q11: =P11*'LISTA CELDA'!BJ11 -> 0 | R11: =P11*'LISTA CELDA'!BK11 -> 0 | T11: ='LISTA CELDA'!AS11 -> 0 | U11: =T11*'LISTA CELDA'!BL11 -> 0 | V11: =T11*'LISTA CELDA'!BM11 -> 0 | X11: 1 | Y11: 0 | Z11: 0 | AA11: 0 | AB11: 0 | AC11: 0 | AD11: 0 | AE11: 1 | AG11: 1 | AH11: 0 | AI11: 0
B12: ='LISTA CELDA'!B12 -> 5 | C12: ='LISTA CELDA'!C12 -> URBANA | D12: ='LISTA CELDA'!F12 -> AMAZONAS | E12: ='LISTA CELDA'!G12 -> PROVINCIA232 | F12: ='LISTA CELDA'!H12 -> DISTRITO111 | G12: ='LISTA CELDA'!S12 -> MACRO | H12: ='LISTA CELDA'!U12 -> 0.000198019802 | I12: ='LISTA CELDA'!V12 -> 0.000198019802 | K12: ='LISTA CELDA'!AD12 -> 1 | L12: ='LISTA CELDA'!AG12 -> 1 | M12: =MAX(K12:L12)*'LISTA CELDA'!BH12 -> 0.4 | N12: =MAX(K12:L12)*'LISTA CELDA'!BI12 -> 0.02 | P12: ='LISTA CELDA'!AL12 -> 0 | Q12: =P12*'LISTA CELDA'!BJ12 -> 0 | R12: =P12*'LISTA CELDA'!BK12 -> 0 | T12: ='LISTA CELDA'!AS12 -> 0 | U12: =T12*'LISTA CELDA'!BL12 -> 0 | V12: =T12*'LISTA CELDA'!BM12 -> 0 | X12: 1 | Y12: 0 | Z12: 0 | AA12: 0 | AB12: 0 | AC12: 0 | AD12: 0 | AE12: 1 | AG12: 1 | AH12: 0 | AI12: 0
